Workbook

Sheet Dashboard
B4: RESULTADOS | G4: PREMISSAS GERAIS | Q4: CURVA DE EXECUÇAO CAPEX | W4: OUTORGAS E NOVAS ÁREAS | AD4: FINANCIAMENTO
B6: Consolidado | G6: Principais Premissas | H6: Trecho 1 | I6: HARMONIA | J6: Consolidado | L6: Premissas Gerais | Q6: Curva de execução CAPEX | R6: Trecho 1 | S6: =I6 -> HARMONIA | W6: Outorgas Fixas | X6: Trecho 1 | Y6: Valor | Z6: Nº Parcelas | AD6: Financiamento Ponte | AE6: Trecho 1 | AF6: =S6 -> HARMONIA | AJ6: Financiamento Comercial | AK6: Trecho 1 | AL6: =AF6 -> HARMONIA | AP6: Integralização de Capital
B7: TIR Projeto (real - % a.a) | C7: 0.09139440581 | G7: Seleção | H7: 1 | I7: 1 | J7: 1 | L7: Regime tributário 1 - Pres. 2- Real | M7: 1 | Q7: Ano 1 | R7: 0 | S7: 0.3752612161 | W7: Outorga Fixa | X7: 0 | Y7: 200000 | Z7: 1 | AD7: Amortização 1 - Sac. 0 - Price | AE7: 1 | AF7: 1 | AJ7: Amortização 1 - Sac. 0 - Price | AK7: 1 | AL7: 1 | AP7: Inicial - OPEX ano 1 T1 | AQ7: 3MM
B8: TIR Acionista (real - % a.a) | C8: 0.09822139847 | G8: Sensibilidade CAPEX (%total) | H8: 1 | I8: 1 | J8: =I8 -> 1 | L8: Sinergia OPEX 3 trechos | M8: 0 | Q8: Ano 2 | R8: 0 | S8: 0.2877519756 | W8: Outorgas Variáveis | X8: Trecho 1 | Y8: % Receitas | Z8: Fator Desempenho | AD8: Porcentagem CAPEX | AE8: 0.5 | AF8: 0.5 | AJ8: Porcentagem CAPEX | AK8: 0.7 | AL8: 0.7 | AP8: Período de obras - Necessidade caixa dois primeiros anos de obra | AQ8: 12MM
B9: Nec. de caixa Acionista R$ 000' | C9: 31913.35959 | G9: Rateio Estacionamento | H9: =SUM(E9:G9) -> 0 | I9: =SUM(F9:H9) -> 0 | J9: 0 | L9: Sinergia OPEX 2 trechos | M9: 0 | Q9: Ano 3 | R9: 0 | S9: 0.3369868083 | W9: Outorga Variável | X9: 0 | Y9: 0.015 | Z9: - | AD9: Mês Final de Captação | AE9: 6 | AF9: 6 | AJ9: Mês Final de Captação | AK9: 36 | AL9: 36 | AP9: Final - média OPEX projeto | AQ9: 7,7MM
B10: Nec. de caixa Projeto R$ 000' | C10: 60885.67302 | G10: Rateio Eventos | H10: 0 | I10: 0 | J10: 0 | L10: Mês entrada dos terrenos/aluguel | M10: 1 | Q10: Ano 4 | R10: 0 | S10: 0 | W10: Outorga Variável Desempenho | X10: 0 | Y10: 0.015 | Z10: 1 | AD10: Mês Inicial Financiamento | AE10: 1 | AF10: 1 | AJ10: Mês Inicial Financiamento | AK10: 7 | AL10: 7
B11: OPEX R$ m² / ano | C11: 31.57846347 | G11: Sensibilidade OPEX (%total) | H11: 1 | I11: 1 | J11: =I11 -> 1 | L11: CAPM | M11: 0.1427008285 | Q11: Ano 5 | R11: 0 | S11: 0 | AD11: Prazo Total Financiamento | AE11: 24 | AF11: 24 | AJ11: Prazo Total Financiamento | AK11: 343 | AL11: 343
B12: CAPEX TOTAL R$ 000' | C12: 57033.4095 | G12: Sensibilidade SG&A (%total) | H12: 1 | I12: 1 | J12: =I12 -> 1 | L12: WACC Real | M12: 0.0912473403 | Q12: Ano 6 | R12: 0 | S12: 0 | AD12: Carência Principal | AE12: 12 | AF12: 12 | AJ12: Carência Principal | AK12: 19 | AL12: 19
B13: Valor outorga fixa | C13: 200000 | G13: Área aluguel (coparticipação) | L13: Sensibilidade receitas | M13: 1 | Q13: Curva de execução Total | R13: 0 | S13: 1 | AD13: Carência Juros | AE13: 12 | AF13: 12 | AJ13: Carência Juros | AK13: 19 | AL13: 19
B14: Outorga variável total | C14: 0.015 | G14: VPL Projeto | H14: -4027903.405 | I14: 4103799.623 | J14: 75896.21739 | L14: Prazo da concessão | M14: 35 | AD14: %Indexador | AE14: 1 | AF14: 1 | AJ14: %Indexador | AK14: 1 | AL14: 1
L15: Índice de Cobertura Limite | M15: 1.3 | AD15: Spread | AE15: 0.06 | AF15: 0.06 | AJ15: Spread | AK15: 0.043 | AL15: 0.043

Sheet OPEX Harmonia
L1: Organograma das estruturas definidas para o Trecho 02 e utilizadas como base para o Parque Harmonia - Quadro Resumo
A2: VALORES MENSAIS de OPEX DO T2 UTILIZADOS COMO PARÂMETRO PARA O HARMONIA | I2: Parâmetros para Harmonia com base no Organograma
A3: CUSTOS E DESPESAS | C3: Trecho 2 | D3: Harmonia | E3: Qtde pessoas | F3: Total pessoas | G3: Custo | I3: Função | J3: Preço médio unitário | K3: Qtde total | M3: Especialidade | N3: Quantidade | O3: CBO | P3: Salário unitário | Q3: Preço Unitário | R3: Preço Mensal | S3: Escala de trabalho
A4: Administrativos | C4: 0 | D4: 0 | I4: Técnicos | J4: 4641.556978 | K4: 9 | M4: Administrativo de Apoio | N4: 0 | O4: 411010 | P4: 1850.68 | Q4: 3671.74912 | R4: 0 | S4: Estão contemplados nos custos da SPE
A5: Técnicos | B5: 44524.432 | C5: 48896 | D5: 71476.86096 | E5: 15.39932857 | F5: 16 | G5: 74264.91164 | I5: Técnicos | J5: 4641.556978 | K5: 9 | M5: Adm. Gestor de Contrato | N5: 0 | O5: 142705 | P5: 5252.48 | Q5: 10420.92032 | R5: 0 | S5: Estão contemplados nos custos da SPE
A6: Jardineiros | B6: 14503.91296 | C6: 14145.1264 | D6: 20677.54485 | E6: 4.658360355 | F6: 6 | G6: 26632.8192 | I6: Técnicos | J6: 4641.556978 | K6: 9 | M6: Adm. Supervisor Serviços | N6: 1 | O6: 510110 | P6: 2613.79 | Q6: 5185.75936 | R6: 5185.75936 | S6: 1 em escala comercial
A7: Limpadores | B7: 14145.1264 | C7: 32505 | D7: 47516.26648 | E7: 19.95902403 | F7: 21 | G7: 49994.50848 | I7: Técnicos | J7: 4641.556978 | K7: 9 | M7: Adm. Supervisor Técnico | N7: 1 | O7: 313115 | P7: 3781.78 | Q7: 7503.05152 | R7: 7503.05152 | S7: 1 em escala comercial
A8: Vigilantes e Brigadistas | B8: 41059.06848 | C8: 41896 | D8: 61244.16244 | E8: 22.85472088 | F8: 24 | G8: 64313.18528 | I8: Vigilantes e Brigadistas | J8: 2679.716053 | K8: 3 | M8: Almoxarife | N8: 0.5 | O8: 414105 | P8: 1411.31 | Q8: 2800.03904 | R8: 1400.01952 | S8: 1 em escala de meio expediente
A9: Especialistas | B9: 1915.099152 | C9: 1915.099152 | D9: 2799.518894 | E9: 0.4385442222 | F9: 1 | G9: 6383.66384 | I9: Técnicos | J9: 4641.556978 | K9: 9 | M9: Auxiliar Técnico | N9: 4 | O9: 514310 | P9: 1333.5 | Q9: 2645.664 | R9: 10582.656 | S9: 2 em escala comercial e 1 posto 12x36 diurno
A10: Materiais | B10: 29713.15 | C10: 29713.15 | D10: 43435.10085 | E10: 43435.10085 | F10: 43435 | G10: 43435.10085 | I10: Técnicos | J10: 4641.556978 | K10: 9 | M10: Bombeiro Civil | N10: 2 | O10: 517110 | P10: 1784.55 | Q10: 3540.5472 | R10: 7081.0944 | S10: 1 posto 12x36 diurno
A11: Total | C11: 169070.3756 | D11: 247149.4545 | F11: 43503 | G11: 265024.1893 | I11: Técnicos | J11: 4641.556978 | K11: 9 | M11: Bombeiro Hidráulico | N11: 1 | O11: 724110 | P11: 1734.26 | Q11: 3440.77184 | R11: 3440.77184 | S11: 1 em escala comercial
I12: Técnicos | J12: 4641.556978 | K12: 9 | M12: Pedreiro / Pintor | N12: 2 | O12: 715210 | P12: 1582.62 | Q12: 3139.91808 | R12: 6279.83616 | S12: 2 em escala comercial
A13: Área total | C13: 134450 | D13: 167811 | I13: Jardineiros | J13: 4438.8032 | K13: 2 | M13: Eletricista | N13: 4 | O13: 951105 | P13: 1827.61 | Q13: 3625.97824 | R13: 14503.91296 | S13: 1 posto 12x36
A14: Área OCUPADA 20% T2 / vilas tematicas Harmonia | C14: 26890 | D14: 6000 | I14: Jardineiros | J14: 4438.8032 | K14: 2 | M14: Eletromecânico | N14: 0 | O14: 950110 | P14: 2646.99 | Q14: 5251.62816 | R14: 0 | S14: não se aplica
A15: Galpão Crioulo | D15: 2086.8649 | I15: Limpadores | J15: 2380.69088 | K15: 2 | M15: Jardineiro | N15: 2 | O15: 622010 | P15: 1234.98 | Q15: 2450.20032 | R15: 4900.40064 | S15: 2 em escala comercial
A16: CASA GAÚCHO | D16: 2491.4133 | I16: Limpadores | J16: 2380.69088 | K16: 2 | M16: Jardineiro auxiliar | N16: 4 | O16: 992225 | P16: 1164.91 | Q16: 2311.18144 | R16: 9244.72576 | S16: 4 em escala comercial
A17: Área SEM CONSTRUÇÕES | C17: 107560 | D17: 157232.7218 | I17: Vigilantes e Brigadistas | J17: 2679.716053 | K17: 3 | M17: Limpeza externa | N17: 12 | O17: 514215 | P17: 1178.34 | Q17: 2337.82656 | R17: 28053.91872 | S17: 6 em escala matutina e 6 em escala vespertina
I18: Técnicos | J18: 4641.556978 | K18: 9 | M18: Limpeza interno | N18: 2 | O18: 514320 | P18: 1121.79 | Q18: 2225.63136 | R18: 4451.26272 | S18: 1 em escala matutina e 1 em escala vespertina
A19: SG&A | C19: Trecho 2 | D19: Harmonia | I19: Vigilantes e Brigadistas | J19: 2679.716053 | K19: 3 | M19: Monitorador CFTV | N19: 4 | O19: 517330 | P19: 1462.34 | Q19: 2901.28256 | R19: 11605.13024 | S19: 1 posto 12x36
A20: Aluguel escritório | C20: 13500 | D20: 19734.49 | M20: Técnico TI | N20: 0 | O20: 317210 | P20: 2033.92 | Q20: 4035.29728 | R20: 0 | S20: 1 em escala de meio expediente
A21: Pessoal administrativo | C21: 51500 | D21: 75283.42481 | M21: Vigilante | N21: 8 | O21: 517330 | P21: 1462.34 | Q21: 2901.28256 | R21: 23210.26048 | S21: 2 postos 12x36
A22: Utilidades | C22: 11500 | D22: 16810.86185 | P22: A - TOTAL GERAL com Técnicos | R22: 137442.8003
C23: 76500 | D23: 111828.7767 | I23: Especialistas | J23: =SUMIF($I$2:$I$31,I23,$Q$2:$Q$33)/COUNTIF($I$2:$I$31,I23) -> 6383.66384 | K23: =COUNTIF($I$2:$I$31,I23) -> 4
I24: Especialistas | J24: =SUMIF($I$2:$I$31,I24,$Q$2:$Q$33)/COUNTIF($I$2:$I$31,I24) -> 6383.66384 | K24: =COUNTIF($I$2:$I$31,I24) -> 4 | L24: Local | M24: Especialidade | N24: Quantidade | O24: CBO | P24: Salário unitário | Q24: Preço Unitário | R24: Preço Mensal | S24: Escala de trabalho
I25: Especialistas | J25: =SUMIF($I$2:$I$31,I25,$Q$2:$Q$33)/COUNTIF($I$2:$I$31,I25) -> 6383.66384 | K25: =COUNTIF($I$2:$I$31,I25) -> 4 | L25: Especialistas consultores | M25: Biólogo | N25: 0.075 | O25: 221105 | P25: 5393.22 | Q25: 10700.14848 | R25: 802.511136 | S25: 12 horas mensais
I26: Especialistas | J26: =SUMIF($I$2:$I$31,I26,$Q$2:$Q$33)/COUNTIF($I$2:$I$31,I26) -> 6383.66384 | M26: Engenheiro civil | N26: 0.075 | O26: 214205 | P26: 7477.07 | Q26: 14834.50688 | R26: 1112.588016 | S26: 12 horas mensais
M27: Engenheiro Ambiental | N27: 0 | O27: 214005 | P27: 5024 | Q27: 9967.616 | R27: 0 | S27: -
P28: B - TOTAL GERAL com Especialistas | R28: 1915.099152
I30: Materiais | J30: =SUMIF($I$2:$I$31,I30,$Q$2:$Q$33)/COUNTIF($I$2:$I$31,I30) -> 0 | K30: =COUNTIF($I$2:$I$31,I30) -> 1 | L30: Os custos de mão-de-obra foram calculados com as tabelas de salários referência de mercado setembro - 2018.
L31: Resumo da composição de equipes | P31: TOTAL GERAL A + B | R31: 139357.8995
M32: 1 | N32: 1 | O32: 1 | P32: 1 | Q32: 1 | R32: =W238 -> 29713.15
L34: Distribuição dos postos por horário
M36: Especialidade | N36: * Diurna 06:00 as 13:00 escala 6x1 | O36: * Vespertina 13:00 as 20:00 escala 6x1 | P36: Horário comercial 08:00 as 18:00 | Q36: ** Dias intercalados 12 horas Diurnas escala 12x36 | R36: ** Dias intercalados 12 horas Noturnas escala 12x36
M37: Administrativo de Apoio
M38: Adm. Gestor de Contrato
M39: Adm. Supervisor Serviços | P39: 1
M40: Adm. Supervisor Técnico | P40: 1
M41: Almoxarife | P41: 0.5
M42: Auxiliar Técnico | P42: 2 | Q42: 1
M43: Bombeiro Civil | Q43: 1
M44: Bombeiro Hidráulico | P44: 1
M45: Pedreiro / Pintor | P45: 2
M46: Eletricista | Q46: 1 | R46: 1
M47: Eletromecânico
M48: Jardineiro | P48: 2
M49: Jardineiro auxiliar | P49: 4
M50: Limpeza externa | N50: 5 | O50: 5
M51: Limpeza interna | N51: 1 | O51: 1
M52: Monitorador CFTV | Q52: 1 | R52: 1
M53: Técnico TI | P53: 0.5
M54: Vigilante | Q54: 2 | R54: 2
M55: Total | N55: 6 | O55: 6 | P55: 14 | Q55: 6 | R55: 4
L57: * As equipes diurnas e vespertinas tem escalas de trabalho de 06 horas com 6 dias de trabalho por semana, e organizadas para cobrirem também os finais de semana.
L58: ** Nas equipes em escala 12x36 diurna ou noturna, cada profissional trabalha 12 horas e descansa 36 horas. Todos os dias do ano, inclusive feriados.
L59: *** Todas as posições representam postos, ou seja, no horário informado haverá um posto, mas podem ser mais de um profissional, por trabalhar em escalas de descanso.
L60: **** Quando o posto é descrito menor que 1, é porque este estará percentualmente alocado em outro Trecho ou parcialmente trabalhando, conforme descrição na Escala de trabalho.
L63: Composição das equipes por locais do Parque
L65: Local | M65: Especialidade | N65: Quantidade | Q65: Custo Unitário | R65: Custo Mensal | S65: Escala de trabalho
L66: Administração | M66: Adm. Apoio | N66: 0 | Q66: 3671.74912 | R66: 0 | S66: Estão contemplados nos custos da SPE
M67: Adm. Gestor de Contrato | N67: 0 | Q67: 10420.92032 | R67: 0 | S67: Estão contemplados nos custos da SPE
M68: Adm. Supervisor Serviços | N68: 1 | Q68: 5185.75936 | R68: 5185.75936 | S68: 1 em meio expediente, dias intercalados
M69: Adm. Supervisor Técnico | N69: 1 | Q69: 7503.05152 | R69: 7503.05152 | S69: 1 em meio expediente, dias intercalados
M70: Almoxarife | N70: 0.5 | Q70: 2800.03904 | R70: 1400.01952 | S70: não se aplica
M71: Monitorador CFTV | N71: 4 | Q71: 2901.28256 | R71: 11605.13024 | S71: 1 posto 12x36
M72: Técnico TI | N72: 0 | Q72: 4035.29728 | R72: 0 | S72: não se aplica
M73: Total | N73: 6.5 | Q73: Total | R73: 25693.96064
L75: Local | M75: Especialidade | N75: Quantidade | Q75: Custo Unitário | R75: Custo Mensal | S75: Escala de trabalho
L76: Palco e anfiteatro | M76: Auxiliar Técnico | N76: 0.35 | Q76: 2645.664 | R76: 925.9824 | S76: proporção de profissionais em dedicação neste local
M77: Bombeiro Civil | N77: 0.35 | Q77: 3540.5472 | R77: 1239.19152 | S77: proporção de profissionais em dedicação neste local
M78: Bombeiro Hidráulico | N78: 0 | Q78: 3440.77184 | R78: 0 | S78: proporção de profissionais em dedicação neste local
M79: Pedreiro / Pintor | N79: 0.34 | Q79: 3139.91808 | R79: 1067.572147 | S79: proporção de profissionais em dedicação neste local
M80: Eletricista | N80: 0.35 | Q80: 3625.97824 | R80: 1269.092384 | S80: proporção de profissionais em dedicação neste local
M81: Eletromecânico | N81: 0 | Q81: 5251.62816 | R81: 0 | S81: não se aplica
M82: Limpeza externa | N82: 0 | Q82: 2337.82656 | R82: 0 | S82: não se aplica
M83: Limpeza interno | N83: 0 | Q83: 2225.63136 | R83: 0 | S83: não se aplica
M84: Total | N84: 1.39 | Q84: Total | R84: 4501.838451
L86: Local | M86: Especialidade | N86: Quantidade | Q86: Custo Unitário | R86: Custo Mensal | S86: Escala de trabalho
L87: Quiosques e estacionamento | M87: Auxiliar Técnico | N87: 0.8 | Q87: 2645.664 | R87: 2116.5312 | S87: proporção de profissionais em dedicação neste local
M88: Bombeiro Civil | N88: 0.35 | Q88: 3540.5472 | R88: 1239.19152 | S88: proporção de profissionais em dedicação neste local
M89: Bombeiro Hidráulico | N89: 0.1 | Q89: 3440.77184 | R89: 344.077184 | S89: proporção de profissionais em dedicação neste local
M90: Pedreiro / Pintor | N90: 0.33 | Q90: 3139.91808 | R90: 1036.172966 | S90: proporção de profissionais em dedicação neste local
M91: Eletricista | N91: 0.8 | Q91: 3625.97824 | R91: 2900.782592 | S91: proporção de profissionais em dedicação neste local
M92: Eletromecânico | N92: 0 | Q92: 5251.62816 | R92: 0 | S92: não se aplica
M93: Limpeza externa | N93: 4 | Q93: 2337.82656 | R93: 9351.30624 | S93: 2 em escala matutina e 2 em escala vespertina
M94: Limpeza interno | N94: 0 | Q94: 2225.63136 | R94: 0 | S94: não se aplica
M95: Total | N95: 6.38 | Q95: Total | R95: 16988.0617
L97: Local | M97: Especialidade | N97: Quantidade | Q97: Custo Unitário | R97: Custo Mensal | S97: Escala de trabalho
L98: Playground e cachorródromo | M98: Auxiliar Técnico | N98: 0.8 | Q98: 2645.664 | R98: 2116.5312 | S98: proporção de profissionais em dedicação neste local
M99: Bombeiro Civil | N99: 0.35 | Q99: 3540.5472 | R99: 1239.19152 | S99: proporção de profissionais em dedicação neste local
M100: Bombeiro Hidráulico | N100: 0.2 | Q100: 3440.77184 | R100: 688.154368 | S100: proporção de profissionais em dedicação neste local
M101: Pedreiro / Pintor | N101: 0.34 | Q101: 3139.91808 | R101: 1067.572147 | S101: proporção de profissionais em dedicação neste local
M102: Eletricista | N102: 0.8 | Q102: 3625.97824 | R102: 2900.782592 | S102: proporção de profissionais em dedicação neste local
M103: Eletromecânico | N103: 0 | Q103: 5251.62816 | R103: 0 | S103: não se aplica
M104: Limpeza externa | N104: 2 | Q104: 2337.82656 | R104: 4675.65312 | S104: 1 em escala matutina e 1 em escala vespertina
M105: Limpeza interno | N105: 0 | Q105: 2225.63136 | R105: 0 | S105: não se aplica
M106: Total | N106: 4.49 | Q106: Total | R106: 12687.88495
L108: Local | M108: Especialidade | N108: Quantidade | Q108: Custo Unitário | R108: Custo Mensal | S108: Escala de trabalho
L109: Caminhos peatonais, ciclovias, decks, passarelas e praça de chegada | M109: Auxiliar Técnico | N109: 0.8 | Q109: 2645.664 | R109: 2116.5312 | S109: proporção de profissionais em dedicação neste local
M110: Bombeiro Civil | N110: 0.35 | Q110: 3540.5472 | R110: 1239.19152 | S110: proporção de profissionais em dedicação neste local
M111: Bombeiro Hidráulico | N111: 0.2 | Q111: 3440.77184 | R111: 688.154368 | S111: proporção de profissionais em dedicação neste local
M112: Pedreiro / Pintor | N112: 0.33 | Q112: 3139.91808 | R112: 1036.172966 | S112: proporção de profissionais em dedicação neste local
M113: Eletricista | N113: 0.8 | Q113: 3625.97824 | R113: 2900.782592 | S113: proporção de profissionais em dedicação neste local
M114: Eletromecânico | N114: 0 | Q114: 5251.62816 | R114: 0 | S114: não se aplica
M115: Limpeza externa | N115: 4 | Q115: 2337.82656 | R115: 9351.30624 | S115: 2 em escala matutina e 2 em escala vespertina
M116: Limpeza interno | N116: 0 | Q116: 2225.63136 | R116: 0 | S116: não se aplica
M117: Total | N117: 6.48 | Q117: Total | R117: 17332.13889
L119: Local | M119: Especialidade | N119: Quantidade | Q119: Custo Unitário | R119: Custo Mensal | S119: Escala de trabalho
L120: Apoio ao usuário, centro de visitantes | M120: Auxiliar Técnico | N120: 0.75 | Q120: 2645.664 | R120: 1984.248 | S120: proporção de profissionais em dedicação neste local
M121: Bombeiro Civil | N121: 0.3 | Q121: 3540.5472 | R121: 1062.16416 | S121: proporção de profissionais em dedicação neste local
M122: Bombeiro Hidráulico | N122: 0.5 | Q122: 3440.77184 | R122: 1720.38592 | S122: proporção de profissionais em dedicação neste local
M123: Pedreiro / Pintor | N123: 0.33 | Q123: 3139.91808 | R123: 1036.172966 | S123: proporção de profissionais em dedicação neste local
M124: Eletricista | N124: 0.8 | Q124: 3625.97824 | R124: 2900.782592 | S124: proporção de profissionais em dedicação neste local
M125: Eletromecânico | N125: 0 | Q125: 5251.62816 | R125: 0 | S125: não se aplica
M126: Limpeza externa | N126: 0 | Q126: 2337.82656 | R126: 0 | S126: não se aplica
M127: Limpeza interno | N127: 2 | Q127: 2225.63136 | R127: 4451.26272 | S127: 1 em escala matutina e 1 em escala vespertina
M128: Total | N128: 4.68 | Q128: Total | R128: 13155.01636
L130: Local | M130: Especialidade | N130: Quantidade | Q130: Custo Unitário | R130: Custo Mensal | S130: Escala de trabalho
L131: Áreas expostas ao contato com o Rio | M131: Auxiliar Técnico | N131: 0.5 | Q131: 2645.664 | R131: 1322.832 | S131: proporção de profissionais em dedicação neste local
M132: Bombeiro Civil | N132: 0.3 | Q132: 3540.5472 | R132: 1062.16416 | S132: proporção de profissionais em dedicação neste local
M133: Bombeiro Hidráulico | N133: 0 | Q133: 3440.77184 | R133: 0 | S133: não se aplica
M134: Pedreiro / Pintor | N134: 0.33 | Q134: 3139.91808 | R134: 1036.172966 | S134: proporção de profissionais em dedicação neste local
M135: Eletricista | N135: 0.45 | Q135: 3625.97824 | R135: 1631.690208 | S135: não se aplica
M136: Eletromecânico | N136: 0 | Q136: 5251.62816 | R136: 0 | S136: não se aplica
M137: Limpeza externa | N137: 2 | Q137: 2337.82656 | R137: 4675.65312 | S137: 1 em escala matutina e 1 em escala vespertina
M138: Limpeza interno | N138: 0 | Q138: 2225.63136 | R138: 0 | S138: não se aplica
M139: Total | N139: 3.58 | Q139: Total | R139: 9728.512454
L141: Local | M141: Especialidade | N141: Quantidade | Q141: Custo Unitário | R141: Custo Mensal | S141: Escala de trabalho
L142: Jardinagem | M142: Jardineiro | N142: 2 | Q142: 2450.20032 | R142: 4900.40064 | S142: 2 em escala comercial
M143: Jardineiro auxiliar | N143: 4 | Q143: 2311.18144 | R143: 9244.72576 | S143: 4 em escala comercial
M144: Total | N144: 6 | R144: 14145.1264
L146: Local | M146: Especialidade | N146: Quantidade | Q146: Custo Unitário | R146: Custo Mensal | S146: Escala de trabalho
L147: Vigilante | M147: Vigilante | N147: 8 | Q147: 2901.28256 | R147: 23210.26048 | S147: 2 postos 12x36
M148: Total | N148: 8 | Q148: Total | R148: 23210.26048
I152: Tabelas de composição de preços com: materiais, equipamentos, ferramentas e serviços Subcontratados
I154: 1 - Serviços Subcontratados | T154: Unid. | U154: Quant. | V154: Preço
I155: Chaveiro | T155: Contrato | U155: 1 | V155: 86.63
I156: Controle de Pragas | T156: Contrato | U156: 1 | V156: 2313.27
I157: Extração de esgoto | T157: Contrato | U157: 1 | V157: 674
I158: Impermeabilização | T158: Contrato | U158: 1 | V158: 1872.71
I159: Extintores e hidrantes | T159: Contrato | U159: 1 | V159: 340.65
I160: Tratamento de água | T160: Contrato | U160: 1 | V160: 445
I161: Limpeza Caixa d'água | T161: Contrato | U161: 1 | V161: 625
I162: Obra de arte | T162: Contrato | U162: 0 | V162: 0
I163: Sinalização indicativa: identificação dos locais, mapas | T163: Contrato | U163: 1 | V163: 687.5
I164: Manutenção em servidores, e instalações de TI | T164: Contrato | U164: 0 | V164: 0
I165: Bote p manut. da orla e estruturas em contato com a água | T165: Contrato | U165: 1 | V165: 260.82
T166: Subtotal 01 | V166: 7305.58
I167: Todos estes contratos não tem restrição de chamados e a Empresa deve atender conforme Plano de Manutenção e todos os chamados solicitados pelo cliente como demanda Corretiva.
I171: 2 - Materiais diversos e especiais | T171: Unid. | U171: Quant. | V171: Preço
I172: Colas químicas (estoque para manutenção anual) | T172: tubo | U172: 2 | V172: 350
I173: Fechaduras e ferragens * (substituição de 2 unidades cada 5 meses) | T173: conj. | U173: 0.3333333333 | V173: 145.71
I174: Corda ancoradouro e boias | T174: conj. | U174: 0 | V174: 0
I175: Boias de flutuação | T175: unid | U175: 0 | V175: 0
I176: Placas de gesso (estoque para manutenções periódicas) | T176: unid | U176: 3 | V176: 125.25
I177: Espelhos e vidros * (substituição por quebra de 1 unidade cada 7 meses) | T177: unid | U177: 0.1666666667 | V177: 227
I178: Lâmpadas, reatores, luminárias (estoque para manutenções periódicas) | T178: conj. | U178: 2 | V178: 250
I179: Tintas, vernizes e selador acrílico (estoque para manutenção periódica) | T179: lata | U179: 4 | V179: 1350
I180: Pesticidas (produtos para a equipe de jardinagem em seu plano de Controle de Pragas) | T180: litro | U180: 5 | V180: 775
I181: Eletrobombas (verba para compra de peças e manutenções ao longo do tempo) | T181: verba | U181: 1 | V181: 234
I182: Areia e Saibro rosa (estoque para a substituição quando necessário) | T182: m3 | U182: 11 | V182: 273.17
I183: Piso podotátil (estoque para substituição periódica) | T183: unid | U183: 3 | V183: 90
I184: Blocos autônomos * - iluminação de emergência (substituição de 1 unid. cada 4 meses) | T184: unid | U184: 0.25 | V184: 54
I185: Chuveiros, fios e cabos elétricos * (2 chuveiros, disjuntores, fios e resistências semestralmente) | T185: verba | U185: 1 | V185: 225.63
I186: Granitos de pias * (substituição por quebra de 1 unidade cada 2 anos) | T186: unid | U186: 0.04166666667 | V186: 103
I187: Consumíveis dos sanitários - papeis e sabonetes (pela população diária média de 420 pessoas) | T187: verba | U187: 1 | V187: 3871.36
I188: Divisórias Sanitárias de Granito * (substituição por quebra de 1 unidade cada 2 anos) | T188: unid | U188: 0.04166666667 | V188: 96
I189: Portas de madeira completas * (substituição cada 6 meses de 2 unidades) | T189: unid | U189: 0.3333333333 | V189: 194
I190: Barras de apoio PNE's * (substituição cada 12 meses de 1 unidade) | T190: unid | U190: 0.08333333333 | V190: 89
I191: Vidro temperado * (substituição de uma peça cada 6 meses) | T191: unid | U191: 0.1666666667 | V191: 233
I192: Pastilhas de vidro para reposição de revestimento (estoque para manutenção periódica) | T192: verba | U192: 1 | V192: 74
I193: Torneiras , ferragens e metais de sanitários * (substituição de 2 unidades cada 6 meses) | T193: conj. | U193: 0.3333333333 | V193: 650
I194: Borracha clorada (estoque para manutenção periódica) | T194: verba | U194: 1 | V194: 700
T195: Subtotal 02 | V195: 10110.12
I196: * Substituições previstas por vandalismo, utilizando como referência a atual gestora do Trecho 1 e seu histórico.
I199: 3 - Equipamentos para adquirir | T199: Unid. | U199: Quant. | V199: Preço
I200: Bebedouros - purificadores de água | T200: unit. | U200: 4 | V200: 520
I201: EPI´s e EPC´s (conjuntos das equipes com equipamentos de proteção individual e coletiva) | T201: verba | U201: 1 | V201: 1670.5
I202: Maquinas corte de grama e podas de árvores (aquisição, estoque - manutenção e substituição) | T202: verba | U202: 1 | V202: 665
I203: Maquina limpeza: praias, quadras de vôlei e parquinhos (aquisição, estoque - manut e substituição) | T203: unit. | U203: 1 | V203: 538.24
I204: Dispensers dos sanitários - porta papéis e sabonetes (aquisição, estoque - manut e substituição) | T204: verba | U204: 1 | V204: 350.35
I205: Lixeiras de reposição (aquisição, estoque - manut e substituição) | T205: verba | U205: 1 | V205: 302.05
I206: Trator com reboque para carrinho e roçadeira (custo de aquisição, manutenção e substituição) | T206: unit. | U206: 1 | V206: 1384
I207: Ferramental das equipes de manutenção, limpeza, jardinagem e vigilância | T207: verba | U207: 1 | V207: 2454.35
I208: Equipamentos das equipes de manutenção, limpeza, jardinagem e vigilância | T208: verba | U208: 1 | V208: 2722.47
I209: Assentos das bacias sanitárias * (estoque para substituição) | T209: verba | U209: 1 | V209: 239
T210: Subtotal 03 | V210: 10845.96
I212: 4 - Intervenções com equipes subcontratadas prevendo material e mão-de-obra | T212: Unid. | U212: Quant. | V212: Preço
I213: Previsão para recomposição de piso em concreto | T213: m² | U213: 71 | V213: 625.49
I214: Substituição de toras de Eucalipto autoclavado | T214: und | U214: 12 | V214: 222
I215: Substituição de peças de madeira Itaúba para ancoradouro, Decks e bancos | T215: m² | U215: 107 | V215: 604
I216: Manutenção de madeira e metal em contato com a água | T216: m² | U216: 0 | V216: 0
T217: Subtotal 04 | V217: 1451.49
I219: Provisão financeira para as tabelas 1 + 2 + 3 + 4
I220: a) Custos mensais considerando a permanência no Contrato por 05 anos. Como a construção é nova e sua
I221: deterioração ocorre a partir do 05° ano, não se pode prever um gasto com visão anual e sim de longo prazo.
I222: b) A provisão de gastos a partir do 05 ano, exige revisão com relação aos gastos com materiais e o maior
I223: número de profissionais de manutenção técnica.
I224: c) Ao ampliar a prestação de serviços para os demais Trechos do Parque, há uma otimização de equipes e os
I225: custos serão mais baixo proporcionalmente.
I226: d) Os custos com mão-de-obra foram calculados com as tabelas de salários referência de mercado outubro/18
... 9 more rows

Sheet OPEX T1
A1: TRECHO - 01 | Q1: Organograma das estruturas definidas para o Trecho 01 - Quadro Resumo
A2: Tabelas de composição de preços com: materiais, equipamentos, ferramentas e serviços Subcontratados
Q3: Local | R3: Especialidade | S3: Quantidade | T3: CBO | U3: Salário unitário | V3: Preço Unitário | W3: Preço Mensal | X3: Escala de trabalho
A4: 1 - Serviços Subcontratados | J4: Unid. | K4: Quant. | L4: Preço | Q4: TRECHO 01 | R4: Administrativo de Apoio | S4: 0 | T4: 411010 | U4: 1850.68 | V4: =U4*1.984 -> 3671.74912 | W4: =V4*S4 -> 0 | X4: Estão contemplados nos custos da SPE
A5: Chaveiro | J5: Contrato | K5: 1 | L5: 96.75 | R5: Adm. Gestor de Contrato | S5: 0 | T5: 142705 | U5: 5252.48 | V5: =U5*1.984 -> 10420.92032 | W5: 0 | X5: Estão contemplados nos custos da SPE
A6: Controle de Pragas | J6: Contrato | K6: 1 | L6: 2861.125 | R6: Adm. Supervisor Serviços | S6: =S66 -> 1 | T6: 510110 | U6: 2613.79 | V6: =U6*1.984 -> 5185.75936 | W6: 5185.75936 | X6: 1 em escala comercial
A7: Extração de esgoto | J7: Contrato | K7: 1 | L7: 692.875 | R7: Adm. Supervisor Técnico | S7: =S67 -> 1 | T7: 313115 | U7: 3781.78 | V7: 7503.05152 | W7: 7503.05152 | X7: 1 em escala comercial
A8: Impermeabilização | J8: Contrato | K8: 1 | L8: 1971.25 | R8: Almoxarife | S8: =S68 -> 0.5 | T8: 414105 | U8: 1411.31 | V8: 2800.03904 | W8: 1400.01952 | X8: 1 em escala de meio expediente
A9: Extintores e hidrantes | J9: Contrato | K9: 1 | L9: 378.75 | R9: Auxiliar Técnico | S9: =S74+S85+S96+S107+S118+S129+S140+S151+S162 -> 5 | T9: 514310 | U9: 1333.5 | V9: 2645.664 | W9: 13228.32 | X9: 1 em escala comercial e 2 postos 12x36 diurno
A10: Tratamento de água | J10: Contrato | K10: 1 | L10: 445 | R10: Bombeiro Civil | S10: 2 | T10: 517110 | U10: 1784.55 | V10: 3540.5472 | W10: 7081.0944 | X10: 1 posto 12x36 diurno
A11: Limpeza Caixa d'água | J11: Contrato | K11: 1 | L11: 625 | R11: Bombeiro Hidráulico | S11: =S76+S87+S98+S109+S120+S131+S142+S153+S164 -> 2 | T11: 724110 | U11: 1734.26 | V11: 3440.77184 | W11: 6881.54368 | X11: 2 em escala comercial
A12: Obra de arte | J12: Contrato | K12: 1 | L12: 387.5 | R12: Pedreiro / Pintor | S12: 2 | T12: 715210 | U12: 1582.62 | V12: 3139.91808 | W12: 6279.83616 | X12: 2 em escala comercial
A13: Sinalização indicativa: identificação dos locais, mapas | J13: Contrato | K13: 1 | L13: 687.5 | R13: Eletricista | S13: =S78+S89+S100+S111+S122+S133+S144+S155+S166 -> 4 | T13: 951105 | U13: 1827.61 | V13: 3625.97824 | W13: 14503.91296 | X13: 1 posto 12x36
A14: Manutenção em servidores, e instalações de TI | J14: Contrato | K14: 1 | L14: 419 | R14: Eletromecânico | S14: 1 | T14: 950110 | U14: 2646.99 | V14: 5251.62816 | W14: 5251.62816 | X14: 1 em escala comercial
A15: Bote p manut. da orla e estruturas em contato com a água | J15: Contrato | K15: 1 | L15: 260.82 | R15: Jardineiro | S15: =S173 -> 2 | T15: 622010 | U15: 1234.98 | V15: 2450.20032 | W15: 4900.40064 | X15: 2 em escala comercial
J16: Subtotal 01 | L16: =SUM(L5:L15) -> 8825.57 | R16: Jardineiro auxiliar | S16: =S174 -> 4 | T16: 992225 | U16: 1164.91 | V16: 2311.18144 | W16: 9244.72576 | X16: 4 em escala comercial
A17: Todos estes contratos não tem restrição de chamados e a Empresa deve atender conforme Plano de Manutenção e todos os chamados solicitados pelo cliente como demanda Corretiva. | R17: Limpeza externa | S17: =S80+S91+S102+S113+S124+S135+S146+S157+S168 -> 20 | T17: 514215 | U17: 1178.34 | V17: 2337.82656 | W17: 46756.5312 | X17: 10 em escala matutina e 10 em escala vespertina
R18: Limpeza interno | S18: =S81+S92+S103+S114+S125+S136+S147+S158+S169 -> 6 | T18: 514320 | U18: 1121.79 | V18: 2225.63136 | W18: 13353.78816 | X18: 3 em escala matutina e 3 em escala vespertina
R19: Monitorador CFTV | S19: =S69 -> 4 | T19: 517330 | U19: 1462.34 | V19: 2901.28256 | W19: 11605.13024 | X19: 1 posto 12x36
R20: Técnico TI | S20: =S70 -> 0.5 | T20: 317210 | U20: 2033.92 | V20: 4035.29728 | W20: 2017.64864 | X20: 1 em escala de meio expediente
A21: 2 - Materiais diversos e especiais | J21: Unid. | K21: Quant. | L21: Preço | R21: Vigilante | S21: =S178 -> 8 | T21: 517330 | U21: 1462.34 | V21: 2901.28256 | W21: 23210.26048 | X21: 2 postos 12x36
A22: Colas químicas (estoque para manutenção anual) | J22: tubo | K22: 2 | L22: 350 | U22: A - TOTAL GERAL com Técnicos | W22: =SUM(W4:W21) -> 178403.6509
A23: Fechaduras e ferragens * (substituição de 2 unidades cada 6 meses) | J23: conj. | K23: 0.3333333333 | L23: 125
A24: Corda ancoradouro e boias (substituição total em 36 meses) | J24: conj. | K24: 0.02777777778 | L24: 247 | Q24: Local | R24: Especialidade | S24: Quantidade | T24: CBO | U24: Salário unitário | V24: Preço Unitário | W24: Preço Mensal | X24: Escala de trabalho
A25: Boias de flutuação (estoque para substituição a partir do 3° ano) | J25: unid | K25: 2 | L25: 480 | Q25: Especialistas consultores | R25: Biólogo | S25: 0.075 | T25: 221105 | U25: 5393.22 | V25: =U25*1.984 -> 10700.14848 | W25: =S25*V25 -> 802.511136 | X25: 12 horas mensais
A26: Placas de gesso (estoque para manutenções periódicas) | J26: unid | K26: 4 | L26: 167 | R26: Engenheiro civil | S26: 0.075 | T26: 214205 | U26: 7477.07 | V26: =U26*1.984 -> 14834.50688 | W26: =S26*V26 -> 1112.588016 | X26: 12 horas mensais
A27: Espelhos e vidros * (substituição por quebra de 1 unidade cada 6 meses) | J27: unid | K27: 0.1666666667 | L27: 300 | R27: Engenheiro Ambiental | S27: 0 | T27: 214005 | U27: 5024 | V27: =U27*1.984 -> 9967.616 | W27: =S27*V27 -> 0 | X27: -
A28: Lâmpadas, reatores, luminárias (estoque para manutenções periódicas) | J28: conj. | K28: 2 | L28: 250 | U28: B - TOTAL GERAL com Especialistas | W28: =SUM(W25:W27) -> 1915.099152
A29: Tintas, vernizes e selador acrílico (estoque para manutenção periódica) | J29: lata | K29: 4 | L29: 1350
A30: Pesticidas (produtos para a equipe de jardinagem em seu plano de Controle de Pragas) | J30: litro | K30: 6 | L30: 930 | Q30: Os custos de mão-de-obra foram calculados com as tabelas de salários referência de mercado setembro - 2018.
A31: Eletrobombas (verba para compra de peças e manutenções ao longo do tempo) | J31: verba | K31: 1 | L31: 234 | Q31: Resumo da composição de equipes | U31: TOTAL GERAL A + B | W31: =SUM(W22+W28) -> 180318.75
A32: Areia e Saibro rosa (estoque para a substituição quando necessário) | J32: m3 | K32: 12 | L32: 298
A33: Piso podotátil (estoque para substituição periódica) | J33: unid | K33: 3 | L33: 90 | Q33: Distribuição dos postos por horário
A34: Blocos autônomos * - iluminação de emergência (substituição de 1 unid. cada 4 meses) | J34: unid | K34: 0.25 | L34: 54
A35: Chuveiros, fios e cabos elétricos * (2 chuveiros, disjuntores, fios e resistências semestralmente) | J35: verba | K35: 1 | L35: 275 | R35: Especialidade | S35: * Diurna 06:00 as 13:00 escala 6x1 | T35: * Vespertina 13:00 as 20:00 escala 6x1 | U35: Horário comercial 08:00 as 18:00 | V35: ** Dias intercalados 12 horas Diurnas escala 12x36 | W35: ** Dias intercalados 12 horas Noturnas escala 12x36
A36: Granitos de pias * (substituição por quebra de 1 unidade cada 2 anos) | J36: unid | K36: 0.04166666667 | L36: 103 | R36: Administrativo de Apoio | U36: 0
A37: Consumíveis dos sanitários - papeis e sabonetes (pela população diária média de 500 pessoas) | J37: verba | K37: 1 | L37: 4670 | R37: Adm. Gestor de Contrato | U37: 0.5
A38: Divisórias Sanitárias de Granito * (substituição por quebra de 1 unidade cada 2 anos) | J38: unid | K38: 0.04166666667 | L38: 96 | R38: Adm. Supervisor Serviços | U38: 1
A39: Portas de madeira completas * (substituição cada 6 meses de 2 unidades) | J39: unid | K39: 0.3333333333 | L39: 194 | R39: Adm. Supervisor Técnico | U39: 1
A40: Barras de apoio PNE's * (substituição cada 12 meses de 1 unidade) | J40: unid | K40: 0.08333333333 | L40: 89 | R40: Almoxarife | U40: 0.5
A41: Vidro temperado * (substituição de uma peça cada 6 meses) | J41: unid | K41: 0.1666666667 | L41: 233 | R41: Auxiliar Técnico | U41: 1 | V41: 2
A42: Pastilhas de vidro para reposição de revestimento (estoque para manutenção periódica) | J42: verba | K42: 1 | L42: 74 | R42: Bombeiro Civil | V42: 1
A43: Torneiras , ferragens e metais de sanitários * (substituição de 2 unidades cada 6 meses) | J43: conj. | K43: 0.3333333333 | L43: 650 | R43: Bombeiro Hidráulico | U43: 2
A44: Borracha clorada (estoque para manutenção periódica) | J44: verba | K44: 1 | L44: 836 | R44: Pedreiro / Pintor | U44: 2
J45: Subtotal 02 | L45: =SUM(L22:L44) -> 12095 | R45: Eletricista | V45: 1 | W45: 1
A46: * Substituições previstas por vandalismo, utilizando como referência a atual gestora do Trecho 1 e seu histórico. | R46: Eletromecânico | U46: 1
R47: Jardineiro | U47: 2
R48: Jardineiro auxiliar | U48: 4
A49: 3 - Equipamentos para adquirir | J49: Unid. | K49: Quant. | L49: Preço | R49: Limpeza externa | S49: 11 | T49: 11
A50: Bebedouros - purificadores de água | J50: unit. | K50: 5 | L50: 650 | R50: Limpeza interna | S50: 3 | T50: 3
A51: EPI´s e EPC´s (conjuntos das equipes com equipamentos de proteção individual e coletiva) | J51: verba | K51: 1 | L51: 2150 | R51: Monitorador CFTV | V51: 1 | W51: 1
A52: Maquinas corte de grama e podas de árvores (aquisição, estoque - manutenção e substituição) | J52: verba | K52: 1 | L52: 798 | R52: Técnico TI | U52: 0.5
A53: Maquina limpeza: praias, quadras de vôlei e parquinhos (aquisição, estoque - manut e substituição) | J53: unit. | K53: 1 | L53: 634 | R53: Vigilante | V53: 2 | W53: 2
A54: Dispensers dos sanitários - porta papéis e sabonetes (aquisição, estoque - manut e substituição) | J54: verba | K54: 1 | L54: 424 | R54: Total | S54: =SUM(S36:S53) -> 14 | T54: =SUM(T36:T53) -> 14 | U54: =SUM(U36:U53) -> 15.5 | V54: =SUM(V36:V53) -> 7 | W54: =SUM(W36:W53) -> 4
A55: Lixeiras de reposição (aquisição, estoque - manut e substituição) | J55: verba | K55: 1 | L55: 375
A56: Trator com reboque para carrinho e roçadeira (custo de aquisição, manutenção e substituição) | J56: unit. | K56: 1 | L56: 1384 | Q56: * As equipes diurnas e vespertinas tem escalas de trabalho de 06 horas com 6 dias de trabalho por semana, e organizadas para cobrirem também os finais de semana.
A57: Ferramental das equipes de manutenção, limpeza, jardinagem e vigilância | J57: verba | K57: 1 | L57: 2706.5 | Q57: ** Nas equipes em escala 12x36 diurna ou noturna, cada profissional trabalha 12 horas e descansa 36 horas. Todos os dias do ano, inclusive feriados.
A58: Equipamentos das equipes de manutenção, limpeza, jardinagem e vigilância | J58: verba | K58: 1 | L58: 2996.75 | Q58: *** Todas as posições representam postos, ou seja, no horário informado haverá um posto, mas podem ser mais de um profissional, por trabalhar em escalas de descanso.
A59: Assentos das bacias sanitárias * (estoque para substituição) | J59: verba | K59: 1 | L59: 239 | Q59: **** Quando o posto é descrito menor que 1, é porque este estará percentualmente alocado em outro Trecho ou parcialmente trabalhando, conforme descrição na Escala de trabalho.
J60: Subtotal 03 | L60: =SUM(L50:L59) -> 12357.25
Q61: Composição das equipes por locais do Parque
A62: 4 - Intervenções com equipes subcontratadas prevendo material e mão-de-obra | J62: Unid. | K62: Quant. | L62: Preço
A63: Previsão para recomposição de piso em concreto | J63: m² | K63: 90 | L63: 589.1333333 | Q63: Local | R63: Especialidade | S63: Quantidade | V63: Custo Unitário | W63: Custo Mensal | X63: Escala de trabalho
A64: Substituição de toras de Eucalipto autoclavado | J64: und | K64: 20 | L64: 420 | Q64: Equipe de Apoio aos Serviços | R64: Adm. Apoio | S64: 0 | V64: 3671.74912 | W64: =V64*S64 -> 0 | X64: -
A65: Substituição de peças de madeira Itaúba para ancoradouro, Decks e bancos | J65: m² | K65: 150 | L65: 756 | R65: Adm. Gestor de Contrato | S65: 0 | V65: 10420.92032 | W65: 0 | X65: -
A66: Reposição de telas nas quadras | J66: m² | K66: 40 | L66: 832 | R66: Adm. Supervisor Serviços | S66: 1 | V66: 5185.75936 | W66: 5185.75936 | X66: 1 em escala comercial
A67: Manutenção de madeira e metal em contato com a água | J67: m² | K67: 40 | L67: 942 | R67: Adm. Supervisor Técnico | S67: 1 | V67: 7503.05152 | W67: 7503.05152 | X67: 1 em escala comercial
J68: Subtotal 04 | L68: =SUM(L63:L67) -> 3539.133333 | R68: Almoxarife | S68: 0.5 | V68: 2800.03904 | W68: 1400.01952 | X68: 1 em escala de meio expediente
R69: Monitorador CFTV | S69: 4 | V69: 2901.28256 | W69: 11605.13024 | X69: 4 em escala 12x36
A70: Provisão financeira para as tabelas 1 + 2 + 3 + 4 | R70: Técnico TI | S70: 0.5 | V70: 4035.29728 | W70: 2017.64864 | X70: 1 em escala de meio expediente
A71: a) Custos mensais considerando a permanência no Contrato por 05 anos. Como a construção é nova e sua | R71: Total | S71: =SUM(S64:S70) -> 7 | V71: Total: | W71: =SUM(W64:W70) -> 27711.60928
A72: deterioração ocorre a partir do 05° ano, não se pode prever um gasto com visão anual e sim de longo prazo.
A73: b) A provisão de gastos a partir do 05 ano, exige revisão com relação aos gastos com materiais e o maior | Q73: Local | R73: Especialidade | S73: Quantidade | V73: Custo Unitário | W73: Custo Mensal | X73: Escala de trabalho
A74: número de profissionais de manutenção técnica. | Q74: Restaurante e Bares 01, 02 e 03 | R74: Auxiliar Técnico | S74: 0 | V74: 2645.664 | W74: =V74*S74 -> 0 | X74: não se aplica
A75: c) Ao ampliar a prestação de serviços para os demais Trechos do Parque, há uma otimização de equipes e os | R75: Bombeiro Civil | S75: 0 | V75: 3540.5472 | W75: 0 | X75: não se aplica
A76: custos serão mais baixo proporcionalmente. | R76: Bombeiro Hidráulico | S76: 0.3 | V76: 3440.77184 | W76: 1032.231552 | X76: proporção de profissionais em dedicação neste local
A77: d) Os custos com mão-de-obra foram calculados com as tabelas de salários referência de mercado outubro/18 | R77: Pedreiro / Pintor | S77: 0.1 | V77: 3139.91808 | W77: 313.991808 | X77: proporção de profissionais em dedicação neste local
A78: e) Os custos com materiais e prestação de serviços, foram calculados por comparação com projetos | R78: Eletricista | S78: 0.3 | V78: 3625.97824 | W78: 1087.793472 | X78: proporção de profissionais em dedicação neste local
A79: semelhantes e proporcionalmente calculados. | R79: Eletromecânico | S79: 0.25 | V79: 5251.62816 | W79: 1312.90704 | X79: proporção de profissionais em dedicação neste local
A80: f) Os equipamentos adquiridos para este projeto foram depreciados em 05 anos. A rescisão de Contrato | R80: Limpeza externa | S80: 0 | V80: 2337.82656 | W80: 0 | X80: não se aplica
A81: antecipada, exige a inclusão de penalização para suportar estes investimentos (cálculo não incluso). | R81: Limpeza interno | S81: 0 | V81: 2225.63136 | W81: 0 | X81: não se aplica
A82: g) Todo o estudo considera uma prestação de serviços de qualidade, com visão Preventiva, e a maior | R82: Total | S82: =SUM(S74:S81) -> 0.95 | V82: Total | W82: =SUM(W74:W81) -> 3746.923872
A83: disponibilidade dos equipamentos instalados. Serão posteriormente propostos os Níveis de Acordo de Serviços,
A84: para que os contratantes possam ter claros os níveis de exigência e os contratados, as tabelas de penalizações. | Q84: Local | R84: Especialidade | S84: Quantidade | V84: Custo Unitário | W84: Custo Mensal | X84: Escala de trabalho
Q85: Deck 01, 02, 03 e 04 | R85: Auxiliar Técnico | S85: 0.7 | V85: 2645.664 | W85: =V85*S85 -> 1851.9648 | X85: proporção de profissionais em dedicação neste local
R86: Bombeiro Civil | S86: 0.25 | V86: 3540.5472 | W86: 885.1368 | X86: proporção de profissionais em dedicação neste local
A87: Preço MENSAL - TRECHO 01 | R87: Bombeiro Hidráulico | S87: 0 | V87: 3440.77184 | W87: 0 | X87: não se aplica
R88: Pedreiro / Pintor | S88: 0.4 | V88: 3139.91808 | W88: 1255.967232 | X88: proporção de profissionais em dedicação neste local
A89: Resumo da composição de Preços com materiais, equipamentos, ferramentas e serviços Subcontratados | M89: =L16+L45+L60+L68 -> 36816.95333 | R89: Eletricista | S89: 0.3 | V89: 3625.97824 | W89: 1087.793472 | X89: proporção de profissionais em dedicação neste local
R90: Eletromecânico | S90: 0 | V90: 5251.62816 | W90: 0 | X90: não se aplica
R91: Limpeza externa | S91: 4 | V91: 2337.82656 | W91: 9351.30624 | X91: 2 em escala matutina e 2 em escala vespertina
R92: Limpeza interno | S92: 0 | V92: 2225.63136 | W92: 0 | X92: não se aplica
R93: Total | S93: =SUM(S85:S92) -> 5.65 | V93: Total | W93: =SUM(W85:W92) -> 14432.16854
Q95: Local | R95: Especialidade | S95: Quantidade | V95: Custo Unitário | W95: Custo Mensal | X95: Escala de trabalho
Q96: Ambulantes 01, 02 e 03 | R96: Auxiliar Técnico | S96: 0.6 | V96: 2645.664 | W96: =V96*S96 -> 1587.3984 | X96: proporção de profissionais em dedicação neste local
R97: Bombeiro Civil | S97: 0.25 | V97: 3540.5472 | W97: 885.1368 | X97: proporção de profissionais em dedicação neste local
R98: Bombeiro Hidráulico | S98: 0.4 | V98: 3440.77184 | W98: 1376.308736 | X98: proporção de profissionais em dedicação neste local
R99: Pedreiro / Pintor | S99: 0.1 | V99: 3139.91808 | W99: 313.991808 | X99: proporção de profissionais em dedicação neste local
R100: Eletricista | S100: 1 | V100: 3625.97824 | W100: 3625.97824 | X100: proporção de profissionais em dedicação neste local
R101: Eletromecânico | S101: 0 | V101: 5251.62816 | W101: 0 | X101: se aplicanão
R102: Limpeza externa | S102: 2 | V102: 2337.82656 | W102: 4675.65312 | X102: 1 em escala matutina e 1 em escala vespertina
R103: Limpeza interno | S103: 2 | V103: 2225.63136 | W103: 4451.26272 | X103: 1 em escala matutina e 1 em escala vespertina
R104: Total | S104: =SUM(S96:S103) -> 6.35 | V104: Total | W104: =SUM(W96:W103) -> 16915.72982
Q106: Local | R106: Especialidade | S106: Quantidade | V106: Custo Unitário | W106: Custo Mensal | X106: Escala de trabalho
Q107: Ciclovia, passarelas e passeios em concreto ou metálicas e arquibancadas | R107: Auxiliar Técnico | S107: 0.7 | V107: 2645.664 | W107: =V107*S107 -> 1851.9648 | X107: proporção de profissionais em dedicação neste local
R108: Bombeiro Civil | S108: 0.25 | V108: 3540.5472 | W108: 885.1368 | X108: proporção de profissionais em dedicação neste local
R109: Bombeiro Hidráulico | S109: 0 | V109: 3440.77184 | W109: 0 | X109: não se aplica
R110: Pedreiro / Pintor | S110: 0.4 | V110: 3139.91808 | W110: 1255.967232 | X110: proporção de profissionais em dedicação neste local
R111: Eletricista | S111: 0.3 | V111: 3625.97824 | W111: 1087.793472 | X111: proporção de profissionais em dedicação neste local
R112: Eletromecânico | S112: 0 | V112: 5251.62816 | W112: 0 | X112: não se aplica
R113: Limpeza externa | S113: 4 | V113: 2337.82656 | W113: 9351.30624 | X113: 2 em escala matutina e 2 em escala vespertina
R114: Limpeza interno | S114: 0 | V114: 2225.63136 | W114: 0 | X114: não se aplica
R115: Total | S115: =SUM(S107:S114) -> 5.65 | V115: Total | W115: =SUM(W107:W114) -> 14432.16854
Q117: Local | R117: Especialidade | S117: Quantidade | V117: Custo Unitário | W117: Custo Mensal | X117: Escala de trabalho
Q118: Quadras Esportivas de futebol e vôlei de praia | R118: Auxiliar Técnico | S118: 0.6 | V118: 2645.664 | W118: =V118*S118 -> 1587.3984 | X118: proporção de profissionais em dedicação neste local
R119: Bombeiro Civil | S119: 0.25 | V119: 3540.5472 | W119: 885.1368 | X119: proporção de profissionais em dedicação neste local
R120: Bombeiro Hidráulico | S120: 0.4 | V120: 3440.77184 | W120: 1376.308736 | X120: proporção de profissionais em dedicação neste local
R121: Pedreiro / Pintor | S121: 0.2 | V121: 3139.91808 | W121: 627.983616 | X121: proporção de profissionais em dedicação neste local
R122: Eletricista | S122: 0.3 | V122: 3625.97824 | W122: 1087.793472 | X122: proporção de profissionais em dedicação neste local
R123: Eletromecânico | S123: 0 | V123: 5251.62816 | W123: 0 | X123: não se aplica
R124: Limpeza externa | S124: 2 | V124: 2337.82656 | W124: 4675.65312 | X124: 1 em escala matutina e 1 em escala vespertina
R125: Limpeza interno | S125: 0 | V125: 2225.63136 | W125: 0 | X125: não se aplica
R126: Total | S126: =SUM(S118:S125) -> 3.75 | V126: Total | W126: =SUM(W118:W125) -> 10240.27414
Q128: Local | R128: Especialidade | S128: Quantidade | V128: Custo Unitário | W128: Custo Mensal | X128: Escala de trabalho
Q129: Academias ao ar livre, bicicletários e parquinhos | R129: Auxiliar Técnico | S129: 0.6 | V129: 2645.664 | W129: =V129*S129 -> 1587.3984 | X129: proporção de profissionais em dedicação neste local
R130: Bombeiro Civil | S130: 0.25 | V130: 3540.5472 | W130: 885.1368 | X130: proporção de profissionais em dedicação neste local
R131: Bombeiro Hidráulico | S131: 0.4 | V131: 3440.77184 | W131: 1376.308736 | X131: proporção de profissionais em dedicação neste local
R132: Pedreiro / Pintor | S132: 0.2 | V132: 3139.91808 | W132: 627.983616 | X132: proporção de profissionais em dedicação neste local
R133: Eletricista | S133: 0.3 | V133: 3625.97824 | W133: 1087.793472 | X133: proporção de profissionais em dedicação neste local
R134: Eletromecânico | S134: 0 | V134: 5251.62816 | W134: 0 | X134: não se aplica
R135: Limpeza externa | S135: 2 | V135: 2337.82656 | W135: 4675.65312 | X135: 1 em escala matutina e 1 em escala vespertina
R136: Limpeza interno | S136: 0 | V136: 2225.63136 | W136: 0 | X136: não se aplica
R137: Total | S137: =SUM(S129:S136) -> 3.75 | V137: Total | W137: =SUM(W129:W136) -> 10240.27414
Q139: Local | R139: Especialidade | S139: Quantidade | V139: Custo Unitário | W139: Custo Mensal | X139: Escala de trabalho
Q140: Vestiários e sanitários | R140: Auxiliar Técnico | S140: 0.6 | V140: 2645.664 | W140: =V140*S140 -> 1587.3984 | X140: proporção de profissionais em dedicação neste local
R141: Bombeiro Civil | S141: 0.25 | V141: 3540.5472 | W141: 885.1368 | X141: proporção de profissionais em dedicação neste local
R142: Bombeiro Hidráulico | S142: 0.5 | V142: 3440.77184 | W142: 1720.38592 | X142: proporção de profissionais em dedicação neste local
R143: Pedreiro / Pintor | S143: 0.1 | V143: 3139.91808 | W143: 313.991808 | X143: proporção de profissionais em dedicação neste local
R144: Eletricista | S144: 0.9 | V144: 3625.97824 | W144: 3263.380416 | X144: proporção de profissionais em dedicação neste local
R145: Eletromecânico | S145: 0.5 | V145: 5251.62816 | W145: 2625.81408 | X145: proporção de profissionais em dedicação neste local
R146: Limpeza externa | S146: 0 | V146: 2337.82656 | W146: 0 | X146: não se aplica
R147: Limpeza interno | S147: 4 | V147: 2225.63136 | W147: 8902.52544 | X147: 2 em escala matutina e 2 em escala vespertina
R148: Total | S148: =SUM(S140:S147) -> 6.85 | V148: Total | W148: =SUM(W140:W147) -> 19298.63286
Q150: Local | R150: Especialidade | S150: Quantidade | V150: Custo Unitário | W150: Custo Mensal | X150: Escala de trabalho
Q151: Praias, ancoradouro, e áreas expostas ao contato com o Rio | R151: Auxiliar Técnico | S151: 0.6 | V151: 2645.664 | W151: =V151*S151 -> 1587.3984 | X151: proporção de profissionais em dedicação neste local
R152: Bombeiro Civil | S152: 0.25 | V152: 3540.5472 | W152: 885.1368 | X152: proporção de profissionais em dedicação neste local
R153: Bombeiro Hidráulico | S153: 0 | V153: 3440.77184 | W153: 0 | X153: não se aplica
R154: Pedreiro / Pintor | S154: 0.4 | V154: 3139.91808 | W154: 1255.967232 | X154: proporção de profissionais em dedicação neste local
R155: Eletricista | S155: 0.3 | V155: 3625.97824 | W155: 1087.793472 | X155: proporção de profissionais em dedicação neste local
R156: Eletromecânico | S156: 0 | V156: 5251.62816 | W156: 0 | X156: não se aplica
R157: Limpeza externa | S157: 4 | V157: 2337.82656 | W157: 9351.30624 | X157: 2 em escala matutina e 2 em escala vespertina
R158: Limpeza interno | S158: 0 | V158: 2225.63136 | W158: 0 | X158: não se aplica
R159: Total | S159: =SUM(S151:S158) -> 5.55 | V159: Total | W159: =SUM(W151:W158) -> 14167.60214
Q161: Local | R161: Especialidade | S161: Quantidade | V161: Custo Unitário | W161: Custo Mensal | X161: Escala de trabalho
Q162: Bilheteria, Gasômetro e Entorno | R162: Auxiliar Técnico | S162: 0.6 | V162: 2645.664 | W162: =V162*S162 -> 1587.3984 | X162: proporção de profissionais em dedicação neste local
R163: Bombeiro Civil | S163: 0.25 | V163: 3540.5472 | W163: 885.1368 | X163: proporção de profissionais em dedicação neste local
R164: Bombeiro Hidráulico | S164: 0 | V164: 3440.77184 | W164: 0 | X164: não se aplica
R165: Pedreiro / Pintor | S165: 0.1 | V165: 3139.91808 | W165: 313.991808 | X165: proporção de profissionais em dedicação neste local
R166: Eletricista | S166: 0.3 | V166: 3625.97824 | W166: 1087.793472 | X166: proporção de profissionais em dedicação neste local
R167: Eletromecânico | S167: 0.25 | V167: 5251.62816 | W167: 1312.90704 | X167: proporção de profissionais em dedicação neste local
R168: Limpeza externa | S168: 2 | V168: 2337.82656 | W168: 4675.65312 | X168: 1 em escala matutina e 1 em escala vespertina
R169: Limpeza interno | S169: 0 | V169: 2225.63136 | W169: 0 | X169: não se aplica
R170: Total | S170: =SUM(S162:S169) -> 3.5 | V170: Total | W170: =SUM(W162:W169) -> 9862.88064
Q172: Local | R172: Especialidade | S172: Quantidade | V172: Custo Unitário | W172: Custo Mensal | X172: Escala de trabalho
Q173: Jardinagem | R173: Jardineiro | S173: 2 | V173: 2450.20032 | W173: =V173*S173 -> 4900.40064 | X173: 2 em escala comercial
R174: Jardineiro auxiliar | S174: 4 | V174: 2311.18144 | W174: =+V174*S174 -> 9244.72576 | X174: 4 em escala comercial
R175: Total | S175: =SUM(S173:S174) -> 6 | W175: =SUM(W173:W174) -> 14145.1264
Q177: Local | R177: Especialidade | S177: Quantidade | V177: Custo Unitário | W177: Custo Mensal | X177: Escala de trabalho
Q178: Vigilante | R178: Vigilante | S178: 8 | V178: 2901.28256 | W178: =V178*S178 -> 23210.26048 | X178: 2 postos 12x36
R179: Total | S179: =SUM(S178) -> 8 | V179: Total | W179: =SUM(W178) -> 23210.26048

Sheet CAPEX Harmonia
T1: INVESTIMENTO ORÇADO PMI - DRENAGEM ELETRICA MOBILIARIO | Z1: INVESTIMENTO ORÇADO PMI - ESTACIONAMENTO LESTE | AF1: INVESTIMENTO ORÇADO PMI - ESTACIONAMENTO CASA DO GAÚCHO / MUSEU | AL1: INVESTIMENTO ORÇADO PMI - ESTACIONAMENTO SUL | AR1: INVESTIMENTO ORÇADO PMI - ESTACIONAMENTO ORLA | AX1: INVESTIMENTO ORÇADO PMI - SOMA TOTAL | BE1: INVESTIMENTO ORÇADO T2 QUIOSQUES | BP1: INVESTIMENTO CHURRASCARIA GALPAO CRIOULO - PMI | BV1: 16.0 | BZ1: URBANISMO | CB1: =CB3+CB19+CB23+CB27+CB42+CB54+CB65+CB69+CB75 -> 22076.99 | CD1: =CE1/CB1 -> 156.1465376 | CE1: =CE79 -> 3447245.55 | CG1: ORÇAMENTO DE INVESTIMENTO PMI DA CASA DO GAUCHO REFORMADA COM UMA FACHADA ADICIOJNAL INCLUINDO UM MUSEU PARA TAPAR A FACHADA ATUAL
A2: CAPEX | B2: Trecho 1 | C2: HARMONIA | D2: Consolidado | G2: CAPEX Obrigatório | H2: Ano | I2: Seleção | J2: Tipo | K2: Gera Receita | L2: codigo | M2: Área m² | N2: CAPEX R$/m² | O2: Valor R$ | Q2: FONTE | T2: tipo de investimento | U2: Descr. | V2: QTD | W2: Custo Direto | X2: Totais | Z2: tipo de investimento | AA2: Descrição | AB2: Quantidade | AC2: Custo Direto | AD2: Totais | AF2: tipo de investimento | AG2: Descrição | AH2: Quantidade | AI2: Custo Direto | AJ2: Totais | AL2: tipo de investimento | AM2: Descrição | AN2: Quantidade | AO2: Custo Direto | AP2: Totais | AR2: tipo de investimento | AS2: Descrição | AT2: Quantidade | AU2: Custo Direto | AV2: Totais | AX2: tipo de investimento | AY2: Descrição | AZ2: Quantidade | BA2: Custo Direto | BB2: Totais | BE2: 7.0 | BI2: QUIOSQUES OP.1 - LOJA + CAFÉ + SANITÁRIOS - 104 m2 (4x) | BP2: Descrição | BQ2: Descrição | BR2: QTD | BS2: Custo Direto | BT2: Totais | BV2: 16.1 | BZ2: Pavimentação | CH2: Descrição | CI2: Quantidade | CJ2: Custo Direto | CK2: Totais
A3: Obrigatório | B3: =SUMIF($L$4:$L$11,1,$O$4:$O$34) -> 0 | C3: 28071364.26 | D3: 28071364.26 | G3: Banheiro público: Reforma atuais | H3: 1 | I3: 1 | J3: Obrigatório | K3: Não | L3: 2 | M3: 233.7 | N3: 1409 | O3: 329283.3 | P3: 0.00577351596 | Q3: CAPEX/M2 ESTIMATIVA DO PMI P/ REFORMA DA CASA DO GAÚCHO E mobiliario DO T2.Não foram colocados novos banheiros além dos já existentes no parque, pois nas edificações novas já terão banheiros adicionais por lei | S3: drenagem | T3: Execução de drenagem superficial, com drenos DN100, com manta geotextil - SINAPI 73816/001 + 73881/003 + 93358(1/4) - média + 73902(10cm) + 83667(10cm) - por semelhança | U3: m.l. | V3: 40000 | W3: 96.96765 | X3: 3878706 | Z3: Área de implantação (calçamento PAVS 80mm Holandês natural) - Ampliado o custo em 10% para arremates - Equivalencia ao SINAPI 72799 | AA3: m² | AB3: 4221.3934 | AC3: 98.373 | AD3: 415271.1329 | AF3: Área de implantação (calçamento PAVS 80mm Holandês natural) - ampliado o custo em 10% para arremates - equivalencia ao SINAPI 72799 | AG3: m² | AH3: 5235.959 | AI3: 98.373 | AJ3: 515076.9947 | AL3: Automação (cancelas duplas, central de comunicação e software de acompanhamento e gerenciamento, cameras de conferência e registro) - cotações de mercado | AM3: vb | AN3: 1 | AO3: 218668.84 | AP3: 218668.84 | AR3: Área de implantação (calçamento PAVS 80mm Holandês natural) - ampliado o custo em 10% para arremates - equivalência ao SINAPI 72799 | AS3: m² | AT3: 2936.1178 | AU3: 98.373 | AV3: 288834.7163 | BE3: 7.1 | BI3: Serviços preliminares | BP3: Reforma da Churrascaria, com modernização e readequação as leis sanitárias e nova distribuição dos acessos de serviço - conforme pedido das empresas foi balizado em 37% do CUB RS R1-A. com reforma interna e externa (apenas edificação) | BQ3: m² | BR3: 2086.8649 | BS3: 850.0158 | BT3: 1773868.137 | BV3: 16.1.1 | BZ3: Piso concreto praça chegada - 3.997,61 m² | CB3: =CB4 -> 3997.61 | CD3: =CE79 -> 3447245.55 | CG3: Construção de Anexo. Museu do Gaucho, com padrão fornecido e pré-instalações - conforme pedido das empresas foi balizado em 125% do CUB RS R1-A - pé direito alto e duplo com dois sanitários e duas salas técnicas de infraestrutura (apenas edificação) | CH3: m² | CI3: 568.0817 | CJ3: 2641.941 | CK3: 1500838.335
A4: Opcional | B4: =SUMIF($L$4:$L$11,1,$O$4:$O$34) -> 0 | C4: 28962045.24 | D4: 28962045.24 | G4: DRENAGEM /SANEAMENTO | H4: 1 | I4: 1 | J4: Obrigatório | K4: Não | L4: 2 | M4: 44666.66667 | N4: 56.64252824 | O4: 2530032.928 | P4: 0.04436054149 | Q4: VALORES DE DRENAGEM DO PROJETO DO PMI, OS QUAIS MOSTRARAM-SE RAZOÁVEIS QUANDO COMPARADOS COM ESTIMATIVA DA DEP (BENITES) | S4: drenagem | T4: Estrutura de concreto para bacia de amortecimento e casa de bonbas, por comparação - SINAPI 95957 (+25% escavação) | U4: m³ | V4: 1017 | W4: 3322.97875 | X4: 3379469.389 | Z4: Área de implantação (calçamento Pisograma tela 33x33x8 cm natural) - Ampliado o custo em 20% para arremates e pintura das vagas - Equivalência ao SINAPI 92392 | AA4: m² | AB4: 5014.92 | AC4: 71.556 | AD4: 358847.6155 | AF4: Cercamento físico - alambrado com revestimento PVC - equivalência com SINAPI 73787/001 com acrescimo de 30% | AG4: m² | AH4: 810.633 | AI4: 318.4129 | AJ4: 258116.0044 | AL4: Área de implantação (calçamento Pisograma tela 33x33x8 cm natural) - ampliado o custo em 20% para arremates e pintura das vagas - equivalência ao SINAPI 92392 | AM4: m² | AN4: 2475.72 | AO4: 71.556 | AP4: 177152.6203 | AR4: Automação (cancelas duplas, central de comunicação e software de acompanhamento e gerenciamento, cameras de conferência e registro) - cotações de mercado | AS4: vb | AT4: 1 | AU4: 218668.84 | BE4: 7.1.1 | BF4: SINAPI | BG4: 74077/003 | BH4: 1 | BI4: Locacao convencional de obra, através de gabarito de tabuas corridas pontaletadas, com reaproveitamento de 3 vezes | BJ4: m² | BK4: 416 | BL4: 6 | BM4: 2496 | BP4: Ajardinamento - grama São Carlos | BQ4: m² | BR4: 2519.4919 | BS4: 29.731 | BT4: 74907.01368 | BV4: 16.1.1.1 | BW4: PMPAT1 | BY4: 1 | BZ4: Marcação de área | CA4: m² | CB4: 3997.61 | CC4: 2.64 | CD4: 10553.69 | CG4: Reforma da Casa do Gaucho, com modernização e adaptação ao novo anexo - conforme pedido das empresas foi balizado em 42% do CUB RS R1-A. com reforma interna e externa (apenas edificação) | CH4: m² | CI4: 2491.4133 | CJ4: 964.8828 | CK4: 2403921.841
A5: Total | B5: =SUMIF($L$4:$L$11,1,$O$4:$O$34) -> 0 | C5: 57033409.5 | D5: 57033409.5 | G5: DRENAGEM /SANEAMENTO | H5: 2 | I5: 1 | J5: Obrigatório | K5: Não | L5: 2 | M5: 55937 | N5: 56.36878522 | O5: 3153100.739 | P5: 0.05528515245 | Q5: VALORES DE DRENAGEM DO PROJETO DO PMI, OS QUAIS MOSTRARAM-SE RAZOÁVEIS QUANDO COMPARADOS COM ESTIMATIVA DA DEP (BENITES) | S5: elétrica | T5: Instalações especiais elétricas (previsão das empresas de execução) - estimativa | U5: vb | V5: 1 | W5: 1240000 | X5: 1240000 | Z5: Automação (cancelas duplas, central de comunicação e software de acompanhamento e gerenciamento, cameras de conferência e registro) - Cotações de mercado | AA5: vb | AB5: 1 | AC5: 218668.84 | AD5: 218668.84 | AF5: Automação (cancelas duplas, central de comunicação e software de acompanhamento e gerenciamento, cameras de conferência e registro) - cotações de mercado | AG5: vb | AH5: 1 | AI5: 218668.84 | AJ5: 218668.84 | AL5: Área de implantação (calçamento PAVS 80mm Holandês natural) - ampliado o custo em 10% para arremates - equivalencia ao SINAPI 72799 | AM5: m² | AN5: 1733.1372 | AO5: 98.373 | AP5: 170493.9058 | AR5: Cercamento eletronico - cameras e sistemas -cotação de mercado sem infra-estrutura e cabeamento | AS5: vb | AT5: 1 | AU5: 171000 | BE5: 7.1.2 | BF5: SINAPI | BG5: 79472 | BH5: 1 | BI5: Regularizacao de superficies em terra com motoniveladora | BJ5: m² | BK5: 624 | BL5: 0.58 | BM5: 361.92 | BN5: 2857.92 | BP5: Calçadas internas em basalto irregular - SINAPI 73921/002 por semelhança | BQ5: m² | BR5: 646.3738 | BS5: 80.587 | BT5: 52089.32542 | BV5: 16.1.1.2 | BW5: SINAPI | BX5: 94097 | BY5: 1 | BZ5: Regularização e compactação manual de terreno | CA5: m² | CB5: 3997.61 | CC5: 6.119715 | CD5: 24464.23 | CG5: Tapume de isolamento em compensado de madeira pintado em cores basicas SINAPI 98458 + 88489, com 2m de altura - considerado o contorno | CH5: m² | CI5: 270 | CJ5: 140.361 | CK5: 37897.47
G6: DRENAGEM /SANEAMENTO | H6: 3 | I6: 1 | J6: Obrigatório | K6: Não | L6: 2 | M6: 55666.66667 | N6: 56.64252824 | O6: 3153100.739 | P6: 0.05528515245 | Q6: VALORES DE DRENAGEM DO PROJETO DO PMI, OS QUAIS MOSTRARAM-SE RAZOÁVEIS QUANDO COMPARADOS COM ESTIMATIVA DA DEP (BENITES) | S6: elétrica | T6: Cabeamentos 4 fios (16mm²) - estimativa - SINAPI 91934 entradas | U6: m.l. | V6: 53700 | W6: 19.279 | X6: 1035282.3 | Z6: Iluminação postes Altos (11) e postes coloniais (27) - Cotações de mercado + instalado | AA6: vb | AB6: 1 | AC6: 192760.75 | AD6: 192760.75 | AF6: Área de implantação (calçamento Pisograma tela 33x33x8 cm natural) - ampliado o custo em 20% para arremates e pintura das vagas - equivalência ao SINAPI 92392 | AG6: m² | AH6: 2560.36 | AI6: 71.556 | AJ6: 183209.1202 | AL6: Tapume de isolamento em compensado de madeira pintado em cores basicas SINAPI 98458 + 88489, com 2m de altura - considerado 50% do todo. | AM6: m² | AN6: 696.7482 | AO6: 140.361 | AP6: 97796.2741 | AR6: Tapume de isolamento em compensado de madeira pintado em cores básicas SINAPI 98458 + 88489, com 2m de altura - considerado 50% do todo. | AS6: m² | AT6: 1173.1828 | AU6: 140.361 | AV6: 164669.111 | BE6: 7.2 | BI6: Fundações | BP6: Postes de iluminação colonial - fundição vesuvio - preto + instalação até cx de passagem + lâmpada LED | BQ6: unid. | BR6: 12 | BS6: 4335.566 | BT6: 52026.792 | BV6: 16.1.1.3 | BW6: COMP-SMIM A | BX6: 39 | BY6: 1 | BZ6: Concreto magro fck=15mpa, virado em betoneira, com lancamento | CA6: m³ | CB6: 199.88 | CC6: 595.16 | CD6: 118960.58
G7: DRENAGEM /SANEAMENTO | I7: 1 | J7: Obrigatório | K7: Não | L7: 2 | N7: 56.36878522 | P7: 0 | Q7: VALORES DE DRENAGEM DO PROJETO DO PMI, OS QUAIS MOSTRARAM-SE RAZOÁVEIS QUANDO COMPARADOS COM ESTIMATIVA DA DEP (BENITES) | S7: elétrica | T7: Redes elétricas de distribuição | U7: vb | V7: 1 | W7: 650000 | X7: 650000 | Z7: Cercamento fisico - alambrado com revestimento PVC - Equivalência com SINAPI 73787/001 com acrescimo de 30% | AA7: m² | AB7: 529.974 | AC7: 318.4129 | AD7: 168750.5583 | AF7: Calçadas internas em basalto irregular - SINAPI 73921/002 por semelhança | AG7: m² | AH7: 1740.3657 | AI7: 80.587 | AJ7: 140250.8507 | AL7: Cercamento eletrônico - câmeras e sistemas -cotação de mercado sem infra-estrutura e cabeamento | AM7: vb | AN7: 1 | AO7: 95000 | AP7: 95000 | AR7: Iluminação postes Altos (18) e postes baixos (0) - cotações de mercado + instalado | AS7: vb | AT7: 1 | AU7: 155610 | AW7: =AU7/AT3 -> 52.99855476 | BE7: 7.2.1 | BF7: PMPAT1 | BH7: 1 | BI7: Mobilização e desmobilização de equipe e equipamentos | BJ7: cj | BK7: 1 | BL7: 16480.97 | BM7: 16480.97 | BP7: Área de implantação (calçamento PAVS 80mm Holandês natural) - ampliado o custo em 10% para arremates - equivalencia ao SINAPI 72799 | BQ7: m² | BR7: 494.7628 | BS7: 98.373 | BT7: 48671.30092 | BV7: 16.1.1.4 | BW7: COMP-SMIM A | BX7: 40 | BY7: 1 | BZ7: Concreto fck 35mpa - preparo, lançamento e cura | CA7: m³ | CB7: 399.98 | CC7: 498.45 | CD7: 199370.03
G8: DRENAGEM /SANEAMENTO | I8: 1 | J8: Obrigatório | K8: Não | L8: 2 | N8: 50.63707182 | O8: 0 | P8: 0 | Q8: VALORES DE DRENAGEM DO PROJETO DO PMI, OS QUAIS MOSTRARAM-SE RAZOÁVEIS QUANDO COMPARADOS COM ESTIMATIVA DA DEP (BENITES) | S8: mobiliário | T8: Mobiliário e decoração administração e equipamentos | U8: vb | V8: 1 | W8: 450000 | X8: 450000 | Z8: Plantio de grama em pavimento concregrama. AF_05/2018 - SINAPI 98503 | AA8: m² | AB8: 5014.92 | AC8: 28.509 | AD8: 142970.3543 | AF8: Iluminação postes Altos (13) - cotações de mercado + instalado | AG8: vb | AH8: 1 | AI8: 112385 | AJ8: 112385 | AL8: Iluminação postes Altos (9) e postes baixos (1) - cotações de mercado + instalado | AM8: vb | AN8: 1 | AO8: 81422.25 | AP8: 81422.25 | AR8: Área de implantação (calçamento Pisograma tela 33x33x8 cm natural) - ampliado o custo em 20% para arremates e pintura das vagas - equivalência ao SINAPI 92392 | AS8: m² | AT8: 2139.6969 | AU8: 71.556 | AV8: 153108.1514 | BE8: 7.2.2 | BH8: 1 | BI8: Execução de estacas raiz diametro externo - prof.conforme projeto especifico, inclusive argamassa e armadura, completa: | BM8: 0 | BP8: Tapume de isolamento em compensado de madeira pintado em cores basicas SINAPI 98458 + 88489 - considerado o contorno aproximado. | BQ8: m² | BR8: 346.0232 | BS8: 140.361 | BT8: 48568.16238 | BV8: 16.1.1.6 | BW8: SINAPI | BX8: 96534 | BY8: 1 | BZ8: Forma para fundação - fab., montagem e desmontagem | CA8: m² | CB8: 804.44 | CC8: 70.73 | CD8: 56898.04 | CG8: 7.17 | CK8: Aparelhos sanitários e metais
G9: Redes subterrâneas - ELETRICA | H9: 1 | I9: 1 | J9: Obrigatório | K9: Não | L9: 2 | M9: 44666.66667 | N9: 23.37546823 | O9: 1044104.247 | P9: 0.01830688813 | Q9: CAPEX ORÇADO DO PMI E ÁREA TOTAL DO PARQUE | S9: drenagem | T9: Caixas principais de ligação da drenagem - SINAPI 73856/002 + 98114 | U9: unid. | V9: 240 | W9: 1763.242 | X9: 423178.08 | Z9: Custo de terraplanagem (decapagem e movimentação do solo, aterro de nivelamento do solo) - Cotação de mercado x SINAPI 79482, ampliado o custo devido a delicadeza da vegetação. | AA9: m² | AB9: 5014.92 | AC9: 21.85365 | AD9: 109594.3065 | AF9: Plantio de grama em pavimento concregrama. AF_05/2018 - SINAPI 98503 | AG9: m² | AH9: 2560.36 | AI9: 28.509 | AJ9: 72993.30324 | AL9: Plantio de grama em pavimento concregrama. AF_05/2018 - SINAPI 98503 | AM9: m² | AN9: 2475.72 | AO9: 28.509 | AP9: 70580.30148 | AR9: Plantio de grama em pavimento concregrama. AF_05/2018 - SINAPI 98503 | AS9: m² | AT9: 2139.6969 | AU9: 28.509 | AV9: 61000.61892 | BE9: 7.2.2.1 | BH9: 1 | BI9: De= 150mm - 10 ud : | BM9: 0 | BP9: Área de implantação (calçamento Pisograma tela 33x33x8 cm natural) - ampliado o custo em 20% para arremates e pintura das vagas - equivalência ao SINAPI 92392 | BQ9: m² | BR9: 634.8 | BS9: 71.556 | BT9: 45423.7488 | BV9: 16.1.1.7 | BW9: SINAPI | BX9: 3777 | BY9: 1 | BZ9: Lona plastica preta, e= 150 micra | CA9: m² | CB9: 3997.61 | CC9: 1.09 | CD9: 4357.39 | CG9: 7.17.1 | CJ9: 1 | CK9: Aparelhos sanitarios: | CO9: 0
G10: Redes subterrâneas - ELETRICA | H10: 2 | I10: 1 | J10: Obrigatório | K10: Não | L10: 2 | M10: 55937 | N10: 23.26249885 | O10: 1301234.398 | P10: 0.02281530088 | Q10: CAPEX ORÇADO DO PMI E ÁREA TOTAL DO PARQUE | S10: elétrica | T10: Caixa de passagens elétricas vedadas - por comparação SINAPI 74166/001 | U10: unid | V10: 1094 | W10: 365.83625 | X10: 400224.8575 | Z10: Cercamento eletrônico - Câmeras e sistemas - Cotação de mercado sem infra-estrutura e cabeamento | AA10: vb | AB10: 1 | AC10: 95000 | AD10: 95000 | AF10: Custo de terraplanagem (decapagem e movimentação do solo, aterro de nivelamento do solo) - cotação de mercado x SINAPI 79482 (50% menos profundo solo já com alguma compactação) | AG10: m² | AH10: 5235.959 | AI10: 13.87533333 | AJ10: 72650.67644 | AL10: Custo de terraplanagem (decapagem e movimentação do solo, aterro de nivelamento do solo) - cotação de mercado x SINAPI 79482, ampliado o custo devido a delicadeza da vegetação. | AM10: m² | AN10: 2475.72 | AO10: 21.85365 | AP10: 54103.51838 | AR10: Custo de terraplanagem (decapagem e movimentação do solo, aterro de nivelamento do solo) - cotação de mercado x SINAPI 79482, ampliado o custo devido a delicadeza da vegetação. | AS10: m² | AT10: 2139.6969 | AU10: 21.85365 | AV10: 46760.18716 | BE10: 7.2.2.1.1 | BF10: PMPAT1 | BH10: 1 | BI10: Em solo | BJ10: m | BK10: 80.1 | BL10: 330.33 | BM10: 26459.43 | BP10: Custo de terraplanagem (decapagem e movimentação do solo, aterro de nivelamento do solo) - cotação de mercado x SINAPI 79482, ampliado o custo devido a delicadeza da vegetação. (50% menos profundo solo já com alguma compactação) - vegetações jardim | BQ10: m² | BR10: 2715.5491 | BS10: 14.5691 | BT10: 39563.10639 | BV10: 16.1.1.8 | BW10: SINAPI | BX10: 92878 | BY10: 1 | BZ10: Barras de transferência gerdau btg-12 c=50cm ou equiv. | CA10: un | CB10: 3290.75 | CC10: 6.46 | CD10: 21258.25 | CG10: 7.17.1.1 | CH10: COMP-SMIM A | CI10: 42 | CJ10: 1 | CK10: Bacia sanitária mod. Deca ref. P21 branca ou equivalente inclui caixa descarga de embutir montana ou equivalente | CL10: un | CM10: 0 | CN10: 1207 | CO10: 0
G11: Redes subterrâneas - ELETRICA | H11: 3 | I11: 1 | J11: Obrigatório | K11: Não | L11: 2 | M11: 55937 | N11: 23.26249885 | O11: 1301234.398 | P11: 0.02281530088 | Q11: CAPEX ORÇADO DO PMI E ÁREA TOTAL DO PARQUE | S11: esgoto/agua | T11: Ligação de esgoto dos piquetes - comparação SINAPI 73658 | U11: unid. | V11: 350 | W11: 704.301 | X11: =W11*V11 -> 246505.35 | Z11: Custo de terraplanagem (decapagem e movimentação do solo, aterro de nivelamento do solo) - Cotação de mercado x SINAPI 79482 | AA11: m² | AB11: 4221.3934 | AC11: 20.813 | AD11: 87859.86083 | AF11: Cercamento eletronico - cameras e sistemas -cotação de mercado sem infra-estrutura e cabeamento | AG11: vb | AH11: 1 | AI11: 57000 | AJ11: 57000 | AL11: Ajardinamento - grama São Carlos | AM11: m² | AN11: 1033.5401 | AO11: 29.731 | AP11: 30728.18071 | AR11: Custo de terraplanagem (decapagem e movimentação do solo, aterro de nivelamento do solo) - cotação de mercado x SINAPI 79482 (50% menos profundo solo já com alguma compactação) | AS11: m² | AT11: 2936.1178 | AU11: 13.87533333 | AV11: 40739.61318 | BE11: 7.2.2.1.2 | BF11: PMPAT1 | BH11: 1 | BI11: Em rocha | BJ11: m | BK11: 0.7 | BL11: 475.19 | BM11: 332.63 | BP11: Ajardinamento - arbustiva vermelha - Variação de quantidade de mudas por metro quadrado e mão de obra de plantio, estimativa conforme equipe técnica | BQ11: m² | BR11: 83.5786 | BS11: 413.85 | BT11: 34589.00361 | BV11: 16.1.1.9 | BW11: COMP-SMIM A | BX11: 05 | BY11: 1 | BZ11: Tarucel 20mm | CA11: m | CB11: 268.15 | CC11: 8.12 | CD11: 2177.38 | CG11: 7.17.1.2 | CH11: COMP-SMIM A | CI11: 43 | CJ11: 1 | CK11: Bacia sanitaria pne c/ válvula de descarga alav. E assento | CL11: un | CM11: 8 | CN11: 1747.79 | CO11: 13982.32
G12: Redes subterrâneas - ELETRICA | H12: 4 | I12: 1 | J12: Obrigatório | K12: Não | L12: 2 | N12: 23.26249885 | P12: 0 | Q12: CAPEX ORÇADO DO PMI E ÁREA TOTAL DO PARQUE | S12: drenagem | T12: Execução de ramais de drenagem principais (comparativo) SINAPI 83678 + 73902(10cm) + 83667(10cm) | U12: m.l. | V12: 1200 | W12: 262.5129 | X12: 315015.48 | Z12: Tapume de isolamento em compensado de madeira pintado em cores basicas SINAPI 98458 + 88489, com 2m de altura - considerado a largura e metade do comprimento. | AA12: m² | AB12: 318.81 | AC12: 140.361 | AD12: 44748.49041 | AF12: Ajardinamento - grama São Carlos | AG12: m² | AH12: 1759.3285 | AI12: 29.731 | AJ12: 52306.59563 | AL12: Equipamentos - no-break + proteção fisica (carenagem e afins) - cotação de mercado | AM12: vb | AN12: 1 | AO12: 29640 | AP12: 29640 | AR12: Recuperação das calçadas de basalto regular, reutilizando material - referência SINAPI 73921/002 - considerando área total. | AS12: m² | AT12: 1910.9273 | AU12: 17.04885 | AV12: 32579.1129 | BE12: 7.2.2.2 | BH12: 1 | BI12: De= 200mm - 15 ud: | BM12: 0 | BP12: Iluminação postes Altos (4) e postes baixos (0) - cotações de mercado + instalado | BQ12: vb | BR12: 1 | BS12: 34580 | BT12: 34580 | BV12: 16.1.1.10 | BW12: COMP-SMIM A | BX12: 06 | BY12: 1 | BZ12: Treliça tr 08644 - fornecimento e instalação | CA12: m | CB12: 2131.76 | CC12: 13.04 | CD12: 27798.15 | CG12: 7.17.1.3 | CH12: COMP-SMIM A | CI12: 46 | CJ12: 1 | CK12: Mictório de louça ref deca m716 ou equivalente com válvula ref hydra max 2551 acabamento 4900 ou equivalente | CL12: un | CM12: 0 | CN12: 749.1 | CO12: 0
G13: Redes subterrâneas - ELETRICA | I13: 1 | J13: Obrigatório | K13: Não | L13: 2 | N13: 23.26097409 | O13: 0 | P13: 0 | Q13: CAPEX ORÇADO DO PMI E ÁREA TOTAL DO PARQUE | S13: elétrica | T13: Execução de redes de distribuição eletrica internas do Parque. Interligações das caixas principais aos ramais setoriais - SINAPI 73798/003 (comparativo) | U13: m.l. | V13: 5370 | W13: 52.377 | X13: 281264.49 | Z13: Ajardinamento - grama São Carlos | AA13: m² | AB13: 1093.2918 | AC13: 29.731 | AD13: 32504.65851 | AF13: Postes de iluminação colonial - fundição vesuvio - preto + instalação até cx de passagem + lâmpada LED | AG13: unid. | AH13: 10 | AI13: 4335.566 | AJ13: 43355.66 | AL13: Custo de terraplanagem (decapagem e movimentação do solo, aterro de nivelamento do solo) - cotação de mercado x SINAPI 79482 (50% menos profundo solo já com alguma compactação) | AM13: m² | AN13: 1733.1372 | AO13: 13.87533333 | AP13: 24047.85636 | AR13: Ajardinamento - grama São Carlos | AS13: m² | AT13: 1039.6197 | AU13: 29.731 | AV13: 30908.9333 | BE13: 7.2.2.2.1 | BF13: PMPAT1 | BH13: 1 | BI13: Em solo | BJ13: m | BK13: 132.6 | BL13: 364.24 | BM13: 48298.22 | BP13: Ajardinamento - arbustiva amarela - Variação de quantidade de mudas por metro quadrado e mão de obra de plantio, estimativa conforme equipe técnica | BQ13: m² | BR13: 87.9224 | BS13: 378.95 | BT13: 33318.19348 | BV13: 16.1.1.11 | BW13: COMP-SMIM A | BX13: 239 | BY13: 1 | BZ13: Armação em tela de aco soldada, tipo q283 malha 10x10cm | CA13: kg | CB13: 22724.63 | CC13: 10.73 | CD13: 243835.28 | CG13: 7.17.1.4 | CH13: COMP-SMIM A | CI13: 47 | CJ13: 1 | CK13: Cuba de louça ref incepa 36cm ou equivalente | CL13: un | CM13: 0 | CN13: 475.76 | CO13: 0
G14: Instalações elétricas - iluminação pública | H14: 1 | I14: 1 | J14: Obrigatório | K14: Não | L14: 2 | M14: 44937 | N14: 12.25360466 | O14: 550640.2325 | P14: 0.009654696034 | Q14: CAPEX POR M2 DE ILUMINAÇÃO PÚBLICA PROVENIENTE DA DIP COM BASE NA ILUMINAÇÃO PUBLICA DO PARQUE FARROUPILHA | S14: drenagem | T14: Diferenças de aterros com adensamento hidraúlico estimadas - SINAPI semelhança 79482 | U14: m³ | V14: 3000 | W14: 83.252 | X14: 249756 | Z14: Portões 2 grandes e 3 pequenos - Referência SINAPI 74238/002 | AA14: m² | AB14: 34.6 | AC14: 938.34 | AD14: 32466.564 | AF14: Custo de terraplanagem (decapagem e movimentação do solo, aterro de nivelamento do solo) - cotação de mercado x SINAPI 79482, ampliado o custo devido a delicadeza da vegetação. (50% menos profundo solo já com alguma compactação) | AG14: m² | AH14: 2560.36 | AI14: 14.5691 | AJ14: 37302.14088 | AL14: Recuperação das calçadas de basalto regular, reutilizando material - referencia SINAPI 73921/002 - considerando área total. | AM14: m² | AN14: 703.2299 | AO14: 17.04885 | AP14: 11989.26108 | AR14: Equipamentos - no-break + proteção fisica (carenagem e afins) - cotação de mercado | AS14: vb | AT14: 1 | AU14: 29640 | BE14: 7.2.2.2.2 | BF14: PMPAT1 | BH14: 1 | BI14: Em rocha | BJ14: m | BK14: 0.7 | BL14: 540.08 | BM14: 378.06 | BP14: Cercamento eletronico - cameras e sistemas -cotação de mercado sem infra-estrutura e cabeamento | BQ14: vb | BR14: 1 | BS14: 19000 | BT14: 19000 | BV14: 16.1.1.12 | BY14: 1 | BZ14: Armação de aço ca-50, fornecimento, corte, dobra e colocação: | CD14: 0 | CG14: 7.17.1.5 | CH14: SINAPI | CI14: 86882 | CJ14: 1 | CK14: Sifao para cubas de louça | CL14: un | CM14: 0 | CN14: 22.1 | CO14: 0
G15: Instalações elétricas - iluminação pública | H15: 2 | I15: 1 | J15: Obrigatório | K15: Não | L15: 2 | M15: 55937 | N15: 12.25360466 | O15: 685429.8837 | P15: 0.01201804153 | Q15: CAPEX POR M2 DE ILUMINAÇÃO PÚBLICA PROVENIENTE DA DIP COM BASE NA ILUMINAÇÃO PUBLICA DO PARQUE FARROUPILHA | S15: elétrica | T15: Medidores Inteligentes de Energia SMW WEG - ou similar | U15: unid | V15: 476 | W15: 422.5 | X15: 201110 | Z15: Equipamentos - no-break + proteção fisica (carenagem e afins) - Cotação de mercado | AA15: vb | AB15: 1 | AC15: 29640 | AD15: 29640 | AF15: Portões 2 grandes e 3 pequenos - referência SINAPI 74238/002 | AG15: m² | AH15: 34.6 | AI15: 938.34 | AJ15: 32466.564 | AL15: Sinalização - cotação de mercado | AM15: vb | AN15: 1 | AO15: 10522.143 | AP15: 10522.143 | AR15: Plantio de vegetais, mudas maiores que 2,00 m - SIANPI 98511 - acréscimo de 20% na cura e transporte | AS15: Unid. | AT15: 108 | AU15: 134.3472 | AV15: 14509.4976 | BE15: 7.2.2.3 | BH15: 1 | BI15: De= 250mm - 05 ud: | BM15: 0 | BP15: Plantio de grama em pavimento concregrama. AF_05/2018 - SINAPI 98503 | BQ15: m² | BR15: 634.8 | BS15: 28.509 | BT15: 18097.5132 | BV15: 16.1.1.12.1 | BW15: SINAPI | BX15: 92760 | BY15: 1 | BZ15: Armação aço ca 50 ø6,3mm - corte, dobra e montagem | CA15: kg | CB15: 749.32 | CC15: 10.76 | CD15: 8062.68 | CG15: 7.17.1.6 | CH15: COMP-SMIM A | CI15: 50 | CJ15: 1 | CK15: Lavatório pne ref incepa mod l51 c/ cuba suspensa cs 1 ou equivalente | CL15: un | CM15: 8 | CN15: 998.33 | CO15: 7986.64
G16: Instalações elétricas - iluminação pública | H16: 3 | I16: 1 | J16: Obrigatório | K16: Não | L16: 2 | M16: 55937 | N16: 12.25360466 | O16: 685429.8837 | P16: 0.01201804153 | Q16: CAPEX POR M2 DE ILUMINAÇÃO PÚBLICA PROVENIENTE DA DIP COM BASE NA ILUMINAÇÃO PUBLICA DO PARQUE FARROUPILHA | S16: esgoto/agua | T16: Rede de despejo - SINAPI 83675 | U16: m.l. | V16: 900 | W16: 120.471 | X16: 108423.9 | Z16: Sinalização - Cotação de mercado | AA16: vb | AB16: 1 | AC16: 23090.7835 | AD16: 23090.7835 | AF16: Equipamentos - no-break + proteção fisica (carenagem e afins) - cotação de mercado | AG16: vb | AH16: 1 | AI16: 29640 | AJ16: 29640 | AL16: Plantio de vegetais, mudas maiores que 2,00 m - SIANPI 98511 - acréscimo de 20% na cura e transporte | AM16: Unid. | AN16: 77 | AO16: 134.3472 | AP16: 10344.7344 | AR16: Sinalização - cotação de mercado | AS16: vb | AT16: 1 | AU16: 12689.53675 | AV16: 12689.53675 | BE16: 7.2.2.3.1 | BF16: PMPAT1 | BH16: 1 | BI16: Em solo | BJ16: m | BK16: 46.6 | BL16: 439.6 | BM16: 20485.36 | BP16: Calçadas externas em basalto regular - SINAPI 73921/002 + 20% diferença do material | BQ16: m² | BR16: 172.579 | BS16: 96.7044 | BT16: 16689.14865 | BV16: 16.1.1.12.2 | BW16: SINAPI | BX16: 92761 | BY16: 1 | BZ16: Armação aço ca 50 ø8mm - corte, dobra e montagem | CA16: kg | CB16: 13726.84 | CC16: 10.59 | CD16: 145367.24 | CG16: 7.17.1.7 | CH16: COMP-SMIM A | CI16: 52 | CJ16: 1 | CK16: Tanque louça 40l ref tq03 deca ou equivalente c/ torneira | CL16: un | CM16: 4 | CN16: 793.7 | CO16: 3174.8
G17: Instalações elétricas - iluminação pública | H17: 4 | I17: 1 | J17: Obrigatório | K17: Não | L17: 2 | N17: 12.25360466 | P17: 0 | Q17: CAPEX POR M2 DE ILUMINAÇÃO PÚBLICA PROVENIENTE DA DIP COM BASE NA ILUMINAÇÃO PUBLICA DO PARQUE FARROUPILHA | S17: drenagem | T17: Sistema de Bombeamento - Sinapi 83644 (+50% subterrâneas + 65% reforço linhas) - sistema sucção | U17: unid | V17: 6 | W17: 16744.73872 | X17: 100468.4323 | Z17: Plantio de vegetais, mudas maiores que 2,00 m - SIANPI 98511 - Acréscimo de 20% na cura e transporte | AA17: Unid. | AB17: 171 | AC17: 134.3472 | AD17: 22973.3712 | AF17: Sinalização - cotação de mercado | AG17: vb | AH17: 1 | AI17: 13089.8975 | AJ17: 13089.8975 | AV17: 0 | BE17: 7.2.2.4 | BH17: 1 | BI17: De= 310mm - 01 ud: | BM17: 0 | BP17: Sinalização - cotação de mercado + 50% (área a menor) | BQ17: vb | BR17: 1 | BS17: 14462.57138 | BT17: 14462.57138 | BV17: 16.1.1.12.3 | BW17: SINAPI | BX17: 92762 | BY17: 1 | BZ17: Armação aço ca 50 ø10mm - corte, dobra e montagem | CA17: kg | CB17: 1888.19 | CC17: 8.63 | CD17: 16295.08 | CE17: 879398.02 | CG17: 7.17.1.8 | CH17: COMP-SMIM A | CI17: 262 | CJ17: 1 | CK17: Sifao em metal cromado para tanque, 1.1/4 x 1.1/2 | CL17: un | CM17: 4 | CN17: 262.58 | CO17: 1050.32
G18: Instalações elétricas - iluminação pública | I18: 1 | J18: Obrigatório | K18: Não | L18: 2 | N18: 10.98 | O18: 0 | P18: 0 | Q18: CAPEX POR M2 DE ILUMINAÇÃO PÚBLICA PROVENIENTE DA DIP COM BASE NA ILUMINAÇÃO PUBLICA DO PARQUE FARROUPILHA | S18: elétrica | T18: Projeto elétrico de distribuição subterrânea - valor do projeto de distribuição das redes principais com as alimentações prediais e da rede específica para a área de Eventos e Feiras, que partem do Museu do Gaúcho | U18: hectare | V18: 17.54 | W18: 5463.03 | X18: 95821.5462 | Z18: Recuperação das calçadas de basalto regular, reutilizando material - referencia SINAPI 73921/002 - Considerando área total. | AA18: m² | AB18: 570.2407 | AC18: 17.04885 | AD18: 9721.948158 | AF18: Plantio de vegetais, mudas maiores que 2,00 m - SIANPI 98511 - acrescimo de 20% na cura e transporte | AG18: Unid. | AH18: 59 | AI18: 134.3472 | AJ18: 7926.4848 | AT18: 0 | AU18: 0 | AV18: 0 | BE18: 7.2.2.4.1 | BF18: PMPAT1 | BH18: 1 | BI18: Em solo | BJ18: m | BK18: 11.4 | BL18: 510.77 | BM18: 5822.78 | BP18: Custo de terraplanagem (decapagem e movimentação do solo, aterro de nivelamento do solo) - cotação de mercado x SINAPI 79482 (50% menos profundo solo já com alguma compactação) | BQ18: m² | BR18: 646.3738 | BS18: 13.87533333 | BT18: 8968.651933 | BV18: 16.1.2 | BY18: 1900-01-01 | BZ18: Piso em saibro playground - 833,85 m² | CG18: 7.17.1.9 | CH18: COMP-SMIM A | CI18: 53 | CJ18: 1 | CK18: Torneira p/ lavatório ref. Decamatic eco modelo 1173c ou equiv. | CL18: un | CM18: 0 | CN18: 407.62 | CO18: 0
G19: Paisagismo | H19: 1 | I19: 1 | J19: Obrigatório | K19: Não | L19: 2 | M19: 25116 | N19: 18.92999993 | O19: 475445.8781 | P19: 0.008336269606 | Q19: PAISAGISMO R$/M2 TRECHO 2 E ÁREA TOTAL DO PARQUE (SEM AREAS CONSTRUIDAS E ESTACIONAMENTOS) | S19: esgoto/agua | T19: Projeto hidrossanitário - redes de distribuição de alimentação e do esgoto das edificações e principalmente da área de Eventos e Feiras, alimentação controlada pela área técnica do Museu do Gaúcho | U19: hectare | V19: 17.54 | W19: 5463.03 | X19: 95821.5462 | AF19: Recuperação das calçadas de basalto regular, reutilizando material - referencia SINAPI 73921/002 - considerando área total. | AG19: m² | AH19: 239.1125 | AI19: 17.04885 | AJ19: 4076.593146 | BE19: 7.2.2.5 | BH19: 1 | BI19: Argamassa fck=20mpa, composta por: | BM19: 0 | BP19: Austo de terraplanagem (decapagem e movimentação do solo, aterro de nivelamento do solo) - cotação de mercado x SINAPI 79482 (50% menos profundo solo já com alguma compactação) | BQ19: m² | BR19: 634.8 | BS19: 13.87533333 | BT19: 8808.0616 | BV19: 16.1.2.1 | BW19: PMPAT1 | BY19: 1 | BZ19: Marcação de área | CA19: m² | CB19: 833.85 | CC19: 2.64 | CD19: 2201.36 | CG19: 7.17.1.10 | CH19: COMP-SMIM A | CI19: 54 | CJ19: 1 | CK19: Torneiras pne red. Decamatic eco modelo 1173c ou equivalente | CL19: un | CM19: 8 | CN19: 407.62 | CO19: 3260.96
G20: Paisagismo | H20: 2 | I20: 1 | J20: Obrigatório | K20: Não | L20: 2 | M20: 25116 | N20: 18.92999993 | O20: 475445.8781 | P20: 0.008336269606 | Q20: PAISAGISMO R$/M2 TRECHO 2 E ÁREA TOTAL DO PARQUE (SEM AREAS CONSTRUIDAS E ESTACIONAMENTOS) | S20: mobiliário | T20: Lixeiras implantadas (duplas - lixo orgânico e lixo reciclável) - em conjunto com outras estruturas ou independentes - valor com instalação e o material | U20: unid | V20: 75 | W20: 995.2 | X20: 74640 | AF20: Remoção de vegetais, SINAPI paridade com 98529 + 98526 | AG20: Unid. | AH20: 1 | AI20: 156.364 | AJ20: 156.364 | BE20: 7.2.2.7.1 | BF20: PMPAT1 | BH20: 1 | BI20: Cimento | BJ20: kg | BK20: 5100 | BL20: 0.6 | BM20: 3060 | BP20: Ajardinamento - arbustiva verde - Variação de quantidade de mudas por metro quadrado e mão de obra de plantio, estimativa conforme equipe técnica | BQ20: m² | BR20: 24.5562 | BS20: 289.45 | BT20: 7107.79209 | BV20: 16.1.2.2 | BW20: SINAPI | BX20: 94097 | BY20: 1 | BZ20: Regularização e compactação manual de terreno | CA20: m² | CB20: 833.85 | CC20: 6.119715 | CD20: 5102.92 | CG20: 7.17.1.11 | CH20: COMP-SMIM A | CI20: 61 | CJ20: 1 | CK20: Torneira ou misturador para bancadas | CL20: un | CM20: 0 | CN20: 361.97 | CO20: 0
G21: Paisagismo | H21: 3 | I21: 1 | J21: Obrigatório | K21: Não | L21: 2 | M21: 25116 | N21: 18.92999993 | O21: 475445.8781 | P21: 0.008336269606 | Q21: PAISAGISMO R$/M2 TRECHO 2 E ÁREA TOTAL DO PARQUE (SEM AREAS CONSTRUIDAS E ESTACIONAMENTOS) | S21: esgoto/agua | T21: Caixa de proteção para medição - apenas por comparação - SINAPI 68066 | U21: unid | V21: 476 | W21: 139.32 | X21: 66316.32 | Z21: TOTAL | AB21: 5014.92 | AC21: 395.7928011 | AD21: 1984869.234 | AF21: TOTAL | AH21: 5235.959 | AI21: 353.4540835 | AJ21: 1850671.09 | AL21: TOTAL | AN21: 2475.72 | AO21: 437.2424529 | AP21: 1082489.886 | AR21: TOTAL | AT21: 2139.6969 | AU21: 395.2893882 | AV21: 845799.4785 | AX21: TOTAL | AZ21: 14866.2959 | BA21: 387.7112178 | BB21: 5763829.688 | BE21: 7.2.2.7.2 | BF21: PMPAT1 | BH21: 1 | BI21: Areia | BJ21: m³ | BK21: 8.2 | BL21: 71.59 | BM21: 587.04 | BP21: Custo de terraplanagem (decapagem e movimentação do solo, aterro de nivelamento do solo) - cotação de mercado x SINAPI 79482 (50% menos profundo solo já com alguma compactação) | BQ21: m² | BR21: 494.7628 | BS21: 13.87533333 | BT21: 6864.998771 | BV21: 16.1.2.3 | BW21: COMP-SMAMS | BX21: 2011 | BY21: 1 | BZ21: Saibro rosa - compactação mecânica - 6 cm | CA21: m³ | CB21: 50.03 | CC21: 225.81 | CD21: 11297.27 | CE21: 18601.55 | CG21: 7.17.1.12 | CH21: COMP-SMIM A | CI21: 63 | CJ21: 1 | CK21: Acabamento para registro gaveta 3/4" e 1" linha izy c37 deca ou equivalente | CL21: un | CM21: 8 | CN21: 99.66 | CO21: 797.28
G22: Paisagismo | H22: 4 | I22: 1 | J22: Obrigatório | K22: Não | L22: 2 | N22: 18.92999993 | P22: 0 | Q22: PAISAGISMO R$/M2 TRECHO 2 E ÁREA TOTAL DO PARQUE (SEM AREAS CONSTRUIDAS E ESTACIONAMENTOS) | S22: esgoto/agua | T22: Sistema de Bombeamento - Sinapi 83644 (+50% subterrâneas) | U22: unid | V22: 6 | W22: 10148.3265 | X22: 60889.959 | BE22: 7.2.2.6 | BH22: 1 | BI22: Armadura ca-50: | BM22: 0 | BP22: Plantio de vegetais, mudas maiores que 2,00 m - SIANPI 98511 - acrescimo de 20% na cura e transporte | BQ22: Unid. | BR22: 25 | BS22: 134.3472 | BT22: 3358.68 | BV22: 16.1.3 | BY22: 1900-01-01 | BZ22: Piso em saibro cachorródromo - 415,29 m² | CG22: 7.17.1.13 | CH22: COMP-SMIM A | CI22: 62 | CJ22: 1 | CK22: Cubas em aço inox bancada de granito dos bares (maxi cuba ou equivalente) | CL22: un | CM22: 0 | CN22: 662.72 | CO22: 0
G23: Paisagismo | I23: 1 | J23: Obrigatório | K23: Não | L23: 2 | N23: 18.92999993 | O23: 0 | P23: 0 | Q23: PAISAGISMO R$/M2 TRECHO 2 E ÁREA TOTAL DO PARQUE (SEM AREAS CONSTRUIDAS E ESTACIONAMENTOS) | S23: esgoto/agua | T23: Projeto estrutural com detalhamento, Bacia de amortecimento - valor do projeto por m³ de amortecimento | U23: m³ | V23: 2000 | W23: 24 | X23: 48000 | BE23: 7.2.2.7.1 | BF23: SINAPI | BG23: 92760 | BH23: 1 | BI23: Armação aço ca 50 ø6,3mm - corte, dobra e montagem | BJ23: kg | BK23: 151.5 | BL23: 10.76 | BM23: 1630.14 | BP23: Arandelas de iluminação pública - fixadas nas casas açorianas - com pintura em preto + instalação até a CX de passagem na calçada + lampada LED | BQ23: unid. | BR23: 4 | BS23: 415.965 | BT23: 1663.86 | BV23: 16.1.3.1 | BW23: PMPAT1 | BY23: 1 | BZ23: Marcação de área | CA23: m² | CB23: 415.29 | CC23: 2.64 | CD23: 1096.37 | CG23: 7.17.1.14 | CH23: COMP-SMIM A | CI23: 261 | CJ23: 1 | CK23: Sifao em metal cromado para pia americana, 1.1/2 x 1.1/2 | CL23: un | CM23: 0 | CN23: 304.82 | CO23: 0
G24: Caminhos, percursos, acessos | H24: 1 | I24: 1 | J24: Obrigatório | K24: Não | L24: 2 | M24: 14299.1675 | N24: 149.0314038 | O24: 2131025.006 | P24: 0.03736450311 | Q24: ORÇAMENTO R$/M2 PARA O T2 DA ORLA PARA OS CAMINHOS E AREA PROJETO SMPE | S24: drenagem | T24: Projeto de drenagem - valor do projeto em CUB RS CAL 8-N, conforme orientações do SENGE | U24: hectare | V24: 17.54 | W24: 2731.515 | X24: 47910.7731 | BE24: 7.2.2.7.2 | BF24: SINAPI | BG24: 92762 | BH24: 1 | BI24: Armação aço ca 50 ø10mm - corte, dobra e montagem | BJ24: kg | BK24: 276.9 | BL24: 8.63 | BM24: 2389.65 | BP24: reforma da churrascaria ajardinamento total | BR24: =BR3 -> 2086.8649 | BS24: =BT24/BR24 -> 1122.557604 | BT24: =SUM(BT3:BT23) -> 2342626.062 | BV24: 16.1.3.2 | BW24: SINAPI | BX24: 94097 | BY24: 1 | BZ24: Regularização e compactação manual de terreno | CA24: m² | CB24: 415.29 | CC24: 6.119715 | CD24: 2541.46 | CG24: 7.17.1.15 | CH24: COMP-SMIM A | CI24: 65 | CJ24: 1 | CK24: Dispenser papel toalha | CL24: un | CM24: 8 | CN24: 88.07 | CO24: 704.56
G25: Caminhos, percursos, acessos | H25: 2 | I25: 1 | J25: Obrigatório | K25: Não | L25: 2 | M25: 8312.4475 | N25: 149.0314038 | O25: 1238815.72 | P25: 0.02172087784 | Q25: ORÇAMENTO R$/M2 PARA O T2 DA ORLA PARA OS CAMINHOS E AREA PROJETO SMPE | S25: esgoto/agua | T25: Projeto arquitetônico de regularização | U25: m² | V25: 4578.27 | W25: 5.95 | X25: 27240.7065 | AT25: 16.1.7.1 | AU25: PMPAT1 | AW25: 1 | AX25: Estacionamento - 182 vagas - 5352,46 m² | BB25: 0 | BE25: 7.2.2.7.3 | BF25: SINAPI | BG25: 92763 | BH25: 1 | BI25: Armação aço ca 50 ø12,5mm - corte, dobra e montagem | BJ25: kg | BK25: 91.8 | BL25: 7.76 | BM25: 712.37 | BV25: 16.1.2.3 | BW25: COMP-SMAMS | BX25: 2011 | BY25: 1 | BZ25: Saibro rosa - compactação mecânica - 6 cm | CA25: m³ | CB25: 24.92 | CC25: 225.81 | CD25: 5627.19 | CE25: 9265.02 | CG25: 7.17.1.16 | CH25: COMP-SMIM A | CI25: 57 | CJ25: 1 | CK25: Dispenser para papel higiênico | CL25: un | CM25: 8 | CN25: 42.69 | CO25: 341.52
G26: Caminhos, percursos, acessos | H26: 3 | I26: 1 | J26: Obrigatório | K26: Não | L26: 2 | M26: 8312.4475 | N26: 149.0314038 | O26: 1238815.72 | P26: 0.02172087784 | Q26: ORÇAMENTO R$/M2 PARA O T2 DA ORLA PARA OS CAMINHOS E AREA PROJETO SMPE | S26: drenagem | T26: Estudo Hidrológicos, para dar base ao projeto de drenagem. | U26: vb | V26: 1 | W26: 27000 | X26: 27000 | AT26: 16.1.7.1.1 | AU26: PMPAT1 | AW26: 1 | AX26: Regularização e compactação do subleito | AY26: m² | AZ26: 5352.46 | BA26: 1.99 | BB26: 10651.4 | BE26: 7.2.2.7.4 | BF26: SINAPI | BG26: 92764 | BH26: 1 | BI26: Armação aço ca 50 ø16mm - corte, dobra e montagem | BJ26: kg | BK26: 355.5 | BL26: 7.28 | BM26: 2588.04 | BV26: 16.1.3 | BY26: 1900-01-01 | BZ26: Piso concreto anfiteatro - 661,78 m² | CG26: 7.17.1.17 | CH26: COMP-SMIM A | CI26: 66 | CJ26: 1 | CK26: Dispenser sabonete espuma instalado | CL26: un | CM26: 8 | CN26: 61.22 | CO26: 489.76
G27: Caminhos, percursos, acessos | H27: 4 | I27: 1 | J27: Obrigatório | K27: Não | L27: 2 | N27: 149.0314038 | P27: 0 | Q27: ORÇAMENTO R$/M2 PARA O T2 DA ORLA PARA OS CAMINHOS E AREA PROJETO SMPE | S27: infraestrutura | T27: Demolição das construções existentes, lado Oeste do Parque - SINAPI 97625 por semelhança, considerado apenas 40% na relação m³/m² | U27: m² | V27: 1074.7478 | W27: 20.1968 | X27: 21706.46637 | AT27: 16.1.7.1.2 | AU27: PMPAT1 | AW27: 1 | AX27: Execução de base e/ou sub base de brita graduada esp. 40 cm | AY27: m³ | AZ27: 2141.07 | BA27: 149.31 | BB27: 319683.16 | BE27: 7.2.2.7.5 | BF27: SINAPI | BG27: 92765 | BH27: 1 | BI27: Armação aço ca 50 ø20mm - corte, dobra e montagem | BJ27: kg | BK27: 737.3 | BL27: 6.85 | BM27: 5050.51 | BN27: 134275.2 | BV27: 16.1.3.1 | BW27: PMPAT1 | BY27: 1 | BZ27: Marcação de área | CA27: m² | CB27: 661.78 | CC27: 2.64 | CD27: 1747.1 | CG27: 7.17.1.18 | CH27: COMP-SMIM A | CI27: 51 | CJ27: 1 | CK27: Barras de aço inox pne para lavatório | CL27: un | CM27: 8 | CN27: 688.18 | CO27: 5505.44
G28: Caminhos, percursos, acessos | I28: 1 | J28: Obrigatório | K28: Não | L28: 2 | N28: 149.0314038 | O28: 0 | P28: 0 | Q28: ORÇAMENTO R$/M2 PARA O T2 DA ORLA PARA OS CAMINHOS E AREA PROJETO SMPE | S28: infraestrutura | T28: Transporte do entulho - SINAPI 72899 e 72900 (alterado para até 15km) | U28: m³ | V28: 429.89912 | W28: 28.249 | X28: 12144.22024 | AT28: 16.1.7.1.3 | AU28: SINAPI | AV28: 94273 | AW28: 1 | AX28: Meio fio concreto estacionamento | AY28: m | AZ28: 185.5 | BA28: 45.68 | BB28: 8473.64 | BE28: 7.3 | BI28: Infra- estrutura | BV28: 16.1.3.2 | BW28: SINAPI | BX28: 94097 | BY28: 1 | BZ28: Regularização e compactação manual de terreno | CA28: m² | CB28: 661.78 | CC28: 6.119715 | CD28: 4049.9 | CG28: 7.17.1.19 | CH28: COMP-SMIM A | CI28: 64 | CJ28: 1 | CK28: Barra inox para bacias e chuveiro | CL28: un | CM28: 16 | CN28: 301.27 | CO28: 4820.32
G29: Mobiliário | H29: 1 | I29: 1 | J29: Obrigatório | K29: Não | L29: 2 | O29: 185880 | P29: 0.003259142345 | Q29: CAPEX ORÇADO DO PMI E ÁREA TOTAL DO PARQUE (SEM AREAS CONSTRUIDAS E ESTACIONAMENTOS) | S29: infraestrutura | T29: Regularização dos prédios existentes - Projeto Arquitetônico) - taxa prefeitura 618 ALPE - UFM=4,1771 - Valor por faixa de metragem quadrada 4578,27m² | U29: vb | V29: 1 | W29: 11403.483 | X29: 11403.483 | AT29: 16.1.7.1.4 | AU29: PMPAT1 | AW29: 1 | AX29: Execução de imprimação asfáltica consumo 1,5 l/m² | AY29: m² | AZ29: 5352.46 | BA29: 6.04 | BB29: 32328.86 | BE29: 7.3.1 | BF29: SINAPI | BG29: 93358 | BH29: 1 | BI29: Escavação manual de vala com profundidade menor ou igual a 1,30 m | BJ29: m³ | BK29: 54.6 | BL29: 83.88 | BM29: 4579.85 | BV29: 16.1.3.3 | BW29: COMP-SMIM A | BX29: 39 | BY29: 1 | BZ29: Concreto magro fck=15mpa, virado em betoneira, com lancamento | CA29: m³ | CB29: 33.09 | CC29: 595.16 | CD29: 19693.84 | CG29: 7.17.1.20 | CH29: COT-SMIM A | CI29: 229 | CJ29: 1 | CK29: Tampo em granito branco | CL29: m² | CM29: 13.6 | CN29: 1544.54 | CO29: 21005.74
G30: Mobiliário | H30: 2 | I30: 1 | J30: Obrigatório | K30: Não | L30: 2 | O30: 185880 | P30: 0.003259142345 | Q30: CAPEX ORÇADO DO PMI E ÁREA TOTAL DO PARQUE (SEM AREAS CONSTRUIDAS E ESTACIONAMENTOS) | S30: infraestrutura | T30: Verba para impressão de plantas - estimado | U30: m² | V30: 400 | W30: 25 | X30: 10000 | AT30: 16.1.7.1.5 | AU30: PMPAT1 | AW30: 1 | AX30: Execução de pré-misturado á quente cap 20 - esp. 6 cm | AY30: m³ | AZ30: 321.1 | BA30: 518.29 | BB30: 166422.92 | BE30: 7.3.2 | BF30: PMPAT1 | BH30: 1 | BI30: Apiloamento manual de fundo de valas | BJ30: m² | BK30: 55.7 | BL30: 12.38 | BM30: 689.57 | BV30: 16.1.3.4 | BW30: COMP-SMIM A | BX30: 40 | BY30: 1 | BZ30: Concreto fck 35mpa - preparo, lançamento e cura | CA30: m³ | CB30: 66.21 | CC30: 498.45 | CD30: 33002.37 | CG30: 7.17.1.21 | CH30: SINAPI | CI30: 89985 | CJ30: 1 | CK30: Registro pressao c/ acabamento e canopla cromada, simples, bitola 3/4 | CL30: un | CM30: 8 | CN30: 117.15 | CO30: 937.2
G31: Mobiliário | H31: 3 | I31: 1 | J31: Obrigatório | K31: Não | L31: 2 | O31: 185880 | P31: 0.003259142345 | Q31: CAPEX ORÇADO DO PMI E ÁREA TOTAL DO PARQUE (SEM AREAS CONSTRUIDAS E ESTACIONAMENTOS) | S31: infraestrutura | T31: PPCI, prédios existentes adequações (apenas existentes, novos inseridos no projeto de cada um) | U31: m² | V31: 4578.27 | W31: 2.05 | X31: 9385.4535 | AX31: TOTAL | AZ31: 5352.46 | BA31: 100.4323208 | BB31: 537559.98 | BC31: 537559.98 | BE31: 7.3.3 | BF31: COMP-SMIM A | BG31: 39 | BH31: 1 | BI31: Concreto magro fck=15mpa, virado em betoneira, com lancamento | BJ31: m³ | BK31: 2.8 | BL31: 595.16 | BM31: 1666.45 | BV31: 16.1.3.5 | BW31: SINAPI | BX31: 96534 | BY31: 1 | BZ31: Forma para fundação - fab., montagem e desmontagem | CA31: m² | CB31: 133.17 | CC31: 70.73 | CD31: 9419.11 | CG31: 7.17.1.22 | CH31: SINAPI | CI31: 86916 | CJ31: 1 | CK31: Torneira jardim com bico p/mangueira - 3/4" | CL31: un | CM31: 8 | CN31: 38.25 | CO31: 306 | CP31: 64362.86
G32: Mobiliário | H32: 4 | I32: 1 | J32: Obrigatório | K32: Não | L32: 2 | P32: 0 | Q32: CAPEX ORÇADO DO PMI E ÁREA TOTAL DO PARQUE (SEM AREAS CONSTRUIDAS E ESTACIONAMENTOS) | S32: drenagem | T32: Diferenças de escavação estimadas - SINAPI semelhança 79480 | U32: m³ | V32: 2500 | W32: 2.964 | X32: 7410 | BE32: 7.3.4 | BF32: SINAPI | BG32: 93382 | BH32: 1 | BI32: Reaterro de vala com compactação manual | BJ32: m³ | BK32: 21.9 | BL32: 32 | BM32: 700.8 | BV32: 16.1.3.6 | BW32: SINAPI | BX32: 3777 | BY32: 1 | BZ32: Lona plastica preta, e= 150 micra | CA32: m² | CB32: 661.78 | CC32: 1.09 | CD32: 721.34
G33: GALPAO CRIOULO | H33: 1 | I33: 1 | J33: Opcional | K33: Sim | L33: 1 | M33: 2086.8649 | N33: =O33/M33 -> 1122.557604 | O33: 2342626.062 | P33: 0.0410746277 | Q33: REFORMA ORÇADA PMI | S33: infraestrutura | T33: Demolição e remoção do cercamento existente - SINAPI 97637 semelhança com redutor de 25% | U33: m2 | V33: 2051.6912 | W33: 2.17425 | X33: 4460.889592 | BE33: 7.3.5 | BF33: SINAPI | BG33: 96534 | BH33: 1 | BI33: Forma para bloco de fundação - fabricação, montagem e desmontagem | BJ33: m² | BK33: 261.4 | BL33: 70.73 | BM33: 18488.82 | BV33: 16.1.3.7 | BW33: SINAPI | BX33: 92878 | BY33: 1 | BZ33: Barras de transferência gerdau btg-12 c=50cm ou equiv. | CA33: un | CB33: 544.76 | CC33: 6.46 | CD33: 3519.15
G34: CASA DO GAÚCHO | H34: 1 | I34: 1 | J34: Obrigatório | K34: Sim | L34: 2 | M34: 2491.4133 | N34: =O34/M34 -> 980.0940337 | O34: 2441819.311 | P34: 0.04281384073 | Q34: REFORMA ORÇADA PMI QUE INCLUI TODA UMA FACHADA NOVA E UM MUSEU AGREGADO AMPLIANDO A AREA | S34: esgoto/agua | T34: Execução de redes de esgoto | U34: Segurança | V34: 1 | W34: 3543 | X34: 3543 | BE34: 7.3.6 | BF34: COMP-SMIM A | BG34: 40 | BH34: 1 | BI34: Concreto fck 35mpa - preparo, lançamento e cura | BJ34: m³ | BK34: 64.6 | BL34: 498.45 | BM34: 32199.87 | BV34: 16.1.3.8 | BW34: COMP-SMIM A | BX34: 05 | BY34: 1 | BZ34: Tarucel 20mm | CA34: m | CB34: 44.39 | CC34: 8.12 | CD34: 360.45
G35: ="Edificações Culturais ANO"&H35 -> Edificações Culturais ANO1 | H35: 1 | I35: 1 | J35: Obrigatório* | K35: Sim | L35: 2 | M35: 3000 | N35: =$BP$152 -> 0 | O35: 8068725.116 | P35: 0.1414736588 | Q35: CAPEX/M2 MÉDIA DO PMI DAS VILAS AÇORIANAS E ÁREA PROJETO SMPE | S35: esgoto/agua | T35: Carga mecanizada - SINAPI 72898 | U35: m³ | V35: 429.89912 | W35: 5.031 | X35: 2162.822473 | BE35: 7.3.8 | BH35: 1 | BI35: Armação de aço ca-50, fornecimento, corte, dobra e colocação: | BM35: 0 | BV35: 16.1.3.9 | BW35: COMP-SMIM A | BX35: 06 | BY35: 1 | BZ35: Treliça tr 08644 - fornecimento e instalação | CA35: m | CB35: 352.9 | CC35: 13.04 | CD35: 4601.82
G36: ="Edificações Culturais ANO"&H36 -> Edificações Culturais ANO2 | H36: 2 | I36: 1 | J36: Obrigatório | K36: Sim | L36: 1 | M36: 3000 | N36: =$BP$152 -> 0 | O36: 8068725.116 | P36: 0.1414736588 | Q36: CAPEX/M2 MÉDIA DO PMI DAS VILAS AÇORIANAS E ÁREA PROJETO SMPE | S36: mobiliário | T36: cancha de bocha | X36: 33000 | BE36: 7.3.8.1 | BF36: SINAPI | BG36: 92760 | BH36: 1 | BI36: Armação de bloco utilizando aço ca-50 de 6,3 mm - corte, dobra e montagem | BJ36: kg | BK36: 1164.3 | BL36: 10.76 | BM36: 12527.87 | BV36: 16.1.3.10 | BW36: COMP-SMIM A | BX36: 239 | BY36: 1 | BZ36: Armação em tela de aco soldada, tipo q283 malha 10x10cm | CA36: kg | CB36: 3761.92 | CC36: 10.73 | CD36: 40365.4
G37: Edificações Culturais ANO3 | H37: 3 | I37: 1 | J37: Obrigatório | K37: Sim | L37: 1 | M37: 4000 | N37: =$BP$152 -> 0 | O37: 10758300.15 | P37: 0.1886315451 | Q37: CAPEX/M2 MÉDIA DO PMI DAS VILAS AÇORIANAS E ÁREA PROJETO SMPE | S37: TOTAL | X37: =SUM(X3:X36) -> 13618261.46 | BE37: 7.3.8.2 | BF37: SINAPI | BG37: 96545 | BH37: 1 | BI37: Armação de bloco utilizando aço ca-50 de 8 mm - corte, dobra e montagem | BJ37: kg | BK37: 752.7 | BL37: 12.21 | BM37: 9190.47 | BV37: 16.1.3.11 | BY37: 1 | BZ37: Armação de aço ca-50, fornecimento, corte, dobra e colocação: | CD37: 0
G38: Edificações Culturais ANO4 | H38: 4 | I38: 1 | J38: Obrigatório | K38: Sim | L38: 1 | Q38: CAPEX/M2 MÉDIA DO PMI DAS VILAS AÇORIANAS E ÁREA PROJETO SMPE | X38: VALORES PMI | BE38: 7.3.8.3 | BF38: SINAPI | BG38: 96546 | BH38: 1 | BI38: Armação de bloco utilizando aço ca-50 de 10 mm - corte, dobra e montagem | BJ38: kg | BK38: 646.8 | BL38: 9.95 | BM38: 6435.66 | BV38: 16.1.3.11.1 | BW38: SINAPI | BX38: 92760 | BY38: 1 | BZ38: Armação aço ca 50 ø6,3mm - corte, dobra e montagem | CA38: kg | CB38: 124.05 | CC38: 10.76 | CD38: 1334.78
G39: Edificações Culturais: PRAÇAS | H39: =H35 -> 1 | I39: 1 | J39: Opcional | K39: Sim | L39: 1 | M39: 3393 | N39: =BP155 -> 0 | O39: 355366.0097 | P39: 0.006230839307 | Q39: CAPEX/M2 MÉDIA DO PMI DA PRAÇA DAS VILAS ASSORIANAS SEM A CONTRUÇÃO DAS CASAS QUE JÁ ESTÁ NO ITEM ACIMA (ISOLAMOS A PRAÇA) E ÁREA PROJETO SMPE | S39: drenagem | X39: 8428914.154 | BE39: 7.3.8.4 | BF39: SINAPI | BG39: 96547 | BH39: 1 | BI39: Armação de bloco utilizando aço ca-50 de 12,5 mm - corte, dobra e montagem | BJ39: kg | BK39: 780.7 | BL39: 8.8 | BM39: 6870.16 | BV39: 16.1.3.11.2 | BW39: SINAPI | BX39: 92761 | BY39: 1 | BZ39: Armação aço ca 50 ø8mm - corte, dobra e montagem | CA39: kg | CB39: 2272.39 | CC39: 10.59 | CD39: 24064.61
G40: Edificações Culturais: PRAÇAS | H40: =H36 -> 2 | I40: 1 | J40: Opcional | K40: Sim | L40: 1 | M40: 3393 | N40: =BP155 -> 0 | O40: 355366.0097 | P40: 0.006230839307 | Q40: CAPEX/M2 MÉDIA DO PMI DA PRAÇA DAS VILAS ASSORIANAS SEM A CONTRUÇÃO DAS CASAS QUE JÁ ESTÁ NO ITEM ACIMA (ISOLAMOS A PRAÇA) E ÁREA PROJETO SMPE | S40: esgoto/água | X40: 0 | BE40: 7.3.8.5 | BF40: SINAPI | BG40: 92764 | BH40: 1 | BI40: Armação de bloco utilizando aço ca-50 de 16,0 mm - corte, dobra e montagem | BJ40: kg | BK40: 430.6 | BL40: 7.28 | BM40: 3134.77 | BV40: 16.1.3.11.3 | BW40: SINAPI | BX40: 92762 | BY40: 1 | BZ40: Armação aço ca 50 ø10mm - corte, dobra e montagem | CA40: kg | CB40: 312.58 | CC40: 8.63 | CD40: 2697.57 | CE40: 145577.44
G41: Edificações Culturais: PRAÇAS | H41: =H37 -> 3 | I41: 1 | J41: Opcional | K41: Sim | L41: 1 | M41: 4524 | N41: =BP155 -> 0 | O41: 473821.3463 | P41: 0.008307785743 | Q41: CAPEX/M2 MÉDIA DO PMI DA PRAÇA DAS VILAS ASSORIANAS SEM A CONTRUÇÃO DAS CASAS QUE JÁ ESTÁ NO ITEM ACIMA (ISOLAMOS A PRAÇA) E ÁREA PROJETO SMPE | S41: infraestrutura | X41: 69100.5127 | BE41: 7.3.9 | BH41: 1 | BI41: Armação de aço ca-60, fornecimento, corte, dobra e colocação: | BM41: 0 | BV41: 16.1.4 | BY41: 1900-01-01 | BZ41: Piso concreto ciclovia - 1.560,0 m² - estimado 15% da área de circulação | CD41: 0
G42: Edificações Culturais: PRAÇAS | H42: =H38 -> 4 | I42: 1 | J42: Opcional | K42: Sim | L42: 1 | M42: 0 | N42: =BP155 -> 0 | O42: 0 | P42: 0 | Q42: CAPEX/M2 MÉDIA DO PMI DA PRAÇA DAS VILAS ASSORIANAS SEM A CONTRUÇÃO DAS CASAS QUE JÁ ESTÁ NO ITEM ACIMA (ISOLAMOS A PRAÇA) E ÁREA PROJETO SMPE | S42: mobiliário | X42: 557640 | BE42: 7.3.9.1 | BF42: SINAPI | BG42: 92768 | BH42: 1 | BI42: Armação de bloco utilizando aço ca-60 de 5,0 mm - corte, dobra e montagem | BJ42: kg | BK42: 43.7 | BL42: 10.74 | BM42: 469.34 | BN42: 96953.63 | BV42: 16.1.4.1 | BW42: PMPAT1 | BY42: 1 | BZ42: Marcação de área | CA42: m² | CB42: 1560 | CC42: 2.64 | CD42: 4118.4
G43: ="Estacionamentos ANO"&H43 -> Estacionamentos ANO1 | H43: 1 | I43: 1 | J43: Opcional | K43: Sim | L43: 1 | M43: 9434 | N43: =BA31 -> 100.4323208 | O43: 947478.5148 | P43: 0.01661269286 | Q43: CAPEX/M2 DO T2 , POIS MATERIAL TEM MAIOR PERMEABILIDADE | S43: elétrica | X43: 3903703.194 | BE43: 7.4 | BI43: Super-estrutura | BV43: 16.1.4.2 | BW43: SINAPI | BX43: 94097 | BY43: 1 | BZ43: Regularização e compactação manual de terreno | CA43: m² | CB43: 1560 | CC43: 6.119715 | CD43: 9546.76
G44: ="Estacionamentos ANO"&H44 -> Estacionamentos ANO2 | H44: 2 | I44: 1 | J44: Opcional | K44: Sim | L44: 1 | M44: 9434 | N44: =BA31 -> 100.4323208 | O44: 947478.5148 | P44: 0.01661269286 | Q44: CAPEX/M2 DO T2 , POIS MATERIAL TEM MAIOR PERMEABILIDADE | S44: TOTAL | X44: =SUM(X39:X43) -> 12959357.86 | BE44: 7.4.1 | BH44: 1 | BI44: Fornecimento, montagem e aplicação de forma em madeirit plastificado 18 mm, inclusive recortes, utilização 2x , executado conforme relatorio tecnico: | BM44: 0 | BV44: 16.1.4.3 | BW44: COMP-SMIM A | BX44: 39 | BY44: 1 | BZ44: Concreto magro fck=15mpa, virado em betoneira, com lancamento | CA44: m³ | CB44: 78 | CC44: 595.16 | CD44: 46422.48
G45: ="Estacionamentos ANO"&H45 -> Estacionamentos ANO3 | H45: 3 | I45: 1 | J45: Opcional | K45: Sim | L45: 1 | M45: 9434 | N45: =BA31 -> 100.4323208 | O45: 947478.5148 | P45: 0.01661269286 | Q45: CAPEX/M2 DO T2 , POIS MATERIAL TEM MAIOR PERMEABILIDADE | S45: VALORES SECRETARIAS DA PREFEITURA | BE45: 7.4.1.1 | BF45: SINAPI | BG45: 92419 | BH45: 1 | BI45: Forma para pilar - fabricação, montagem e desmontagem | BJ45: m² | BK45: 82.9 | BL45: 72.41 | BM45: 6002.79 | BV45: 16.1.4.4 | BW45: COMP-SMIM A | BX45: 40 | BY45: 1 | BZ45: Concreto fck 35mpa - preparo, lançamento e cura | CA45: m³ | CB45: 156 | CC45: 498.45 | CD45: 77758.2
N46: Valor total | O46: 57033409.5 | S46: Drenagem | X46: 8428914.154 | BE46: 7.4.1.2 | BF46: SINAPI | BG46: 92456 | BH46: 1 | BI46: Forma para viga - fabricação, montagem e desmontagem | BJ46: m² | BK46: 25.4 | BL46: 118.29 | BM46: 3004.57 | BV46: 16.1.4.5 | BW46: SINAPI | BX46: 96534 | BY46: 1 | BZ46: Forma para fundação - fab., montagem e desmontagem | CA46: m² | CB46: 124.8 | CC46: 70.73 | CD46: 8827.1
G47: * Obrigatoriedade de, no mínimo, 1600m². | S47: Água e esgoto (DMAE) | X47: 961287.55 | BE47: 7.4.1.3 | BF47: SINAPI | BG47: 96537 | BH47: 1 | BI47: Forma para laje - fabricação, montagem e desmontagem | BJ47: m² | BK47: 369.5 | BL47: 145.7 | BM47: 53836.15 | BV47: 16.1.4.6 | BW47: SINAPI | BX47: 3777 | BY47: 1 | BZ47: Lona plastica preta, e= 150 micra | CA47: m² | CB47: 1560 | CC47: 1.09 | CD47: 1700.4
S48: Elétrica (iluminação publica) | X48: 1921500 | BE48: 7.4.2 | BF48: COMP-SMIM A | BG48: 40 | BH48: 1 | BI48: Concreto fck 35mpa - preparo, lançamento e cura | BJ48: m³ | BK48: 96 | BL48: 498.45 | BM48: 47851.2 | BV48: 16.1.4.7 | BW48: SINAPI | BX48: 92878 | BY48: 1 | BZ48: Barras de transferência gerdau btg-12 c=50cm ou equiv. | CA48: un | CB48: 480.36 | CC48: 6.46 | CD48: 3103.13
S49: Elétrica iluminação privada | X49: 1982203.194 | BE49: 7.4.6 | BH49: 1 | BI49: Armação de aço ca-50, fornecimento, corte, dobra e colocação: | BM49: 0 | BV49: 16.1.4.8 | BW49: COMP-SMIM A | BX49: 05 | BY49: 1 | BZ49: Tarucel 20mm | CA49: m | CB49: 49.94 | CC49: 8.12 | CD49: 405.51
S50: Elétrica total | X50: 3903703.194 | BE50: 7.4.7.1 | BF50: SINAPI | BG50: 92760 | BH50: 1 | BI50: Armação aço ca 50 ø6,3mm - corte, dobra e montagem | BJ50: kg | BK50: 1862.5 | BL50: 10.76 | BM50: 20040.5 | BV50: 16.1.4.9 | BW50: COMP-SMIM A | BX50: 06 | BY50: 1 | BZ50: Treliça tr 08644 - fornecimento e instalação | CA50: m | CB50: 400.55 | CC50: 13.04 | CD50: 5223.17
H51: Ano | BE51: 7.4.7.2 | BF51: SINAPI | BG51: 92761 | BH51: 1 | BI51: Armação aço ca 50 ø8mm - corte, dobra e montagem | BJ51: kg | BK51: 3064.7 | BL51: 10.59 | BM51: 32455.17 | BV51: 16.1.4.10 | BW51: COMP-SMIM A | BX51: 239 | BY51: 1 | BZ51: Armação em tela de aco soldada, tipo q283 malha 10x10cm | CA51: kg | CB51: 6988.8 | CC51: 10.73 | CD51: 74989.82
H52: 1 | O52: 21402426.61 | P52: 0.3752612161 | BE52: 7.4.7.3 | BF52: SINAPI | BG52: 92762 | BH52: 1 | BI52: Armação aço ca 50 ø10mm - corte, dobra e montagem | BJ52: kg | BK52: 1784 | BL52: 8.63 | BM52: 15395.92 | BV52: 16.1.4.11 | BW52: SINAPI | BX52: 84665 | BY52: 1 | BZ52: Pintura acrilica para sinalização horizontal | CA52: m² | CB52: 1560 | CC52: 23.48 | CD52: 36628.8 | CE52: 268723.77
H53: 2 | O53: 16411476.26 | P53: 0.2877519756 | BE53: 7.4.7.4 | BF53: SINAPI | BG53: 92763 | BH53: 1 | BI53: Armação aço ca 50 ø12,5mm - corte, dobra e montagem | BJ53: kg | BK53: 1460.2 | BL53: 7.76 | BM53: 11331.15 | BV53: 16.1.5 | BY53: 1900-01-01 | BZ53: Piso concreto caminhos pietoniais - 7.800,0 m²
H54: 3 | O54: 19219506.63 | P54: 0.3369868083 | BE54: 7.4.7.5 | BF54: SINAPI | BG54: 92764 | BH54: 1 | BI54: Armação aço ca 50 ø16mm - corte, dobra e montagem | BJ54: kg | BK54: 1405.7 | BL54: 7.28 | BM54: 10233.5 | BV54: 16.1.5.1 | BW54: PMPAT1 | BY54: 1 | BZ54: Marcação de área | CA54: m² | CB54: 7800 | CC54: 2.64 | CD54: 20592
H55: 4 | O55: =SUMIF($H$3:$H$45,H55,$O$3:$O$45) -> 0 | P55: =O55/$O$58 -> 0 | BE55: 7.4.7 | BH55: 1 | BI55: Armação de aço ca-60, fornecimento, corte, dobra e colocação: | BM55: 0 | BV55: 16.1.5.2 | BW55: SINAPI | BX55: 94097 | BY55: 1 | BZ55: Regularização e compactação manual de terreno | CA55: m² | CB55: 7800 | CC55: 6.119715 | CD55: 47733.78
H56: 5 | O56: 0 | P56: 0 | BE56: 7.4.7.1 | BF56: SINAPI | BG56: 92768 | BH56: 1 | BI56: Armação aço ca 60 ø5mm - corte, dobra e montagem | BJ56: kg | BK56: 123.4 | BL56: 10.74 | BM56: 1325.32 | BN56: 201476.27 | BV56: 16.1.5.3 | BW56: COMP-SMIM A | BX56: 39 | BY56: 1 | BZ56: Concreto magro fck=15mpa, virado em betoneira, com lancamento | CA56: m³ | CB56: 390 | CC56: 595.16 | CD56: 232112.4
H57: 6 | O57: 0 | P57: 0 | BE57: 7.5 | BH57: 1 | BI57: Laje de transição / piso de concreto | BM57: 0 | BV57: 16.1.5.4 | BW57: COMP-SMIM A | BX57: 40 | BY57: 1 | BZ57: Concreto fck 35mpa - preparo, lançamento e cura | CA57: m³ | CB57: 779.75 | CC57: 498.45 | CD57: 388666.39
H58: TOTAL | O58: =SUM(O52:O57) -> 57033409.5 | P58: =SUM(P52:P57) -> 1 | BE58: 7.5.1 | BF58: SINAPI | BG58: 94097 | BH58: 1 | BI58: Regularização e compactação manual de terreno | BJ58: m² | BK58: 436.8 | BL58: 6.119715 | BM58: 2673.09 | BV58: 16.1.5.5 | BW58: SINAPI | BX58: 96534 | BY58: 1 | BZ58: Forma para fundação - fab., montagem e desmontagem | CA58: m² | CB58: 624 | CC58: 70.73 | CD58: 44135.52
BE59: 7.5.2 | BF59: COMP-SMIM A | BG59: 39 | BH59: 1 | BI59: Concreto magro fck=15mpa, virado em betoneira, com lancamento | BJ59: m³ | BK59: 20.8 | BL59: 595.16 | BM59: 12379.33 | BV59: 16.1.5.6 | BW59: SINAPI | BX59: 3777 | BY59: 1 | BZ59: Lona plastica preta, e= 150 micra | CA59: m² | CB59: 7800 | CC59: 1.09 | CD59: 8502
BE60: 7.5.3 | BF60: COMP-SMIM A | BG60: 40 | BH60: 1 | BI60: Concreto fck 35mpa - preparo, lançamento e cura | BJ60: m³ | BK60: 41.62 | BL60: 498.45 | BM60: 20745.49 | BV60: 16.1.5.7 | BW60: SINAPI | BX60: 92878 | BY60: 1 | BZ60: Barras de transferência gerdau btg-12 c=50cm ou equiv. | CA60: un | CB60: 2517.16 | CC60: 6.46 | CD60: 16260.85
BE61: 7.5.4 | BF61: SINAPI | BG61: 96534 | BH61: 1 | BI61: Forma para fundação - fab., montagem e desmontagem | BJ61: m² | BK61: 83.71 | BL61: 70.73 | BM61: 5920.81 | BV61: 16.1.5.8 | BW61: COMP-SMIM A | BX61: 05 | BY61: 1 | BZ61: Tarucel 20mm | CA61: m | CB61: 262.3 | CC61: 8.12 | CD61: 2129.88
BE62: 7.5.5 | BF62: SINAPI | BG62: 3777 | BH62: 1 | BI62: Lona plastica preta, e= 150 micra | BJ62: m² | BK62: 416 | BL62: 1.09 | BM62: 453.44 | BV62: 16.1.5.9 | BW62: COMP-SMIM A | BX62: 06 | BY62: 1 | BZ62: Treliça tr 08644 - fornecimento e instalação | CA62: m | CB62: 2098.86 | CC62: 13.04 | CD62: 27369.13
BE63: 7.5.6 | BF63: SINAPI | BG63: 92878 | BH63: 1 | BI63: Barras de transferência gerdau btg-12 c=50cm ou equiv. | BJ63: un | BK63: 342.44 | BL63: 6.46 | BM63: 2212.16 | BV63: 16.1.5.10 | BW63: COMP-SMIM A | BX63: 239 | BY63: 1 | BZ63: Armação em tela de aco soldada, tipo q283 malha 10x10cm | CA63: kg | CB63: 34943.43 | CC63: 10.73 | CD63: 374943 | CE63: 1162444.95
BE64: 7.5.7 | BF64: COMP-SMIM A | BG64: 05 | BH64: 1 | BI64: Tarucel 20mm | BJ64: m | BK64: 27.9 | BL64: 8.12 | BM64: 226.55 | BV64: 16.1.6 | BY64: 1900-01-01 | BZ64: Piso de concreto para passeios - 1.040,0 m² - estimado 10% da área de circulação | CD64: 0
BE65: 7.5.8 | BF65: COMP-SMIM A | BG65: 06 | BH65: 1 | BI65: Treliça tr 08644 - fornecimento e instalação | BJ65: m | BK65: 221.84 | BL65: 13.04 | BM65: 2892.79 | BV65: 16.1.6.1 | BW65: SINAPI | BX65: 94097 | BY65: 1 | BZ65: Regularização e compactação manual de terreno | CA65: m² | CB65: 1040 | CC65: 6.119715 | CD65: 6364.5
BE66: 7.5.9 | BF66: COMP-SMIM A | BG66: 239 | BH66: 1 | BI66: Armação em tela de aco soldada, tipo q283 malha 10x10cm | BJ66: kg | BK66: 2364.77 | BL66: 10.73 | BM66: 25373.98 | BN66: 72877.64 | BV66: 16.1.6.2 | BW66: COMP-SMAMS | BX66: 2022 | BY66: 1 | BZ66: Piso concreto armado 8 cm - passeio (pano único) | CA66: m² | CB66: 1040 | CC66: 71.01 | CD66: 73850.4 | CE66: 80214.9
BE67: 7.6 | BI67: Paredes e painéis | BV67: 16.1.7 | BY67: 1900-01-01 | BZ67: Piso de asfalto | CD67: 0
BE68: 7.6.1 | BF68: SINAPI | BG68: 87525 | BH68: 1 | BI68: Alvenaria de bloco cerâmico 6 furos - 15cm | BJ68: m² | BK68: 445.6 | BL68: 132.15 | BM68: 58886.04 | BV68: 16.1.7.1 | BW68: PMPAT1 | BY68: 1 | BZ68: Estacionamento - 182 vagas - 5352,46 m² | CD68: 0
BE69: 7.6.2 | BF69: SINAPI | BG69: 79627 | BH69: 1 | BI69: Divisoria em granito branco polido, esp = 3cm, assentado com argamassa traco 1:4, arremate em cimento branco, exclusive ferragens | BJ69: m² | BK69: 0 | BL69: 854.39 | BM69: 0 | BN69: 58886.04 | BV69: 16.1.7.1.1 | BW69: PMPAT1 | BY69: 1 | BZ69: Regularização e compactação do subleito | CA69: m² | CB69: 5352.46 | CC69: 1.99 | CD69: 10651.4
BE70: 7.7 | BI70: Esquadrias de madeira | BV70: 16.1.7.1.2 | BW70: PMPAT1 | BY70: 1 | BZ70: Execução de base e/ou sub base de brita graduada esp. 40 cm | CA70: m³ | CB70: 2141.07 | CC70: 149.31 | CD70: 319683.16
BE71: 7.7.1 | BH71: 1 | BI71: Porta de madeira laminada, abrir 01 folha, inclusive batentes e guarnições, conf. Detalhe em projeto, instalada: | BM71: 0 | BV71: 16.1.7.1.3 | BW71: SINAPI | BX71: 94273 | BY71: 1 | BZ71: Meio fio concreto estacionamento | CA71: m | CB71: 185.5 | CC71: 45.68 | CD71: 8473.64
BE72: 7.7.1.1 | BF72: COMP-SMIM A | BG72: 71 | BH72: 1 | BI72: P1 - porta de abrir uma folha, veneziana, metálica, galvanizada - 60x210cm | BJ72: un | BK72: 0 | BL72: 1038.78 | BM72: 0 | BN72: não se aplica | BV72: 16.1.7.1.4 | BW72: PMPAT1 | BY72: 1 | BZ72: Execução de imprimação asfáltica consumo 1,5 l/m² | CA72: m² | CB72: 5352.46 | CC72: 6.04 | CD72: 32328.86
BE73: 7.7.1.2 | BF73: COMP-SMIM A | BG73: 20 | BH73: 1 | BI73: P2 - porta de abrir uma folha, grelha ventilação, madeira sarrefeada, rev. Laminado melamínico branco - 80x210cm- c/ferragens | BJ73: un | BK73: 12 | BL73: 860.82 | BM73: 10329.84 | BN73: não se aplica | BV73: 16.1.7.1.5 | BW73: PMPAT1 | BY73: 1 | BZ73: Execução de pré-misturado á quente cap 20 - esp. 6 cm | CA73: m³ | CB73: 321.1 | CC73: 518.29 | CD73: 166422.92 | CE73: 537559.98
BE74: 7.7.1.3 | BF74: COMP-SMIM A | BG74: 21 | BH74: 1 | BI74: P3 - porta de abrir uma folha, barra horizontal, ventilação, madeira sarrafeada, rev. Laminado melamínico branco - 90x210cm- c/ferragens | BJ74: un | BK74: 0 | BL74: 1647.79 | BM74: 0 | BN74: 10329.84 | BV74: 16.1.8 | BY74: 1900-01-01 | BZ74: Piso intertravado tipo ecopiso / pisograma - 2.080,0 m² - estimado 20% da área de circulação
BE75: 7.8 | BI75: Esquadrias de aluminio | BV75: 16.1.8.1 | BW75: PMPAT1 | BY75: 1 | BZ75: Sub-base de areia e cascalho esp. Media 20cm | CA75: m³ | CB75: 416 | CC75: 91.67 | CD75: 38134.72
BE76: 7.8.1 | BH76: 1 | BI76: Painel de vidro temperado esp. 10mm, deslizante com perfis de aluminio: | BM76: 0 | BV76: 16.1.8.2 | BW76: SINAPI | BX76: 96396 | BY76: 1 | BZ76: Base de brita graduada | CA76: m³ | CB76: 832 | CC76: 100.29 | CD76: 83441.28
BE77: 7.8.1.1 | BF77: SINAPI | BG77: 85010 | BH77: 1 | BI77: Esquadria da fachada | BJ77: m² | BK77: 109 | BL77: 456.315755 | BM77: 49738.42 | BN77: 49738.42 | BV77: 16.1.8.3 | BW77: COMP-SMAMS | BX77: 2017 | BY77: 1 | BZ77: Concregrama (bloco+grama) | CA77: m² | CB77: 2080 | CC77: 96.04 | CD77: 199763.2
BE78: 7.9 | BI78: Vidros e espelhos | BV78: 16.1.8.4 | BW78: COMP-SMAMS | BX78: 4105 | BY78: 1 | BZ78: Grama catarina | CA78: m² | CB78: 936 | CC78: 25.77 | CD78: 24120.72 | CE78: 345459.92
BE79: 7.9.1 | BF79: SINAPI | BG79: 72119 | BH79: 1 | BI79: Instalação e fornecimento de vidro liso 8mm nas esquadrias | BJ79: m² | BK79: 109 | BL79: 204.08822 | BM79: 22245.62 | BY79: 1 | BZ79: Total - pavimentação | CE79: 3447245.55
BE80: 7.9.2 | BF80: COMP-SMIM A | BG80: 67 | BH80: 1 | BI80: Espelho cristal 6mm | BJ80: m² | BK80: 3.2 | BL80: 465.01 | BM80: 1488.03 | BN80: não se aplica
BE81: 7.9.3 | BH81: 1 | BI81: Porta em vidro temperado esp.10mm, com pelicula adesiva jateada, fixada em perfil de aço inox, inclusive fecho em aço inox, instalado: | BM81: 0 | BV81: 17.0 | BY81: 1 | BZ81: PAISAGISMO | CD81: 0
BE82: 7.9.3.1 | BF82: COMP-SMIM A | BG82: 27 | BH82: 1 | BI82: P5 - porta de abrir uma folha, vidro temperado 10mm, película jateada, ferragens em aço inox - 60x175cm | BJ82: un | BK82: 0 | BL82: 950.22 | BM82: 0 | BN82: 23733.65 | BV82: 17.1 | BY82: 1 | BZ82: Execução de paisagismo conforme projeto especifico, especificações, roteiros e demais elementos tecnicos, de acordo com as orientações constantes no projeto de implantação da vegetação das areas verdes do parque: | CA82: m2 | CB82: 33612.25 | CC82: 18.93 | CD82: 636279.89 | CE82: 636279.89
BE83: 7.10 | BI83: Serralheria | BY83: 1 | BZ83: Total - paisagismo | CB83: =CB82 -> 33612.25 | CD83: =CE83/CB83 -> 18.92999993 | CE83: 636279.89
BE84: 7.10.1 | BF84: COT-SMIM A | BG84: 166 | BH84: 1 | BI84: Guarda-corpo em tubo de aco galvanizado 1 1/2" e barra aço 12,5mm, h=1,10m, fixado com chumbadores, pintado com pu | BJ84: m | BK84: 0 | BL84: 1424.85 | BM84: 0 | BN84: 0
BE85: 7.11 | BI85: Impermeabilização
BE86: 7.11.1 | BF86: COMP-SMIM A | BG86: 309 | BH86: 1 | BI86: Impermeabilização de laje de concreto radicon ou equivalente | BJ86: m² | BK86: 416 | BL86: 127.84 | BM86: 53181.44
BE87: 7.11.2 | BF87: SINAPI | BG87: 74106/001 | BH87: 1 | BI87: Imperemabilização com pintura betuminosa | BJ87: m² | BK87: 261.4 | BL87: 12.09 | BM87: 3160.33 | BN87: 56341.77
BE88: 7.12 | BI88: Revestimento de paredes
BE89: 7.12.1 | BF89: SINAPI | BG89: 87879 | BH89: 1 | BI89: Chapisco aplicado em alvenarias e estruturas de concreto internas, com colher de pedreiro. Argamassa traço 1:3 c/preparo em betoneira 400l | BJ89: m² | BK89: 1295.8 | BL89: 3.82 | BM89: 4949.96
BE90: 7.12.2 | BF90: SINAPI | BG90: 87527 | BH90: 1 | BI90: Emboço, para recebimento de cerâmica, em argamassa traço 1:2:8, preparo mecânico com betoneira 400l, aplicado manualmente em faces internas de paredes, para ambiente com área menor que 5m2, espessura de 20mm, com execução de taliscas | BJ90: m² | BK90: 554.6 | BL90: 37.28 | BM90: 20675.49
BE91: 7.12.3 | BF91: SINAPI | BG91: 87529 | BH91: 1 | BI91: Massa única, para recebimento de pintura, em argamassa traço 1:2:8, preparo mecânico com betoneira 400l, aplicada manualmente em faces internas de paredes, espessura de 20mm, com execução de taliscas | BJ91: m² | BK91: 741.2 | BL91: 33.64 | BM91: 24933.97
BE92: 7.12.4 | BF92: COMP-SMIM A | BG92: 11 | BH92: 1 | BI92: Revestimento cerâmico interno | BJ92: m² | BK92: 150 | BL92: 193.8 | BM92: 29070
BE93: 7.12.5 | BH93: 1 | BI93: Revestimento em réguas de madeira | BJ93: m² | BK93: 404.6 | BL93: 793.975 | BM93: 321242.29 | BN93: 400871.71
BE94: 7.13 | BH94: 1 | BI94: Revestimento de pisos | BM94: 0
BE95: 7.13.1 | BF95: COMP-SMIM A | BG95: 33 | BH95: 1 | BI95: Desempeno mecânico do concreto | BJ95: m² | BK95: 403.6 | BL95: 6.51 | BM95: 2627.44
BE96: 7.13.2 | BF96: COMP-SMIM A | BG96: 72 | BH96: 1 | BI96: Selador incolor para piso em concreto aparente | BJ96: m² | BK96: 403.6 | BL96: 74.21 | BM96: 29951.16
BE97: 7.13.3 | BH97: 1 | BI97: Contrapiso em argamassa de cimento e areia | BJ97: m² | BK97: 33.2 | BL97: 39.5766 | BM97: 1313.94
BE98: 7.13.4 | BH98: 1 | BI98: Piso em porcelanato | BJ98: m² | BK98: 33.2 | BL98: 205.212 | BM98: 6813.04 | BN98: 40705.58
BE99: 7.14 | BI99: Revestimento de tetos
BE100: 7.14.1 | BF100: SINAPI | BG100: 79466 | BH100: 1 | BI100: Verniz incolor para forro em concreto aparente, duas demãos | BJ100: m² | BK100: 403.6 | BL100: 22.06 | BM100: 8903.42 | BN100: não se aplica
BE101: 7.14.2 | BF101: SINAPI | BG101: 96370 | BH101: 1 | BI101: Forro em gesso acartonado liso | BJ101: m² | BK101: 33.2 | BL101: 70.08 | BM101: 2326.66 | BN101: 11230.08
BE102: 7.15 | BI102: Pintura
BE103: 7.17.1 | BF103: SINAPI | BG103: 88414 | BH103: 1 | BI103: Selador acrílico | BJ103: m² | BK103: 774.4 | BL103: 4.2 | BM103: 3252.48
BE104: 7.17.2 | BF104: SINAPI | BG104: 88497 | BH104: 1 | BI104: Massa corrida pva para interiores 2 demaos | BJ104: m² | BK104: 774.4 | BL104: 15.19 | BM104: 11763.14
BE105: 7.17.3 | BF105: SINAPI | BG105: 88489 | BH105: 1 | BI105: Pintura manual com tinta látex acrílica em paredes, duas demãos | BJ105: m² | BK105: 774.4 | BL105: 14.6 | BM105: 11306.24 | BN105: 11306.24
BE107: 7.16 | BH107: 1 | BI107: Instalações hidro-sanitarias | BJ107: m² | BK107: 416 | BL107: 136.77 | BM107: 56896.32 | BN107: 56896.32
BE109: 7.17 | BI109: Aparelhos sanitários e metais
BE110: 7.17.1 | BH110: 1 | BI110: Aparelhos sanitarios: | BM110: 0
BE111: 7.17.1.1 | BF111: COMP-SMIM A | BG111: 42 | BH111: 1 | BI111: Bacia sanitária mod. Deca ref. P21 branca ou equivalente inclui caixa descarga de embutir montana ou equivalente | BJ111: un | BK111: 0 | BL111: 1207 | BM111: 0
BE112: 7.17.1.2 | BF112: COMP-SMIM A | BG112: 43 | BH112: 1 | BI112: Bacia sanitaria pne c/ válvula de descarga alav. E assento | BJ112: un | BK112: 8 | BL112: 1747.79 | BM112: 13982.32
BE113: 7.17.1.3 | BF113: COMP-SMIM A | BG113: 46 | BH113: 1 | BI113: Mictório de louça ref deca m716 ou equivalente com válvula ref hydra max 2551 acabamento 4900 ou equivalente | BJ113: un | BK113: 0 | BL113: 749.1 | BM113: 0
BE114: 7.17.1.4 | BF114: COMP-SMIM A | BG114: 47 | BH114: 1 | BI114: Cuba de louça ref incepa 36cm ou equivalente | BJ114: un | BK114: 0 | BL114: 475.76 | BM114: 0
BE115: 7.17.1.5 | BF115: SINAPI | BG115: 86882 | BH115: 1 | BI115: Sifao para cubas de louça | BJ115: un | BK115: 0 | BL115: 22.1 | BM115: 0
BE116: 7.17.1.6 | BF116: COMP-SMIM A | BG116: 50 | BH116: 1 | BI116: Lavatório pne ref incepa mod l51 c/ cuba suspensa cs 1 ou equivalente | BJ116: un | BK116: 8 | BL116: 998.33 | BM116: 7986.64
BE117: 7.17.1.7 | BF117: COMP-SMIM A | BG117: 52 | BH117: 1 | BI117: Tanque louça 40l ref tq03 deca ou equivalente c/ torneira | BJ117: un | BK117: 4 | BL117: 793.7 | BM117: 3174.8
BE118: 7.17.1.8 | BF118: COMP-SMIM A | BG118: 262 | BH118: 1 | BI118: Sifao em metal cromado para tanque, 1.1/4 x 1.1/2 | BJ118: un | BK118: 4 | BL118: 262.58 | BM118: 1050.32
BE119: 7.17.1.9 | BF119: COMP-SMIM A | BG119: 53 | BH119: 1 | BI119: Torneira p/ lavatório ref. Decamatic eco modelo 1173c ou equiv. | BJ119: un | BK119: 0 | BL119: 407.62 | BM119: 0
BE120: 7.17.1.10 | BF120: COMP-SMIM A | BG120: 54 | BH120: 1 | BI120: Torneiras pne red. Decamatic eco modelo 1173c ou equivalente | BJ120: un | BK120: 8 | BL120: 407.62 | BM120: 3260.96
BE121: 7.17.1.11 | BF121: COMP-SMIM A | BG121: 61 | BH121: 1 | BI121: Torneira ou misturador para bancadas | BJ121: un | BK121: 0 | BL121: 361.97 | BM121: 0
BE122: 7.17.1.12 | BF122: COMP-SMIM A | BG122: 63 | BH122: 1 | BI122: Acabamento para registro gaveta 3/4" e 1" linha izy c37 deca ou equivalente | BJ122: un | BK122: 8 | BL122: 99.66 | BM122: 797.28
BE123: 7.17.1.13 | BF123: COMP-SMIM A | BG123: 62 | BH123: 1 | BI123: Cubas em aço inox bancada de granito dos bares (maxi cuba ou equivalente) | BJ123: un | BK123: 0 | BL123: 662.72 | BM123: 0
BE124: 7.17.1.14 | BF124: COMP-SMIM A | BG124: 261 | BH124: 1 | BI124: Sifao em metal cromado para pia americana, 1.1/2 x 1.1/2 | BJ124: un | BK124: 0 | BL124: 304.82 | BM124: 0
BE125: 7.17.1.15 | BF125: COMP-SMIM A | BG125: 65 | BH125: 1 | BI125: Dispenser papel toalha | BJ125: un | BK125: 8 | BL125: 88.07 | BM125: 704.56
BE126: 7.17.1.16 | BF126: COMP-SMIM A | BG126: 57 | BH126: 1 | BI126: Dispenser para papel higiênico | BJ126: un | BK126: 8 | BL126: 42.69 | BM126: 341.52
BE127: 7.17.1.17 | BF127: COMP-SMIM A | BG127: 66 | BH127: 1 | BI127: Dispenser sabonete espuma instalado | BJ127: un | BK127: 8 | BL127: 61.22 | BM127: 489.76
BE128: 7.17.1.18 | BF128: COMP-SMIM A | BG128: 51 | BH128: 1 | BI128: Barras de aço inox pne para lavatório | BJ128: un | BK128: 8 | BL128: 688.18 | BM128: 5505.44
BE129: 7.17.1.19 | BF129: COMP-SMIM A | BG129: 64 | BH129: 1 | BI129: Barra inox para bacias e chuveiro | BJ129: un | BK129: 16 | BL129: 301.27 | BM129: 4820.32
BE130: 7.17.1.20 | BF130: COT-SMIM A | BG130: 229 | BH130: 1 | BI130: Tampo em granito branco | BJ130: m² | BK130: 13.6 | BL130: 1544.54 | BM130: 21005.74
BE131: 7.17.1.21 | BF131: SINAPI | BG131: 89985 | BH131: 1 | BI131: Registro pressao c/ acabamento e canopla cromada, simples, bitola 3/4 | BJ131: un | BK131: 8 | BL131: 117.15 | BM131: 937.2
BE132: 7.17.1.22 | BF132: SINAPI | BG132: 86916 | BH132: 1 | BI132: Torneira jardim com bico p/mangueira - 3/4" | BJ132: un | BK132: 8 | BL132: 38.25 | BM132: 306 | BN132: 64362.86
BE134: 7.18 | BH134: 1 | BI134: Instalações eletricas e telefônicas | BJ134: m² | BK134: 416 | BL134: 219.4078486 | BM134: 91273.67 | BN134: 91273.67
BE136: 7.19 | BH136: 1 | BI136: Ar condicionado | BJ136: m² | BK136: 416 | BL136: 93.30063069 | BM136: 38813.06 | BN136: 38813.06
BI137: orçamento T2 | BJ137: AREA TOTAL | BM137: INVESTIMENTO POR M2
BH138: 1 | BI138: Total - quiosque op 1 | BJ138: =104*4 -> 416 | BM138: =BN138/BJ138 -> 3420.504567 | BN138: 1422929.9
BI139: QUIOSQUES OP.1 - LOJA + CAFÉ + SANITÁRIOS - 104 m2 (4x)
BI141: MEDIA QUIOSQUES T2 E VILAS ASSORIANAS - CAPEX M2 | BM141: =AVERAGE(BM138,BL143) -> 3195.5815
BI143: TOTAL TOTAL DOS QUIOSQUES | BK143: =BK235+BK203+BK184+BK157 -> 6200.4276 | BL143: =BM143/BK143 -> 2970.658432 | BM143: =BM235+BM203+BM184+BM157 -> 18419352.53
BI144: INVESTIMENTO RUA DA HARMONIA TRECHO CENTRAL
BI145: Descrição | BJ145: Descrição | BK145: Quantidade | BL145: Custo Direto | BM145: Totais
BI146: Área de implantação (calçamento PAVS 80mm Holandês natural) - ampliado o custo em 10% para arremates - equivalencia ao SINAPI 72799 | BJ146: m² | BK146: 556.7168 | BL146: 98.373 | BM146: 54765.90177
BI147: Custo de terraplanagem (decapagem e movimentação do solo, aterro de nivelamento do solo) - cotação de mercado x SINAPI 79482 (50% menos profundo solo já com alguma compactação) | BJ147: m² | BK147: 556.7168 | BL147: 13.87533333 | BM147: 7724.631172
BI148: Calçadas internas em basalto irregular - SINAPI 73921/002 por semelhança | BJ148: m² | BK148: 448.2832 | BL148: 80.587 | BM148: 36125.79824
BI149: Custo de terraplanagem (decapagem e movimentação do solo, aterro de nivelamento do solo) - cotação de mercado x SINAPI 79482 (50% menos profundo solo já com alguma compactação) | BJ149: m² | BK149: 448.2832 | BL149: 13.87533333 | BM149: 6220.078828
BI150: Arandelas de iluminação pública - fixadas nas casas açorianas - com pintura em preto + instalação até a CX de passagem na calçada + lampada LED | BJ150: unid. | BK150: 17 | BL150: 415.965 | BM150: 7071.405
BI151: Construção das Casas Açorianas, com padrão fornecido e pré-instalações - conforme pedido das empresas foi balizado em 115% do CUB RS R1-A - considerado dois pisos para EVU | BJ151: m² | BK151: 1560 | BL151: 2641.941 | BM151: 4121427.96
BI152: Sinalização - cotação de mercado + 50% (área a menor) | BJ152: vb | BK152: 1 | BL152: 3768.75 | BM152: 3768.75
BI153: Cercamento eletronico - cameras e sistemas -cotação de mercado sem infra-estrutura e cabeamento | BJ153: vb | BK153: 1 | BL153: 19000 | BM153: 19000
BI154: Remoção de vegetais, SINAPI paridade com 98529 + 98526 | BJ154: Unid. | BK154: 13 | BL154: 156.364 | BM154: 2032.732
BI155: Remoção de vegetais, SINAPI paridade com 98529 + 98526 - com acrescimo de 150% devido ao porte de algumas espécimes | BJ155: Unid. | BK155: 6 | BL155: 390.91 | BM155: 2345.46
BI156: Tapume de isolamento em compensado de madeira pintado em cores basicas SINAPI 98458 + 88489, com 2m de altura - considerado o contorno | BJ156: m² | BK156: 424 | BL156: 140.361 | BM156: 59513.064
BI157: TOTAL TRECHO CENTRAL | BK157: =BK151 -> 1560 | BL157: =BM157/BK157 -> 2769.228065 | BM157: =SUM(BM146:BM156) -> 4319995.781
BI158: INVESTIMENTO RUA DA HARMONIA TRECHO NORTE
BI159: Descrição | BJ159: Descrição | BK159: Quantidade | BL159: Custo Direto | BM159: Totais
BI160: Área de implantação (calçamento PAVS 80mm Holandês natural) - ampliado o custo em 10% para arremates - equivalencia ao SINAPI 72799 | BJ160: m² | BK160: 472.9903 | BL160: 98.373 | BM160: 46529.47478
BI161: Custo de terraplanagem (decapagem e movimentação do solo, aterro de nivelamento do solo) - cotação de mercado x SINAPI 79482 (50% menos profundo solo já com alguma compactação) | BJ161: m² | BK161: 472.9903 | BL161: 13.87533333 | BM161: 6562.898076
BI162: Calçadas internas em basalto irregular - SINAPI 73921/002 por semelhança | BJ162: m² | BK162: 952.949 | BL162: 80.587 | BM162: 76795.30106
BI163: Custo de terraplanagem (decapagem e movimentação do solo, aterro de nivelamento do solo) - cotação de mercado x SINAPI 79482 (50% menos profundo solo já com alguma compactação) | BJ163: m² | BK163: 952.949 | BL163: 13.87533333 | BM163: 13222.48502
BI164: Custo de terraplanagem (decapagem e movimentação do solo, aterro de nivelamento do solo) - cotação de mercado x SINAPI 79482, ampliado o custo devido a delicadeza da vegetação. (50% menos profundo solo já com alguma compactação) - vegetações jardim | BJ164: m² | BK164: 299.8407 | BL164: 14.5691 | BM164: 4368.409142
BI165: Ajardinamento - grama São Carlos | BJ165: m² | BK165: 171.76 | BL165: 29.731 | BM165: 5106.59656
BI166: Ajardinamento - arbustiva verde - Variação de quantidade de mudas por metro quadrado e mão de obra de plantio, estimativa conforme equipe técnica | BJ166: m² | BK166: 25.7135 | BL166: 289.45 | BM166: 7442.772575
BI167: Ajardinamento - arbustiva vermelha - Variação de quantidade de mudas por metro quadrado e mão de obra de plantio, estimativa conforme equipe técnica | BJ167: m² | BK167: 48.1745 | BL167: 413.85 | BM167: 19937.01683
BI168: Ajardinamento - arbustiva amarela - Variação de quantidade de mudas por metro quadrado e mão de obra de plantio, estimativa conforme equipe técnica | BJ168: m² | BK168: 54.1967 | BL168: 378.95 | BM168: 20537.83947
BI169: Esculturas - artistas plásticos regionais (verba estabelecida) + verba de instalação com iluminação própria | BJ169: unid. | BK169: 5 | BL169: 29000 | BM169: 145000
BI170: Arandelas de iluminação pública - fixadas nas casas açorianas - com pintura em preto + instalação até a CX de passagem na calçada + lampada LED | BJ170: unid. | BK170: 18 | BL170: 415.965 | BM170: 7487.37
BI171: Postes de iluminação colonial - fundição vesuvio - preto + instalação até cx de passagem + lâmpada LED | BJ171: unid. | BK171: 6 | BL171: 4335.566 | BM171: 26013.396
BI172: Construção das Casas Açorianas, com padrão fornecido e pré-instalações - conforme pedido das empresas foi balizado em 115% do CUB RS R1-A - considerado dois pisos para EVU | BJ172: m² | BK172: 1622.2614 | BL172: 2641.941 | BM172: 4285918.905
BI173: Sinalização - cotação de mercado + 50% (área a menor) | BJ173: vb | BK173: 1 | BL173: 6471.675 | BM173: 6471.675
BI174: Cercamento eletronico - cameras e sistemas -cotação de mercado sem infra-estrutura e cabeamento | BJ174: vb | BK174: 1 | BL174: 19000 | BM174: 19000
BI175: Bancos especiais - sob medida - madeira para ambientes externo (por exemplo: cumaru, Jatobá, teka, eucalipto autoclavado) - marcenaria especial, valor instalado com fixação em piso (custo equivalente ao banco de madeira tramontina urban outline em madeira cumaru FSC) | BJ175: m.l | BK175: 32.8 | BL175: 1775.335 | BM175: 58230.988
BI176: Cercamento fisico - alambrado com revestimento PVC - equivalência com SINAPI 73787/001 com acrescimo de 30% | BJ176: m² | BK176: 45.5854 | BL176: 318.4129 | BM176: 14514.97941
BI177: Portões 1 grandes - referência SINAPI 74238/002 | BJ177: m² | BK177: 20.6 | BL177: 938.34 | BM177: 19329.804
BI178: Plantio de vegetais, mudas maiores que 2,00 m - SIANPI 98511 - acrescimo de 20% na cura e transporte | BJ178: Unid. | BK178: 5 | BL178: 134.3472 | BM178: 671.736
BI179: Remoção de vegetais, SINAPI paridade com 98529 + 98526 | BJ179: Unid. | BK179: 5 | BL179: 156.364 | BM179: 781.82
BI180: Remoção de vegetais, SINAPI paridade com 98529 + 98526 - com acrescimo de 150% devido ao porte de uma espécime | BJ180: Unid. | BK180: 1 | BL180: 390.91 | BM180: 390.91
BI181: Calçadas externas em basalto regular - SINAPI 73921/002 + 20% diferença do material - por semelhança - considerando 50% da área total. | BJ181: m² | BK181: 31.7098 | BL181: 96.7044 | BM181: 3066.477183
BI182: Recuperação das calçadas de basalto regular, reutilizando material - referencia SINAPI 73921/002 - considerando 50% da área total. | BJ182: m² | BK182: 31.7098 | BL182: 17.04885 | BM182: 540.6156237
BI183: Tapume de isolamento em compensado de madeira pintado em cores basicas SINAPI 98458 + 88489 - considerado o contorno aproximado. | BJ183: m² | BK183: 415.52 | BL183: 140.361 | BM183: 58322.80272
BI184: TOTAL TRECHO NORTE | BK184: =BK172 -> 1622.2614 | BL184: =BM184/BK184 -> 2987.338707 | BM184: =SUM(BM160:BM183) -> 4846244.273
BI185: INVESTIMENTO RUA DA HARMONIA TRECHO SUL
BI186: Descrição | BJ186: Descrição | BK186: Quantidade | BL186: Custo Direto | BM186: Totais
BI187: Área de implantação (calçamento PAVS 80mm Holandês natural) - ampliado o custo em 10% para arremates - equivalencia ao SINAPI 72799 | BJ187: m² | BK187: 470.1416 | BL187: 98.373 | BM187: 46249.23962
BI188: Custo de terraplanagem (decapagem e movimentação do solo, aterro de nivelamento do solo) - cotação de mercado x SINAPI 79482 (50% menos profundo solo já com alguma compactação) | BJ188: m² | BK188: 470.1416 | BL188: 13.87533333 | BM188: 6523.371414
BI189: Calçadas internas em basalto irregular - SINAPI 73921/002 por semelhança | BJ189: m² | BK189: 573.301 | BL189: 80.587 | BM189: 46200.60769
BI190: Custo de terraplanagem (decapagem e movimentação do solo, aterro de nivelamento do solo) - cotação de mercado x SINAPI 79482 (50% menos profundo solo já com alguma compactação) | BJ190: m² | BK190: 573.301 | BL190: 13.87533333 | BM190: 7954.742475
BI191: Custo de terraplanagem (decapagem e movimentação do solo, aterro de nivelamento do solo) - cotação de mercado x SINAPI 79482, ampliado o custo devido a delicadeza da vegetação. (50% menos profundo solo já com alguma compactação) - vegetações jardim | BJ191: m² | BK191: 10.2102 | BL191: 14.5691 | BM191: 148.7534248
BI192: Ajardinamento - grama São Carlos | BJ192: m² | BK192: 10.2102 | BL192: 29.731 | BM192: 303.5594562
BI193: Arandelas de iluminação pública - fixadas nas casas açorianas - com pintura em preto + instalação até a CX de passagem na calçada + lampada LED | BJ193: unid. | BK193: 16 | BL193: 415.965 | BM193: 6655.44
BI194: Construção das Casas Açorianas, com padrão fornecido e pré-instalações - conforme pedido das empresas foi balizado em 115% do CUB RS R1-A - considerado dois pisos para EVU | BJ194: m² | BK194: 1320 | BL194: 2641.941 | BM194: 3487362.12
BI195: Sinalização - cotação de mercado + 50% (área a menor) | BJ195: vb | BK195: 1 | BL195: 3951.198 | BM195: 3951.198
BI196: Cercamento eletronico - cameras e sistemas -cotação de mercado sem infra-estrutura e cabeamento | BJ196: vb | BK196: 1 | BL196: 19000 | BM196: 19000
BI197: Cercamento fisico - alambrado com revestimento PVC - equivalência com SINAPI 73787/001 com acrescimo de 30% | BJ197: m² | BK197: 28.1508 | BL197: 318.4129 | BM197: 8963.577865
BI198: Portões 1 grandes - referência SINAPI 74238/002 | BJ198: m² | BK198: 20.6 | BL198: 938.34 | BM198: 19329.804
BI199: Remoção de vegetais, SINAPI paridade com 98529 + 98526 | BJ199: Unid. | BK199: 2 | BL199: 156.364 | BM199: 312.728
BI200: Remoção de vegetais, SINAPI paridade com 98529 + 98526 - com acrescimo de 150% devido ao porte de algumas espécimes | BJ200: Unid. | BK200: 4 | BL200: 390.91 | BM200: 1563.64
BI201: Calçadas externas em basalto regular - SINAPI 73921/002 + 20% diferença do material - por semelhança. | BJ201: m² | BK201: 48.8157 | BL201: 96.7044 | BM201: 4720.692979
BI202: Tapume de isolamento em compensado de madeira pintado em cores basicas SINAPI 98458 + 88489 - considerado o contorno aproximado. | BJ202: m² | BK202: 408.78 | BL202: 140.361 | BM202: 57376.76958
BI203: TOTAL TRECHO SUL | BK203: =BK194 -> 1320 | BL203: =BM203/BK203 -> 2815.618367 | BM203: =SUM(BM187:BM202) -> 3716616.244
BI204: PN08 - RUA DA HARMONIA TRECHO PRAÇA
BI205: Descrição | BJ205: Descrição | BK205: Quantidade | BL205: Custo Direto | BM205: Totais
BI206: Área de implantação (calçamento PAVS 80mm Holandês natural) - ampliado o custo em 10% para arremates - equivalencia ao SINAPI 72799 | BJ206: m² | BK206: 438.8585 | BL206: 98.373 | BM206: 43171.82722
... 30 more rows

Sheet Geral T1
A1: 1. DATA BASE | C1: Base | D1: 2020-01-01 | E1: 2020-02-01 | F1: 2020-03-01 | G1: 2020-04-01 | H1: 2020-05-01 | I1: 2020-06-01 | J1: 2020-07-01 | K1: 2020-08-01 | L1: 2020-09-01 | M1: 2020-10-01 | N1: 2020-11-01 | O1: 2020-12-01 | P1: 2021-01-01 | Q1: 2021-02-01 | R1: 2021-03-01 | S1: 2021-04-01 | T1: 2021-05-01 | U1: 2021-06-01 | V1: 2021-07-01 | W1: 2021-08-01 | X1: 2021-09-01 | Y1: 2021-10-01 | Z1: 2021-11-01 | AA1: 2021-12-01 | AB1: 2022-01-01 | AC1: 2022-02-01 | AD1: 2022-03-01 | AE1: 2022-04-01 | AF1: 2022-05-01 | AG1: 2022-06-01 | AH1: 2022-07-01 | AI1: 2022-08-01 | AJ1: 2022-09-01 | AK1: 2022-10-01 | AL1: 2022-11-01 | AM1: 2022-12-01 | AN1: 2023-01-01 | AO1: 2023-02-01 | AP1: 2023-03-01 | AQ1: 2023-04-01 | AR1: 2023-05-01 | AS1: 2023-06-01 | AT1: 2023-07-01 | AU1: 2023-08-01 | AV1: 2023-09-01 | AW1: 2023-10-01 | AX1: 2023-11-01 | AY1: 2023-12-01 | AZ1: 2024-01-01 | BA1: 2024-02-01 | BB1: 2024-03-01 | BC1: 2024-04-01 | BD1: 2024-05-01 | BE1: 2024-06-01 | BF1: 2024-07-01 | BG1: 2024-08-01 | BH1: 2024-09-01 | BI1: 2024-10-01 | BJ1: 2024-11-01 | BK1: 2024-12-01 | BL1: 2025-01-01 | BM1: 2025-02-01 | BN1: 2025-03-01 | BO1: 2025-04-01 | BP1: 2025-05-01 | BQ1: 2025-06-01 | BR1: 2025-07-01 | BS1: 2025-08-01 | BT1: 2025-09-01 | BU1: 2025-10-01 | BV1: 2025-11-01 | BW1: 2025-12-01 | BX1: 2026-01-01 | BY1: 2026-02-01 | BZ1: 2026-03-01 | CA1: 2026-04-01 | CB1: 2026-05-01 | CC1: 2026-06-01 | CD1: 2026-07-01 | CE1: 2026-08-01 | CF1: 2026-09-01 | CG1: 2026-10-01 | CH1: 2026-11-01 | CI1: 2026-12-01 | CJ1: 2027-01-01 | CK1: 2027-02-01 | CL1: 2027-03-01 | CM1: 2027-04-01 | CN1: 2027-05-01 | CO1: 2027-06-01 | CP1: 2027-07-01 | CQ1: 2027-08-01 | CR1: 2027-09-01 | CS1: 2027-10-01 | CT1: 2027-11-01 | CU1: 2027-12-01 | CV1: 2028-01-01 | CW1: 2028-02-01 | CX1: 2028-03-01 | CY1: 2028-04-01 | CZ1: 2028-05-01 | DA1: 2028-06-01 | DB1: 2028-07-01 | DC1: 2028-08-01 | DD1: 2028-09-01 | DE1: 2028-10-01 | DF1: 2028-11-01 | DG1: 2028-12-01 | DH1: 2029-01-01 | DI1: 2029-02-01 | DJ1: 2029-03-01 | DK1: 2029-04-01 | DL1: 2029-05-01 | DM1: 2029-06-01 | DN1: 2029-07-01 | DO1: 2029-08-01 | DP1: 2029-09-01 | DQ1: 2029-10-01 | DR1: 2029-11-01 | DS1: 2029-12-01 | DT1: 2030-01-01 | DU1: 2030-02-01 | DV1: 2030-03-01 | DW1: 2030-04-01 | DX1: 2030-05-01 | DY1: 2030-06-01 | DZ1: 2030-07-01 | EA1: 2030-08-01 | EB1: 2030-09-01 | EC1: 2030-10-01 | ED1: 2030-11-01 | EE1: 2030-12-01 | EF1: 2031-01-01 | EG1: 2031-02-01 | EH1: 2031-03-01 | EI1: 2031-04-01 | EJ1: 2031-05-01 | EK1: 2031-06-01 | EL1: 2031-07-01 | EM1: 2031-08-01 | EN1: 2031-09-01 | EO1: 2031-10-01 | EP1: 2031-11-01 | EQ1: 2031-12-01 | ER1: 2032-01-01 | ES1: 2032-02-01 | ET1: 2032-03-01 | EU1: 2032-04-01 | EV1: 2032-05-01 | EW1: 2032-06-01 | EX1: 2032-07-01 | EY1: 2032-08-01 | EZ1: 2032-09-01 | FA1: 2032-10-01 | FB1: 2032-11-01 | FC1: 2032-12-01 | FD1: 2033-01-01 | FE1: 2033-02-01 | FF1: 2033-03-01 | FG1: 2033-04-01 | FH1: 2033-05-01 | FI1: 2033-06-01 | FJ1: 2033-07-01 | FK1: 2033-08-01 | FL1: 2033-09-01 | FM1: 2033-10-01 | FN1: 2033-11-01 | FO1: 2033-12-01 | FP1: 2034-01-01 | FQ1: 2034-02-01 | FR1: 2034-03-01 | FS1: 2034-04-01 | FT1: 2034-05-01 | FU1: 2034-06-01 | FV1: 2034-07-01 | FW1: 2034-08-01 | FX1: 2034-09-01 | FY1: 2034-10-01 | FZ1: 2034-11-01 | GA1: 2034-12-01 | GB1: 2035-01-01 | GC1: 2035-02-01 | GD1: 2035-03-01 | GE1: 2035-04-01 | GF1: 2035-05-01 | GG1: 2035-06-01 | GH1: 2035-07-01 | GI1: 2035-08-01 | GJ1: 2035-09-01 | GK1: 2035-10-01 | GL1: 2035-11-01 | GM1: 2035-12-01 | GN1: 2036-01-01 | GO1: 2036-02-01 | GP1: 2036-03-01 | GQ1: 2036-04-01 | GR1: 2036-05-01 | GS1: 2036-06-01 | GT1: 2036-07-01 | GU1: 2036-08-01 | GV1: 2036-09-01 | GW1: 2036-10-01 | GX1: 2036-11-01 | GY1: 2036-12-01 | GZ1: 2037-01-01 | HA1: 2037-02-01 | HB1: 2037-03-01 | HC1: 2037-04-01 | HD1: 2037-05-01 | HE1: 2037-06-01 | HF1: 2037-07-01 | HG1: 2037-08-01 | HH1: 2037-09-01 | HI1: 2037-10-01 | HJ1: 2037-11-01 | HK1: 2037-12-01 | HL1: 2038-01-01 | HM1: 2038-02-01 | HN1: 2038-03-01 | HO1: 2038-04-01 | HP1: 2038-05-01 | HQ1: 2038-06-01 | HR1: 2038-07-01 | HS1: 2038-08-01 | HT1: 2038-09-01 | HU1: 2038-10-01 | HV1: 2038-11-01 | HW1: 2038-12-01 | HX1: 2039-01-01 | HY1: 2039-02-01 | HZ1: 2039-03-01 | IA1: 2039-04-01 | IB1: 2039-05-01 | IC1: 2039-06-01 | ID1: 2039-07-01 | IE1: 2039-08-01 | IF1: 2039-09-01 | IG1: 2039-10-01 | IH1: 2039-11-01 | II1: 2039-12-01 | IJ1: 2040-01-01 | IK1: 2040-02-01 | IL1: 2040-03-01 | IM1: 2040-04-01 | IN1: 2040-05-01 | IO1: 2040-06-01 | IP1: 2040-07-01 | IQ1: 2040-08-01 | IR1: 2040-09-01 | IS1: 2040-10-01 | IT1: 2040-11-01 | IU1: 2040-12-01 | IV1: 2041-01-01 | IW1: 2041-02-01 | IX1: 2041-03-01 | IY1: 2041-04-01 | IZ1: 2041-05-01 | JA1: 2041-06-01 | JB1: 2041-07-01 | JC1: 2041-08-01 | JD1: 2041-09-01 | JE1: 2041-10-01 | JF1: 2041-11-01 | JG1: 2041-12-01 | JH1: 2042-01-01 | JI1: 2042-02-01 | JJ1: 2042-03-01 | JK1: 2042-04-01 | JL1: 2042-05-01 | JM1: 2042-06-01 | JN1: 2042-07-01 | JO1: 2042-08-01 | JP1: 2042-09-01 | JQ1: 2042-10-01 | JR1: 2042-11-01 | JS1: 2042-12-01 | JT1: 2043-01-01 | JU1: 2043-02-01 | JV1: 2043-03-01 | JW1: 2043-04-01 | JX1: 2043-05-01 | JY1: 2043-06-01 | JZ1: 2043-07-01 | KA1: 2043-08-01 | KB1: 2043-09-01 | KC1: 2043-10-01 | KD1: 2043-11-01 | KE1: 2043-12-01 | KF1: 2044-01-01 | KG1: 2044-02-01 | KH1: 2044-03-01 | KI1: 2044-04-01 | KJ1: 2044-05-01 | KK1: 2044-06-01 | KL1: 2044-07-01 | KM1: 2044-08-01 | KN1: 2044-09-01 | KO1: 2044-10-01 | KP1: 2044-11-01 | KQ1: 2044-12-01 | KR1: 2045-01-01 | KS1: 2045-02-01 | KT1: 2045-03-01 | KU1: 2045-04-01 | KV1: 2045-05-01 | KW1: 2045-06-01 | KX1: 2045-07-01 | KY1: 2045-08-01 | KZ1: 2045-09-01 | LA1: 2045-10-01 | LB1: 2045-11-01 | LC1: 2045-12-01 | LD1: 2046-01-01 | LE1: 2046-02-01 | LF1: 2046-03-01 | LG1: 2046-04-01 | LH1: 2046-05-01 | LI1: 2046-06-01 | LJ1: 2046-07-01 | LK1: 2046-08-01 | LL1: 2046-09-01 | LM1: 2046-10-01 | LN1: 2046-11-01 | LO1: 2046-12-01 | LP1: 2047-01-01 | LQ1: 2047-02-01 | LR1: 2047-03-01 | LS1: 2047-04-01 | LT1: 2047-05-01 | LU1: 2047-06-01 | LV1: 2047-07-01 | LW1: 2047-08-01 | LX1: 2047-09-01 | LY1: 2047-10-01 | LZ1: 2047-11-01 | MA1: 2047-12-01 | MB1: 2048-01-01 | MC1: 2048-02-01 | MD1: 2048-03-01 | ME1: 2048-04-01 | MF1: 2048-05-01 | MG1: 2048-06-01 | MH1: 2048-07-01 | MI1: 2048-08-01 | MJ1: 2048-09-01 | MK1: 2048-10-01 | ML1: 2048-11-01 | MM1: 2048-12-01 | MN1: 2049-01-01 | MO1: 2049-02-01 | MP1: 2049-03-01 | MQ1: 2049-04-01 | MR1: 2049-05-01 | MS1: 2049-06-01 | MT1: 2049-07-01 | MU1: 2049-08-01 | MV1: 2049-09-01 | MW1: 2049-10-01 | MX1: 2049-11-01 | MY1: 2049-12-01 | MZ1: 2050-01-01 | NA1: 2050-02-01 | NB1: 2050-03-01 | NC1: 2050-04-01 | ND1: 2050-05-01 | NE1: 2050-06-01 | NF1: 2050-07-01 | NG1: 2050-08-01 | NH1: 2050-09-01 | NI1: 2050-10-01 | NJ1: 2050-11-01 | NK1: 2050-12-01 | NL1: 2051-01-01 | NM1: 2051-02-01 | NN1: 2051-03-01 | NO1: 2051-04-01 | NP1: 2051-05-01 | NQ1: 2051-06-01 | NR1: 2051-07-01 | NS1: 2051-08-01 | NT1: 2051-09-01 | NU1: 2051-10-01 | NV1: 2051-11-01 | NW1: 2051-12-01 | NX1: 2052-01-01 | NY1: 2052-02-01 | NZ1: 2052-03-01 | OA1: 2052-04-01 | OB1: 2052-05-01 | OC1: 2052-06-01 | OD1: 2052-07-01 | OE1: 2052-08-01 | OF1: 2052-09-01 | OG1: 2052-10-01 | OH1: 2052-11-01 | OI1: 2052-12-01 | OJ1: 2053-01-01 | OK1: 2053-02-01 | OL1: 2053-03-01 | OM1: 2053-04-01 | ON1: 2053-05-01 | OO1: 2053-06-01 | OP1: 2053-07-01 | OQ1: 2053-08-01 | OR1: 2053-09-01 | OS1: 2053-10-01 | OT1: 2053-11-01 | OU1: 2053-12-01 | OV1: 2054-01-01 | OW1: 2054-02-01 | OX1: 2054-03-01 | OY1: 2054-04-01 | OZ1: 2054-05-01 | PA1: 2054-06-01 | PB1: 2054-07-01 | PC1: 2054-08-01 | PD1: 2054-09-01 | PE1: 2054-10-01 | PF1: 2054-11-01 | PG1: 2054-12-01
A3: Data Base do Modelo | C3: 2020-12-01 | D3: 2020-01-01 | E3: 2020-02-01 | F3: 2020-03-01 | G3: 2020-04-01 | H3: 2020-05-01 | I3: 2020-06-01 | J3: 2020-07-01 | K3: 2020-08-01 | L3: 2020-09-01 | M3: 2020-10-01 | N3: 2020-11-01 | O3: 2020-12-01 | P3: 2021-01-01 | Q3: 2021-02-01 | R3: 2021-03-01 | S3: 2021-04-01 | T3: 2021-05-01 | U3: 2021-06-01 | V3: 2021-07-01 | W3: 2021-08-01 | X3: 2021-09-01 | Y3: 2021-10-01 | Z3: 2021-11-01 | AA3: 2021-12-01 | AB3: 2022-01-01 | AC3: 2022-02-01 | AD3: 2022-03-01 | AE3: 2022-04-01 | AF3: 2022-05-01 | AG3: 2022-06-01 | AH3: 2022-07-01 | AI3: 2022-08-01 | AJ3: 2022-09-01 | AK3: 2022-10-01 | AL3: 2022-11-01 | AM3: 2022-12-01 | AN3: 2023-01-01 | AO3: 2023-02-01 | AP3: 2023-03-01 | AQ3: 2023-04-01 | AR3: 2023-05-01 | AS3: 2023-06-01 | AT3: 2023-07-01 | AU3: 2023-08-01 | AV3: 2023-09-01 | AW3: 2023-10-01 | AX3: 2023-11-01 | AY3: 2023-12-01 | AZ3: 2024-01-01 | BA3: 2024-02-01 | BB3: 2024-03-01 | BC3: 2024-04-01 | BD3: 2024-05-01 | BE3: 2024-06-01 | BF3: 2024-07-01 | BG3: 2024-08-01 | BH3: 2024-09-01 | BI3: 2024-10-01 | BJ3: 2024-11-01 | BK3: 2024-12-01 | BL3: 2025-01-01 | BM3: 2025-02-01 | BN3: 2025-03-01 | BO3: 2025-04-01 | BP3: 2025-05-01 | BQ3: 2025-06-01 | BR3: 2025-07-01 | BS3: 2025-08-01 | BT3: 2025-09-01 | BU3: 2025-10-01 | BV3: 2025-11-01 | BW3: 2025-12-01 | BX3: 2026-01-01 | BY3: 2026-02-01 | BZ3: 2026-03-01 | CA3: 2026-04-01 | CB3: 2026-05-01 | CC3: 2026-06-01 | CD3: 2026-07-01 | CE3: 2026-08-01 | CF3: 2026-09-01 | CG3: 2026-10-01 | CH3: 2026-11-01 | CI3: 2026-12-01 | CJ3: 2027-01-01 | CK3: 2027-02-01 | CL3: 2027-03-01 | CM3: 2027-04-01 | CN3: 2027-05-01 | CO3: 2027-06-01 | CP3: 2027-07-01 | CQ3: 2027-08-01 | CR3: 2027-09-01 | CS3: 2027-10-01 | CT3: 2027-11-01 | CU3: 2027-12-01 | CV3: 2028-01-01 | CW3: 2028-02-01 | CX3: 2028-03-01 | CY3: 2028-04-01 | CZ3: 2028-05-01 | DA3: 2028-06-01 | DB3: 2028-07-01 | DC3: 2028-08-01 | DD3: 2028-09-01 | DE3: 2028-10-01 | DF3: 2028-11-01 | DG3: 2028-12-01 | DH3: 2029-01-01 | DI3: 2029-02-01 | DJ3: 2029-03-01 | DK3: 2029-04-01 | DL3: 2029-05-01 | DM3: 2029-06-01 | DN3: 2029-07-01 | DO3: 2029-08-01 | DP3: 2029-09-01 | DQ3: 2029-10-01 | DR3: 2029-11-01 | DS3: 2029-12-01 | DT3: 2030-01-01 | DU3: 2030-02-01 | DV3: 2030-03-01 | DW3: 2030-04-01 | DX3: 2030-05-01 | DY3: 2030-06-01 | DZ3: 2030-07-01 | EA3: 2030-08-01 | EB3: 2030-09-01 | EC3: 2030-10-01 | ED3: 2030-11-01 | EE3: 2030-12-01 | EF3: 2031-01-01 | EG3: 2031-02-01 | EH3: 2031-03-01 | EI3: 2031-04-01 | EJ3: 2031-05-01 | EK3: 2031-06-01 | EL3: 2031-07-01 | EM3: 2031-08-01 | EN3: 2031-09-01 | EO3: 2031-10-01 | EP3: 2031-11-01 | EQ3: 2031-12-01 | ER3: 2032-01-01 | ES3: 2032-02-01 | ET3: 2032-03-01 | EU3: 2032-04-01 | EV3: 2032-05-01 | EW3: 2032-06-01 | EX3: 2032-07-01 | EY3: 2032-08-01 | EZ3: 2032-09-01 | FA3: 2032-10-01 | FB3: 2032-11-01 | FC3: 2032-12-01 | FD3: 2033-01-01 | FE3: 2033-02-01 | FF3: 2033-03-01 | FG3: 2033-04-01 | FH3: 2033-05-01 | FI3: 2033-06-01 | FJ3: 2033-07-01 | FK3: 2033-08-01 | FL3: 2033-09-01 | FM3: 2033-10-01 | FN3: 2033-11-01 | FO3: 2033-12-01 | FP3: 2034-01-01 | FQ3: 2034-02-01 | FR3: 2034-03-01 | FS3: 2034-04-01 | FT3: 2034-05-01 | FU3: 2034-06-01 | FV3: 2034-07-01 | FW3: 2034-08-01 | FX3: 2034-09-01 | FY3: 2034-10-01 | FZ3: 2034-11-01 | GA3: 2034-12-01 | GB3: 2035-01-01 | GC3: 2035-02-01 | GD3: 2035-03-01 | GE3: 2035-04-01 | GF3: 2035-05-01 | GG3: 2035-06-01 | GH3: 2035-07-01 | GI3: 2035-08-01 | GJ3: 2035-09-01 | GK3: 2035-10-01 | GL3: 2035-11-01 | GM3: 2035-12-01 | GN3: 2036-01-01 | GO3: 2036-02-01 | GP3: 2036-03-01 | GQ3: 2036-04-01 | GR3: 2036-05-01 | GS3: 2036-06-01 | GT3: 2036-07-01 | GU3: 2036-08-01 | GV3: 2036-09-01 | GW3: 2036-10-01 | GX3: 2036-11-01 | GY3: 2036-12-01 | GZ3: 2037-01-01 | HA3: 2037-02-01 | HB3: 2037-03-01 | HC3: 2037-04-01 | HD3: 2037-05-01 | HE3: 2037-06-01 | HF3: 2037-07-01 | HG3: 2037-08-01 | HH3: 2037-09-01 | HI3: 2037-10-01 | HJ3: 2037-11-01 | HK3: 2037-12-01 | HL3: 2038-01-01 | HM3: 2038-02-01 | HN3: 2038-03-01 | HO3: 2038-04-01 | HP3: 2038-05-01 | HQ3: 2038-06-01 | HR3: 2038-07-01 | HS3: 2038-08-01 | HT3: 2038-09-01 | HU3: 2038-10-01 | HV3: 2038-11-01 | HW3: 2038-12-01 | HX3: 2039-01-01 | HY3: 2039-02-01 | HZ3: 2039-03-01 | IA3: 2039-04-01 | IB3: 2039-05-01 | IC3: 2039-06-01 | ID3: 2039-07-01 | IE3: 2039-08-01 | IF3: 2039-09-01 | IG3: 2039-10-01 | IH3: 2039-11-01 | II3: 2039-12-01 | IJ3: 2040-01-01 | IK3: 2040-02-01 | IL3: 2040-03-01 | IM3: 2040-04-01 | IN3: 2040-05-01 | IO3: 2040-06-01 | IP3: 2040-07-01 | IQ3: 2040-08-01 | IR3: 2040-09-01 | IS3: 2040-10-01 | IT3: 2040-11-01 | IU3: 2040-12-01 | IV3: 2041-01-01 | IW3: 2041-02-01 | IX3: 2041-03-01 | IY3: 2041-04-01 | IZ3: 2041-05-01 | JA3: 2041-06-01 | JB3: 2041-07-01 | JC3: 2041-08-01 | JD3: 2041-09-01 | JE3: 2041-10-01 | JF3: 2041-11-01 | JG3: 2041-12-01 | JH3: 2042-01-01 | JI3: 2042-02-01 | JJ3: 2042-03-01 | JK3: 2042-04-01 | JL3: 2042-05-01 | JM3: 2042-06-01 | JN3: 2042-07-01 | JO3: 2042-08-01 | JP3: 2042-09-01 | JQ3: 2042-10-01 | JR3: 2042-11-01 | JS3: 2042-12-01 | JT3: 2043-01-01 | JU3: 2043-02-01 | JV3: 2043-03-01 | JW3: 2043-04-01 | JX3: 2043-05-01 | JY3: 2043-06-01 | JZ3: 2043-07-01 | KA3: 2043-08-01 | KB3: 2043-09-01 | KC3: 2043-10-01 | KD3: 2043-11-01 | KE3: 2043-12-01 | KF3: 2044-01-01 | KG3: 2044-02-01 | KH3: 2044-03-01 | KI3: 2044-04-01 | KJ3: 2044-05-01 | KK3: 2044-06-01 | KL3: 2044-07-01 | KM3: 2044-08-01 | KN3: 2044-09-01 | KO3: 2044-10-01 | KP3: 2044-11-01 | KQ3: 2044-12-01 | KR3: 2045-01-01 | KS3: 2045-02-01 | KT3: 2045-03-01 | KU3: 2045-04-01 | KV3: 2045-05-01 | KW3: 2045-06-01 | KX3: 2045-07-01 | KY3: 2045-08-01 | KZ3: 2045-09-01 | LA3: 2045-10-01 | LB3: 2045-11-01 | LC3: 2045-12-01 | LD3: 2046-01-01 | LE3: 2046-02-01 | LF3: 2046-03-01 | LG3: 2046-04-01 | LH3: 2046-05-01 | LI3: 2046-06-01 | LJ3: 2046-07-01 | LK3: 2046-08-01 | LL3: 2046-09-01 | LM3: 2046-10-01 | LN3: 2046-11-01 | LO3: 2046-12-01 | LP3: 2047-01-01 | LQ3: 2047-02-01 | LR3: 2047-03-01 | LS3: 2047-04-01 | LT3: 2047-05-01 | LU3: 2047-06-01 | LV3: 2047-07-01 | LW3: 2047-08-01 | LX3: 2047-09-01 | LY3: 2047-10-01 | LZ3: 2047-11-01 | MA3: 2047-12-01 | MB3: 2048-01-01 | MC3: 2048-02-01 | MD3: 2048-03-01 | ME3: 2048-04-01 | MF3: 2048-05-01 | MG3: 2048-06-01 | MH3: 2048-07-01 | MI3: 2048-08-01 | MJ3: 2048-09-01 | MK3: 2048-10-01 | ML3: 2048-11-01 | MM3: 2048-12-01 | MN3: 2049-01-01 | MO3: 2049-02-01 | MP3: 2049-03-01 | MQ3: 2049-04-01 | MR3: 2049-05-01 | MS3: 2049-06-01 | MT3: 2049-07-01 | MU3: 2049-08-01 | MV3: 2049-09-01 | MW3: 2049-10-01 | MX3: 2049-11-01 | MY3: 2049-12-01 | MZ3: 2050-01-01 | NA3: 2050-02-01 | NB3: 2050-03-01 | NC3: 2050-04-01 | ND3: 2050-05-01 | NE3: 2050-06-01 | NF3: 2050-07-01 | NG3: 2050-08-01 | NH3: 2050-09-01 | NI3: 2050-10-01 | NJ3: 2050-11-01 | NK3: 2050-12-01 | NL3: 2051-01-01 | NM3: 2051-02-01 | NN3: 2051-03-01 | NO3: 2051-04-01 | NP3: 2051-05-01 | NQ3: 2051-06-01 | NR3: 2051-07-01 | NS3: 2051-08-01 | NT3: 2051-09-01 | NU3: 2051-10-01 | NV3: 2051-11-01 | NW3: 2051-12-01 | NX3: 2052-01-01 | NY3: 2052-02-01 | NZ3: 2052-03-01 | OA3: 2052-04-01 | OB3: 2052-05-01 | OC3: 2052-06-01 | OD3: 2052-07-01 | OE3: 2052-08-01 | OF3: 2052-09-01 | OG3: 2052-10-01 | OH3: 2052-11-01 | OI3: 2052-12-01 | OJ3: 2053-01-01 | OK3: 2053-02-01 | OL3: 2053-03-01 | OM3: 2053-04-01 | ON3: 2053-05-01 | OO3: 2053-06-01 | OP3: 2053-07-01 | OQ3: 2053-08-01 | OR3: 2053-09-01 | OS3: 2053-10-01 | OT3: 2053-11-01 | OU3: 2053-12-01 | OV3: 2054-01-01 | OW3: 2054-02-01 | OX3: 2054-03-01 | OY3: 2054-04-01 | OZ3: 2054-05-01 | PA3: 2054-06-01 | PB3: 2054-07-01 | PC3: 2054-08-01 | PD3: 2054-09-01 | PE3: 2054-10-01 | PF3: 2054-11-01 | PG3: 2054-12-01
A4: Mês Referência | D4: 1 | E4: 2 | F4: 3 | G4: 4 | H4: 5 | I4: 6 | J4: 7 | K4: 8 | L4: 9 | M4: 10 | N4: 11 | O4: 12 | P4: 1 | Q4: 2 | R4: 3 | S4: 4 | T4: 5 | U4: 6 | V4: 7 | W4: 8 | X4: 9 | Y4: 10 | Z4: 11 | AA4: 12 | AB4: 1 | AC4: 2 | AD4: 3 | AE4: 4 | AF4: 5 | AG4: 6 | AH4: 7 | AI4: 8 | AJ4: 9 | AK4: 10 | AL4: 11 | AM4: 12 | AN4: 1 | AO4: 2 | AP4: 3 | AQ4: 4 | AR4: 5 | AS4: 6 | AT4: 7 | AU4: 8 | AV4: 9 | AW4: 10 | AX4: 11 | AY4: 12 | AZ4: 1 | BA4: 2 | BB4: 3 | BC4: 4 | BD4: 5 | BE4: 6 | BF4: 7 | BG4: 8 | BH4: 9 | BI4: 10 | BJ4: 11 | BK4: 12 | BL4: 1 | BM4: 2 | BN4: 3 | BO4: 4 | BP4: 5 | BQ4: 6 | BR4: 7 | BS4: 8 | BT4: 9 | BU4: 10 | BV4: 11 | BW4: 12 | BX4: 1 | BY4: 2 | BZ4: 3 | CA4: 4 | CB4: 5 | CC4: 6 | CD4: 7 | CE4: 8 | CF4: 9 | CG4: 10 | CH4: 11 | CI4: 12 | CJ4: 1 | CK4: 2 | CL4: 3 | CM4: 4 | CN4: 5 | CO4: 6 | CP4: 7 | CQ4: 8 | CR4: 9 | CS4: 10 | CT4: 11 | CU4: 12 | CV4: 1 | CW4: 2 | CX4: 3 | CY4: 4 | CZ4: 5 | DA4: 6 | DB4: 7 | DC4: 8 | DD4: 9 | DE4: 10 | DF4: 11 | DG4: 12 | DH4: 1 | DI4: 2 | DJ4: 3 | DK4: 4 | DL4: 5 | DM4: 6 | DN4: 7 | DO4: 8 | DP4: 9 | DQ4: 10 | DR4: 11 | DS4: 12 | DT4: 1 | DU4: 2 | DV4: 3 | DW4: 4 | DX4: 5 | DY4: 6 | DZ4: 7 | EA4: 8 | EB4: 9 | EC4: 10 | ED4: 11 | EE4: 12 | EF4: 1 | EG4: 2 | EH4: 3 | EI4: 4 | EJ4: 5 | EK4: 6 | EL4: 7 | EM4: 8 | EN4: 9 | EO4: 10 | EP4: 11 | EQ4: 12 | ER4: 1 | ES4: 2 | ET4: 3 | EU4: 4 | EV4: 5 | EW4: 6 | EX4: 7 | EY4: 8 | EZ4: 9 | FA4: 10 | FB4: 11 | FC4: 12 | FD4: 1 | FE4: 2 | FF4: 3 | FG4: 4 | FH4: 5 | FI4: 6 | FJ4: 7 | FK4: 8 | FL4: 9 | FM4: 10 | FN4: 11 | FO4: 12 | FP4: 1 | FQ4: 2 | FR4: 3 | FS4: 4 | FT4: 5 | FU4: 6 | FV4: 7 | FW4: 8 | FX4: 9 | FY4: 10 | FZ4: 11 | GA4: 12 | GB4: 1 | GC4: 2 | GD4: 3 | GE4: 4 | GF4: 5 | GG4: 6 | GH4: 7 | GI4: 8 | GJ4: 9 | GK4: 10 | GL4: 11 | GM4: 12 | GN4: 1 | GO4: 2 | GP4: 3 | GQ4: 4 | GR4: 5 | GS4: 6 | GT4: 7 | GU4: 8 | GV4: 9 | GW4: 10 | GX4: 11 | GY4: 12 | GZ4: 1 | HA4: 2 | HB4: 3 | HC4: 4 | HD4: 5 | HE4: 6 | HF4: 7 | HG4: 8 | HH4: 9 | HI4: 10 | HJ4: 11 | HK4: 12 | HL4: 1 | HM4: 2 | HN4: 3 | HO4: 4 | HP4: 5 | HQ4: 6 | HR4: 7 | HS4: 8 | HT4: 9 | HU4: 10 | HV4: 11 | HW4: 12 | HX4: 1 | HY4: 2 | HZ4: 3 | IA4: 4 | IB4: 5 | IC4: 6 | ID4: 7 | IE4: 8 | IF4: 9 | IG4: 10 | IH4: 11 | II4: 12 | IJ4: 1 | IK4: 2 | IL4: 3 | IM4: 4 | IN4: 5 | IO4: 6 | IP4: 7 | IQ4: 8 | IR4: 9 | IS4: 10 | IT4: 11 | IU4: 12 | IV4: 1 | IW4: 2 | IX4: 3 | IY4: 4 | IZ4: 5 | JA4: 6 | JB4: 7 | JC4: 8 | JD4: 9 | JE4: 10 | JF4: 11 | JG4: 12 | JH4: 1 | JI4: 2 | JJ4: 3 | JK4: 4 | JL4: 5 | JM4: 6 | JN4: 7 | JO4: 8 | JP4: 9 | JQ4: 10 | JR4: 11 | JS4: 12 | JT4: 1 | JU4: 2 | JV4: 3 | JW4: 4 | JX4: 5 | JY4: 6 | JZ4: 7 | KA4: 8 | KB4: 9 | KC4: 10 | KD4: 11 | KE4: 12 | KF4: 1 | KG4: 2 | KH4: 3 | KI4: 4 | KJ4: 5 | KK4: 6 | KL4: 7 | KM4: 8 | KN4: 9 | KO4: 10 | KP4: 11 | KQ4: 12 | KR4: 1 | KS4: 2 | KT4: 3 | KU4: 4 | KV4: 5 | KW4: 6 | KX4: 7 | KY4: 8 | KZ4: 9 | LA4: 10 | LB4: 11 | LC4: 12 | LD4: 1 | LE4: 2 | LF4: 3 | LG4: 4 | LH4: 5 | LI4: 6 | LJ4: 7 | LK4: 8 | LL4: 9 | LM4: 10 | LN4: 11 | LO4: 12 | LP4: 1 | LQ4: 2 | LR4: 3 | LS4: 4 | LT4: 5 | LU4: 6 | LV4: 7 | LW4: 8 | LX4: 9 | LY4: 10 | LZ4: 11 | MA4: 12 | MB4: 1 | MC4: 2 | MD4: 3 | ME4: 4 | MF4: 5 | MG4: 6 | MH4: 7 | MI4: 8 | MJ4: 9 | MK4: 10 | ML4: 11 | MM4: 12 | MN4: 1 | MO4: 2 | MP4: 3 | MQ4: 4 | MR4: 5 | MS4: 6 | MT4: 7 | MU4: 8 | MV4: 9 | MW4: 10 | MX4: 11 | MY4: 12 | MZ4: 1 | NA4: 2 | NB4: 3 | NC4: 4 | ND4: 5 | NE4: 6 | NF4: 7 | NG4: 8 | NH4: 9 | NI4: 10 | NJ4: 11 | NK4: 12 | NL4: 1 | NM4: 2 | NN4: 3 | NO4: 4 | NP4: 5 | NQ4: 6 | NR4: 7 | NS4: 8 | NT4: 9 | NU4: 10 | NV4: 11 | NW4: 12 | NX4: 1 | NY4: 2 | NZ4: 3 | OA4: 4 | OB4: 5 | OC4: 6 | OD4: 7 | OE4: 8 | OF4: 9 | OG4: 10 | OH4: 11 | OI4: 12 | OJ4: 1 | OK4: 2 | OL4: 3 | OM4: 4 | ON4: 5 | OO4: 6 | OP4: 7 | OQ4: 8 | OR4: 9 | OS4: 10 | OT4: 11 | OU4: 12 | OV4: 1 | OW4: 2 | OX4: 3 | OY4: 4 | OZ4: 5 | PA4: 6 | PB4: 7 | PC4: 8 | PD4: 9 | PE4: 10 | PF4: 11 | PG4: 12
A5: Contagem de dias | D5: 31 | E5: 28 | F5: 31 | G5: 30 | H5: 31 | I5: 30 | J5: 31 | K5: 31 | L5: 30 | M5: 31 | N5: 30 | O5: 31 | P5: 31 | Q5: 28 | R5: 31 | S5: 30 | T5: 31 | U5: 30 | V5: 31 | W5: 31 | X5: 30 | Y5: 31 | Z5: 30 | AA5: 31 | AB5: 31 | AC5: 28 | AD5: 31 | AE5: 30 | AF5: 31 | AG5: 30 | AH5: 31 | AI5: 31 | AJ5: 30 | AK5: 31 | AL5: 30 | AM5: 31 | AN5: 31 | AO5: 29 | AP5: 31 | AQ5: 30 | AR5: 31 | AS5: 30 | AT5: 31 | AU5: 31 | AV5: 30 | AW5: 31 | AX5: 30 | AY5: 31 | AZ5: 31 | BA5: 28 | BB5: 31 | BC5: 30 | BD5: 31 | BE5: 30 | BF5: 31 | BG5: 31 | BH5: 30 | BI5: 31 | BJ5: 30 | BK5: 31 | BL5: 31 | BM5: 28 | BN5: 31 | BO5: 30 | BP5: 31 | BQ5: 30 | BR5: 31 | BS5: 31 | BT5: 30 | BU5: 31 | BV5: 30 | BW5: 31 | BX5: 31 | BY5: 28 | BZ5: 31 | CA5: 30 | CB5: 31 | CC5: 30 | CD5: 31 | CE5: 31 | CF5: 30 | CG5: 31 | CH5: 30 | CI5: 31 | CJ5: 31 | CK5: 29 | CL5: 31 | CM5: 30 | CN5: 31 | CO5: 30 | CP5: 31 | CQ5: 31 | CR5: 30 | CS5: 31 | CT5: 30 | CU5: 31 | CV5: 31 | CW5: 28 | CX5: 31 | CY5: 30 | CZ5: 31 | DA5: 30 | DB5: 31 | DC5: 31 | DD5: 30 | DE5: 31 | DF5: 30 | DG5: 31 | DH5: 31 | DI5: 28 | DJ5: 31 | DK5: 30 | DL5: 31 | DM5: 30 | DN5: 31 | DO5: 31 | DP5: 30 | DQ5: 31 | DR5: 30 | DS5: 31 | DT5: 31 | DU5: 28 | DV5: 31 | DW5: 30 | DX5: 31 | DY5: 30 | DZ5: 31 | EA5: 31 | EB5: 30 | EC5: 31 | ED5: 30 | EE5: 31 | EF5: 31 | EG5: 29 | EH5: 31 | EI5: 30 | EJ5: 31 | EK5: 30 | EL5: 31 | EM5: 31 | EN5: 30 | EO5: 31 | EP5: 30 | EQ5: 31 | ER5: 31 | ES5: 28 | ET5: 31 | EU5: 30 | EV5: 31 | EW5: 30 | EX5: 31 | EY5: 31 | EZ5: 30 | FA5: 31 | FB5: 30 | FC5: 31 | FD5: 31 | FE5: 28 | FF5: 31 | FG5: 30 | FH5: 31 | FI5: 30 | FJ5: 31 | FK5: 31 | FL5: 30 | FM5: 31 | FN5: 30 | FO5: 31 | FP5: 31 | FQ5: 28 | FR5: 31 | FS5: 30 | FT5: 31 | FU5: 30 | FV5: 31 | FW5: 31 | FX5: 30 | FY5: 31 | FZ5: 30 | GA5: 31 | GB5: 31 | GC5: 29 | GD5: 31 | GE5: 30 | GF5: 31 | GG5: 30 | GH5: 31 | GI5: 31 | GJ5: 30 | GK5: 31 | GL5: 30 | GM5: 31 | GN5: 31 | GO5: 28 | GP5: 31 | GQ5: 30 | GR5: 31 | GS5: 30 | GT5: 31 | GU5: 31 | GV5: 30 | GW5: 31 | GX5: 30 | GY5: 31 | GZ5: 31 | HA5: 28 | HB5: 31 | HC5: 30 | HD5: 31 | HE5: 30 | HF5: 31 | HG5: 31 | HH5: 30 | HI5: 31 | HJ5: 30 | HK5: 31 | HL5: 31 | HM5: 28 | HN5: 31 | HO5: 30 | HP5: 31 | HQ5: 30 | HR5: 31 | HS5: 31 | HT5: 30 | HU5: 31 | HV5: 30 | HW5: 31 | HX5: 31 | HY5: 29 | HZ5: 31 | IA5: 30 | IB5: 31 | IC5: 30 | ID5: 31 | IE5: 31 | IF5: 30 | IG5: 31 | IH5: 30 | II5: 31 | IJ5: 31 | IK5: 28 | IL5: 31 | IM5: 30 | IN5: 31 | IO5: 30 | IP5: 31 | IQ5: 31 | IR5: 30 | IS5: 31 | IT5: 30 | IU5: 31 | IV5: 31 | IW5: 28 | IX5: 31 | IY5: 30 | IZ5: 31 | JA5: 30 | JB5: 31 | JC5: 31 | JD5: 30 | JE5: 31 | JF5: 30 | JG5: 31 | JH5: 31 | JI5: 28 | JJ5: 31 | JK5: 30 | JL5: 31 | JM5: 30 | JN5: 31 | JO5: 31 | JP5: 30 | JQ5: 31 | JR5: 30 | JS5: 31 | JT5: 31 | JU5: 29 | JV5: 31 | JW5: 30 | JX5: 31 | JY5: 30 | JZ5: 31 | KA5: 31 | KB5: 30 | KC5: 31 | KD5: 30 | KE5: 31 | KF5: 31 | KG5: 28 | KH5: 31 | KI5: 30 | KJ5: 31 | KK5: 30 | KL5: 31 | KM5: 31 | KN5: 30 | KO5: 31 | KP5: 30 | KQ5: 31 | KR5: 31 | KS5: 28 | KT5: 31 | KU5: 30 | KV5: 31 | KW5: 30 | KX5: 31 | KY5: 31 | KZ5: 30 | LA5: 31 | LB5: 30 | LC5: 31 | LD5: 31 | LE5: 28 | LF5: 31 | LG5: 30 | LH5: 31 | LI5: 30 | LJ5: 31 | LK5: 31 | LL5: 30 | LM5: 31 | LN5: 30 | LO5: 31 | LP5: 31 | LQ5: 29 | LR5: 31 | LS5: 30 | LT5: 31 | LU5: 30 | LV5: 31 | LW5: 31 | LX5: 30 | LY5: 31 | LZ5: 30 | MA5: 31 | MB5: 31 | MC5: 28 | MD5: 31 | ME5: 30 | MF5: 31 | MG5: 30 | MH5: 31 | MI5: 31 | MJ5: 30 | MK5: 31 | ML5: 30 | MM5: 31 | MN5: 31 | MO5: 28 | MP5: 31 | MQ5: 30 | MR5: 31 | MS5: 30 | MT5: 31 | MU5: 31 | MV5: 30 | MW5: 31 | MX5: 30 | MY5: 31 | MZ5: 31 | NA5: 28 | NB5: 31 | NC5: 30 | ND5: 31 | NE5: 30 | NF5: 31 | NG5: 31 | NH5: 30 | NI5: 31 | NJ5: 30 | NK5: 31 | NL5: 31 | NM5: 29 | NN5: 31 | NO5: 30 | NP5: 31 | NQ5: 30 | NR5: 31 | NS5: 31 | NT5: 30 | NU5: 31 | NV5: 30 | NW5: 31 | NX5: 31 | NY5: 28 | NZ5: 31 | OA5: 30 | OB5: 31 | OC5: 30 | OD5: 31 | OE5: 31 | OF5: 30 | OG5: 31 | OH5: 30 | OI5: 31 | OJ5: 31 | OK5: 28 | OL5: 31 | OM5: 30 | ON5: 31 | OO5: 30 | OP5: 31 | OQ5: 31 | OR5: 30 | OS5: 31 | OT5: 30 | OU5: 31 | OV5: 31 | OW5: 28 | OX5: 31 | OY5: 30 | OZ5: 31 | PA5: 30 | PB5: 31 | PC5: 31 | PD5: 30 | PE5: 31 | PF5: 30 | PG5: 31
A6: Ano Referência | D6: 2020 | E6: 2021 | F6: 2022 | G6: 2023 | H6: 2024 | I6: 2025 | J6: 2026 | K6: 2027 | L6: 2028 | M6: 2029 | N6: 2030 | O6: 2031 | P6: 2032 | Q6: 2033 | R6: 2034 | S6: 2035 | T6: 2036 | U6: 2037 | V6: 2038 | W6: 2039 | X6: 2040 | Y6: 2041 | Z6: 2042 | AA6: 2043 | AB6: 2044 | AC6: 2045 | AD6: 2046 | AE6: 2047 | AF6: 2048 | AG6: 2049 | AH6: 2050 | AI6: 2051 | AJ6: 2052 | AK6: 2053 | AL6: 2054 | AM6: 2055 | AN6: 2056 | AO6: 2057 | AP6: 2058 | AQ6: 2059 | AR6: 2060 | AS6: 2061 | AT6: 2062 | AU6: 2063 | AV6: 2064 | AW6: 2065 | AX6: 2066 | AY6: 2067 | AZ6: 2068 | BA6: 2069 | BB6: 2070 | BC6: 2071 | BD6: 2072 | BE6: 2073 | BF6: 2074 | BG6: 2075 | BH6: 2076 | BI6: 2077 | BJ6: 2078 | BK6: 2079 | BL6: 2080 | BM6: 2081 | BN6: 2082 | BO6: 2083 | BP6: 2084 | BQ6: 2085 | BR6: 2086 | BS6: 2087 | BT6: 2088 | BU6: 2089 | BV6: 2090 | BW6: 2091 | BX6: 2092 | BY6: 2093 | BZ6: 2094 | CA6: 2095 | CB6: 2096 | CC6: 2097 | CD6: 2098 | CE6: 2099 | CF6: 2100 | CG6: 2101 | CH6: 2102 | CI6: 2103 | CJ6: 2104 | CK6: 2105 | CL6: 2106 | CM6: 2107 | CN6: 2108 | CO6: 2109 | CP6: 2110 | CQ6: 2111 | CR6: 2112 | CS6: 2113 | CT6: 2114 | CU6: 2115 | CV6: 2116 | CW6: 2117 | CX6: 2118 | CY6: 2119 | CZ6: 2120 | DA6: 2121 | DB6: 2122 | DC6: 2123 | DD6: 2124 | DE6: 2125 | DF6: 2126 | DG6: 2127 | DH6: 2128 | DI6: 2129 | DJ6: 2130 | DK6: 2131 | DL6: 2132 | DM6: 2133 | DN6: 2134 | DO6: 2135 | DP6: 2136 | DQ6: 2137 | DR6: 2138 | DS6: 2139 | DT6: 2140 | DU6: 2141 | DV6: 2142 | DW6: 2143 | DX6: 2144 | DY6: 2145 | DZ6: 2146 | EA6: 2147 | EB6: 2148 | EC6: 2149 | ED6: 2150 | EE6: 2151 | EF6: 2152 | EG6: 2153 | EH6: 2154 | EI6: 2155 | EJ6: 2156 | EK6: 2157 | EL6: 2158 | EM6: 2159 | EN6: 2160 | EO6: 2161 | EP6: 2162 | EQ6: 2163 | ER6: 2164 | ES6: 2165 | ET6: 2166 | EU6: 2167 | EV6: 2168 | EW6: 2169 | EX6: 2170 | EY6: 2171 | EZ6: 2172 | FA6: 2173 | FB6: 2174 | FC6: 2175 | FD6: 2176 | FE6: 2177 | FF6: 2178 | FG6: 2179 | FH6: 2180 | FI6: 2181 | FJ6: 2182 | FK6: 2183 | FL6: 2184 | FM6: 2185 | FN6: 2186 | FO6: 2187 | FP6: 2188 | FQ6: 2189 | FR6: 2190 | FS6: 2191 | FT6: 2192 | FU6: 2193 | FV6: 2194 | FW6: 2195 | FX6: 2196 | FY6: 2197 | FZ6: 2198 | GA6: 2199 | GB6: 2200 | GC6: 2201 | GD6: 2202 | GE6: 2203 | GF6: 2204 | GG6: 2205 | GH6: 2206 | GI6: 2207 | GJ6: 2208 | GK6: 2209 | GL6: 2210 | GM6: 2211 | GN6: 2212 | GO6: 2213 | GP6: 2214 | GQ6: 2215 | GR6: 2216 | GS6: 2217 | GT6: 2218 | GU6: 2219 | GV6: 2220 | GW6: 2221 | GX6: 2222 | GY6: 2223 | GZ6: 2224 | HA6: 2225 | HB6: 2226 | HC6: 2227 | HD6: 2228 | HE6: 2229 | HF6: 2230 | HG6: 2231 | HH6: 2232 | HI6: 2233 | HJ6: 2234 | HK6: 2235 | HL6: 2236 | HM6: 2237 | HN6: 2238 | HO6: 2239 | HP6: 2240 | HQ6: 2241 | HR6: 2242 | HS6: 2243 | HT6: 2244 | HU6: 2245 | HV6: 2246 | HW6: 2247 | HX6: 2248 | HY6: 2249 | HZ6: 2250 | IA6: 2251 | IB6: 2252 | IC6: 2253 | ID6: 2254 | IE6: 2255 | IF6: 2256 | IG6: 2257 | IH6: 2258 | II6: 2259 | IJ6: 2260 | IK6: 2261 | IL6: 2262 | IM6: 2263 | IN6: 2264 | IO6: 2265 | IP6: 2266 | IQ6: 2267 | IR6: 2268 | IS6: 2269 | IT6: 2270 | IU6: 2271 | IV6: 2272 | IW6: 2273 | IX6: 2274 | IY6: 2275 | IZ6: 2276 | JA6: 2277 | JB6: 2278 | JC6: 2279 | JD6: 2280 | JE6: 2281 | JF6: 2282 | JG6: 2283 | JH6: 2284 | JI6: 2285 | JJ6: 2286 | JK6: 2287 | JL6: 2288 | JM6: 2289 | JN6: 2290 | JO6: 2291 | JP6: 2292 | JQ6: 2293 | JR6: 2294 | JS6: 2295 | JT6: 2296 | JU6: 2297 | JV6: 2298 | JW6: 2299 | JX6: 2300 | JY6: 2301 | JZ6: 2302 | KA6: 2303 | KB6: 2304 | KC6: 2305 | KD6: 2306 | KE6: 2307 | KF6: 2308 | KG6: 2309 | KH6: 2310 | KI6: 2311 | KJ6: 2312 | KK6: 2313 | KL6: 2314 | KM6: 2315 | KN6: 2316 | KO6: 2317 | KP6: 2318 | KQ6: 2319 | KR6: 2320 | KS6: 2321 | KT6: 2322 | KU6: 2323 | KV6: 2324 | KW6: 2325 | KX6: 2326 | KY6: 2327 | KZ6: 2328 | LA6: 2329 | LB6: 2330 | LC6: 2331 | LD6: 2332 | LE6: 2333 | LF6: 2334 | LG6: 2335 | LH6: 2336 | LI6: 2337 | LJ6: 2338 | LK6: 2339 | LL6: 2340 | LM6: 2341 | LN6: 2342 | LO6: 2343 | LP6: 2344 | LQ6: 2345 | LR6: 2346 | LS6: 2347 | LT6: 2348 | LU6: 2349 | LV6: 2350 | LW6: 2351 | LX6: 2352 | LY6: 2353 | LZ6: 2354 | MA6: 2355 | MB6: 2356 | MC6: 2357 | MD6: 2358 | ME6: 2359 | MF6: 2360 | MG6: 2361 | MH6: 2362 | MI6: 2363 | MJ6: 2364 | MK6: 2365 | ML6: 2366 | MM6: 2367 | MN6: 2368 | MO6: 2369 | MP6: 2370 | MQ6: 2371 | MR6: 2372 | MS6: 2373 | MT6: 2374 | MU6: 2375 | MV6: 2376 | MW6: 2377 | MX6: 2378 | MY6: 2379 | MZ6: 2380 | NA6: 2381 | NB6: 2382 | NC6: 2383 | ND6: 2384 | NE6: 2385 | NF6: 2386 | NG6: 2387 | NH6: 2388 | NI6: 2389 | NJ6: 2390 | NK6: 2391 | NL6: 2392 | NM6: 2393 | NN6: 2394 | NO6: 2395 | NP6: 2396 | NQ6: 2397 | NR6: 2398 | NS6: 2399 | NT6: 2400 | NU6: 2401 | NV6: 2402 | NW6: 2403 | NX6: 2404 | NY6: 2405 | NZ6: 2406 | OA6: 2407 | OB6: 2408 | OC6: 2409 | OD6: 2410 | OE6: 2411 | OF6: 2412 | OG6: 2413 | OH6: 2414 | OI6: 2415 | OJ6: 2416 | OK6: 2417 | OL6: 2418 | OM6: 2419 | ON6: 2420 | OO6: 2421 | OP6: 2422 | OQ6: 2423 | OR6: 2424 | OS6: 2425 | OT6: 2426 | OU6: 2427 | OV6: 2428 | OW6: 2429 | OX6: 2430 | OY6: 2431 | OZ6: 2432 | PA6: 2433 | PB6: 2434 | PC6: 2435 | PD6: 2436 | PE6: 2437 | PF6: 2438 | PG6: 2439
A7: Prazo da concessão | C7: 35 | D7: 35 | E7: 35 | F7: 35 | G7: 35 | H7: 35 | I7: 35 | J7: 35 | K7: 35 | L7: 35 | M7: 35 | N7: 35 | O7: 35 | P7: 35 | Q7: 35 | R7: 35 | S7: 35 | T7: 35 | U7: 35 | V7: 35 | W7: 35 | X7: 35 | Y7: 35 | Z7: 35 | AA7: 35 | AB7: 35 | AC7: 35 | AD7: 35 | AE7: 35 | AF7: 35 | AG7: 35 | AH7: 35 | AI7: 35 | AJ7: 35 | AK7: 35 | AL7: 35 | AM7: 35 | AN7: 35 | AO7: 35 | AP7: 35 | AQ7: 35 | AR7: 35 | AS7: 35 | AT7: 35 | AU7: 35 | AV7: 35 | AW7: 35 | AX7: 35 | AY7: 35 | AZ7: 35 | BA7: 35 | BB7: 35 | BC7: 35 | BD7: 35 | BE7: 35 | BF7: 35 | BG7: 35 | BH7: 35 | BI7: 35 | BJ7: 35 | BK7: 35 | BL7: 35 | BM7: 35 | BN7: 35 | BO7: 35 | BP7: 35 | BQ7: 35 | BR7: 35 | BS7: 35 | BT7: 35 | BU7: 35 | BV7: 35 | BW7: 35 | BX7: 35 | BY7: 35 | BZ7: 35 | CA7: 35 | CB7: 35 | CC7: 35 | CD7: 35 | CE7: 35 | CF7: 35 | CG7: 35 | CH7: 35 | CI7: 35 | CJ7: 35 | CK7: 35 | CL7: 35 | CM7: 35 | CN7: 35 | CO7: 35 | CP7: 35 | CQ7: 35 | CR7: 35 | CS7: 35 | CT7: 35 | CU7: 35 | CV7: 35 | CW7: 35 | CX7: 35 | CY7: 35 | CZ7: 35 | DA7: 35 | DB7: 35 | DC7: 35 | DD7: 35 | DE7: 35 | DF7: 35 | DG7: 35 | DH7: 35 | DI7: 35 | DJ7: 35 | DK7: 35 | DL7: 35 | DM7: 35 | DN7: 35 | DO7: 35 | DP7: 35 | DQ7: 35 | DR7: 35 | DS7: 35 | DT7: 35 | DU7: 35 | DV7: 35 | DW7: 35 | DX7: 35 | DY7: 35 | DZ7: 35 | EA7: 35 | EB7: 35 | EC7: 35 | ED7: 35 | EE7: 35 | EF7: 35 | EG7: 35 | EH7: 35 | EI7: 35 | EJ7: 35 | EK7: 35 | EL7: 35 | EM7: 35 | EN7: 35 | EO7: 35 | EP7: 35 | EQ7: 35 | ER7: 35 | ES7: 35 | ET7: 35 | EU7: 35 | EV7: 35 | EW7: 35 | EX7: 35 | EY7: 35 | EZ7: 35 | FA7: 35 | FB7: 35 | FC7: 35 | FD7: 35 | FE7: 35 | FF7: 35 | FG7: 35 | FH7: 35 | FI7: 35 | FJ7: 35 | FK7: 35 | FL7: 35 | FM7: 35 | FN7: 35 | FO7: 35 | FP7: 35 | FQ7: 35 | FR7: 35 | FS7: 35 | FT7: 35 | FU7: 35 | FV7: 35 | FW7: 35 | FX7: 35 | FY7: 35 | FZ7: 35 | GA7: 35 | GB7: 35 | GC7: 35 | GD7: 35 | GE7: 35 | GF7: 35 | GG7: 35 | GH7: 35 | GI7: 35 | GJ7: 35 | GK7: 35 | GL7: 35 | GM7: 35 | GN7: 35 | GO7: 35 | GP7: 35 | GQ7: 35 | GR7: 35 | GS7: 35 | GT7: 35 | GU7: 35 | GV7: 35 | GW7: 35 | GX7: 35 | GY7: 35 | GZ7: 35 | HA7: 35 | HB7: 35 | HC7: 35 | HD7: 35 | HE7: 35 | HF7: 35 | HG7: 35 | HH7: 35 | HI7: 35 | HJ7: 35 | HK7: 35 | HL7: 35 | HM7: 35 | HN7: 35 | HO7: 35 | HP7: 35 | HQ7: 35 | HR7: 35 | HS7: 35 | HT7: 35 | HU7: 35 | HV7: 35 | HW7: 35 | HX7: 35 | HY7: 35 | HZ7: 35 | IA7: 35 | IB7: 35 | IC7: 35 | ID7: 35 | IE7: 35 | IF7: 35 | IG7: 35 | IH7: 35 | II7: 35 | IJ7: 35 | IK7: 35 | IL7: 35 | IM7: 35 | IN7: 35 | IO7: 35 | IP7: 35 | IQ7: 35 | IR7: 35 | IS7: 35 | IT7: 35 | IU7: 35 | IV7: 35 | IW7: 35 | IX7: 35 | IY7: 35 | IZ7: 35 | JA7: 35 | JB7: 35 | JC7: 35 | JD7: 35 | JE7: 35 | JF7: 35 | JG7: 35 | JH7: 35 | JI7: 35 | JJ7: 35 | JK7: 35 | JL7: 35 | JM7: 35 | JN7: 35 | JO7: 35 | JP7: 35 | JQ7: 35 | JR7: 35 | JS7: 35 | JT7: 35 | JU7: 35 | JV7: 35 | JW7: 35 | JX7: 35 | JY7: 35 | JZ7: 35 | KA7: 35 | KB7: 35 | KC7: 35 | KD7: 35 | KE7: 35 | KF7: 35 | KG7: 35 | KH7: 35 | KI7: 35 | KJ7: 35 | KK7: 35 | KL7: 35 | KM7: 35 | KN7: 35 | KO7: 35 | KP7: 35 | KQ7: 35 | KR7: 35 | KS7: 35 | KT7: 35 | KU7: 35 | KV7: 35 | KW7: 35 | KX7: 35 | KY7: 35 | KZ7: 35 | LA7: 35 | LB7: 35 | LC7: 35 | LD7: 35 | LE7: 35 | LF7: 35 | LG7: 35 | LH7: 35 | LI7: 35 | LJ7: 35 | LK7: 35 | LL7: 35 | LM7: 35 | LN7: 35 | LO7: 35 | LP7: 35 | LQ7: 35 | LR7: 35 | LS7: 35 | LT7: 35 | LU7: 35 | LV7: 35 | LW7: 35 | LX7: 35 | LY7: 35 | LZ7: 35 | MA7: 35 | MB7: 35 | MC7: 35 | MD7: 35 | ME7: 35 | MF7: 35 | MG7: 35 | MH7: 35 | MI7: 35 | MJ7: 35 | MK7: 35 | ML7: 35 | MM7: 35 | MN7: 35 | MO7: 35 | MP7: 35 | MQ7: 35 | MR7: 35 | MS7: 35 | MT7: 35 | MU7: 35 | MV7: 35 | MW7: 35 | MX7: 35 | MY7: 35 | MZ7: 35 | NA7: 35 | NB7: 35 | NC7: 35 | ND7: 35 | NE7: 35 | NF7: 35 | NG7: 35 | NH7: 35 | NI7: 35 | NJ7: 35 | NK7: 35 | NL7: 35 | NM7: 35 | NN7: 35 | NO7: 35 | NP7: 35 | NQ7: 35 | NR7: 35 | NS7: 35 | NT7: 35 | NU7: 35 | NV7: 35 | NW7: 35 | NX7: 35 | NY7: 35 | NZ7: 35 | OA7: 35 | OB7: 35 | OC7: 35 | OD7: 35 | OE7: 35 | OF7: 35 | OG7: 35 | OH7: 35 | OI7: 35 | OJ7: 35 | OK7: 35 | OL7: 35 | OM7: 35 | ON7: 35 | OO7: 35 | OP7: 35 | OQ7: 35 | OR7: 35 | OS7: 35 | OT7: 35 | OU7: 35 | OV7: 35 | OW7: 35 | OX7: 35 | OY7: 35 | OZ7: 35 | PA7: 35 | PB7: 35 | PC7: 35 | PD7: 35 | PE7: 35 | PF7: 35 | PG7: 35
A8: Indicador concessão | D8: 1 | E8: 1 | F8: 1 | G8: 1 | H8: 1 | I8: 1 | J8: 1 | K8: 1 | L8: 1 | M8: 1 | N8: 1 | O8: 1 | P8: 1 | Q8: 1 | R8: 1 | S8: 1 | T8: 1 | U8: 1 | V8: 1 | W8: 1 | X8: 1 | Y8: 1 | Z8: 1 | AA8: 1 | AB8: 1 | AC8: 1 | AD8: 1 | AE8: 1 | AF8: 1 | AG8: 1 | AH8: 1 | AI8: 1 | AJ8: 1 | AK8: 1 | AL8: 1 | AM8: 1 | AN8: 1 | AO8: 1 | AP8: 1 | AQ8: 1 | AR8: 1 | AS8: 1 | AT8: 1 | AU8: 1 | AV8: 1 | AW8: 1 | AX8: 1 | AY8: 1 | AZ8: 1 | BA8: 1 | BB8: 1 | BC8: 1 | BD8: 1 | BE8: 1 | BF8: 1 | BG8: 1 | BH8: 1 | BI8: 1 | BJ8: 1 | BK8: 1 | BL8: 1 | BM8: 1 | BN8: 1 | BO8: 1 | BP8: 1 | BQ8: 1 | BR8: 1 | BS8: 1 | BT8: 1 | BU8: 1 | BV8: 1 | BW8: 1 | BX8: 1 | BY8: 1 | BZ8: 1 | CA8: 1 | CB8: 1 | CC8: 1 | CD8: 1 | CE8: 1 | CF8: 1 | CG8: 1 | CH8: 1 | CI8: 1 | CJ8: 1 | CK8: 1 | CL8: 1 | CM8: 1 | CN8: 1 | CO8: 1 | CP8: 1 | CQ8: 1 | CR8: 1 | CS8: 1 | CT8: 1 | CU8: 1 | CV8: 1 | CW8: 1 | CX8: 1 | CY8: 1 | CZ8: 1 | DA8: 1 | DB8: 1 | DC8: 1 | DD8: 1 | DE8: 1 | DF8: 1 | DG8: 1 | DH8: 1 | DI8: 1 | DJ8: 1 | DK8: 1 | DL8: 1 | DM8: 1 | DN8: 1 | DO8: 1 | DP8: 1 | DQ8: 1 | DR8: 1 | DS8: 1 | DT8: 1 | DU8: 1 | DV8: 1 | DW8: 1 | DX8: 1 | DY8: 1 | DZ8: 1 | EA8: 1 | EB8: 1 | EC8: 1 | ED8: 1 | EE8: 1 | EF8: 1 | EG8: 1 | EH8: 1 | EI8: 1 | EJ8: 1 | EK8: 1 | EL8: 1 | EM8: 1 | EN8: 1 | EO8: 1 | EP8: 1 | EQ8: 1 | ER8: 1 | ES8: 1 | ET8: 1 | EU8: 1 | EV8: 1 | EW8: 1 | EX8: 1 | EY8: 1 | EZ8: 1 | FA8: 1 | FB8: 1 | FC8: 1 | FD8: 1 | FE8: 1 | FF8: 1 | FG8: 1 | FH8: 1 | FI8: 1 | FJ8: 1 | FK8: 1 | FL8: 1 | FM8: 1 | FN8: 1 | FO8: 1 | FP8: 1 | FQ8: 1 | FR8: 1 | FS8: 1 | FT8: 1 | FU8: 1 | FV8: 1 | FW8: 1 | FX8: 1 | FY8: 1 | FZ8: 1 | GA8: 1 | GB8: 1 | GC8: 1 | GD8: 1 | GE8: 1 | GF8: 1 | GG8: 1 | GH8: 1 | GI8: 1 | GJ8: 1 | GK8: 1 | GL8: 1 | GM8: 1 | GN8: 1 | GO8: 1 | GP8: 1 | GQ8: 1 | GR8: 1 | GS8: 1 | GT8: 1 | GU8: 1 | GV8: 1 | GW8: 1 | GX8: 1 | GY8: 1 | GZ8: 1 | HA8: 1 | HB8: 1 | HC8: 1 | HD8: 1 | HE8: 1 | HF8: 1 | HG8: 1 | HH8: 1 | HI8: 1 | HJ8: 1 | HK8: 1 | HL8: 1 | HM8: 1 | HN8: 1 | HO8: 1 | HP8: 1 | HQ8: 1 | HR8: 1 | HS8: 1 | HT8: 1 | HU8: 1 | HV8: 1 | HW8: 1 | HX8: 1 | HY8: 1 | HZ8: 1 | IA8: 1 | IB8: 1 | IC8: 1 | ID8: 1 | IE8: 1 | IF8: 1 | IG8: 1 | IH8: 1 | II8: 1 | IJ8: 1 | IK8: 1 | IL8: 1 | IM8: 1 | IN8: 1 | IO8: 1 | IP8: 1 | IQ8: 1 | IR8: 1 | IS8: 1 | IT8: 1 | IU8: 1 | IV8: 1 | IW8: 1 | IX8: 1 | IY8: 1 | IZ8: 1 | JA8: 1 | JB8: 1 | JC8: 1 | JD8: 1 | JE8: 1 | JF8: 1 | JG8: 1 | JH8: 1 | JI8: 1 | JJ8: 1 | JK8: 1 | JL8: 1 | JM8: 1 | JN8: 1 | JO8: 1 | JP8: 1 | JQ8: 1 | JR8: 1 | JS8: 1 | JT8: 1 | JU8: 1 | JV8: 1 | JW8: 1 | JX8: 1 | JY8: 1 | JZ8: 1 | KA8: 1 | KB8: 1 | KC8: 1 | KD8: 1 | KE8: 1 | KF8: 1 | KG8: 1 | KH8: 1 | KI8: 1 | KJ8: 1 | KK8: 1 | KL8: 1 | KM8: 1 | KN8: 1 | KO8: 1 | KP8: 1 | KQ8: 1 | KR8: 1 | KS8: 1 | KT8: 1 | KU8: 1 | KV8: 1 | KW8: 1 | KX8: 1 | KY8: 1 | KZ8: 1 | LA8: 1 | LB8: 1 | LC8: 1 | LD8: 1 | LE8: 1 | LF8: 1 | LG8: 1 | LH8: 1 | LI8: 1 | LJ8: 1 | LK8: 1 | LL8: 1 | LM8: 1 | LN8: 1 | LO8: 1 | LP8: 1 | LQ8: 1 | LR8: 1 | LS8: 1 | LT8: 1 | LU8: 1 | LV8: 1 | LW8: 1 | LX8: 1 | LY8: 1 | LZ8: 1 | MA8: 1 | MB8: 1 | MC8: 1 | MD8: 1 | ME8: 1 | MF8: 1 | MG8: 1 | MH8: 1 | MI8: 1 | MJ8: 1 | MK8: 1 | ML8: 1 | MM8: 1 | MN8: 1 | MO8: 1 | MP8: 1 | MQ8: 1 | MR8: 1 | MS8: 1 | MT8: 1 | MU8: 1 | MV8: 1 | MW8: 1 | MX8: 1 | MY8: 1 | MZ8: 1 | NA8: 1 | NB8: 1 | NC8: 1 | ND8: 1 | NE8: 1 | NF8: 1 | NG8: 1 | NH8: 1 | NI8: 1 | NJ8: 1 | NK8: 1 | NL8: 1 | NM8: 1 | NN8: 1 | NO8: 1 | NP8: 1 | NQ8: 1 | NR8: 1 | NS8: 1 | NT8: 1 | NU8: 1 | NV8: 1 | NW8: 1 | NX8: 1 | NY8: 1 | NZ8: 1 | OA8: 1 | OB8: 1 | OC8: 1 | OD8: 1 | OE8: 1 | OF8: 1 | OG8: 1 | OH8: 1 | OI8: 1 | OJ8: 1 | OK8: 1 | OL8: 1 | OM8: 1 | ON8: 1 | OO8: 1 | OP8: 1 | OQ8: 1 | OR8: 1 | OS8: 1 | OT8: 1 | OU8: 1 | OV8: 1 | OW8: 1 | OX8: 1 | OY8: 1 | OZ8: 1 | PA8: 1 | PB8: 1 | PC8: 1 | PD8: 1 | PE8: 1 | PF8: 1 | PG8: 1
A9: Indicador início harmonia | D9: 0 | E9: 0 | F9: 0 | G9: 0 | H9: 0 | I9: 0 | J9: 0 | K9: 0 | L9: 0 | M9: 0 | N9: 0 | O9: 0 | P9: 0 | Q9: 0 | R9: 0 | S9: 0 | T9: 0 | U9: 0 | V9: 0 | W9: 0 | X9: 0 | Y9: 0 | Z9: 0 | AA9: 0 | AB9: 0 | AC9: 0 | AD9: 0 | AE9: 0 | AF9: 0 | AG9: 0 | AH9: 0 | AI9: 0 | AJ9: 0 | AK9: 0 | AL9: 0 | AM9: 0 | AN9: 0 | AO9: 1 | AP9: 1 | AQ9: 1 | AR9: 1 | AS9: 1 | AT9: 1 | AU9: 1 | AV9: 1 | AW9: 1 | AX9: 1 | AY9: 1 | AZ9: 1 | BA9: 1 | BB9: 1 | BC9: 1 | BD9: 1 | BE9: 1 | BF9: 1 | BG9: 1 | BH9: 1 | BI9: 1 | BJ9: 1 | BK9: 1 | BL9: 1 | BM9: 1 | BN9: 1 | BO9: 1 | BP9: 1 | BQ9: 1 | BR9: 1 | BS9: 1 | BT9: 1 | BU9: 1 | BV9: 1 | BW9: 1 | BX9: 1 | BY9: 1 | BZ9: 1 | CA9: 1 | CB9: 1 | CC9: 1 | CD9: 1 | CE9: 1 | CF9: 1 | CG9: 1 | CH9: 1 | CI9: 1 | CJ9: 1 | CK9: 1 | CL9: 1 | CM9: 1 | CN9: 1 | CO9: 1 | CP9: 1 | CQ9: 1 | CR9: 1 | CS9: 1 | CT9: 1 | CU9: 1 | CV9: 1 | CW9: 1 | CX9: 1 | CY9: 1 | CZ9: 1 | DA9: 1 | DB9: 1 | DC9: 1 | DD9: 1 | DE9: 1 | DF9: 1 | DG9: 1 | DH9: 1 | DI9: 1 | DJ9: 1 | DK9: 1 | DL9: 1 | DM9: 1 | DN9: 1 | DO9: 1 | DP9: 1 | DQ9: 1 | DR9: 1 | DS9: 1 | DT9: 1 | DU9: 1 | DV9: 1 | DW9: 1 | DX9: 1 | DY9: 1 | DZ9: 1 | EA9: 1 | EB9: 1 | EC9: 1 | ED9: 1 | EE9: 1 | EF9: 1 | EG9: 1 | EH9: 1 | EI9: 1 | EJ9: 1 | EK9: 1 | EL9: 1 | EM9: 1 | EN9: 1 | EO9: 1 | EP9: 1 | EQ9: 1 | ER9: 1 | ES9: 1 | ET9: 1 | EU9: 1 | EV9: 1 | EW9: 1 | EX9: 1 | EY9: 1 | EZ9: 1 | FA9: 1 | FB9: 1 | FC9: 1 | FD9: 1 | FE9: 1 | FF9: 1 | FG9: 1 | FH9: 1 | FI9: 1 | FJ9: 1 | FK9: 1 | FL9: 1 | FM9: 1 | FN9: 1 | FO9: 1 | FP9: 1 | FQ9: 1 | FR9: 1 | FS9: 1 | FT9: 1 | FU9: 1 | FV9: 1 | FW9: 1 | FX9: 1 | FY9: 1 | FZ9: 1 | GA9: 1 | GB9: 1 | GC9: 1 | GD9: 1 | GE9: 1 | GF9: 1 | GG9: 1 | GH9: 1 | GI9: 1 | GJ9: 1 | GK9: 1 | GL9: 1 | GM9: 1 | GN9: 1 | GO9: 1 | GP9: 1 | GQ9: 1 | GR9: 1 | GS9: 1 | GT9: 1 | GU9: 1 | GV9: 1 | GW9: 1 | GX9: 1 | GY9: 1 | GZ9: 1 | HA9: 1 | HB9: 1 | HC9: 1 | HD9: 1 | HE9: 1 | HF9: 1 | HG9: 1 | HH9: 1 | HI9: 1 | HJ9: 1 | HK9: 1 | HL9: 1 | HM9: 1 | HN9: 1 | HO9: 1 | HP9: 1 | HQ9: 1 | HR9: 1 | HS9: 1 | HT9: 1 | HU9: 1 | HV9: 1 | HW9: 1 | HX9: 1 | HY9: 1 | HZ9: 1 | IA9: 1 | IB9: 1 | IC9: 1 | ID9: 1 | IE9: 1 | IF9: 1 | IG9: 1 | IH9: 1 | II9: 1 | IJ9: 1 | IK9: 1 | IL9: 1 | IM9: 1 | IN9: 1 | IO9: 1 | IP9: 1 | IQ9: 1 | IR9: 1 | IS9: 1 | IT9: 1 | IU9: 1 | IV9: 1 | IW9: 1 | IX9: 1 | IY9: 1 | IZ9: 1 | JA9: 1 | JB9: 1 | JC9: 1 | JD9: 1 | JE9: 1 | JF9: 1 | JG9: 1 | JH9: 1 | JI9: 1 | JJ9: 1 | JK9: 1 | JL9: 1 | JM9: 1 | JN9: 1 | JO9: 1 | JP9: 1 | JQ9: 1 | JR9: 1 | JS9: 1 | JT9: 1 | JU9: 1 | JV9: 1 | JW9: 1 | JX9: 1 | JY9: 1 | JZ9: 1 | KA9: 1 | KB9: 1 | KC9: 1 | KD9: 1 | KE9: 1 | KF9: 1 | KG9: 1 | KH9: 1 | KI9: 1 | KJ9: 1 | KK9: 1 | KL9: 1 | KM9: 1 | KN9: 1 | KO9: 1 | KP9: 1 | KQ9: 1 | KR9: 1 | KS9: 1 | KT9: 1 | KU9: 1 | KV9: 1 | KW9: 1 | KX9: 1 | KY9: 1 | KZ9: 1 | LA9: 1 | LB9: 1 | LC9: 1 | LD9: 1 | LE9: 1 | LF9: 1 | LG9: 1 | LH9: 1 | LI9: 1 | LJ9: 1 | LK9: 1 | LL9: 1 | LM9: 1 | LN9: 1 | LO9: 1 | LP9: 1 | LQ9: 1 | LR9: 1 | LS9: 1 | LT9: 1 | LU9: 1 | LV9: 1 | LW9: 1 | LX9: 1 | LY9: 1 | LZ9: 1 | MA9: 1 | MB9: 1 | MC9: 1 | MD9: 1 | ME9: 1 | MF9: 1 | MG9: 1 | MH9: 1 | MI9: 1 | MJ9: 1 | MK9: 1 | ML9: 1 | MM9: 1 | MN9: 1 | MO9: 1 | MP9: 1 | MQ9: 1 | MR9: 1 | MS9: 1 | MT9: 1 | MU9: 1 | MV9: 1 | MW9: 1 | MX9: 1 | MY9: 1 | MZ9: 1 | NA9: 1 | NB9: 1 | NC9: 1 | ND9: 1 | NE9: 1 | NF9: 1 | NG9: 1 | NH9: 1 | NI9: 1 | NJ9: 1 | NK9: 1 | NL9: 1 | NM9: 1 | NN9: 1 | NO9: 1 | NP9: 1 | NQ9: 1 | NR9: 1 | NS9: 1 | NT9: 1 | NU9: 1 | NV9: 1 | NW9: 1 | NX9: 1 | NY9: 1 | NZ9: 1 | OA9: 1 | OB9: 1 | OC9: 1 | OD9: 1 | OE9: 1 | OF9: 1 | OG9: 1 | OH9: 1 | OI9: 1 | OJ9: 1 | OK9: 1 | OL9: 1 | OM9: 1 | ON9: 1 | OO9: 1 | OP9: 1 | OQ9: 1 | OR9: 1 | OS9: 1 | OT9: 1 | OU9: 1 | OV9: 1 | OW9: 1 | OX9: 1 | OY9: 1 | OZ9: 1 | PA9: 1 | PB9: 1 | PC9: 1 | PD9: 1 | PE9: 1 | PF9: 1 | PG9: 1
A11: 3. MÓDULO TÉCNICO | C11: Base | D11: 2020-01-01 | E11: 2020-02-01 | F11: 2020-03-01 | G11: 2020-04-01 | H11: 2020-05-01 | I11: 2020-06-01 | J11: 2020-07-01 | K11: 2020-08-01 | L11: 2020-09-01 | M11: 2020-10-01 | N11: 2020-11-01 | O11: 2020-12-01 | P11: 2021-01-01 | Q11: 2021-02-01 | R11: 2021-03-01 | S11: 2021-04-01 | T11: 2021-05-01 | U11: 2021-06-01 | V11: 2021-07-01 | W11: 2021-08-01 | X11: 2021-09-01 | Y11: 2021-10-01 | Z11: 2021-11-01 | AA11: 2021-12-01 | AB11: 2022-01-01 | AC11: 2022-02-01 | AD11: 2022-03-01 | AE11: 2022-04-01 | AF11: 2022-05-01 | AG11: 2022-06-01 | AH11: 2022-07-01 | AI11: 2022-08-01 | AJ11: 2022-09-01 | AK11: 2022-10-01 | AL11: 2022-11-01 | AM11: 2022-12-01 | AN11: 2023-01-01 | AO11: 2023-02-01 | AP11: 2023-03-01 | AQ11: 2023-04-01 | AR11: 2023-05-01 | AS11: 2023-06-01 | AT11: 2023-07-01 | AU11: 2023-08-01 | AV11: 2023-09-01 | AW11: 2023-10-01 | AX11: 2023-11-01 | AY11: 2023-12-01 | AZ11: 2024-01-01 | BA11: 2024-02-01 | BB11: 2024-03-01 | BC11: 2024-04-01 | BD11: 2024-05-01 | BE11: 2024-06-01 | BF11: 2024-07-01 | BG11: 2024-08-01 | BH11: 2024-09-01 | BI11: 2024-10-01 | BJ11: 2024-11-01 | BK11: 2024-12-01 | BL11: 2025-01-01 | BM11: 2025-02-01 | BN11: 2025-03-01 | BO11: 2025-04-01 | BP11: 2025-05-01 | BQ11: 2025-06-01 | BR11: 2025-07-01 | BS11: 2025-08-01 | BT11: 2025-09-01 | BU11: 2025-10-01 | BV11: 2025-11-01 | BW11: 2025-12-01 | BX11: 2026-01-01 | BY11: 2026-02-01 | BZ11: 2026-03-01 | CA11: 2026-04-01 | CB11: 2026-05-01 | CC11: 2026-06-01 | CD11: 2026-07-01 | CE11: 2026-08-01 | CF11: 2026-09-01 | CG11: 2026-10-01 | CH11: 2026-11-01 | CI11: 2026-12-01 | CJ11: 2027-01-01 | CK11: 2027-02-01 | CL11: 2027-03-01 | CM11: 2027-04-01 | CN11: 2027-05-01 | CO11: 2027-06-01 | CP11: 2027-07-01 | CQ11: 2027-08-01 | CR11: 2027-09-01 | CS11: 2027-10-01 | CT11: 2027-11-01 | CU11: 2027-12-01 | CV11: 2028-01-01 | CW11: 2028-02-01 | CX11: 2028-03-01 | CY11: 2028-04-01 | CZ11: 2028-05-01 | DA11: 2028-06-01 | DB11: 2028-07-01 | DC11: 2028-08-01 | DD11: 2028-09-01 | DE11: 2028-10-01 | DF11: 2028-11-01 | DG11: 2028-12-01 | DH11: 2029-01-01 | DI11: 2029-02-01 | DJ11: 2029-03-01 | DK11: 2029-04-01 | DL11: 2029-05-01 | DM11: 2029-06-01 | DN11: 2029-07-01 | DO11: 2029-08-01 | DP11: 2029-09-01 | DQ11: 2029-10-01 | DR11: 2029-11-01 | DS11: 2029-12-01 | DT11: 2030-01-01 | DU11: 2030-02-01 | DV11: 2030-03-01 | DW11: 2030-04-01 | DX11: 2030-05-01 | DY11: 2030-06-01 | DZ11: 2030-07-01 | EA11: 2030-08-01 | EB11: 2030-09-01 | EC11: 2030-10-01 | ED11: 2030-11-01 | EE11: 2030-12-01 | EF11: 2031-01-01 | EG11: 2031-02-01 | EH11: 2031-03-01 | EI11: 2031-04-01 | EJ11: 2031-05-01 | EK11: 2031-06-01 | EL11: 2031-07-01 | EM11: 2031-08-01 | EN11: 2031-09-01 | EO11: 2031-10-01 | EP11: 2031-11-01 | EQ11: 2031-12-01 | ER11: 2032-01-01 | ES11: 2032-02-01 | ET11: 2032-03-01 | EU11: 2032-04-01 | EV11: 2032-05-01 | EW11: 2032-06-01 | EX11: 2032-07-01 | EY11: 2032-08-01 | EZ11: 2032-09-01 | FA11: 2032-10-01 | FB11: 2032-11-01 | FC11: 2032-12-01 | FD11: 2033-01-01 | FE11: 2033-02-01 | FF11: 2033-03-01 | FG11: 2033-04-01 | FH11: 2033-05-01 | FI11: 2033-06-01 | FJ11: 2033-07-01 | FK11: 2033-08-01 | FL11: 2033-09-01 | FM11: 2033-10-01 | FN11: 2033-11-01 | FO11: 2033-12-01 | FP11: 2034-01-01 | FQ11: 2034-02-01 | FR11: 2034-03-01 | FS11: 2034-04-01 | FT11: 2034-05-01 | FU11: 2034-06-01 | FV11: 2034-07-01 | FW11: 2034-08-01 | FX11: 2034-09-01 | FY11: 2034-10-01 | FZ11: 2034-11-01 | GA11: 2034-12-01 | GB11: 2035-01-01 | GC11: 2035-02-01 | GD11: 2035-03-01 | GE11: 2035-04-01 | GF11: 2035-05-01 | GG11: 2035-06-01 | GH11: 2035-07-01 | GI11: 2035-08-01 | GJ11: 2035-09-01 | GK11: 2035-10-01 | GL11: 2035-11-01 | GM11: 2035-12-01 | GN11: 2036-01-01 | GO11: 2036-02-01 | GP11: 2036-03-01 | GQ11: 2036-04-01 | GR11: 2036-05-01 | GS11: 2036-06-01 | GT11: 2036-07-01 | GU11: 2036-08-01 | GV11: 2036-09-01 | GW11: 2036-10-01 | GX11: 2036-11-01 | GY11: 2036-12-01 | GZ11: 2037-01-01 | HA11: 2037-02-01 | HB11: 2037-03-01 | HC11: 2037-04-01 | HD11: 2037-05-01 | HE11: 2037-06-01 | HF11: 2037-07-01 | HG11: 2037-08-01 | HH11: 2037-09-01 | HI11: 2037-10-01 | HJ11: 2037-11-01 | HK11: 2037-12-01 | HL11: 2038-01-01 | HM11: 2038-02-01 | HN11: 2038-03-01 | HO11: 2038-04-01 | HP11: 2038-05-01 | HQ11: 2038-06-01 | HR11: 2038-07-01 | HS11: 2038-08-01 | HT11: 2038-09-01 | HU11: 2038-10-01 | HV11: 2038-11-01 | HW11: 2038-12-01 | HX11: 2039-01-01 | HY11: 2039-02-01 | HZ11: 2039-03-01 | IA11: 2039-04-01 | IB11: 2039-05-01 | IC11: 2039-06-01 | ID11: 2039-07-01 | IE11: 2039-08-01 | IF11: 2039-09-01 | IG11: 2039-10-01 | IH11: 2039-11-01 | II11: 2039-12-01 | IJ11: 2040-01-01 | IK11: 2040-02-01 | IL11: 2040-03-01 | IM11: 2040-04-01 | IN11: 2040-05-01 | IO11: 2040-06-01 | IP11: 2040-07-01 | IQ11: 2040-08-01 | IR11: 2040-09-01 | IS11: 2040-10-01 | IT11: 2040-11-01 | IU11: 2040-12-01 | IV11: 2041-01-01 | IW11: 2041-02-01 | IX11: 2041-03-01 | IY11: 2041-04-01 | IZ11: 2041-05-01 | JA11: 2041-06-01 | JB11: 2041-07-01 | JC11: 2041-08-01 | JD11: 2041-09-01 | JE11: 2041-10-01 | JF11: 2041-11-01 | JG11: 2041-12-01 | JH11: 2042-01-01 | JI11: 2042-02-01 | JJ11: 2042-03-01 | JK11: 2042-04-01 | JL11: 2042-05-01 | JM11: 2042-06-01 | JN11: 2042-07-01 | JO11: 2042-08-01 | JP11: 2042-09-01 | JQ11: 2042-10-01 | JR11: 2042-11-01 | JS11: 2042-12-01 | JT11: 2043-01-01 | JU11: 2043-02-01 | JV11: 2043-03-01 | JW11: 2043-04-01 | JX11: 2043-05-01 | JY11: 2043-06-01 | JZ11: 2043-07-01 | KA11: 2043-08-01 | KB11: 2043-09-01 | KC11: 2043-10-01 | KD11: 2043-11-01 | KE11: 2043-12-01 | KF11: 2044-01-01 | KG11: 2044-02-01 | KH11: 2044-03-01 | KI11: 2044-04-01 | KJ11: 2044-05-01 | KK11: 2044-06-01 | KL11: 2044-07-01 | KM11: 2044-08-01 | KN11: 2044-09-01 | KO11: 2044-10-01 | KP11: 2044-11-01 | KQ11: 2044-12-01 | KR11: 2045-01-01 | KS11: 2045-02-01 | KT11: 2045-03-01 | KU11: 2045-04-01 | KV11: 2045-05-01 | KW11: 2045-06-01 | KX11: 2045-07-01 | KY11: 2045-08-01 | KZ11: 2045-09-01 | LA11: 2045-10-01 | LB11: 2045-11-01 | LC11: 2045-12-01 | LD11: 2046-01-01 | LE11: 2046-02-01 | LF11: 2046-03-01 | LG11: 2046-04-01 | LH11: 2046-05-01 | LI11: 2046-06-01 | LJ11: 2046-07-01 | LK11: 2046-08-01 | LL11: 2046-09-01 | LM11: 2046-10-01 | LN11: 2046-11-01 | LO11: 2046-12-01 | LP11: 2047-01-01 | LQ11: 2047-02-01 | LR11: 2047-03-01 | LS11: 2047-04-01 | LT11: 2047-05-01 | LU11: 2047-06-01 | LV11: 2047-07-01 | LW11: 2047-08-01 | LX11: 2047-09-01 | LY11: 2047-10-01 | LZ11: 2047-11-01 | MA11: 2047-12-01 | MB11: 2048-01-01 | MC11: 2048-02-01 | MD11: 2048-03-01 | ME11: 2048-04-01 | MF11: 2048-05-01 | MG11: 2048-06-01 | MH11: 2048-07-01 | MI11: 2048-08-01 | MJ11: 2048-09-01 | MK11: 2048-10-01 | ML11: 2048-11-01 | MM11: 2048-12-01 | MN11: 2049-01-01 | MO11: 2049-02-01 | MP11: 2049-03-01 | MQ11: 2049-04-01 | MR11: 2049-05-01 | MS11: 2049-06-01 | MT11: 2049-07-01 | MU11: 2049-08-01 | MV11: 2049-09-01 | MW11: 2049-10-01 | MX11: 2049-11-01 | MY11: 2049-12-01 | MZ11: 2050-01-01 | NA11: 2050-02-01 | NB11: 2050-03-01 | NC11: 2050-04-01 | ND11: 2050-05-01 | NE11: 2050-06-01 | NF11: 2050-07-01 | NG11: 2050-08-01 | NH11: 2050-09-01 | NI11: 2050-10-01 | NJ11: 2050-11-01 | NK11: 2050-12-01 | NL11: 2051-01-01 | NM11: 2051-02-01 | NN11: 2051-03-01 | NO11: 2051-04-01 | NP11: 2051-05-01 | NQ11: 2051-06-01 | NR11: 2051-07-01 | NS11: 2051-08-01 | NT11: 2051-09-01 | NU11: 2051-10-01 | NV11: 2051-11-01 | NW11: 2051-12-01 | NX11: 2052-01-01 | NY11: 2052-02-01 | NZ11: 2052-03-01 | OA11: 2052-04-01 | OB11: 2052-05-01 | OC11: 2052-06-01 | OD11: 2052-07-01 | OE11: 2052-08-01 | OF11: 2052-09-01 | OG11: 2052-10-01 | OH11: 2052-11-01 | OI11: 2052-12-01 | OJ11: 2053-01-01 | OK11: 2053-02-01 | OL11: 2053-03-01 | OM11: 2053-04-01 | ON11: 2053-05-01 | OO11: 2053-06-01 | OP11: 2053-07-01 | OQ11: 2053-08-01 | OR11: 2053-09-01 | OS11: 2053-10-01 | OT11: 2053-11-01 | OU11: 2053-12-01 | OV11: 2054-01-01 | OW11: 2054-02-01 | OX11: 2054-03-01 | OY11: 2054-04-01 | OZ11: 2054-05-01 | PA11: 2054-06-01 | PB11: 2054-07-01 | PC11: 2054-08-01 | PD11: 2054-09-01 | PE11: 2054-10-01 | PF11: 2054-11-01 | PG11: 2054-12-01
A13: Seleção Trechos
A14: Trecho 1
A15: Área total - m² | C15: 81406 | D15: 81406 | E15: 81406 | F15: 81406 | G15: 81406 | H15: 81406 | I15: 81406 | J15: 81406 | K15: 81406 | L15: 81406 | M15: 81406 | N15: 81406 | O15: 81406 | P15: 81406 | Q15: 81406 | R15: 81406 | S15: 81406 | T15: 81406 | U15: 81406 | V15: 81406 | W15: 81406 | X15: 81406 | Y15: 81406 | Z15: 81406 | AA15: 81406 | AB15: 81406 | AC15: 81406 | AD15: 81406 | AE15: 81406 | AF15: 81406 | AG15: 81406 | AH15: 81406 | AI15: 81406 | AJ15: 81406 | AK15: 81406 | AL15: 81406 | AM15: 81406 | AN15: 81406 | AO15: 81406 | AP15: 81406 | AQ15: 81406 | AR15: 81406 | AS15: 81406 | AT15: 81406 | AU15: 81406 | AV15: 81406 | AW15: 81406 | AX15: 81406 | AY15: 81406 | AZ15: 81406 | BA15: 81406 | BB15: 81406 | BC15: 81406 | BD15: 81406 | BE15: 81406 | BF15: 81406 | BG15: 81406 | BH15: 81406 | BI15: 81406 | BJ15: 81406 | BK15: 81406 | BL15: 81406 | BM15: 81406 | BN15: 81406 | BO15: 81406 | BP15: 81406 | BQ15: 81406 | BR15: 81406 | BS15: 81406 | BT15: 81406 | BU15: 81406 | BV15: 81406 | BW15: 81406 | BX15: 81406 | BY15: 81406 | BZ15: 81406 | CA15: 81406 | CB15: 81406 | CC15: 81406 | CD15: 81406 | CE15: 81406 | CF15: 81406 | CG15: 81406 | CH15: 81406 | CI15: 81406 | CJ15: 81406 | CK15: 81406 | CL15: 81406 | CM15: 81406 | CN15: 81406 | CO15: 81406 | CP15: 81406 | CQ15: 81406 | CR15: 81406 | CS15: 81406 | CT15: 81406 | CU15: 81406 | CV15: 81406 | CW15: 81406 | CX15: 81406 | CY15: 81406 | CZ15: 81406 | DA15: 81406 | DB15: 81406 | DC15: 81406 | DD15: 81406 | DE15: 81406 | DF15: 81406 | DG15: 81406 | DH15: 81406 | DI15: 81406 | DJ15: 81406 | DK15: 81406 | DL15: 81406 | DM15: 81406 | DN15: 81406 | DO15: 81406 | DP15: 81406 | DQ15: 81406 | DR15: 81406 | DS15: 81406 | DT15: 81406 | DU15: 81406 | DV15: 81406 | DW15: 81406 | DX15: 81406 | DY15: 81406 | DZ15: 81406 | EA15: 81406 | EB15: 81406 | EC15: 81406 | ED15: 81406 | EE15: 81406 | EF15: 81406 | EG15: 81406 | EH15: 81406 | EI15: 81406 | EJ15: 81406 | EK15: 81406 | EL15: 81406 | EM15: 81406 | EN15: 81406 | EO15: 81406 | EP15: 81406 | EQ15: 81406 | ER15: 81406 | ES15: 81406 | ET15: 81406 | EU15: 81406 | EV15: 81406 | EW15: 81406 | EX15: 81406 | EY15: 81406 | EZ15: 81406 | FA15: 81406 | FB15: 81406 | FC15: 81406 | FD15: 81406 | FE15: 81406 | FF15: 81406 | FG15: 81406 | FH15: 81406 | FI15: 81406 | FJ15: 81406 | FK15: 81406 | FL15: 81406 | FM15: 81406 | FN15: 81406 | FO15: 81406 | FP15: 81406 | FQ15: 81406 | FR15: 81406 | FS15: 81406 | FT15: 81406 | FU15: 81406 | FV15: 81406 | FW15: 81406 | FX15: 81406 | FY15: 81406 | FZ15: 81406 | GA15: 81406 | GB15: 81406 | GC15: 81406 | GD15: 81406 | GE15: 81406 | GF15: 81406 | GG15: 81406 | GH15: 81406 | GI15: 81406 | GJ15: 81406 | GK15: 81406 | GL15: 81406 | GM15: 81406 | GN15: 81406 | GO15: 81406 | GP15: 81406 | GQ15: 81406 | GR15: 81406 | GS15: 81406 | GT15: 81406 | GU15: 81406 | GV15: 81406 | GW15: 81406 | GX15: 81406 | GY15: 81406 | GZ15: 81406 | HA15: 81406 | HB15: 81406 | HC15: 81406 | HD15: 81406 | HE15: 81406 | HF15: 81406 | HG15: 81406 | HH15: 81406 | HI15: 81406 | HJ15: 81406 | HK15: 81406 | HL15: 81406 | HM15: 81406 | HN15: 81406 | HO15: 81406 | HP15: 81406 | HQ15: 81406 | HR15: 81406 | HS15: 81406 | HT15: 81406 | HU15: 81406 | HV15: 81406 | HW15: 81406 | HX15: 81406 | HY15: 81406 | HZ15: 81406 | IA15: 81406 | IB15: 81406 | IC15: 81406 | ID15: 81406 | IE15: 81406 | IF15: 81406 | IG15: 81406 | IH15: 81406 | II15: 81406 | IJ15: 81406 | IK15: 81406 | IL15: 81406 | IM15: 81406 | IN15: 81406 | IO15: 81406 | IP15: 81406 | IQ15: 81406 | IR15: 81406 | IS15: 81406 | IT15: 81406 | IU15: 81406 | IV15: 81406 | IW15: 81406 | IX15: 81406 | IY15: 81406 | IZ15: 81406 | JA15: 81406 | JB15: 81406 | JC15: 81406 | JD15: 81406 | JE15: 81406 | JF15: 81406 | JG15: 81406 | JH15: 81406 | JI15: 81406 | JJ15: 81406 | JK15: 81406 | JL15: 81406 | JM15: 81406 | JN15: 81406 | JO15: 81406 | JP15: 81406 | JQ15: 81406 | JR15: 81406 | JS15: 81406 | JT15: 81406 | JU15: 81406 | JV15: 81406 | JW15: 81406 | JX15: 81406 | JY15: 81406 | JZ15: 81406 | KA15: 81406 | KB15: 81406 | KC15: 81406 | KD15: 81406 | KE15: 81406 | KF15: 81406 | KG15: 81406 | KH15: 81406 | KI15: 81406 | KJ15: 81406 | KK15: 81406 | KL15: 81406 | KM15: 81406 | KN15: 81406 | KO15: 81406 | KP15: 81406 | KQ15: 81406 | KR15: 81406 | KS15: 81406 | KT15: 81406 | KU15: 81406 | KV15: 81406 | KW15: 81406 | KX15: 81406 | KY15: 81406 | KZ15: 81406 | LA15: 81406 | LB15: 81406 | LC15: 81406 | LD15: 81406 | LE15: 81406 | LF15: 81406 | LG15: 81406 | LH15: 81406 | LI15: 81406 | LJ15: 81406 | LK15: 81406 | LL15: 81406 | LM15: 81406 | LN15: 81406 | LO15: 81406 | LP15: 81406 | LQ15: 81406 | LR15: 81406 | LS15: 81406 | LT15: 81406 | LU15: 81406 | LV15: 81406 | LW15: 81406 | LX15: 81406 | LY15: 81406 | LZ15: 81406 | MA15: 81406 | MB15: 81406 | MC15: 81406 | MD15: 81406 | ME15: 81406 | MF15: 81406 | MG15: 81406 | MH15: 81406 | MI15: 81406 | MJ15: 81406 | MK15: 81406 | ML15: 81406 | MM15: 81406 | MN15: 81406 | MO15: 81406 | MP15: 81406 | MQ15: 81406 | MR15: 81406 | MS15: 81406 | MT15: 81406 | MU15: 81406 | MV15: 81406 | MW15: 81406 | MX15: 81406 | MY15: 81406 | MZ15: 81406 | NA15: 81406 | NB15: 81406 | NC15: 81406 | ND15: 81406 | NE15: 81406 | NF15: 81406 | NG15: 81406 | NH15: 81406 | NI15: 81406 | NJ15: 81406 | NK15: 81406 | NL15: 81406 | NM15: 81406 | NN15: 81406 | NO15: 81406 | NP15: 81406 | NQ15: 81406 | NR15: 81406 | NS15: 81406 | NT15: 81406 | NU15: 81406 | NV15: 81406 | NW15: 81406 | NX15: 81406 | NY15: 81406 | NZ15: 81406 | OA15: 81406 | OB15: 81406 | OC15: 81406 | OD15: 81406 | OE15: 81406 | OF15: 81406 | OG15: 81406 | OH15: 81406 | OI15: 81406 | OJ15: 81406 | OK15: 81406 | OL15: 81406 | OM15: 81406 | ON15: 81406 | OO15: 81406 | OP15: 81406 | OQ15: 81406 | OR15: 81406 | OS15: 81406 | OT15: 81406 | OU15: 81406 | OV15: 81406 | OW15: 81406 | OX15: 81406 | OY15: 81406 | OZ15: 81406 | PA15: 81406 | PB15: 81406 | PC15: 81406 | PD15: 81406 | PE15: 81406 | PF15: 81406 | PG15: 81406
B16: CAPEX FLUXO
B18: Trecho 1
B19: CAPEX por Área (R$/ m²) | D19: 0 | E19: 0 | F19: 0 | G19: 0 | H19: 0 | I19: 0 | J19: 0 | K19: 0 | L19: 0 | M19: 0 | N19: 0 | O19: 0 | P19: 0 | Q19: 0 | R19: 0 | S19: 0 | T19: 0 | U19: 0 | V19: 0 | W19: 0 | X19: 0 | Y19: 0 | Z19: 0 | AA19: 0 | AB19: 0 | AC19: 0 | AD19: 0 | AE19: 0 | AF19: 0 | AG19: 0 | AH19: 0 | AI19: 0 | AJ19: 0 | AK19: 0 | AL19: 0 | AM19: 0 | AN19: 0 | AO19: 0 | AP19: 0 | AQ19: 0 | AR19: 0 | AS19: 0 | AT19: 0 | AU19: 0 | AV19: 0 | AW19: 0 | AX19: 0 | AY19: 0 | AZ19: 0 | BA19: 0 | BB19: 0 | BC19: 0 | BD19: 0 | BE19: 0 | BF19: 0 | BG19: 0 | BH19: 0 | BI19: 0 | BJ19: 0 | BK19: 0 | BL19: 0 | BM19: 0 | BN19: 0 | BO19: 0 | BP19: 0 | BQ19: 0 | BR19: 0 | BS19: 0 | BT19: 0 | BU19: 0 | BV19: 0 | BW19: 0 | BX19: 0 | BY19: 0 | BZ19: 0 | CA19: 0 | CB19: 0 | CC19: 0 | CD19: 0 | CE19: 0 | CF19: 0 | CG19: 0 | CH19: 0 | CI19: 0 | CJ19: 0 | CK19: 0 | CL19: 0 | CM19: 0 | CN19: 0 | CO19: 0 | CP19: 0 | CQ19: 0 | CR19: 0 | CS19: 0 | CT19: 0 | CU19: 0 | CV19: 0 | CW19: 0 | CX19: 0 | CY19: 0 | CZ19: 0 | DA19: 0 | DB19: 0 | DC19: 0 | DD19: 0 | DE19: 0 | DF19: 0 | DG19: 0 | DH19: 0 | DI19: 0 | DJ19: 0 | DK19: 0 | DL19: 0 | DM19: 0 | DN19: 0 | DO19: 0 | DP19: 0 | DQ19: 0 | DR19: 0 | DS19: 0 | DT19: 0 | DU19: 0 | DV19: 0 | DW19: 0 | DX19: 0 | DY19: 0 | DZ19: 0 | EA19: 0 | EB19: 0 | EC19: 0 | ED19: 0 | EE19: 0 | EF19: 0 | EG19: 0 | EH19: 0 | EI19: 0 | EJ19: 0 | EK19: 0 | EL19: 0 | EM19: 0 | EN19: 0 | EO19: 0 | EP19: 0 | EQ19: 0 | ER19: 0 | ES19: 0 | ET19: 0 | EU19: 0 | EV19: 0 | EW19: 0 | EX19: 0 | EY19: 0 | EZ19: 0 | FA19: 0 | FB19: 0 | FC19: 0 | FD19: 0 | FE19: 0 | FF19: 0 | FG19: 0 | FH19: 0 | FI19: 0 | FJ19: 0 | FK19: 0 | FL19: 0 | FM19: 0 | FN19: 0 | FO19: 0 | FP19: 0 | FQ19: 0 | FR19: 0 | FS19: 0 | FT19: 0 | FU19: 0 | FV19: 0 | FW19: 0 | FX19: 0 | FY19: 0 | FZ19: 0 | GA19: 0 | GB19: 0 | GC19: 0 | GD19: 0 | GE19: 0 | GF19: 0 | GG19: 0 | GH19: 0 | GI19: 0 | GJ19: 0 | GK19: 0 | GL19: 0 | GM19: 0 | GN19: 0 | GO19: 0 | GP19: 0 | GQ19: 0 | GR19: 0 | GS19: 0 | GT19: 0 | GU19: 0 | GV19: 0 | GW19: 0 | GX19: 0 | GY19: 0 | GZ19: 0 | HA19: 0 | HB19: 0 | HC19: 0 | HD19: 0 | HE19: 0 | HF19: 0 | HG19: 0 | HH19: 0 | HI19: 0 | HJ19: 0 | HK19: 0 | HL19: 0 | HM19: 0 | HN19: 0 | HO19: 0 | HP19: 0 | HQ19: 0 | HR19: 0 | HS19: 0 | HT19: 0 | HU19: 0 | HV19: 0 | HW19: 0 | HX19: 0 | HY19: 0 | HZ19: 0 | IA19: 0 | IB19: 0 | IC19: 0 | ID19: 0 | IE19: 0 | IF19: 0 | IG19: 0 | IH19: 0 | II19: 0 | IJ19: 0 | IK19: 0 | IL19: 0 | IM19: 0 | IN19: 0 | IO19: 0 | IP19: 0 | IQ19: 0 | IR19: 0 | IS19: 0 | IT19: 0 | IU19: 0 | IV19: 0 | IW19: 0 | IX19: 0 | IY19: 0 | IZ19: 0 | JA19: 0 | JB19: 0 | JC19: 0 | JD19: 0 | JE19: 0 | JF19: 0 | JG19: 0 | JH19: 0 | JI19: 0 | JJ19: 0 | JK19: 0 | JL19: 0 | JM19: 0 | JN19: 0 | JO19: 0 | JP19: 0 | JQ19: 0 | JR19: 0 | JS19: 0 | JT19: 0 | JU19: 0 | JV19: 0 | JW19: 0 | JX19: 0 | JY19: 0 | JZ19: 0 | KA19: 0 | KB19: 0 | KC19: 0 | KD19: 0 | KE19: 0 | KF19: 0 | KG19: 0 | KH19: 0 | KI19: 0 | KJ19: 0 | KK19: 0 | KL19: 0 | KM19: 0 | KN19: 0 | KO19: 0 | KP19: 0 | KQ19: 0 | KR19: 0 | KS19: 0 | KT19: 0 | KU19: 0 | KV19: 0 | KW19: 0 | KX19: 0 | KY19: 0 | KZ19: 0 | LA19: 0 | LB19: 0 | LC19: 0 | LD19: 0 | LE19: 0 | LF19: 0 | LG19: 0 | LH19: 0 | LI19: 0 | LJ19: 0 | LK19: 0 | LL19: 0 | LM19: 0 | LN19: 0 | LO19: 0 | LP19: 0 | LQ19: 0 | LR19: 0 | LS19: 0 | LT19: 0 | LU19: 0 | LV19: 0 | LW19: 0 | LX19: 0 | LY19: 0 | LZ19: 0 | MA19: 0 | MB19: 0 | MC19: 0 | MD19: 0 | ME19: 0 | MF19: 0 | MG19: 0 | MH19: 0 | MI19: 0 | MJ19: 0 | MK19: 0 | ML19: 0 | MM19: 0 | MN19: 0 | MO19: 0 | MP19: 0 | MQ19: 0 | MR19: 0 | MS19: 0 | MT19: 0 | MU19: 0 | MV19: 0 | MW19: 0 | MX19: 0 | MY19: 0 | MZ19: 0 | NA19: 0 | NB19: 0 | NC19: 0 | ND19: 0 | NE19: 0 | NF19: 0 | NG19: 0 | NH19: 0 | NI19: 0 | NJ19: 0 | NK19: 0 | NL19: 0 | NM19: 0 | NN19: 0 | NO19: 0 | NP19: 0 | NQ19: 0 | NR19: 0 | NS19: 0 | NT19: 0 | NU19: 0 | NV19: 0 | NW19: 0 | NX19: 0 | NY19: 0 | NZ19: 0 | OA19: 0 | OB19: 0 | OC19: 0 | OD19: 0 | OE19: 0 | OF19: 0 | OG19: 0 | OH19: 0 | OI19: 0 | OJ19: 0 | OK19: 0 | OL19: 0 | OM19: 0 | ON19: 0 | OO19: 0 | OP19: 0 | OQ19: 0 | OR19: 0 | OS19: 0 | OT19: 0 | OU19: 0 | OV19: 0 | OW19: 0 | OX19: 0 | OY19: 0 | OZ19: 0 | PA19: 0 | PB19: 0 | PC19: 0 | PD19: 0 | PE19: 0 | PF19: 0 | PG19: 0
B20: Sensibilidade CAPEX | D20: 1 | E20: 1 | F20: 1 | G20: 1 | H20: 1 | I20: 1 | J20: 1 | K20: 1 | L20: 1 | M20: 1 | N20: 1 | O20: 1 | P20: 1 | Q20: 1 | R20: 1 | S20: 1 | T20: 1 | U20: 1 | V20: 1 | W20: 1 | X20: 1 | Y20: 1 | Z20: 1 | AA20: 1 | AB20: 1 | AC20: 1 | AD20: 1 | AE20: 1 | AF20: 1 | AG20: 1 | AH20: 1 | AI20: 1 | AJ20: 1 | AK20: 1 | AL20: 1 | AM20: 1 | AN20: 1 | AO20: 1 | AP20: 1 | AQ20: 1 | AR20: 1 | AS20: 1 | AT20: 1 | AU20: 1 | AV20: 1 | AW20: 1 | AX20: 1 | AY20: 1 | AZ20: 1 | BA20: 1 | BB20: 1 | BC20: 1 | BD20: 1 | BE20: 1 | BF20: 1 | BG20: 1 | BH20: 1 | BI20: 1 | BJ20: 1 | BK20: 1 | BL20: 1 | BM20: 1 | BN20: 1 | BO20: 1 | BP20: 1 | BQ20: 1 | BR20: 1 | BS20: 1 | BT20: 1 | BU20: 1 | BV20: 1 | BW20: 1 | BX20: 1 | BY20: 1 | BZ20: 1 | CA20: 1 | CB20: 1 | CC20: 1 | CD20: 1 | CE20: 1 | CF20: 1 | CG20: 1 | CH20: 1 | CI20: 1 | CJ20: 1 | CK20: 1 | CL20: 1 | CM20: 1 | CN20: 1 | CO20: 1 | CP20: 1 | CQ20: 1 | CR20: 1 | CS20: 1 | CT20: 1 | CU20: 1 | CV20: 1 | CW20: 1 | CX20: 1 | CY20: 1 | CZ20: 1 | DA20: 1 | DB20: 1 | DC20: 1 | DD20: 1 | DE20: 1 | DF20: 1 | DG20: 1 | DH20: 1 | DI20: 1 | DJ20: 1 | DK20: 1 | DL20: 1 | DM20: 1 | DN20: 1 | DO20: 1 | DP20: 1 | DQ20: 1 | DR20: 1 | DS20: 1 | DT20: 1 | DU20: 1 | DV20: 1 | DW20: 1 | DX20: 1 | DY20: 1 | DZ20: 1 | EA20: 1 | EB20: 1 | EC20: 1 | ED20: 1 | EE20: 1 | EF20: 1 | EG20: 1 | EH20: 1 | EI20: 1 | EJ20: 1 | EK20: 1 | EL20: 1 | EM20: 1 | EN20: 1 | EO20: 1 | EP20: 1 | EQ20: 1 | ER20: 1 | ES20: 1 | ET20: 1 | EU20: 1 | EV20: 1 | EW20: 1 | EX20: 1 | EY20: 1 | EZ20: 1 | FA20: 1 | FB20: 1 | FC20: 1 | FD20: 1 | FE20: 1 | FF20: 1 | FG20: 1 | FH20: 1 | FI20: 1 | FJ20: 1 | FK20: 1 | FL20: 1 | FM20: 1 | FN20: 1 | FO20: 1 | FP20: 1 | FQ20: 1 | FR20: 1 | FS20: 1 | FT20: 1 | FU20: 1 | FV20: 1 | FW20: 1 | FX20: 1 | FY20: 1 | FZ20: 1 | GA20: 1 | GB20: 1 | GC20: 1 | GD20: 1 | GE20: 1 | GF20: 1 | GG20: 1 | GH20: 1 | GI20: 1 | GJ20: 1 | GK20: 1 | GL20: 1 | GM20: 1 | GN20: 1 | GO20: 1 | GP20: 1 | GQ20: 1 | GR20: 1 | GS20: 1 | GT20: 1 | GU20: 1 | GV20: 1 | GW20: 1 | GX20: 1 | GY20: 1 | GZ20: 1 | HA20: 1 | HB20: 1 | HC20: 1 | HD20: 1 | HE20: 1 | HF20: 1 | HG20: 1 | HH20: 1 | HI20: 1 | HJ20: 1 | HK20: 1 | HL20: 1 | HM20: 1 | HN20: 1 | HO20: 1 | HP20: 1 | HQ20: 1 | HR20: 1 | HS20: 1 | HT20: 1 | HU20: 1 | HV20: 1 | HW20: 1 | HX20: 1 | HY20: 1 | HZ20: 1 | IA20: 1 | IB20: 1 | IC20: 1 | ID20: 1 | IE20: 1 | IF20: 1 | IG20: 1 | IH20: 1 | II20: 1 | IJ20: 1 | IK20: 1 | IL20: 1 | IM20: 1 | IN20: 1 | IO20: 1 | IP20: 1 | IQ20: 1 | IR20: 1 | IS20: 1 | IT20: 1 | IU20: 1 | IV20: 1 | IW20: 1 | IX20: 1 | IY20: 1 | IZ20: 1 | JA20: 1 | JB20: 1 | JC20: 1 | JD20: 1 | JE20: 1 | JF20: 1 | JG20: 1 | JH20: 1 | JI20: 1 | JJ20: 1 | JK20: 1 | JL20: 1 | JM20: 1 | JN20: 1 | JO20: 1 | JP20: 1 | JQ20: 1 | JR20: 1 | JS20: 1 | JT20: 1 | JU20: 1 | JV20: 1 | JW20: 1 | JX20: 1 | JY20: 1 | JZ20: 1 | KA20: 1 | KB20: 1 | KC20: 1 | KD20: 1 | KE20: 1 | KF20: 1 | KG20: 1 | KH20: 1 | KI20: 1 | KJ20: 1 | KK20: 1 | KL20: 1 | KM20: 1 | KN20: 1 | KO20: 1 | KP20: 1 | KQ20: 1 | KR20: 1 | KS20: 1 | KT20: 1 | KU20: 1 | KV20: 1 | KW20: 1 | KX20: 1 | KY20: 1 | KZ20: 1 | LA20: 1 | LB20: 1 | LC20: 1 | LD20: 1 | LE20: 1 | LF20: 1 | LG20: 1 | LH20: 1 | LI20: 1 | LJ20: 1 | LK20: 1 | LL20: 1 | LM20: 1 | LN20: 1 | LO20: 1 | LP20: 1 | LQ20: 1 | LR20: 1 | LS20: 1 | LT20: 1 | LU20: 1 | LV20: 1 | LW20: 1 | LX20: 1 | LY20: 1 | LZ20: 1 | MA20: 1 | MB20: 1 | MC20: 1 | MD20: 1 | ME20: 1 | MF20: 1 | MG20: 1 | MH20: 1 | MI20: 1 | MJ20: 1 | MK20: 1 | ML20: 1 | MM20: 1 | MN20: 1 | MO20: 1 | MP20: 1 | MQ20: 1 | MR20: 1 | MS20: 1 | MT20: 1 | MU20: 1 | MV20: 1 | MW20: 1 | MX20: 1 | MY20: 1 | MZ20: 1 | NA20: 1 | NB20: 1 | NC20: 1 | ND20: 1 | NE20: 1 | NF20: 1 | NG20: 1 | NH20: 1 | NI20: 1 | NJ20: 1 | NK20: 1 | NL20: 1 | NM20: 1 | NN20: 1 | NO20: 1 | NP20: 1 | NQ20: 1 | NR20: 1 | NS20: 1 | NT20: 1 | NU20: 1 | NV20: 1 | NW20: 1 | NX20: 1 | NY20: 1 | NZ20: 1 | OA20: 1 | OB20: 1 | OC20: 1 | OD20: 1 | OE20: 1 | OF20: 1 | OG20: 1 | OH20: 1 | OI20: 1 | OJ20: 1 | OK20: 1 | OL20: 1 | OM20: 1 | ON20: 1 | OO20: 1 | OP20: 1 | OQ20: 1 | OR20: 1 | OS20: 1 | OT20: 1 | OU20: 1 | OV20: 1 | OW20: 1 | OX20: 1 | OY20: 1 | OZ20: 1 | PA20: 1 | PB20: 1 | PC20: 1 | PD20: 1 | PE20: 1 | PF20: 1 | PG20: 1
B21: Referência de área | D21: 81406 | E21: 81406 | F21: 81406 | G21: 81406 | H21: 81406 | I21: 81406 | J21: 81406 | K21: 81406 | L21: 81406 | M21: 81406 | N21: 81406 | O21: 81406 | P21: 81406 | Q21: 81406 | R21: 81406 | S21: 81406 | T21: 81406 | U21: 81406 | V21: 81406 | W21: 81406 | X21: 81406 | Y21: 81406 | Z21: 81406 | AA21: 81406 | AB21: 81406 | AC21: 81406 | AD21: 81406 | AE21: 81406 | AF21: 81406 | AG21: 81406 | AH21: 81406 | AI21: 81406 | AJ21: 81406 | AK21: 81406 | AL21: 81406 | AM21: 81406 | AN21: 81406 | AO21: 81406 | AP21: 81406 | AQ21: 81406 | AR21: 81406 | AS21: 81406 | AT21: 81406 | AU21: 81406 | AV21: 81406 | AW21: 81406 | AX21: 81406 | AY21: 81406 | AZ21: 81406 | BA21: 81406 | BB21: 81406 | BC21: 81406 | BD21: 81406 | BE21: 81406 | BF21: 81406 | BG21: 81406 | BH21: 81406 | BI21: 81406 | BJ21: 81406 | BK21: 81406 | BL21: 81406 | BM21: 81406 | BN21: 81406 | BO21: 81406 | BP21: 81406 | BQ21: 81406 | BR21: 81406 | BS21: 81406 | BT21: 81406 | BU21: 81406 | BV21: 81406 | BW21: 81406 | BX21: 81406 | BY21: 81406 | BZ21: 81406 | CA21: 81406 | CB21: 81406 | CC21: 81406 | CD21: 81406 | CE21: 81406 | CF21: 81406 | CG21: 81406 | CH21: 81406 | CI21: 81406 | CJ21: 81406 | CK21: 81406 | CL21: 81406 | CM21: 81406 | CN21: 81406 | CO21: 81406 | CP21: 81406 | CQ21: 81406 | CR21: 81406 | CS21: 81406 | CT21: 81406 | CU21: 81406 | CV21: 81406 | CW21: 81406 | CX21: 81406 | CY21: 81406 | CZ21: 81406 | DA21: 81406 | DB21: 81406 | DC21: 81406 | DD21: 81406 | DE21: 81406 | DF21: 81406 | DG21: 81406 | DH21: 81406 | DI21: 81406 | DJ21: 81406 | DK21: 81406 | DL21: 81406 | DM21: 81406 | DN21: 81406 | DO21: 81406 | DP21: 81406 | DQ21: 81406 | DR21: 81406 | DS21: 81406 | DT21: 81406 | DU21: 81406 | DV21: 81406 | DW21: 81406 | DX21: 81406 | DY21: 81406 | DZ21: 81406 | EA21: 81406 | EB21: 81406 | EC21: 81406 | ED21: 81406 | EE21: 81406 | EF21: 81406 | EG21: 81406 | EH21: 81406 | EI21: 81406 | EJ21: 81406 | EK21: 81406 | EL21: 81406 | EM21: 81406 | EN21: 81406 | EO21: 81406 | EP21: 81406 | EQ21: 81406 | ER21: 81406 | ES21: 81406 | ET21: 81406 | EU21: 81406 | EV21: 81406 | EW21: 81406 | EX21: 81406 | EY21: 81406 | EZ21: 81406 | FA21: 81406 | FB21: 81406 | FC21: 81406 | FD21: 81406 | FE21: 81406 | FF21: 81406 | FG21: 81406 | FH21: 81406 | FI21: 81406 | FJ21: 81406 | FK21: 81406 | FL21: 81406 | FM21: 81406 | FN21: 81406 | FO21: 81406 | FP21: 81406 | FQ21: 81406 | FR21: 81406 | FS21: 81406 | FT21: 81406 | FU21: 81406 | FV21: 81406 | FW21: 81406 | FX21: 81406 | FY21: 81406 | FZ21: 81406 | GA21: 81406 | GB21: 81406 | GC21: 81406 | GD21: 81406 | GE21: 81406 | GF21: 81406 | GG21: 81406 | GH21: 81406 | GI21: 81406 | GJ21: 81406 | GK21: 81406 | GL21: 81406 | GM21: 81406 | GN21: 81406 | GO21: 81406 | GP21: 81406 | GQ21: 81406 | GR21: 81406 | GS21: 81406 | GT21: 81406 | GU21: 81406 | GV21: 81406 | GW21: 81406 | GX21: 81406 | GY21: 81406 | GZ21: 81406 | HA21: 81406 | HB21: 81406 | HC21: 81406 | HD21: 81406 | HE21: 81406 | HF21: 81406 | HG21: 81406 | HH21: 81406 | HI21: 81406 | HJ21: 81406 | HK21: 81406 | HL21: 81406 | HM21: 81406 | HN21: 81406 | HO21: 81406 | HP21: 81406 | HQ21: 81406 | HR21: 81406 | HS21: 81406 | HT21: 81406 | HU21: 81406 | HV21: 81406 | HW21: 81406 | HX21: 81406 | HY21: 81406 | HZ21: 81406 | IA21: 81406 | IB21: 81406 | IC21: 81406 | ID21: 81406 | IE21: 81406 | IF21: 81406 | IG21: 81406 | IH21: 81406 | II21: 81406 | IJ21: 81406 | IK21: 81406 | IL21: 81406 | IM21: 81406 | IN21: 81406 | IO21: 81406 | IP21: 81406 | IQ21: 81406 | IR21: 81406 | IS21: 81406 | IT21: 81406 | IU21: 81406 | IV21: 81406 | IW21: 81406 | IX21: 81406 | IY21: 81406 | IZ21: 81406 | JA21: 81406 | JB21: 81406 | JC21: 81406 | JD21: 81406 | JE21: 81406 | JF21: 81406 | JG21: 81406 | JH21: 81406 | JI21: 81406 | JJ21: 81406 | JK21: 81406 | JL21: 81406 | JM21: 81406 | JN21: 81406 | JO21: 81406 | JP21: 81406 | JQ21: 81406 | JR21: 81406 | JS21: 81406 | JT21: 81406 | JU21: 81406 | JV21: 81406 | JW21: 81406 | JX21: 81406 | JY21: 81406 | JZ21: 81406 | KA21: 81406 | KB21: 81406 | KC21: 81406 | KD21: 81406 | KE21: 81406 | KF21: 81406 | KG21: 81406 | KH21: 81406 | KI21: 81406 | KJ21: 81406 | KK21: 81406 | KL21: 81406 | KM21: 81406 | KN21: 81406 | KO21: 81406 | KP21: 81406 | KQ21: 81406 | KR21: 81406 | KS21: 81406 | KT21: 81406 | KU21: 81406 | KV21: 81406 | KW21: 81406 | KX21: 81406 | KY21: 81406 | KZ21: 81406 | LA21: 81406 | LB21: 81406 | LC21: 81406 | LD21: 81406 | LE21: 81406 | LF21: 81406 | LG21: 81406 | LH21: 81406 | LI21: 81406 | LJ21: 81406 | LK21: 81406 | LL21: 81406 | LM21: 81406 | LN21: 81406 | LO21: 81406 | LP21: 81406 | LQ21: 81406 | LR21: 81406 | LS21: 81406 | LT21: 81406 | LU21: 81406 | LV21: 81406 | LW21: 81406 | LX21: 81406 | LY21: 81406 | LZ21: 81406 | MA21: 81406 | MB21: 81406 | MC21: 81406 | MD21: 81406 | ME21: 81406 | MF21: 81406 | MG21: 81406 | MH21: 81406 | MI21: 81406 | MJ21: 81406 | MK21: 81406 | ML21: 81406 | MM21: 81406 | MN21: 81406 | MO21: 81406 | MP21: 81406 | MQ21: 81406 | MR21: 81406 | MS21: 81406 | MT21: 81406 | MU21: 81406 | MV21: 81406 | MW21: 81406 | MX21: 81406 | MY21: 81406 | MZ21: 81406 | NA21: 81406 | NB21: 81406 | NC21: 81406 | ND21: 81406 | NE21: 81406 | NF21: 81406 | NG21: 81406 | NH21: 81406 | NI21: 81406 | NJ21: 81406 | NK21: 81406 | NL21: 81406 | NM21: 81406 | NN21: 81406 | NO21: 81406 | NP21: 81406 | NQ21: 81406 | NR21: 81406 | NS21: 81406 | NT21: 81406 | NU21: 81406 | NV21: 81406 | NW21: 81406 | NX21: 81406 | NY21: 81406 | NZ21: 81406 | OA21: 81406 | OB21: 81406 | OC21: 81406 | OD21: 81406 | OE21: 81406 | OF21: 81406 | OG21: 81406 | OH21: 81406 | OI21: 81406 | OJ21: 81406 | OK21: 81406 | OL21: 81406 | OM21: 81406 | ON21: 81406 | OO21: 81406 | OP21: 81406 | OQ21: 81406 | OR21: 81406 | OS21: 81406 | OT21: 81406 | OU21: 81406 | OV21: 81406 | OW21: 81406 | OX21: 81406 | OY21: 81406 | OZ21: 81406 | PA21: 81406 | PB21: 81406 | PC21: 81406 | PD21: 81406 | PE21: 81406 | PF21: 81406 | PG21: 81406
B22: Curva de execução anual | E22: 0 | F22: 0 | G22: 0 | H22: 0 | I22: 0 | J22: 0 | K22: 0 | L22: 0 | M22: 0 | N22: 0 | O22: 0 | P22: 0 | Q22: 0 | R22: 0 | S22: 0 | T22: 0 | U22: 0 | V22: 0 | W22: 0 | X22: 0 | Y22: 0 | Z22: 0 | AA22: 0 | AB22: 0 | AC22: 0 | AD22: 0 | AE22: 0 | AF22: 0 | AG22: 0 | AH22: 0 | AI22: 0 | AJ22: 0 | AK22: 0 | AL22: 0 | AM22: 0 | AN22: 0 | AO22: 0 | AP22: 0 | AQ22: 0 | AR22: 0 | AS22: 0 | AT22: 0 | AU22: 0 | AV22: 0 | AW22: 0 | AX22: 0 | AY22: 0 | AZ22: 0 | BA22: 0 | BB22: 0 | BC22: 0 | BD22: 0 | BE22: 0 | BF22: 0 | BG22: 0 | BH22: 0 | BI22: 0 | BJ22: 0 | BK22: 0 | BL22: 0 | BM22: 0 | BN22: 0 | BO22: 0 | BP22: 0 | BQ22: 0 | BR22: 0 | BS22: 0 | BT22: 0 | BU22: 0 | BV22: 0 | BW22: 0 | BX22: 0 | BY22: 0 | BZ22: 0 | CA22: 0 | CB22: 0 | CC22: 0 | CD22: 0 | CE22: 0 | CF22: 0 | CG22: 0 | CH22: 0 | CI22: 0 | CJ22: 0 | CK22: 0 | CL22: 0 | CM22: 0 | CN22: 0 | CO22: 0 | CP22: 0 | CQ22: 0 | CR22: 0 | CS22: 0 | CT22: 0 | CU22: 0 | CV22: 0 | CW22: 0 | CX22: 0 | CY22: 0 | CZ22: 0 | DA22: 0 | DB22: 0 | DC22: 0 | DD22: 0 | DE22: 0 | DF22: 0 | DG22: 0 | DH22: 0 | DI22: 0 | DJ22: 0 | DK22: 0 | DL22: 0 | DM22: 0 | DN22: 0 | DO22: 0 | DP22: 0 | DQ22: 0 | DR22: 0 | DS22: 0 | DT22: 0 | DU22: 0 | DV22: 0 | DW22: 0 | DX22: 0 | DY22: 0 | DZ22: 0 | EA22: 0 | EB22: 0 | EC22: 0 | ED22: 0 | EE22: 0 | EF22: 0 | EG22: 0 | EH22: 0 | EI22: 0 | EJ22: 0 | EK22: 0 | EL22: 0 | EM22: 0 | EN22: 0 | EO22: 0 | EP22: 0 | EQ22: 0 | ER22: 0 | ES22: 0 | ET22: 0 | EU22: 0 | EV22: 0 | EW22: 0 | EX22: 0 | EY22: 0 | EZ22: 0 | FA22: 0 | FB22: 0 | FC22: 0 | FD22: 0 | FE22: 0 | FF22: 0 | FG22: 0 | FH22: 0 | FI22: 0 | FJ22: 0 | FK22: 0 | FL22: 0 | FM22: 0 | FN22: 0 | FO22: 0 | FP22: 0 | FQ22: 0 | FR22: 0 | FS22: 0 | FT22: 0 | FU22: 0 | FV22: 0 | FW22: 0 | FX22: 0 | FY22: 0 | FZ22: 0 | GA22: 0 | GB22: 0 | GC22: 0 | GD22: 0 | GE22: 0 | GF22: 0 | GG22: 0 | GH22: 0 | GI22: 0 | GJ22: 0 | GK22: 0 | GL22: 0 | GM22: 0 | GN22: 0 | GO22: 0 | GP22: 0 | GQ22: 0 | GR22: 0 | GS22: 0 | GT22: 0 | GU22: 0 | GV22: 0 | GW22: 0 | GX22: 0 | GY22: 0 | GZ22: 0 | HA22: 0 | HB22: 0 | HC22: 0 | HD22: 0 | HE22: 0 | HF22: 0 | HG22: 0 | HH22: 0 | HI22: 0 | HJ22: 0 | HK22: 0 | HL22: 0 | HM22: 0 | HN22: 0 | HO22: 0 | HP22: 0 | HQ22: 0 | HR22: 0 | HS22: 0 | HT22: 0 | HU22: 0 | HV22: 0 | HW22: 0 | HX22: 0 | HY22: 0 | HZ22: 0 | IA22: 0 | IB22: 0 | IC22: 0 | ID22: 0 | IE22: 0 | IF22: 0 | IG22: 0 | IH22: 0 | II22: 0 | IJ22: 0 | IK22: 0 | IL22: 0 | IM22: 0 | IN22: 0 | IO22: 0 | IP22: 0 | IQ22: 0 | IR22: 0 | IS22: 0 | IT22: 0 | IU22: 0 | IV22: 0 | IW22: 0 | IX22: 0 | IY22: 0 | IZ22: 0 | JA22: 0 | JB22: 0 | JC22: 0 | JD22: 0 | JE22: 0 | JF22: 0 | JG22: 0 | JH22: 0 | JI22: 0 | JJ22: 0 | JK22: 0 | JL22: 0 | JM22: 0 | JN22: 0 | JO22: 0 | JP22: 0 | JQ22: 0 | JR22: 0 | JS22: 0 | JT22: 0 | JU22: 0 | JV22: 0 | JW22: 0 | JX22: 0 | JY22: 0 | JZ22: 0 | KA22: 0 | KB22: 0 | KC22: 0 | KD22: 0 | KE22: 0 | KF22: 0 | KG22: 0 | KH22: 0 | KI22: 0 | KJ22: 0 | KK22: 0 | KL22: 0 | KM22: 0 | KN22: 0 | KO22: 0 | KP22: 0 | KQ22: 0 | KR22: 0 | KS22: 0 | KT22: 0 | KU22: 0 | KV22: 0 | KW22: 0 | KX22: 0 | KY22: 0 | KZ22: 0 | LA22: 0 | LB22: 0 | LC22: 0 | LD22: 0 | LE22: 0 | LF22: 0 | LG22: 0 | LH22: 0 | LI22: 0 | LJ22: 0 | LK22: 0 | LL22: 0 | LM22: 0 | LN22: 0 | LO22: 0 | LP22: 0 | LQ22: 0 | LR22: 0 | LS22: 0 | LT22: 0 | LU22: 0 | LV22: 0 | LW22: 0 | LX22: 0 | LY22: 0 | LZ22: 0 | MA22: 0 | MB22: 0 | MC22: 0 | MD22: 0 | ME22: 0 | MF22: 0 | MG22: 0 | MH22: 0 | MI22: 0 | MJ22: 0 | MK22: 0 | ML22: 0 | MM22: 0 | MN22: 0 | MO22: 0 | MP22: 0 | MQ22: 0 | MR22: 0 | MS22: 0 | MT22: 0 | MU22: 0 | MV22: 0 | MW22: 0 | MX22: 0 | MY22: 0 | MZ22: 0 | NA22: 0 | NB22: 0 | NC22: 0 | ND22: 0 | NE22: 0 | NF22: 0 | NG22: 0 | NH22: 0 | NI22: 0 | NJ22: 0 | NK22: 0 | NL22: 0 | NM22: 0 | NN22: 0 | NO22: 0 | NP22: 0 | NQ22: 0 | NR22: 0 | NS22: 0 | NT22: 0 | NU22: 0 | NV22: 0 | NW22: 0 | NX22: 0 | NY22: 0 | NZ22: 0 | OA22: 0 | OB22: 0 | OC22: 0 | OD22: 0 | OE22: 0 | OF22: 0 | OG22: 0 | OH22: 0 | OI22: 0 | OJ22: 0 | OK22: 0 | OL22: 0 | OM22: 0 | ON22: 0 | OO22: 0 | OP22: 0 | OQ22: 0 | OR22: 0 | OS22: 0 | OT22: 0 | OU22: 0 | OV22: 0 | OW22: 0 | OX22: 0 | OY22: 0 | OZ22: 0 | PA22: 0 | PB22: 0 | PC22: 0 | PD22: 0 | PE22: 0 | PF22: 0 | PG22: 0
B23: Ano 1 | C23: 1 | D23: 0 | E23: 0 | F23: 0 | G23: 0 | H23: 0 | I23: 0 | J23: 0 | K23: 0 | L23: 0 | M23: 0 | N23: 0 | O23: 0 | P23: 0 | Q23: 0 | R23: 0 | S23: 0 | T23: 0 | U23: 0 | V23: 0 | W23: 0 | X23: 0 | Y23: 0 | Z23: 0 | AA23: 0 | AB23: 0 | AC23: 0 | AD23: 0 | AE23: 0 | AF23: 0 | AG23: 0 | AH23: 0 | AI23: 0 | AJ23: 0 | AK23: 0 | AL23: 0 | AM23: 0 | AN23: 0 | AO23: 0 | AP23: 0 | AQ23: 0 | AR23: 0 | AS23: 0 | AT23: 0 | AU23: 0 | AV23: 0 | AW23: 0 | AX23: 0 | AY23: 0 | AZ23: 0 | BA23: 0 | BB23: 0 | BC23: 0 | BD23: 0 | BE23: 0 | BF23: 0 | BG23: 0 | BH23: 0 | BI23: 0 | BJ23: 0 | BK23: 0 | BL23: 0 | BM23: 0 | BN23: 0 | BO23: 0 | BP23: 0 | BQ23: 0 | BR23: 0 | BS23: 0 | BT23: 0 | BU23: 0 | BV23: 0 | BW23: 0 | BX23: 0 | BY23: 0 | BZ23: 0 | CA23: 0 | CB23: 0 | CC23: 0 | CD23: 0 | CE23: 0 | CF23: 0 | CG23: 0 | CH23: 0 | CI23: 0 | CJ23: 0 | CK23: 0 | CL23: 0 | CM23: 0 | CN23: 0 | CO23: 0 | CP23: 0 | CQ23: 0 | CR23: 0 | CS23: 0 | CT23: 0 | CU23: 0 | CV23: 0 | CW23: 0 | CX23: 0 | CY23: 0 | CZ23: 0 | DA23: 0 | DB23: 0 | DC23: 0 | DD23: 0 | DE23: 0 | DF23: 0 | DG23: 0 | DH23: 0 | DI23: 0 | DJ23: 0 | DK23: 0 | DL23: 0 | DM23: 0 | DN23: 0 | DO23: 0 | DP23: 0 | DQ23: 0 | DR23: 0 | DS23: 0 | DT23: 0 | DU23: 0 | DV23: 0 | DW23: 0 | DX23: 0 | DY23: 0 | DZ23: 0 | EA23: 0 | EB23: 0 | EC23: 0 | ED23: 0 | EE23: 0 | EF23: 0 | EG23: 0 | EH23: 0 | EI23: 0 | EJ23: 0 | EK23: 0 | EL23: 0 | EM23: 0 | EN23: 0 | EO23: 0 | EP23: 0 | EQ23: 0 | ER23: 0 | ES23: 0 | ET23: 0 | EU23: 0 | EV23: 0 | EW23: 0 | EX23: 0 | EY23: 0 | EZ23: 0 | FA23: 0 | FB23: 0 | FC23: 0 | FD23: 0 | FE23: 0 | FF23: 0 | FG23: 0 | FH23: 0 | FI23: 0 | FJ23: 0 | FK23: 0 | FL23: 0 | FM23: 0 | FN23: 0 | FO23: 0 | FP23: 0 | FQ23: 0 | FR23: 0 | FS23: 0 | FT23: 0 | FU23: 0 | FV23: 0 | FW23: 0 | FX23: 0 | FY23: 0 | FZ23: 0 | GA23: 0 | GB23: 0 | GC23: 0 | GD23: 0 | GE23: 0 | GF23: 0 | GG23: 0 | GH23: 0 | GI23: 0 | GJ23: 0 | GK23: 0 | GL23: 0 | GM23: 0 | GN23: 0 | GO23: 0 | GP23: 0 | GQ23: 0 | GR23: 0 | GS23: 0 | GT23: 0 | GU23: 0 | GV23: 0 | GW23: 0 | GX23: 0 | GY23: 0 | GZ23: 0 | HA23: 0 | HB23: 0 | HC23: 0 | HD23: 0 | HE23: 0 | HF23: 0 | HG23: 0 | HH23: 0 | HI23: 0 | HJ23: 0 | HK23: 0 | HL23: 0 | HM23: 0 | HN23: 0 | HO23: 0 | HP23: 0 | HQ23: 0 | HR23: 0 | HS23: 0 | HT23: 0 | HU23: 0 | HV23: 0 | HW23: 0 | HX23: 0 | HY23: 0 | HZ23: 0 | IA23: 0 | IB23: 0 | IC23: 0 | ID23: 0 | IE23: 0 | IF23: 0 | IG23: 0 | IH23: 0 | II23: 0 | IJ23: 0 | IK23: 0 | IL23: 0 | IM23: 0 | IN23: 0 | IO23: 0 | IP23: 0 | IQ23: 0 | IR23: 0 | IS23: 0 | IT23: 0 | IU23: 0 | IV23: 0 | IW23: 0 | IX23: 0 | IY23: 0 | IZ23: 0 | JA23: 0 | JB23: 0 | JC23: 0 | JD23: 0 | JE23: 0 | JF23: 0 | JG23: 0 | JH23: 0 | JI23: 0 | JJ23: 0 | JK23: 0 | JL23: 0 | JM23: 0 | JN23: 0 | JO23: 0 | JP23: 0 | JQ23: 0 | JR23: 0 | JS23: 0 | JT23: 0 | JU23: 0 | JV23: 0 | JW23: 0 | JX23: 0 | JY23: 0 | JZ23: 0 | KA23: 0 | KB23: 0 | KC23: 0 | KD23: 0 | KE23: 0 | KF23: 0 | KG23: 0 | KH23: 0 | KI23: 0 | KJ23: 0 | KK23: 0 | KL23: 0 | KM23: 0 | KN23: 0 | KO23: 0 | KP23: 0 | KQ23: 0 | KR23: 0 | KS23: 0 | KT23: 0 | KU23: 0 | KV23: 0 | KW23: 0 | KX23: 0 | KY23: 0 | KZ23: 0 | LA23: 0 | LB23: 0 | LC23: 0 | LD23: 0 | LE23: 0 | LF23: 0 | LG23: 0 | LH23: 0 | LI23: 0 | LJ23: 0 | LK23: 0 | LL23: 0 | LM23: 0 | LN23: 0 | LO23: 0 | LP23: 0 | LQ23: 0 | LR23: 0 | LS23: 0 | LT23: 0 | LU23: 0 | LV23: 0 | LW23: 0 | LX23: 0 | LY23: 0 | LZ23: 0 | MA23: 0 | MB23: 0 | MC23: 0 | MD23: 0 | ME23: 0 | MF23: 0 | MG23: 0 | MH23: 0 | MI23: 0 | MJ23: 0 | MK23: 0 | ML23: 0 | MM23: 0 | MN23: 0 | MO23: 0 | MP23: 0 | MQ23: 0 | MR23: 0 | MS23: 0 | MT23: 0 | MU23: 0 | MV23: 0 | MW23: 0 | MX23: 0 | MY23: 0 | MZ23: 0 | NA23: 0 | NB23: 0 | NC23: 0 | ND23: 0 | NE23: 0 | NF23: 0 | NG23: 0 | NH23: 0 | NI23: 0 | NJ23: 0 | NK23: 0 | NL23: 0 | NM23: 0 | NN23: 0 | NO23: 0 | NP23: 0 | NQ23: 0 | NR23: 0 | NS23: 0 | NT23: 0 | NU23: 0 | NV23: 0 | NW23: 0 | NX23: 0 | NY23: 0 | NZ23: 0 | OA23: 0 | OB23: 0 | OC23: 0 | OD23: 0 | OE23: 0 | OF23: 0 | OG23: 0 | OH23: 0 | OI23: 0 | OJ23: 0 | OK23: 0 | OL23: 0 | OM23: 0 | ON23: 0 | OO23: 0 | OP23: 0 | OQ23: 0 | OR23: 0 | OS23: 0 | OT23: 0 | OU23: 0 | OV23: 0 | OW23: 0 | OX23: 0 | OY23: 0 | OZ23: 0 | PA23: 0 | PB23: 0 | PC23: 0 | PD23: 0 | PE23: 0 | PF23: 0 | PG23: 0
B24: Ano 2 | C24: 2 | D24: 0 | E24: 0 | F24: 0 | G24: 0 | H24: 0 | I24: 0 | J24: 0 | K24: 0 | L24: 0 | M24: 0 | N24: 0 | O24: 0 | P24: 0 | Q24: 0 | R24: 0 | S24: 0 | T24: 0 | U24: 0 | V24: 0 | W24: 0 | X24: 0 | Y24: 0 | Z24: 0 | AA24: 0 | AB24: 0 | AC24: 0 | AD24: 0 | AE24: 0 | AF24: 0 | AG24: 0 | AH24: 0 | AI24: 0 | AJ24: 0 | AK24: 0 | AL24: 0 | AM24: 0 | AN24: 0 | AO24: 0 | AP24: 0 | AQ24: 0 | AR24: 0 | AS24: 0 | AT24: 0 | AU24: 0 | AV24: 0 | AW24: 0 | AX24: 0 | AY24: 0 | AZ24: 0 | BA24: 0 | BB24: 0 | BC24: 0 | BD24: 0 | BE24: 0 | BF24: 0 | BG24: 0 | BH24: 0 | BI24: 0 | BJ24: 0 | BK24: 0 | BL24: 0 | BM24: 0 | BN24: 0 | BO24: 0 | BP24: 0 | BQ24: 0 | BR24: 0 | BS24: 0 | BT24: 0 | BU24: 0 | BV24: 0 | BW24: 0 | BX24: 0 | BY24: 0 | BZ24: 0 | CA24: 0 | CB24: 0 | CC24: 0 | CD24: 0 | CE24: 0 | CF24: 0 | CG24: 0 | CH24: 0 | CI24: 0 | CJ24: 0 | CK24: 0 | CL24: 0 | CM24: 0 | CN24: 0 | CO24: 0 | CP24: 0 | CQ24: 0 | CR24: 0 | CS24: 0 | CT24: 0 | CU24: 0 | CV24: 0 | CW24: 0 | CX24: 0 | CY24: 0 | CZ24: 0 | DA24: 0 | DB24: 0 | DC24: 0 | DD24: 0 | DE24: 0 | DF24: 0 | DG24: 0 | DH24: 0 | DI24: 0 | DJ24: 0 | DK24: 0 | DL24: 0 | DM24: 0 | DN24: 0 | DO24: 0 | DP24: 0 | DQ24: 0 | DR24: 0 | DS24: 0 | DT24: 0 | DU24: 0 | DV24: 0 | DW24: 0 | DX24: 0 | DY24: 0 | DZ24: 0 | EA24: 0 | EB24: 0 | EC24: 0 | ED24: 0 | EE24: 0 | EF24: 0 | EG24: 0 | EH24: 0 | EI24: 0 | EJ24: 0 | EK24: 0 | EL24: 0 | EM24: 0 | EN24: 0 | EO24: 0 | EP24: 0 | EQ24: 0 | ER24: 0 | ES24: 0 | ET24: 0 | EU24: 0 | EV24: 0 | EW24: 0 | EX24: 0 | EY24: 0 | EZ24: 0 | FA24: 0 | FB24: 0 | FC24: 0 | FD24: 0 | FE24: 0 | FF24: 0 | FG24: 0 | FH24: 0 | FI24: 0 | FJ24: 0 | FK24: 0 | FL24: 0 | FM24: 0 | FN24: 0 | FO24: 0 | FP24: 0 | FQ24: 0 | FR24: 0 | FS24: 0 | FT24: 0 | FU24: 0 | FV24: 0 | FW24: 0 | FX24: 0 | FY24: 0 | FZ24: 0 | GA24: 0 | GB24: 0 | GC24: 0 | GD24: 0 | GE24: 0 | GF24: 0 | GG24: 0 | GH24: 0 | GI24: 0 | GJ24: 0 | GK24: 0 | GL24: 0 | GM24: 0 | GN24: 0 | GO24: 0 | GP24: 0 | GQ24: 0 | GR24: 0 | GS24: 0 | GT24: 0 | GU24: 0 | GV24: 0 | GW24: 0 | GX24: 0 | GY24: 0 | GZ24: 0 | HA24: 0 | HB24: 0 | HC24: 0 | HD24: 0 | HE24: 0 | HF24: 0 | HG24: 0 | HH24: 0 | HI24: 0 | HJ24: 0 | HK24: 0 | HL24: 0 | HM24: 0 | HN24: 0 | HO24: 0 | HP24: 0 | HQ24: 0 | HR24: 0 | HS24: 0 | HT24: 0 | HU24: 0 | HV24: 0 | HW24: 0 | HX24: 0 | HY24: 0 | HZ24: 0 | IA24: 0 | IB24: 0 | IC24: 0 | ID24: 0 | IE24: 0 | IF24: 0 | IG24: 0 | IH24: 0 | II24: 0 | IJ24: 0 | IK24: 0 | IL24: 0 | IM24: 0 | IN24: 0 | IO24: 0 | IP24: 0 | IQ24: 0 | IR24: 0 | IS24: 0 | IT24: 0 | IU24: 0 | IV24: 0 | IW24: 0 | IX24: 0 | IY24: 0 | IZ24: 0 | JA24: 0 | JB24: 0 | JC24: 0 | JD24: 0 | JE24: 0 | JF24: 0 | JG24: 0 | JH24: 0 | JI24: 0 | JJ24: 0 | JK24: 0 | JL24: 0 | JM24: 0 | JN24: 0 | JO24: 0 | JP24: 0 | JQ24: 0 | JR24: 0 | JS24: 0 | JT24: 0 | JU24: 0 | JV24: 0 | JW24: 0 | JX24: 0 | JY24: 0 | JZ24: 0 | KA24: 0 | KB24: 0 | KC24: 0 | KD24: 0 | KE24: 0 | KF24: 0 | KG24: 0 | KH24: 0 | KI24: 0 | KJ24: 0 | KK24: 0 | KL24: 0 | KM24: 0 | KN24: 0 | KO24: 0 | KP24: 0 | KQ24: 0 | KR24: 0 | KS24: 0 | KT24: 0 | KU24: 0 | KV24: 0 | KW24: 0 | KX24: 0 | KY24: 0 | KZ24: 0 | LA24: 0 | LB24: 0 | LC24: 0 | LD24: 0 | LE24: 0 | LF24: 0 | LG24: 0 | LH24: 0 | LI24: 0 | LJ24: 0 | LK24: 0 | LL24: 0 | LM24: 0 | LN24: 0 | LO24: 0 | LP24: 0 | LQ24: 0 | LR24: 0 | LS24: 0 | LT24: 0 | LU24: 0 | LV24: 0 | LW24: 0 | LX24: 0 | LY24: 0 | LZ24: 0 | MA24: 0 | MB24: 0 | MC24: 0 | MD24: 0 | ME24: 0 | MF24: 0 | MG24: 0 | MH24: 0 | MI24: 0 | MJ24: 0 | MK24: 0 | ML24: 0 | MM24: 0 | MN24: 0 | MO24: 0 | MP24: 0 | MQ24: 0 | MR24: 0 | MS24: 0 | MT24: 0 | MU24: 0 | MV24: 0 | MW24: 0 | MX24: 0 | MY24: 0 | MZ24: 0 | NA24: 0 | NB24: 0 | NC24: 0 | ND24: 0 | NE24: 0 | NF24: 0 | NG24: 0 | NH24: 0 | NI24: 0 | NJ24: 0 | NK24: 0 | NL24: 0 | NM24: 0 | NN24: 0 | NO24: 0 | NP24: 0 | NQ24: 0 | NR24: 0 | NS24: 0 | NT24: 0 | NU24: 0 | NV24: 0 | NW24: 0 | NX24: 0 | NY24: 0 | NZ24: 0 | OA24: 0 | OB24: 0 | OC24: 0 | OD24: 0 | OE24: 0 | OF24: 0 | OG24: 0 | OH24: 0 | OI24: 0 | OJ24: 0 | OK24: 0 | OL24: 0 | OM24: 0 | ON24: 0 | OO24: 0 | OP24: 0 | OQ24: 0 | OR24: 0 | OS24: 0 | OT24: 0 | OU24: 0 | OV24: 0 | OW24: 0 | OX24: 0 | OY24: 0 | OZ24: 0 | PA24: 0 | PB24: 0 | PC24: 0 | PD24: 0 | PE24: 0 | PF24: 0 | PG24: 0
B25: Ano 3 | C25: 3 | D25: 0 | E25: 0 | F25: 0 | G25: 0 | H25: 0 | I25: 0 | J25: 0 | K25: 0 | L25: 0 | M25: 0 | N25: 0 | O25: 0 | P25: 0 | Q25: 0 | R25: 0 | S25: 0 | T25: 0 | U25: 0 | V25: 0 | W25: 0 | X25: 0 | Y25: 0 | Z25: 0 | AA25: 0 | AB25: 0 | AC25: 0 | AD25: 0 | AE25: 0 | AF25: 0 | AG25: 0 | AH25: 0 | AI25: 0 | AJ25: 0 | AK25: 0 | AL25: 0 | AM25: 0 | AN25: 0 | AO25: 0 | AP25: 0 | AQ25: 0 | AR25: 0 | AS25: 0 | AT25: 0 | AU25: 0 | AV25: 0 | AW25: 0 | AX25: 0 | AY25: 0 | AZ25: 0 | BA25: 0 | BB25: 0 | BC25: 0 | BD25: 0 | BE25: 0 | BF25: 0 | BG25: 0 | BH25: 0 | BI25: 0 | BJ25: 0 | BK25: 0 | BL25: 0 | BM25: 0 | BN25: 0 | BO25: 0 | BP25: 0 | BQ25: 0 | BR25: 0 | BS25: 0 | BT25: 0 | BU25: 0 | BV25: 0 | BW25: 0 | BX25: 0 | BY25: 0 | BZ25: 0 | CA25: 0 | CB25: 0 | CC25: 0 | CD25: 0 | CE25: 0 | CF25: 0 | CG25: 0 | CH25: 0 | CI25: 0 | CJ25: 0 | CK25: 0 | CL25: 0 | CM25: 0 | CN25: 0 | CO25: 0 | CP25: 0 | CQ25: 0 | CR25: 0 | CS25: 0 | CT25: 0 | CU25: 0 | CV25: 0 | CW25: 0 | CX25: 0 | CY25: 0 | CZ25: 0 | DA25: 0 | DB25: 0 | DC25: 0 | DD25: 0 | DE25: 0 | DF25: 0 | DG25: 0 | DH25: 0 | DI25: 0 | DJ25: 0 | DK25: 0 | DL25: 0 | DM25: 0 | DN25: 0 | DO25: 0 | DP25: 0 | DQ25: 0 | DR25: 0 | DS25: 0 | DT25: 0 | DU25: 0 | DV25: 0 | DW25: 0 | DX25: 0 | DY25: 0 | DZ25: 0 | EA25: 0 | EB25: 0 | EC25: 0 | ED25: 0 | EE25: 0 | EF25: 0 | EG25: 0 | EH25: 0 | EI25: 0 | EJ25: 0 | EK25: 0 | EL25: 0 | EM25: 0 | EN25: 0 | EO25: 0 | EP25: 0 | EQ25: 0 | ER25: 0 | ES25: 0 | ET25: 0 | EU25: 0 | EV25: 0 | EW25: 0 | EX25: 0 | EY25: 0 | EZ25: 0 | FA25: 0 | FB25: 0 | FC25: 0 | FD25: 0 | FE25: 0 | FF25: 0 | FG25: 0 | FH25: 0 | FI25: 0 | FJ25: 0 | FK25: 0 | FL25: 0 | FM25: 0 | FN25: 0 | FO25: 0 | FP25: 0 | FQ25: 0 | FR25: 0 | FS25: 0 | FT25: 0 | FU25: 0 | FV25: 0 | FW25: 0 | FX25: 0 | FY25: 0 | FZ25: 0 | GA25: 0 | GB25: 0 | GC25: 0 | GD25: 0 | GE25: 0 | GF25: 0 | GG25: 0 | GH25: 0 | GI25: 0 | GJ25: 0 | GK25: 0 | GL25: 0 | GM25: 0 | GN25: 0 | GO25: 0 | GP25: 0 | GQ25: 0 | GR25: 0 | GS25: 0 | GT25: 0 | GU25: 0 | GV25: 0 | GW25: 0 | GX25: 0 | GY25: 0 | GZ25: 0 | HA25: 0 | HB25: 0 | HC25: 0 | HD25: 0 | HE25: 0 | HF25: 0 | HG25: 0 | HH25: 0 | HI25: 0 | HJ25: 0 | HK25: 0 | HL25: 0 | HM25: 0 | HN25: 0 | HO25: 0 | HP25: 0 | HQ25: 0 | HR25: 0 | HS25: 0 | HT25: 0 | HU25: 0 | HV25: 0 | HW25: 0 | HX25: 0 | HY25: 0 | HZ25: 0 | IA25: 0 | IB25: 0 | IC25: 0 | ID25: 0 | IE25: 0 | IF25: 0 | IG25: 0 | IH25: 0 | II25: 0 | IJ25: 0 | IK25: 0 | IL25: 0 | IM25: 0 | IN25: 0 | IO25: 0 | IP25: 0 | IQ25: 0 | IR25: 0 | IS25: 0 | IT25: 0 | IU25: 0 | IV25: 0 | IW25: 0 | IX25: 0 | IY25: 0 | IZ25: 0 | JA25: 0 | JB25: 0 | JC25: 0 | JD25: 0 | JE25: 0 | JF25: 0 | JG25: 0 | JH25: 0 | JI25: 0 | JJ25: 0 | JK25: 0 | JL25: 0 | JM25: 0 | JN25: 0 | JO25: 0 | JP25: 0 | JQ25: 0 | JR25: 0 | JS25: 0 | JT25: 0 | JU25: 0 | JV25: 0 | JW25: 0 | JX25: 0 | JY25: 0 | JZ25: 0 | KA25: 0 | KB25: 0 | KC25: 0 | KD25: 0 | KE25: 0 | KF25: 0 | KG25: 0 | KH25: 0 | KI25: 0 | KJ25: 0 | KK25: 0 | KL25: 0 | KM25: 0 | KN25: 0 | KO25: 0 | KP25: 0 | KQ25: 0 | KR25: 0 | KS25: 0 | KT25: 0 | KU25: 0 | KV25: 0 | KW25: 0 | KX25: 0 | KY25: 0 | KZ25: 0 | LA25: 0 | LB25: 0 | LC25: 0 | LD25: 0 | LE25: 0 | LF25: 0 | LG25: 0 | LH25: 0 | LI25: 0 | LJ25: 0 | LK25: 0 | LL25: 0 | LM25: 0 | LN25: 0 | LO25: 0 | LP25: 0 | LQ25: 0 | LR25: 0 | LS25: 0 | LT25: 0 | LU25: 0 | LV25: 0 | LW25: 0 | LX25: 0 | LY25: 0 | LZ25: 0 | MA25: 0 | MB25: 0 | MC25: 0 | MD25: 0 | ME25: 0 | MF25: 0 | MG25: 0 | MH25: 0 | MI25: 0 | MJ25: 0 | MK25: 0 | ML25: 0 | MM25: 0 | MN25: 0 | MO25: 0 | MP25: 0 | MQ25: 0 | MR25: 0 | MS25: 0 | MT25: 0 | MU25: 0 | MV25: 0 | MW25: 0 | MX25: 0 | MY25: 0 | MZ25: 0 | NA25: 0 | NB25: 0 | NC25: 0 | ND25: 0 | NE25: 0 | NF25: 0 | NG25: 0 | NH25: 0 | NI25: 0 | NJ25: 0 | NK25: 0 | NL25: 0 | NM25: 0 | NN25: 0 | NO25: 0 | NP25: 0 | NQ25: 0 | NR25: 0 | NS25: 0 | NT25: 0 | NU25: 0 | NV25: 0 | NW25: 0 | NX25: 0 | NY25: 0 | NZ25: 0 | OA25: 0 | OB25: 0 | OC25: 0 | OD25: 0 | OE25: 0 | OF25: 0 | OG25: 0 | OH25: 0 | OI25: 0 | OJ25: 0 | OK25: 0 | OL25: 0 | OM25: 0 | ON25: 0 | OO25: 0 | OP25: 0 | OQ25: 0 | OR25: 0 | OS25: 0 | OT25: 0 | OU25: 0 | OV25: 0 | OW25: 0 | OX25: 0 | OY25: 0 | OZ25: 0 | PA25: 0 | PB25: 0 | PC25: 0 | PD25: 0 | PE25: 0 | PF25: 0 | PG25: 0
B26: Ano 4 | C26: 4 | D26: 0 | E26: 0 | F26: 0 | G26: 0 | H26: 0 | I26: 0 | J26: 0 | K26: 0 | L26: 0 | M26: 0 | N26: 0 | O26: 0 | P26: 0 | Q26: 0 | R26: 0 | S26: 0 | T26: 0 | U26: 0 | V26: 0 | W26: 0 | X26: 0 | Y26: 0 | Z26: 0 | AA26: 0 | AB26: 0 | AC26: 0 | AD26: 0 | AE26: 0 | AF26: 0 | AG26: 0 | AH26: 0 | AI26: 0 | AJ26: 0 | AK26: 0 | AL26: 0 | AM26: 0 | AN26: 0 | AO26: 0 | AP26: 0 | AQ26: 0 | AR26: 0 | AS26: 0 | AT26: 0 | AU26: 0 | AV26: 0 | AW26: 0 | AX26: 0 | AY26: 0 | AZ26: 0 | BA26: 0 | BB26: 0 | BC26: 0 | BD26: 0 | BE26: 0 | BF26: 0 | BG26: 0 | BH26: 0 | BI26: 0 | BJ26: 0 | BK26: 0 | BL26: 0 | BM26: 0 | BN26: 0 | BO26: 0 | BP26: 0 | BQ26: 0 | BR26: 0 | BS26: 0 | BT26: 0 | BU26: 0 | BV26: 0 | BW26: 0 | BX26: 0 | BY26: 0 | BZ26: 0 | CA26: 0 | CB26: 0 | CC26: 0 | CD26: 0 | CE26: 0 | CF26: 0 | CG26: 0 | CH26: 0 | CI26: 0 | CJ26: 0 | CK26: 0 | CL26: 0 | CM26: 0 | CN26: 0 | CO26: 0 | CP26: 0 | CQ26: 0 | CR26: 0 | CS26: 0 | CT26: 0 | CU26: 0 | CV26: 0 | CW26: 0 | CX26: 0 | CY26: 0 | CZ26: 0 | DA26: 0 | DB26: 0 | DC26: 0 | DD26: 0 | DE26: 0 | DF26: 0 | DG26: 0 | DH26: 0 | DI26: 0 | DJ26: 0 | DK26: 0 | DL26: 0 | DM26: 0 | DN26: 0 | DO26: 0 | DP26: 0 | DQ26: 0 | DR26: 0 | DS26: 0 | DT26: 0 | DU26: 0 | DV26: 0 | DW26: 0 | DX26: 0 | DY26: 0 | DZ26: 0 | EA26: 0 | EB26: 0 | EC26: 0 | ED26: 0 | EE26: 0 | EF26: 0 | EG26: 0 | EH26: 0 | EI26: 0 | EJ26: 0 | EK26: 0 | EL26: 0 | EM26: 0 | EN26: 0 | EO26: 0 | EP26: 0 | EQ26: 0 | ER26: 0 | ES26: 0 | ET26: 0 | EU26: 0 | EV26: 0 | EW26: 0 | EX26: 0 | EY26: 0 | EZ26: 0 | FA26: 0 | FB26: 0 | FC26: 0 | FD26: 0 | FE26: 0 | FF26: 0 | FG26: 0 | FH26: 0 | FI26: 0 | FJ26: 0 | FK26: 0 | FL26: 0 | FM26: 0 | FN26: 0 | FO26: 0 | FP26: 0 | FQ26: 0 | FR26: 0 | FS26: 0 | FT26: 0 | FU26: 0 | FV26: 0 | FW26: 0 | FX26: 0 | FY26: 0 | FZ26: 0 | GA26: 0 | GB26: 0 | GC26: 0 | GD26: 0 | GE26: 0 | GF26: 0 | GG26: 0 | GH26: 0 | GI26: 0 | GJ26: 0 | GK26: 0 | GL26: 0 | GM26: 0 | GN26: 0 | GO26: 0 | GP26: 0 | GQ26: 0 | GR26: 0 | GS26: 0 | GT26: 0 | GU26: 0 | GV26: 0 | GW26: 0 | GX26: 0 | GY26: 0 | GZ26: 0 | HA26: 0 | HB26: 0 | HC26: 0 | HD26: 0 | HE26: 0 | HF26: 0 | HG26: 0 | HH26: 0 | HI26: 0 | HJ26: 0 | HK26: 0 | HL26: 0 | HM26: 0 | HN26: 0 | HO26: 0 | HP26: 0 | HQ26: 0 | HR26: 0 | HS26: 0 | HT26: 0 | HU26: 0 | HV26: 0 | HW26: 0 | HX26: 0 | HY26: 0 | HZ26: 0 | IA26: 0 | IB26: 0 | IC26: 0 | ID26: 0 | IE26: 0 | IF26: 0 | IG26: 0 | IH26: 0 | II26: 0 | IJ26: 0 | IK26: 0 | IL26: 0 | IM26: 0 | IN26: 0 | IO26: 0 | IP26: 0 | IQ26: 0 | IR26: 0 | IS26: 0 | IT26: 0 | IU26: 0 | IV26: 0 | IW26: 0 | IX26: 0 | IY26: 0 | IZ26: 0 | JA26: 0 | JB26: 0 | JC26: 0 | JD26: 0 | JE26: 0 | JF26: 0 | JG26: 0 | JH26: 0 | JI26: 0 | JJ26: 0 | JK26: 0 | JL26: 0 | JM26: 0 | JN26: 0 | JO26: 0 | JP26: 0 | JQ26: 0 | JR26: 0 | JS26: 0 | JT26: 0 | JU26: 0 | JV26: 0 | JW26: 0 | JX26: 0 | JY26: 0 | JZ26: 0 | KA26: 0 | KB26: 0 | KC26: 0 | KD26: 0 | KE26: 0 | KF26: 0 | KG26: 0 | KH26: 0 | KI26: 0 | KJ26: 0 | KK26: 0 | KL26: 0 | KM26: 0 | KN26: 0 | KO26: 0 | KP26: 0 | KQ26: 0 | KR26: 0 | KS26: 0 | KT26: 0 | KU26: 0 | KV26: 0 | KW26: 0 | KX26: 0 | KY26: 0 | KZ26: 0 | LA26: 0 | LB26: 0 | LC26: 0 | LD26: 0 | LE26: 0 | LF26: 0 | LG26: 0 | LH26: 0 | LI26: 0 | LJ26: 0 | LK26: 0 | LL26: 0 | LM26: 0 | LN26: 0 | LO26: 0 | LP26: 0 | LQ26: 0 | LR26: 0 | LS26: 0 | LT26: 0 | LU26: 0 | LV26: 0 | LW26: 0 | LX26: 0 | LY26: 0 | LZ26: 0 | MA26: 0 | MB26: 0 | MC26: 0 | MD26: 0 | ME26: 0 | MF26: 0 | MG26: 0 | MH26: 0 | MI26: 0 | MJ26: 0 | MK26: 0 | ML26: 0 | MM26: 0 | MN26: 0 | MO26: 0 | MP26: 0 | MQ26: 0 | MR26: 0 | MS26: 0 | MT26: 0 | MU26: 0 | MV26: 0 | MW26: 0 | MX26: 0 | MY26: 0 | MZ26: 0 | NA26: 0 | NB26: 0 | NC26: 0 | ND26: 0 | NE26: 0 | NF26: 0 | NG26: 0 | NH26: 0 | NI26: 0 | NJ26: 0 | NK26: 0 | NL26: 0 | NM26: 0 | NN26: 0 | NO26: 0 | NP26: 0 | NQ26: 0 | NR26: 0 | NS26: 0 | NT26: 0 | NU26: 0 | NV26: 0 | NW26: 0 | NX26: 0 | NY26: 0 | NZ26: 0 | OA26: 0 | OB26: 0 | OC26: 0 | OD26: 0 | OE26: 0 | OF26: 0 | OG26: 0 | OH26: 0 | OI26: 0 | OJ26: 0 | OK26: 0 | OL26: 0 | OM26: 0 | ON26: 0 | OO26: 0 | OP26: 0 | OQ26: 0 | OR26: 0 | OS26: 0 | OT26: 0 | OU26: 0 | OV26: 0 | OW26: 0 | OX26: 0 | OY26: 0 | OZ26: 0 | PA26: 0 | PB26: 0 | PC26: 0 | PD26: 0 | PE26: 0 | PF26: 0 | PG26: 0
B28: Curva de execução mensal | E28: 0 | F28: 0 | G28: 0 | H28: 0 | I28: 0 | J28: 0 | K28: 0 | L28: 0 | M28: 0 | N28: 0 | O28: 0 | P28: 0 | Q28: 0 | R28: 0 | S28: 0 | T28: 0 | U28: 0 | V28: 0 | W28: 0 | X28: 0 | Y28: 0 | Z28: 0 | AA28: 0 | AB28: 0 | AC28: 0 | AD28: 0 | AE28: 0 | AF28: 0 | AG28: 0 | AH28: 0 | AI28: 0 | AJ28: 0 | AK28: 0 | AL28: 0 | AM28: 0 | AN28: 0 | AO28: 0 | AP28: 0 | AQ28: 0 | AR28: 0 | AS28: 0 | AT28: 0 | AU28: 0 | AV28: 0 | AW28: 0 | AX28: 0 | AY28: 0 | AZ28: 0 | BA28: 0 | BB28: 0 | BC28: 0 | BD28: 0 | BE28: 0 | BF28: 0 | BG28: 0 | BH28: 0 | BI28: 0 | BJ28: 0 | BK28: 0 | BL28: 0 | BM28: 0 | BN28: 0 | BO28: 0 | BP28: 0 | BQ28: 0 | BR28: 0 | BS28: 0 | BT28: 0 | BU28: 0 | BV28: 0 | BW28: 0 | BX28: 0 | BY28: 0 | BZ28: 0 | CA28: 0 | CB28: 0 | CC28: 0 | CD28: 0 | CE28: 0 | CF28: 0 | CG28: 0 | CH28: 0 | CI28: 0 | CJ28: 0 | CK28: 0 | CL28: 0 | CM28: 0 | CN28: 0 | CO28: 0 | CP28: 0 | CQ28: 0 | CR28: 0 | CS28: 0 | CT28: 0 | CU28: 0 | CV28: 0 | CW28: 0 | CX28: 0 | CY28: 0 | CZ28: 0 | DA28: 0 | DB28: 0 | DC28: 0 | DD28: 0 | DE28: 0 | DF28: 0 | DG28: 0 | DH28: 0 | DI28: 0 | DJ28: 0 | DK28: 0 | DL28: 0 | DM28: 0 | DN28: 0 | DO28: 0 | DP28: 0 | DQ28: 0 | DR28: 0 | DS28: 0 | DT28: 0 | DU28: 0 | DV28: 0 | DW28: 0 | DX28: 0 | DY28: 0 | DZ28: 0 | EA28: 0 | EB28: 0 | EC28: 0 | ED28: 0 | EE28: 0 | EF28: 0 | EG28: 0 | EH28: 0 | EI28: 0 | EJ28: 0 | EK28: 0 | EL28: 0 | EM28: 0 | EN28: 0 | EO28: 0 | EP28: 0 | EQ28: 0 | ER28: 0 | ES28: 0 | ET28: 0 | EU28: 0 | EV28: 0 | EW28: 0 | EX28: 0 | EY28: 0 | EZ28: 0 | FA28: 0 | FB28: 0 | FC28: 0 | FD28: 0 | FE28: 0 | FF28: 0 | FG28: 0 | FH28: 0 | FI28: 0 | FJ28: 0 | FK28: 0 | FL28: 0 | FM28: 0 | FN28: 0 | FO28: 0 | FP28: 0 | FQ28: 0 | FR28: 0 | FS28: 0 | FT28: 0 | FU28: 0 | FV28: 0 | FW28: 0 | FX28: 0 | FY28: 0 | FZ28: 0 | GA28: 0 | GB28: 0 | GC28: 0 | GD28: 0 | GE28: 0 | GF28: 0 | GG28: 0 | GH28: 0 | GI28: 0 | GJ28: 0 | GK28: 0 | GL28: 0 | GM28: 0 | GN28: 0 | GO28: 0 | GP28: 0 | GQ28: 0 | GR28: 0 | GS28: 0 | GT28: 0 | GU28: 0 | GV28: 0 | GW28: 0 | GX28: 0 | GY28: 0 | GZ28: 0 | HA28: 0 | HB28: 0 | HC28: 0 | HD28: 0 | HE28: 0 | HF28: 0 | HG28: 0 | HH28: 0 | HI28: 0 | HJ28: 0 | HK28: 0 | HL28: 0 | HM28: 0 | HN28: 0 | HO28: 0 | HP28: 0 | HQ28: 0 | HR28: 0 | HS28: 0 | HT28: 0 | HU28: 0 | HV28: 0 | HW28: 0 | HX28: 0 | HY28: 0 | HZ28: 0 | IA28: 0 | IB28: 0 | IC28: 0 | ID28: 0 | IE28: 0 | IF28: 0 | IG28: 0 | IH28: 0 | II28: 0 | IJ28: 0 | IK28: 0 | IL28: 0 | IM28: 0 | IN28: 0 | IO28: 0 | IP28: 0 | IQ28: 0 | IR28: 0 | IS28: 0 | IT28: 0 | IU28: 0 | IV28: 0 | IW28: 0 | IX28: 0 | IY28: 0 | IZ28: 0 | JA28: 0 | JB28: 0 | JC28: 0 | JD28: 0 | JE28: 0 | JF28: 0 | JG28: 0 | JH28: 0 | JI28: 0 | JJ28: 0 | JK28: 0 | JL28: 0 | JM28: 0 | JN28: 0 | JO28: 0 | JP28: 0 | JQ28: 0 | JR28: 0 | JS28: 0 | JT28: 0 | JU28: 0 | JV28: 0 | JW28: 0 | JX28: 0 | JY28: 0 | JZ28: 0 | KA28: 0 | KB28: 0 | KC28: 0 | KD28: 0 | KE28: 0 | KF28: 0 | KG28: 0 | KH28: 0 | KI28: 0 | KJ28: 0 | KK28: 0 | KL28: 0 | KM28: 0 | KN28: 0 | KO28: 0 | KP28: 0 | KQ28: 0 | KR28: 0 | KS28: 0 | KT28: 0 | KU28: 0 | KV28: 0 | KW28: 0 | KX28: 0 | KY28: 0 | KZ28: 0 | LA28: 0 | LB28: 0 | LC28: 0 | LD28: 0 | LE28: 0 | LF28: 0 | LG28: 0 | LH28: 0 | LI28: 0 | LJ28: 0 | LK28: 0 | LL28: 0 | LM28: 0 | LN28: 0 | LO28: 0 | LP28: 0 | LQ28: 0 | LR28: 0 | LS28: 0 | LT28: 0 | LU28: 0 | LV28: 0 | LW28: 0 | LX28: 0 | LY28: 0 | LZ28: 0 | MA28: 0 | MB28: 0 | MC28: 0 | MD28: 0 | ME28: 0 | MF28: 0 | MG28: 0 | MH28: 0 | MI28: 0 | MJ28: 0 | MK28: 0 | ML28: 0 | MM28: 0 | MN28: 0 | MO28: 0 | MP28: 0 | MQ28: 0 | MR28: 0 | MS28: 0 | MT28: 0 | MU28: 0 | MV28: 0 | MW28: 0 | MX28: 0 | MY28: 0 | MZ28: 0 | NA28: 0 | NB28: 0 | NC28: 0 | ND28: 0 | NE28: 0 | NF28: 0 | NG28: 0 | NH28: 0 | NI28: 0 | NJ28: 0 | NK28: 0 | NL28: 0 | NM28: 0 | NN28: 0 | NO28: 0 | NP28: 0 | NQ28: 0 | NR28: 0 | NS28: 0 | NT28: 0 | NU28: 0 | NV28: 0 | NW28: 0 | NX28: 0 | NY28: 0 | NZ28: 0 | OA28: 0 | OB28: 0 | OC28: 0 | OD28: 0 | OE28: 0 | OF28: 0 | OG28: 0 | OH28: 0 | OI28: 0 | OJ28: 0 | OK28: 0 | OL28: 0 | OM28: 0 | ON28: 0 | OO28: 0 | OP28: 0 | OQ28: 0 | OR28: 0 | OS28: 0 | OT28: 0 | OU28: 0 | OV28: 0 | OW28: 0 | OX28: 0 | OY28: 0 | OZ28: 0 | PA28: 0 | PB28: 0 | PC28: 0 | PD28: 0 | PE28: 0 | PF28: 0 | PG28: 0
B29: Mês do final do CAPEX | D29: 1
B30: CAPEX | D30: 0 | E30: 0 | F30: 0 | G30: 0 | H30: 0 | I30: 0 | J30: 0 | K30: 0 | L30: 0 | M30: 0 | N30: 0 | O30: 0 | P30: 0 | Q30: 0 | R30: 0 | S30: 0 | T30: 0 | U30: 0 | V30: 0 | W30: 0 | X30: 0 | Y30: 0 | Z30: 0 | AA30: 0 | AB30: 0 | AC30: 0 | AD30: 0 | AE30: 0 | AF30: 0 | AG30: 0 | AH30: 0 | AI30: 0 | AJ30: 0 | AK30: 0 | AL30: 0 | AM30: 0 | AN30: 0 | AO30: 0 | AP30: 0 | AQ30: 0 | AR30: 0 | AS30: 0 | AT30: 0 | AU30: 0 | AV30: 0 | AW30: 0 | AX30: 0 | AY30: 0 | AZ30: 0 | BA30: 0 | BB30: 0 | BC30: 0 | BD30: 0 | BE30: 0 | BF30: 0 | BG30: 0 | BH30: 0 | BI30: 0 | BJ30: 0 | BK30: 0 | BL30: 0 | BM30: 0 | BN30: 0 | BO30: 0 | BP30: 0 | BQ30: 0 | BR30: 0 | BS30: 0 | BT30: 0 | BU30: 0 | BV30: 0 | BW30: 0 | BX30: 0 | BY30: 0 | BZ30: 0 | CA30: 0 | CB30: 0 | CC30: 0 | CD30: 0 | CE30: 0 | CF30: 0 | CG30: 0 | CH30: 0 | CI30: 0 | CJ30: 0 | CK30: 0 | CL30: 0 | CM30: 0 | CN30: 0 | CO30: 0 | CP30: 0 | CQ30: 0 | CR30: 0 | CS30: 0 | CT30: 0 | CU30: 0 | CV30: 0 | CW30: 0 | CX30: 0 | CY30: 0 | CZ30: 0 | DA30: 0 | DB30: 0 | DC30: 0 | DD30: 0 | DE30: 0 | DF30: 0 | DG30: 0 | DH30: 0 | DI30: 0 | DJ30: 0 | DK30: 0 | DL30: 0 | DM30: 0 | DN30: 0 | DO30: 0 | DP30: 0 | DQ30: 0 | DR30: 0 | DS30: 0 | DT30: 0 | DU30: 0 | DV30: 0 | DW30: 0 | DX30: 0 | DY30: 0 | DZ30: 0 | EA30: 0 | EB30: 0 | EC30: 0 | ED30: 0 | EE30: 0 | EF30: 0 | EG30: 0 | EH30: 0 | EI30: 0 | EJ30: 0 | EK30: 0 | EL30: 0 | EM30: 0 | EN30: 0 | EO30: 0 | EP30: 0 | EQ30: 0 | ER30: 0 | ES30: 0 | ET30: 0 | EU30: 0 | EV30: 0 | EW30: 0 | EX30: 0 | EY30: 0 | EZ30: 0 | FA30: 0 | FB30: 0 | FC30: 0 | FD30: 0 | FE30: 0 | FF30: 0 | FG30: 0 | FH30: 0 | FI30: 0 | FJ30: 0 | FK30: 0 | FL30: 0 | FM30: 0 | FN30: 0 | FO30: 0 | FP30: 0 | FQ30: 0 | FR30: 0 | FS30: 0 | FT30: 0 | FU30: 0 | FV30: 0 | FW30: 0 | FX30: 0 | FY30: 0 | FZ30: 0 | GA30: 0 | GB30: 0 | GC30: 0 | GD30: 0 | GE30: 0 | GF30: 0 | GG30: 0 | GH30: 0 | GI30: 0 | GJ30: 0 | GK30: 0 | GL30: 0 | GM30: 0 | GN30: 0 | GO30: 0 | GP30: 0 | GQ30: 0 | GR30: 0 | GS30: 0 | GT30: 0 | GU30: 0 | GV30: 0 | GW30: 0 | GX30: 0 | GY30: 0 | GZ30: 0 | HA30: 0 | HB30: 0 | HC30: 0 | HD30: 0 | HE30: 0 | HF30: 0 | HG30: 0 | HH30: 0 | HI30: 0 | HJ30: 0 | HK30: 0 | HL30: 0 | HM30: 0 | HN30: 0 | HO30: 0 | HP30: 0 | HQ30: 0 | HR30: 0 | HS30: 0 | HT30: 0 | HU30: 0 | HV30: 0 | HW30: 0 | HX30: 0 | HY30: 0 | HZ30: 0 | IA30: 0 | IB30: 0 | IC30: 0 | ID30: 0 | IE30: 0 | IF30: 0 | IG30: 0 | IH30: 0 | II30: 0 | IJ30: 0 | IK30: 0 | IL30: 0 | IM30: 0 | IN30: 0 | IO30: 0 | IP30: 0 | IQ30: 0 | IR30: 0 | IS30: 0 | IT30: 0 | IU30: 0 | IV30: 0 | IW30: 0 | IX30: 0 | IY30: 0 | IZ30: 0 | JA30: 0 | JB30: 0 | JC30: 0 | JD30: 0 | JE30: 0 | JF30: 0 | JG30: 0 | JH30: 0 | JI30: 0 | JJ30: 0 | JK30: 0 | JL30: 0 | JM30: 0 | JN30: 0 | JO30: 0 | JP30: 0 | JQ30: 0 | JR30: 0 | JS30: 0 | JT30: 0 | JU30: 0 | JV30: 0 | JW30: 0 | JX30: 0 | JY30: 0 | JZ30: 0 | KA30: 0 | KB30: 0 | KC30: 0 | KD30: 0 | KE30: 0 | KF30: 0 | KG30: 0 | KH30: 0 | KI30: 0 | KJ30: 0 | KK30: 0 | KL30: 0 | KM30: 0 | KN30: 0 | KO30: 0 | KP30: 0 | KQ30: 0 | KR30: 0 | KS30: 0 | KT30: 0 | KU30: 0 | KV30: 0 | KW30: 0 | KX30: 0 | KY30: 0 | KZ30: 0 | LA30: 0 | LB30: 0 | LC30: 0 | LD30: 0 | LE30: 0 | LF30: 0 | LG30: 0 | LH30: 0 | LI30: 0 | LJ30: 0 | LK30: 0 | LL30: 0 | LM30: 0 | LN30: 0 | LO30: 0 | LP30: 0 | LQ30: 0 | LR30: 0 | LS30: 0 | LT30: 0 | LU30: 0 | LV30: 0 | LW30: 0 | LX30: 0 | LY30: 0 | LZ30: 0 | MA30: 0 | MB30: 0 | MC30: 0 | MD30: 0 | ME30: 0 | MF30: 0 | MG30: 0 | MH30: 0 | MI30: 0 | MJ30: 0 | MK30: 0 | ML30: 0 | MM30: 0 | MN30: 0 | MO30: 0 | MP30: 0 | MQ30: 0 | MR30: 0 | MS30: 0 | MT30: 0 | MU30: 0 | MV30: 0 | MW30: 0 | MX30: 0 | MY30: 0 | MZ30: 0 | NA30: 0 | NB30: 0 | NC30: 0 | ND30: 0 | NE30: 0 | NF30: 0 | NG30: 0 | NH30: 0 | NI30: 0 | NJ30: 0 | NK30: 0 | NL30: 0 | NM30: 0 | NN30: 0 | NO30: 0 | NP30: 0 | NQ30: 0 | NR30: 0 | NS30: 0 | NT30: 0 | NU30: 0 | NV30: 0 | NW30: 0 | NX30: 0 | NY30: 0 | NZ30: 0 | OA30: 0 | OB30: 0 | OC30: 0 | OD30: 0 | OE30: 0 | OF30: 0 | OG30: 0 | OH30: 0 | OI30: 0 | OJ30: 0 | OK30: 0 | OL30: 0 | OM30: 0 | ON30: 0 | OO30: 0 | OP30: 0 | OQ30: 0 | OR30: 0 | OS30: 0 | OT30: 0 | OU30: 0 | OV30: 0 | OW30: 0 | OX30: 0 | OY30: 0 | OZ30: 0 | PA30: 0 | PB30: 0 | PC30: 0 | PD30: 0 | PE30: 0 | PF30: 0 | PG30: 0
B31: Trecho 1 | D31: 0 | E31: 0 | F31: 0 | G31: 0 | H31: 0 | I31: 0 | J31: 0 | K31: 0 | L31: 0 | M31: 0 | N31: 0 | O31: 0 | P31: 0 | Q31: 0 | R31: 0 | S31: 0 | T31: 0 | U31: 0 | V31: 0 | W31: 0 | X31: 0 | Y31: 0 | Z31: 0 | AA31: 0 | AB31: 0 | AC31: 0 | AD31: 0 | AE31: 0 | AF31: 0 | AG31: 0 | AH31: 0 | AI31: 0 | AJ31: 0 | AK31: 0 | AL31: 0 | AM31: 0 | AN31: 0 | AO31: 0 | AP31: 0 | AQ31: 0 | AR31: 0 | AS31: 0 | AT31: 0 | AU31: 0 | AV31: 0 | AW31: 0 | AX31: 0 | AY31: 0 | AZ31: 0 | BA31: 0 | BB31: 0 | BC31: 0 | BD31: 0 | BE31: 0 | BF31: 0 | BG31: 0 | BH31: 0 | BI31: 0 | BJ31: 0 | BK31: 0 | BL31: 0 | BM31: 0 | BN31: 0 | BO31: 0 | BP31: 0 | BQ31: 0 | BR31: 0 | BS31: 0 | BT31: 0 | BU31: 0 | BV31: 0 | BW31: 0 | BX31: 0 | BY31: 0 | BZ31: 0 | CA31: 0 | CB31: 0 | CC31: 0 | CD31: 0 | CE31: 0 | CF31: 0 | CG31: 0 | CH31: 0 | CI31: 0 | CJ31: 0 | CK31: 0 | CL31: 0 | CM31: 0 | CN31: 0 | CO31: 0 | CP31: 0 | CQ31: 0 | CR31: 0 | CS31: 0 | CT31: 0 | CU31: 0 | CV31: 0 | CW31: 0 | CX31: 0 | CY31: 0 | CZ31: 0 | DA31: 0 | DB31: 0 | DC31: 0 | DD31: 0 | DE31: 0 | DF31: 0 | DG31: 0 | DH31: 0 | DI31: 0 | DJ31: 0 | DK31: 0 | DL31: 0 | DM31: 0 | DN31: 0 | DO31: 0 | DP31: 0 | DQ31: 0 | DR31: 0 | DS31: 0 | DT31: 0 | DU31: 0 | DV31: 0 | DW31: 0 | DX31: 0 | DY31: 0 | DZ31: 0 | EA31: 0 | EB31: 0 | EC31: 0 | ED31: 0 | EE31: 0 | EF31: 0 | EG31: 0 | EH31: 0 | EI31: 0 | EJ31: 0 | EK31: 0 | EL31: 0 | EM31: 0 | EN31: 0 | EO31: 0 | EP31: 0 | EQ31: 0 | ER31: 0 | ES31: 0 | ET31: 0 | EU31: 0 | EV31: 0 | EW31: 0 | EX31: 0 | EY31: 0 | EZ31: 0 | FA31: 0 | FB31: 0 | FC31: 0 | FD31: 0 | FE31: 0 | FF31: 0 | FG31: 0 | FH31: 0 | FI31: 0 | FJ31: 0 | FK31: 0 | FL31: 0 | FM31: 0 | FN31: 0 | FO31: 0 | FP31: 0 | FQ31: 0 | FR31: 0 | FS31: 0 | FT31: 0 | FU31: 0 | FV31: 0 | FW31: 0 | FX31: 0 | FY31: 0 | FZ31: 0 | GA31: 0 | GB31: 0 | GC31: 0 | GD31: 0 | GE31: 0 | GF31: 0 | GG31: 0 | GH31: 0 | GI31: 0 | GJ31: 0 | GK31: 0 | GL31: 0 | GM31: 0 | GN31: 0 | GO31: 0 | GP31: 0 | GQ31: 0 | GR31: 0 | GS31: 0 | GT31: 0 | GU31: 0 | GV31: 0 | GW31: 0 | GX31: 0 | GY31: 0 | GZ31: 0 | HA31: 0 | HB31: 0 | HC31: 0 | HD31: 0 | HE31: 0 | HF31: 0 | HG31: 0 | HH31: 0 | HI31: 0 | HJ31: 0 | HK31: 0 | HL31: 0 | HM31: 0 | HN31: 0 | HO31: 0 | HP31: 0 | HQ31: 0 | HR31: 0 | HS31: 0 | HT31: 0 | HU31: 0 | HV31: 0 | HW31: 0 | HX31: 0 | HY31: 0 | HZ31: 0 | IA31: 0 | IB31: 0 | IC31: 0 | ID31: 0 | IE31: 0 | IF31: 0 | IG31: 0 | IH31: 0 | II31: 0 | IJ31: 0 | IK31: 0 | IL31: 0 | IM31: 0 | IN31: 0 | IO31: 0 | IP31: 0 | IQ31: 0 | IR31: 0 | IS31: 0 | IT31: 0 | IU31: 0 | IV31: 0 | IW31: 0 | IX31: 0 | IY31: 0 | IZ31: 0 | JA31: 0 | JB31: 0 | JC31: 0 | JD31: 0 | JE31: 0 | JF31: 0 | JG31: 0 | JH31: 0 | JI31: 0 | JJ31: 0 | JK31: 0 | JL31: 0 | JM31: 0 | JN31: 0 | JO31: 0 | JP31: 0 | JQ31: 0 | JR31: 0 | JS31: 0 | JT31: 0 | JU31: 0 | JV31: 0 | JW31: 0 | JX31: 0 | JY31: 0 | JZ31: 0 | KA31: 0 | KB31: 0 | KC31: 0 | KD31: 0 | KE31: 0 | KF31: 0 | KG31: 0 | KH31: 0 | KI31: 0 | KJ31: 0 | KK31: 0 | KL31: 0 | KM31: 0 | KN31: 0 | KO31: 0 | KP31: 0 | KQ31: 0 | KR31: 0 | KS31: 0 | KT31: 0 | KU31: 0 | KV31: 0 | KW31: 0 | KX31: 0 | KY31: 0 | KZ31: 0 | LA31: 0 | LB31: 0 | LC31: 0 | LD31: 0 | LE31: 0 | LF31: 0 | LG31: 0 | LH31: 0 | LI31: 0 | LJ31: 0 | LK31: 0 | LL31: 0 | LM31: 0 | LN31: 0 | LO31: 0 | LP31: 0 | LQ31: 0 | LR31: 0 | LS31: 0 | LT31: 0 | LU31: 0 | LV31: 0 | LW31: 0 | LX31: 0 | LY31: 0 | LZ31: 0 | MA31: 0 | MB31: 0 | MC31: 0 | MD31: 0 | ME31: 0 | MF31: 0 | MG31: 0 | MH31: 0 | MI31: 0 | MJ31: 0 | MK31: 0 | ML31: 0 | MM31: 0 | MN31: 0 | MO31: 0 | MP31: 0 | MQ31: 0 | MR31: 0 | MS31: 0 | MT31: 0 | MU31: 0 | MV31: 0 | MW31: 0 | MX31: 0 | MY31: 0 | MZ31: 0 | NA31: 0 | NB31: 0 | NC31: 0 | ND31: 0 | NE31: 0 | NF31: 0 | NG31: 0 | NH31: 0 | NI31: 0 | NJ31: 0 | NK31: 0 | NL31: 0 | NM31: 0 | NN31: 0 | NO31: 0 | NP31: 0 | NQ31: 0 | NR31: 0 | NS31: 0 | NT31: 0 | NU31: 0 | NV31: 0 | NW31: 0 | NX31: 0 | NY31: 0 | NZ31: 0 | OA31: 0 | OB31: 0 | OC31: 0 | OD31: 0 | OE31: 0 | OF31: 0 | OG31: 0 | OH31: 0 | OI31: 0 | OJ31: 0 | OK31: 0 | OL31: 0 | OM31: 0 | ON31: 0 | OO31: 0 | OP31: 0 | OQ31: 0 | OR31: 0 | OS31: 0 | OT31: 0 | OU31: 0 | OV31: 0 | OW31: 0 | OX31: 0 | OY31: 0 | OZ31: 0 | PA31: 0 | PB31: 0 | PC31: 0 | PD31: 0 | PE31: 0 | PF31: 0 | PG31: 0
B33: 4. MÓDULO RECEITAS | D33: Base
B35: Contraprestação
B37: Trecho 1
B38: Valor anual | D38: 0 | E38: 0 | F38: 0 | G38: 0 | H38: 0 | I38: 0 | J38: 0 | K38: 0 | L38: 0 | M38: 0 | N38: 0 | O38: 0 | P38: 0 | Q38: 0 | R38: 0 | S38: 0 | T38: 0 | U38: 0 | V38: 0 | W38: 0 | X38: 0 | Y38: 0 | Z38: 0 | AA38: 0 | AB38: 0 | AC38: 0 | AD38: 0 | AE38: 0 | AF38: 0 | AG38: 0 | AH38: 0 | AI38: 0 | AJ38: 0 | AK38: 0 | AL38: 0 | AM38: 0 | AN38: 0 | AO38: 0 | AP38: 0 | AQ38: 0 | AR38: 0 | AS38: 0 | AT38: 0 | AU38: 0 | AV38: 0 | AW38: 0 | AX38: 0 | AY38: 0 | AZ38: 0 | BA38: 0 | BB38: 0 | BC38: 0 | BD38: 0 | BE38: 0 | BF38: 0 | BG38: 0 | BH38: 0 | BI38: 0 | BJ38: 0 | BK38: 0 | BL38: 0 | BM38: 0 | BN38: 0 | BO38: 0 | BP38: 0 | BQ38: 0 | BR38: 0 | BS38: 0 | BT38: 0 | BU38: 0 | BV38: 0 | BW38: 0 | BX38: 0 | BY38: 0 | BZ38: 0 | CA38: 0 | CB38: 0 | CC38: 0 | CD38: 0 | CE38: 0 | CF38: 0 | CG38: 0 | CH38: 0 | CI38: 0 | CJ38: 0 | CK38: 0 | CL38: 0 | CM38: 0 | CN38: 0 | CO38: 0 | CP38: 0 | CQ38: 0 | CR38: 0 | CS38: 0 | CT38: 0 | CU38: 0 | CV38: 0 | CW38: 0 | CX38: 0 | CY38: 0 | CZ38: 0 | DA38: 0 | DB38: 0 | DC38: 0 | DD38: 0 | DE38: 0 | DF38: 0 | DG38: 0 | DH38: 0 | DI38: 0 | DJ38: 0 | DK38: 0 | DL38: 0 | DM38: 0 | DN38: 0 | DO38: 0 | DP38: 0 | DQ38: 0 | DR38: 0 | DS38: 0 | DT38: 0 | DU38: 0 | DV38: 0 | DW38: 0 | DX38: 0 | DY38: 0 | DZ38: 0 | EA38: 0 | EB38: 0 | EC38: 0 | ED38: 0 | EE38: 0 | EF38: 0 | EG38: 0 | EH38: 0 | EI38: 0 | EJ38: 0 | EK38: 0 | EL38: 0 | EM38: 0 | EN38: 0 | EO38: 0 | EP38: 0 | EQ38: 0 | ER38: 0 | ES38: 0 | ET38: 0 | EU38: 0 | EV38: 0 | EW38: 0 | EX38: 0 | EY38: 0 | EZ38: 0 | FA38: 0 | FB38: 0 | FC38: 0 | FD38: 0 | FE38: 0 | FF38: 0 | FG38: 0 | FH38: 0 | FI38: 0 | FJ38: 0 | FK38: 0 | FL38: 0 | FM38: 0 | FN38: 0 | FO38: 0 | FP38: 0 | FQ38: 0 | FR38: 0 | FS38: 0 | FT38: 0 | FU38: 0 | FV38: 0 | FW38: 0 | FX38: 0 | FY38: 0 | FZ38: 0 | GA38: 0 | GB38: 0 | GC38: 0 | GD38: 0 | GE38: 0 | GF38: 0 | GG38: 0 | GH38: 0 | GI38: 0 | GJ38: 0 | GK38: 0 | GL38: 0 | GM38: 0 | GN38: 0 | GO38: 0 | GP38: 0 | GQ38: 0 | GR38: 0 | GS38: 0 | GT38: 0 | GU38: 0 | GV38: 0 | GW38: 0 | GX38: 0 | GY38: 0 | GZ38: 0 | HA38: 0 | HB38: 0 | HC38: 0 | HD38: 0 | HE38: 0 | HF38: 0 | HG38: 0 | HH38: 0 | HI38: 0 | HJ38: 0 | HK38: 0 | HL38: 0 | HM38: 0 | HN38: 0 | HO38: 0 | HP38: 0 | HQ38: 0 | HR38: 0 | HS38: 0 | HT38: 0 | HU38: 0 | HV38: 0 | HW38: 0 | HX38: 0 | HY38: 0 | HZ38: 0 | IA38: 0 | IB38: 0 | IC38: 0 | ID38: 0 | IE38: 0 | IF38: 0 | IG38: 0 | IH38: 0 | II38: 0 | IJ38: 0 | IK38: 0 | IL38: 0 | IM38: 0 | IN38: 0 | IO38: 0 | IP38: 0 | IQ38: 0 | IR38: 0 | IS38: 0 | IT38: 0 | IU38: 0 | IV38: 0 | IW38: 0 | IX38: 0 | IY38: 0 | IZ38: 0 | JA38: 0 | JB38: 0 | JC38: 0 | JD38: 0 | JE38: 0 | JF38: 0 | JG38: 0 | JH38: 0 | JI38: 0 | JJ38: 0 | JK38: 0 | JL38: 0 | JM38: 0 | JN38: 0 | JO38: 0 | JP38: 0 | JQ38: 0 | JR38: 0 | JS38: 0 | JT38: 0 | JU38: 0 | JV38: 0 | JW38: 0 | JX38: 0 | JY38: 0 | JZ38: 0 | KA38: 0 | KB38: 0 | KC38: 0 | KD38: 0 | KE38: 0 | KF38: 0 | KG38: 0 | KH38: 0 | KI38: 0 | KJ38: 0 | KK38: 0 | KL38: 0 | KM38: 0 | KN38: 0 | KO38: 0 | KP38: 0 | KQ38: 0 | KR38: 0 | KS38: 0 | KT38: 0 | KU38: 0 | KV38: 0 | KW38: 0 | KX38: 0 | KY38: 0 | KZ38: 0 | LA38: 0 | LB38: 0 | LC38: 0 | LD38: 0 | LE38: 0 | LF38: 0 | LG38: 0 | LH38: 0 | LI38: 0 | LJ38: 0 | LK38: 0 | LL38: 0 | LM38: 0 | LN38: 0 | LO38: 0 | LP38: 0 | LQ38: 0 | LR38: 0 | LS38: 0 | LT38: 0 | LU38: 0 | LV38: 0 | LW38: 0 | LX38: 0 | LY38: 0 | LZ38: 0 | MA38: 0 | MB38: 0 | MC38: 0 | MD38: 0 | ME38: 0 | MF38: 0 | MG38: 0 | MH38: 0 | MI38: 0 | MJ38: 0 | MK38: 0 | ML38: 0 | MM38: 0 | MN38: 0 | MO38: 0 | MP38: 0 | MQ38: 0 | MR38: 0 | MS38: 0 | MT38: 0 | MU38: 0 | MV38: 0 | MW38: 0 | MX38: 0 | MY38: 0 | MZ38: 0 | NA38: 0 | NB38: 0 | NC38: 0 | ND38: 0 | NE38: 0 | NF38: 0 | NG38: 0 | NH38: 0 | NI38: 0 | NJ38: 0 | NK38: 0 | NL38: 0 | NM38: 0 | NN38: 0 | NO38: 0 | NP38: 0 | NQ38: 0 | NR38: 0 | NS38: 0 | NT38: 0 | NU38: 0 | NV38: 0 | NW38: 0 | NX38: 0 | NY38: 0 | NZ38: 0 | OA38: 0 | OB38: 0 | OC38: 0 | OD38: 0 | OE38: 0 | OF38: 0 | OG38: 0 | OH38: 0 | OI38: 0 | OJ38: 0 | OK38: 0 | OL38: 0 | OM38: 0 | ON38: 0 | OO38: 0 | OP38: 0 | OQ38: 0 | OR38: 0 | OS38: 0 | OT38: 0 | OU38: 0 | OV38: 0 | OW38: 0 | OX38: 0 | OY38: 0 | OZ38: 0 | PA38: 0 | PB38: 0 | PC38: 0 | PD38: 0 | PE38: 0 | PF38: 0 | PG38: 0
B39: Valor mensal | E39: 0 | F39: 0 | G39: 0 | H39: 0 | I39: 0 | J39: 0 | K39: 0 | L39: 0 | M39: 0 | N39: 0 | O39: 0 | P39: 0 | Q39: 0 | R39: 0 | S39: 0 | T39: 0 | U39: 0 | V39: 0 | W39: 0 | X39: 0 | Y39: 0 | Z39: 0 | AA39: 0 | AB39: 0 | AC39: 0 | AD39: 0 | AE39: 0 | AF39: 0 | AG39: 0 | AH39: 0 | AI39: 0 | AJ39: 0 | AK39: 0 | AL39: 0 | AM39: 0 | AN39: 0 | AO39: 0 | AP39: 0 | AQ39: 0 | AR39: 0 | AS39: 0 | AT39: 0 | AU39: 0 | AV39: 0 | AW39: 0 | AX39: 0 | AY39: 0 | AZ39: 0 | BA39: 0 | BB39: 0 | BC39: 0 | BD39: 0 | BE39: 0 | BF39: 0 | BG39: 0 | BH39: 0 | BI39: 0 | BJ39: 0 | BK39: 0 | BL39: 0 | BM39: 0 | BN39: 0 | BO39: 0 | BP39: 0 | BQ39: 0 | BR39: 0 | BS39: 0 | BT39: 0 | BU39: 0 | BV39: 0 | BW39: 0 | BX39: 0 | BY39: 0 | BZ39: 0 | CA39: 0 | CB39: 0 | CC39: 0 | CD39: 0 | CE39: 0 | CF39: 0 | CG39: 0 | CH39: 0 | CI39: 0 | CJ39: 0 | CK39: 0 | CL39: 0 | CM39: 0 | CN39: 0 | CO39: 0 | CP39: 0 | CQ39: 0 | CR39: 0 | CS39: 0 | CT39: 0 | CU39: 0 | CV39: 0 | CW39: 0 | CX39: 0 | CY39: 0 | CZ39: 0 | DA39: 0 | DB39: 0 | DC39: 0 | DD39: 0 | DE39: 0 | DF39: 0 | DG39: 0 | DH39: 0 | DI39: 0 | DJ39: 0 | DK39: 0 | DL39: 0 | DM39: 0 | DN39: 0 | DO39: 0 | DP39: 0 | DQ39: 0 | DR39: 0 | DS39: 0 | DT39: 0 | DU39: 0 | DV39: 0 | DW39: 0 | DX39: 0 | DY39: 0 | DZ39: 0 | EA39: 0 | EB39: 0 | EC39: 0 | ED39: 0 | EE39: 0 | EF39: 0 | EG39: 0 | EH39: 0 | EI39: 0 | EJ39: 0 | EK39: 0 | EL39: 0 | EM39: 0 | EN39: 0 | EO39: 0 | EP39: 0 | EQ39: 0 | ER39: 0 | ES39: 0 | ET39: 0 | EU39: 0 | EV39: 0 | EW39: 0 | EX39: 0 | EY39: 0 | EZ39: 0 | FA39: 0 | FB39: 0 | FC39: 0 | FD39: 0 | FE39: 0 | FF39: 0 | FG39: 0 | FH39: 0 | FI39: 0 | FJ39: 0 | FK39: 0 | FL39: 0 | FM39: 0 | FN39: 0 | FO39: 0 | FP39: 0 | FQ39: 0 | FR39: 0 | FS39: 0 | FT39: 0 | FU39: 0 | FV39: 0 | FW39: 0 | FX39: 0 | FY39: 0 | FZ39: 0 | GA39: 0 | GB39: 0 | GC39: 0 | GD39: 0 | GE39: 0 | GF39: 0 | GG39: 0 | GH39: 0 | GI39: 0 | GJ39: 0 | GK39: 0 | GL39: 0 | GM39: 0 | GN39: 0 | GO39: 0 | GP39: 0 | GQ39: 0 | GR39: 0 | GS39: 0 | GT39: 0 | GU39: 0 | GV39: 0 | GW39: 0 | GX39: 0 | GY39: 0 | GZ39: 0 | HA39: 0 | HB39: 0 | HC39: 0 | HD39: 0 | HE39: 0 | HF39: 0 | HG39: 0 | HH39: 0 | HI39: 0 | HJ39: 0 | HK39: 0 | HL39: 0 | HM39: 0 | HN39: 0 | HO39: 0 | HP39: 0 | HQ39: 0 | HR39: 0 | HS39: 0 | HT39: 0 | HU39: 0 | HV39: 0 | HW39: 0 | HX39: 0 | HY39: 0 | HZ39: 0 | IA39: 0 | IB39: 0 | IC39: 0 | ID39: 0 | IE39: 0 | IF39: 0 | IG39: 0 | IH39: 0 | II39: 0 | IJ39: 0 | IK39: 0 | IL39: 0 | IM39: 0 | IN39: 0 | IO39: 0 | IP39: 0 | IQ39: 0 | IR39: 0 | IS39: 0 | IT39: 0 | IU39: 0 | IV39: 0 | IW39: 0 | IX39: 0 | IY39: 0 | IZ39: 0 | JA39: 0 | JB39: 0 | JC39: 0 | JD39: 0 | JE39: 0 | JF39: 0 | JG39: 0 | JH39: 0 | JI39: 0 | JJ39: 0 | JK39: 0 | JL39: 0 | JM39: 0 | JN39: 0 | JO39: 0 | JP39: 0 | JQ39: 0 | JR39: 0 | JS39: 0 | JT39: 0 | JU39: 0 | JV39: 0 | JW39: 0 | JX39: 0 | JY39: 0 | JZ39: 0 | KA39: 0 | KB39: 0 | KC39: 0 | KD39: 0 | KE39: 0 | KF39: 0 | KG39: 0 | KH39: 0 | KI39: 0 | KJ39: 0 | KK39: 0 | KL39: 0 | KM39: 0 | KN39: 0 | KO39: 0 | KP39: 0 | KQ39: 0 | KR39: 0 | KS39: 0 | KT39: 0 | KU39: 0 | KV39: 0 | KW39: 0 | KX39: 0 | KY39: 0 | KZ39: 0 | LA39: 0 | LB39: 0 | LC39: 0 | LD39: 0 | LE39: 0 | LF39: 0 | LG39: 0 | LH39: 0 | LI39: 0 | LJ39: 0 | LK39: 0 | LL39: 0 | LM39: 0 | LN39: 0 | LO39: 0 | LP39: 0 | LQ39: 0 | LR39: 0 | LS39: 0 | LT39: 0 | LU39: 0 | LV39: 0 | LW39: 0 | LX39: 0 | LY39: 0 | LZ39: 0 | MA39: 0 | MB39: 0 | MC39: 0 | MD39: 0 | ME39: 0 | MF39: 0 | MG39: 0 | MH39: 0 | MI39: 0 | MJ39: 0 | MK39: 0 | ML39: 0 | MM39: 0 | MN39: 0 | MO39: 0 | MP39: 0 | MQ39: 0 | MR39: 0 | MS39: 0 | MT39: 0 | MU39: 0 | MV39: 0 | MW39: 0 | MX39: 0 | MY39: 0 | MZ39: 0 | NA39: 0 | NB39: 0 | NC39: 0 | ND39: 0 | NE39: 0 | NF39: 0 | NG39: 0 | NH39: 0 | NI39: 0 | NJ39: 0 | NK39: 0 | NL39: 0 | NM39: 0 | NN39: 0 | NO39: 0 | NP39: 0 | NQ39: 0 | NR39: 0 | NS39: 0 | NT39: 0 | NU39: 0 | NV39: 0 | NW39: 0 | NX39: 0 | NY39: 0 | NZ39: 0 | OA39: 0 | OB39: 0 | OC39: 0 | OD39: 0 | OE39: 0 | OF39: 0 | OG39: 0 | OH39: 0 | OI39: 0 | OJ39: 0 | OK39: 0 | OL39: 0 | OM39: 0 | ON39: 0 | OO39: 0 | OP39: 0 | OQ39: 0 | OR39: 0 | OS39: 0 | OT39: 0 | OU39: 0 | OV39: 0 | OW39: 0 | OX39: 0 | OY39: 0 | OZ39: 0 | PA39: 0 | PB39: 0 | PC39: 0 | PD39: 0 | PE39: 0 | PF39: 0 | PG39: 0
B40: Mês de início | D40: 1 | E40: 1 | F40: 1 | G40: 1 | H40: 1 | I40: 1 | J40: 1 | K40: 1 | L40: 1 | M40: 1 | N40: 1 | O40: 1 | P40: 1 | Q40: 1 | R40: 1 | S40: 1 | T40: 1 | U40: 1 | V40: 1 | W40: 1 | X40: 1 | Y40: 1 | Z40: 1 | AA40: 1 | AB40: 1 | AC40: 1 | AD40: 1 | AE40: 1 | AF40: 1 | AG40: 1 | AH40: 1 | AI40: 1 | AJ40: 1 | AK40: 1 | AL40: 1 | AM40: 1 | AN40: 1 | AO40: 1 | AP40: 1 | AQ40: 1 | AR40: 1 | AS40: 1 | AT40: 1 | AU40: 1 | AV40: 1 | AW40: 1 | AX40: 1 | AY40: 1 | AZ40: 1 | BA40: 1 | BB40: 1 | BC40: 1 | BD40: 1 | BE40: 1 | BF40: 1 | BG40: 1 | BH40: 1 | BI40: 1 | BJ40: 1 | BK40: 1 | BL40: 1 | BM40: 1 | BN40: 1 | BO40: 1 | BP40: 1 | BQ40: 1 | BR40: 1 | BS40: 1 | BT40: 1 | BU40: 1 | BV40: 1 | BW40: 1 | BX40: 1 | BY40: 1 | BZ40: 1 | CA40: 1 | CB40: 1 | CC40: 1 | CD40: 1 | CE40: 1 | CF40: 1 | CG40: 1 | CH40: 1 | CI40: 1 | CJ40: 1 | CK40: 1 | CL40: 1 | CM40: 1 | CN40: 1 | CO40: 1 | CP40: 1 | CQ40: 1 | CR40: 1 | CS40: 1 | CT40: 1 | CU40: 1 | CV40: 1 | CW40: 1 | CX40: 1 | CY40: 1 | CZ40: 1 | DA40: 1 | DB40: 1 | DC40: 1 | DD40: 1 | DE40: 1 | DF40: 1 | DG40: 1 | DH40: 1 | DI40: 1 | DJ40: 1 | DK40: 1 | DL40: 1 | DM40: 1 | DN40: 1 | DO40: 1 | DP40: 1 | DQ40: 1 | DR40: 1 | DS40: 1 | DT40: 1 | DU40: 1 | DV40: 1 | DW40: 1 | DX40: 1 | DY40: 1 | DZ40: 1 | EA40: 1 | EB40: 1 | EC40: 1 | ED40: 1 | EE40: 1 | EF40: 1 | EG40: 1 | EH40: 1 | EI40: 1 | EJ40: 1 | EK40: 1 | EL40: 1 | EM40: 1 | EN40: 1 | EO40: 1 | EP40: 1 | EQ40: 1 | ER40: 1 | ES40: 1 | ET40: 1 | EU40: 1 | EV40: 1 | EW40: 1 | EX40: 1 | EY40: 1 | EZ40: 1 | FA40: 1 | FB40: 1 | FC40: 1 | FD40: 1 | FE40: 1 | FF40: 1 | FG40: 1 | FH40: 1 | FI40: 1 | FJ40: 1 | FK40: 1 | FL40: 1 | FM40: 1 | FN40: 1 | FO40: 1 | FP40: 1 | FQ40: 1 | FR40: 1 | FS40: 1 | FT40: 1 | FU40: 1 | FV40: 1 | FW40: 1 | FX40: 1 | FY40: 1 | FZ40: 1 | GA40: 1 | GB40: 1 | GC40: 1 | GD40: 1 | GE40: 1 | GF40: 1 | GG40: 1 | GH40: 1 | GI40: 1 | GJ40: 1 | GK40: 1 | GL40: 1 | GM40: 1 | GN40: 1 | GO40: 1 | GP40: 1 | GQ40: 1 | GR40: 1 | GS40: 1 | GT40: 1 | GU40: 1 | GV40: 1 | GW40: 1 | GX40: 1 | GY40: 1 | GZ40: 1 | HA40: 1 | HB40: 1 | HC40: 1 | HD40: 1 | HE40: 1 | HF40: 1 | HG40: 1 | HH40: 1 | HI40: 1 | HJ40: 1 | HK40: 1 | HL40: 1 | HM40: 1 | HN40: 1 | HO40: 1 | HP40: 1 | HQ40: 1 | HR40: 1 | HS40: 1 | HT40: 1 | HU40: 1 | HV40: 1 | HW40: 1 | HX40: 1 | HY40: 1 | HZ40: 1 | IA40: 1 | IB40: 1 | IC40: 1 | ID40: 1 | IE40: 1 | IF40: 1 | IG40: 1 | IH40: 1 | II40: 1 | IJ40: 1 | IK40: 1 | IL40: 1 | IM40: 1 | IN40: 1 | IO40: 1 | IP40: 1 | IQ40: 1 | IR40: 1 | IS40: 1 | IT40: 1 | IU40: 1 | IV40: 1 | IW40: 1 | IX40: 1 | IY40: 1 | IZ40: 1 | JA40: 1 | JB40: 1 | JC40: 1 | JD40: 1 | JE40: 1 | JF40: 1 | JG40: 1 | JH40: 1 | JI40: 1 | JJ40: 1 | JK40: 1 | JL40: 1 | JM40: 1 | JN40: 1 | JO40: 1 | JP40: 1 | JQ40: 1 | JR40: 1 | JS40: 1 | JT40: 1 | JU40: 1 | JV40: 1 | JW40: 1 | JX40: 1 | JY40: 1 | JZ40: 1 | KA40: 1 | KB40: 1 | KC40: 1 | KD40: 1 | KE40: 1 | KF40: 1 | KG40: 1 | KH40: 1 | KI40: 1 | KJ40: 1 | KK40: 1 | KL40: 1 | KM40: 1 | KN40: 1 | KO40: 1 | KP40: 1 | KQ40: 1 | KR40: 1 | KS40: 1 | KT40: 1 | KU40: 1 | KV40: 1 | KW40: 1 | KX40: 1 | KY40: 1 | KZ40: 1 | LA40: 1 | LB40: 1 | LC40: 1 | LD40: 1 | LE40: 1 | LF40: 1 | LG40: 1 | LH40: 1 | LI40: 1 | LJ40: 1 | LK40: 1 | LL40: 1 | LM40: 1 | LN40: 1 | LO40: 1 | LP40: 1 | LQ40: 1 | LR40: 1 | LS40: 1 | LT40: 1 | LU40: 1 | LV40: 1 | LW40: 1 | LX40: 1 | LY40: 1 | LZ40: 1 | MA40: 1 | MB40: 1 | MC40: 1 | MD40: 1 | ME40: 1 | MF40: 1 | MG40: 1 | MH40: 1 | MI40: 1 | MJ40: 1 | MK40: 1 | ML40: 1 | MM40: 1 | MN40: 1 | MO40: 1 | MP40: 1 | MQ40: 1 | MR40: 1 | MS40: 1 | MT40: 1 | MU40: 1 | MV40: 1 | MW40: 1 | MX40: 1 | MY40: 1 | MZ40: 1 | NA40: 1 | NB40: 1 | NC40: 1 | ND40: 1 | NE40: 1 | NF40: 1 | NG40: 1 | NH40: 1 | NI40: 1 | NJ40: 1 | NK40: 1 | NL40: 1 | NM40: 1 | NN40: 1 | NO40: 1 | NP40: 1 | NQ40: 1 | NR40: 1 | NS40: 1 | NT40: 1 | NU40: 1 | NV40: 1 | NW40: 1 | NX40: 1 | NY40: 1 | NZ40: 1 | OA40: 1 | OB40: 1 | OC40: 1 | OD40: 1 | OE40: 1 | OF40: 1 | OG40: 1 | OH40: 1 | OI40: 1 | OJ40: 1 | OK40: 1 | OL40: 1 | OM40: 1 | ON40: 1 | OO40: 1 | OP40: 1 | OQ40: 1 | OR40: 1 | OS40: 1 | OT40: 1 | OU40: 1 | OV40: 1 | OW40: 1 | OX40: 1 | OY40: 1 | OZ40: 1 | PA40: 1 | PB40: 1 | PC40: 1 | PD40: 1 | PE40: 1 | PF40: 1 | PG40: 1
B41: Eficiência média | D41: 0.95 | E41: 0.95 | F41: 0.95 | G41: 0.95 | H41: 0.95 | I41: 0.95 | J41: 0.95 | K41: 0.95 | L41: 0.95 | M41: 0.95 | N41: 0.95 | O41: 0.95 | P41: 0.95 | Q41: 0.95 | R41: 0.95 | S41: 0.95 | T41: 0.95 | U41: 0.95 | V41: 0.95 | W41: 0.95 | X41: 0.95 | Y41: 0.95 | Z41: 0.95 | AA41: 0.95 | AB41: 0.95 | AC41: 0.95 | AD41: 0.95 | AE41: 0.95 | AF41: 0.95 | AG41: 0.95 | AH41: 0.95 | AI41: 0.95 | AJ41: 0.95 | AK41: 0.95 | AL41: 0.95 | AM41: 0.95 | AN41: 0.95 | AO41: 0.95 | AP41: 0.95 | AQ41: 0.95 | AR41: 0.95 | AS41: 0.95 | AT41: 0.95 | AU41: 0.95 | AV41: 0.95 | AW41: 0.95 | AX41: 0.95 | AY41: 0.95 | AZ41: 0.95 | BA41: 0.95 | BB41: 0.95 | BC41: 0.95 | BD41: 0.95 | BE41: 0.95 | BF41: 0.95 | BG41: 0.95 | BH41: 0.95 | BI41: 0.95 | BJ41: 0.95 | BK41: 0.95 | BL41: 0.95 | BM41: 0.95 | BN41: 0.95 | BO41: 0.95 | BP41: 0.95 | BQ41: 0.95 | BR41: 0.95 | BS41: 0.95 | BT41: 0.95 | BU41: 0.95 | BV41: 0.95 | BW41: 0.95 | BX41: 0.95 | BY41: 0.95 | BZ41: 0.95 | CA41: 0.95 | CB41: 0.95 | CC41: 0.95 | CD41: 0.95 | CE41: 0.95 | CF41: 0.95 | CG41: 0.95 | CH41: 0.95 | CI41: 0.95 | CJ41: 0.95 | CK41: 0.95 | CL41: 0.95 | CM41: 0.95 | CN41: 0.95 | CO41: 0.95 | CP41: 0.95 | CQ41: 0.95 | CR41: 0.95 | CS41: 0.95 | CT41: 0.95 | CU41: 0.95 | CV41: 0.95 | CW41: 0.95 | CX41: 0.95 | CY41: 0.95 | CZ41: 0.95 | DA41: 0.95 | DB41: 0.95 | DC41: 0.95 | DD41: 0.95 | DE41: 0.95 | DF41: 0.95 | DG41: 0.95 | DH41: 0.95 | DI41: 0.95 | DJ41: 0.95 | DK41: 0.95 | DL41: 0.95 | DM41: 0.95 | DN41: 0.95 | DO41: 0.95 | DP41: 0.95 | DQ41: 0.95 | DR41: 0.95 | DS41: 0.95 | DT41: 0.95 | DU41: 0.95 | DV41: 0.95 | DW41: 0.95 | DX41: 0.95 | DY41: 0.95 | DZ41: 0.95 | EA41: 0.95 | EB41: 0.95 | EC41: 0.95 | ED41: 0.95 | EE41: 0.95 | EF41: 0.95 | EG41: 0.95 | EH41: 0.95 | EI41: 0.95 | EJ41: 0.95 | EK41: 0.95 | EL41: 0.95 | EM41: 0.95 | EN41: 0.95 | EO41: 0.95 | EP41: 0.95 | EQ41: 0.95 | ER41: 0.95 | ES41: 0.95 | ET41: 0.95 | EU41: 0.95 | EV41: 0.95 | EW41: 0.95 | EX41: 0.95 | EY41: 0.95 | EZ41: 0.95 | FA41: 0.95 | FB41: 0.95 | FC41: 0.95 | FD41: 0.95 | FE41: 0.95 | FF41: 0.95 | FG41: 0.95 | FH41: 0.95 | FI41: 0.95 | FJ41: 0.95 | FK41: 0.95 | FL41: 0.95 | FM41: 0.95 | FN41: 0.95 | FO41: 0.95 | FP41: 0.95 | FQ41: 0.95 | FR41: 0.95 | FS41: 0.95 | FT41: 0.95 | FU41: 0.95 | FV41: 0.95 | FW41: 0.95 | FX41: 0.95 | FY41: 0.95 | FZ41: 0.95 | GA41: 0.95 | GB41: 0.95 | GC41: 0.95 | GD41: 0.95 | GE41: 0.95 | GF41: 0.95 | GG41: 0.95 | GH41: 0.95 | GI41: 0.95 | GJ41: 0.95 | GK41: 0.95 | GL41: 0.95 | GM41: 0.95 | GN41: 0.95 | GO41: 0.95 | GP41: 0.95 | GQ41: 0.95 | GR41: 0.95 | GS41: 0.95 | GT41: 0.95 | GU41: 0.95 | GV41: 0.95 | GW41: 0.95 | GX41: 0.95 | GY41: 0.95 | GZ41: 0.95 | HA41: 0.95 | HB41: 0.95 | HC41: 0.95 | HD41: 0.95 | HE41: 0.95 | HF41: 0.95 | HG41: 0.95 | HH41: 0.95 | HI41: 0.95 | HJ41: 0.95 | HK41: 0.95 | HL41: 0.95 | HM41: 0.95 | HN41: 0.95 | HO41: 0.95 | HP41: 0.95 | HQ41: 0.95 | HR41: 0.95 | HS41: 0.95 | HT41: 0.95 | HU41: 0.95 | HV41: 0.95 | HW41: 0.95 | HX41: 0.95 | HY41: 0.95 | HZ41: 0.95 | IA41: 0.95 | IB41: 0.95 | IC41: 0.95 | ID41: 0.95 | IE41: 0.95 | IF41: 0.95 | IG41: 0.95 | IH41: 0.95 | II41: 0.95 | IJ41: 0.95 | IK41: 0.95 | IL41: 0.95 | IM41: 0.95 | IN41: 0.95 | IO41: 0.95 | IP41: 0.95 | IQ41: 0.95 | IR41: 0.95 | IS41: 0.95 | IT41: 0.95 | IU41: 0.95 | IV41: 0.95 | IW41: 0.95 | IX41: 0.95 | IY41: 0.95 | IZ41: 0.95 | JA41: 0.95 | JB41: 0.95 | JC41: 0.95 | JD41: 0.95 | JE41: 0.95 | JF41: 0.95 | JG41: 0.95 | JH41: 0.95 | JI41: 0.95 | JJ41: 0.95 | JK41: 0.95 | JL41: 0.95 | JM41: 0.95 | JN41: 0.95 | JO41: 0.95 | JP41: 0.95 | JQ41: 0.95 | JR41: 0.95 | JS41: 0.95 | JT41: 0.95 | JU41: 0.95 | JV41: 0.95 | JW41: 0.95 | JX41: 0.95 | JY41: 0.95 | JZ41: 0.95 | KA41: 0.95 | KB41: 0.95 | KC41: 0.95 | KD41: 0.95 | KE41: 0.95 | KF41: 0.95 | KG41: 0.95 | KH41: 0.95 | KI41: 0.95 | KJ41: 0.95 | KK41: 0.95 | KL41: 0.95 | KM41: 0.95 | KN41: 0.95 | KO41: 0.95 | KP41: 0.95 | KQ41: 0.95 | KR41: 0.95 | KS41: 0.95 | KT41: 0.95 | KU41: 0.95 | KV41: 0.95 | KW41: 0.95 | KX41: 0.95 | KY41: 0.95 | KZ41: 0.95 | LA41: 0.95 | LB41: 0.95 | LC41: 0.95 | LD41: 0.95 | LE41: 0.95 | LF41: 0.95 | LG41: 0.95 | LH41: 0.95 | LI41: 0.95 | LJ41: 0.95 | LK41: 0.95 | LL41: 0.95 | LM41: 0.95 | LN41: 0.95 | LO41: 0.95 | LP41: 0.95 | LQ41: 0.95 | LR41: 0.95 | LS41: 0.95 | LT41: 0.95 | LU41: 0.95 | LV41: 0.95 | LW41: 0.95 | LX41: 0.95 | LY41: 0.95 | LZ41: 0.95 | MA41: 0.95 | MB41: 0.95 | MC41: 0.95 | MD41: 0.95 | ME41: 0.95 | MF41: 0.95 | MG41: 0.95 | MH41: 0.95 | MI41: 0.95 | MJ41: 0.95 | MK41: 0.95 | ML41: 0.95 | MM41: 0.95 | MN41: 0.95 | MO41: 0.95 | MP41: 0.95 | MQ41: 0.95 | MR41: 0.95 | MS41: 0.95 | MT41: 0.95 | MU41: 0.95 | MV41: 0.95 | MW41: 0.95 | MX41: 0.95 | MY41: 0.95 | MZ41: 0.95 | NA41: 0.95 | NB41: 0.95 | NC41: 0.95 | ND41: 0.95 | NE41: 0.95 | NF41: 0.95 | NG41: 0.95 | NH41: 0.95 | NI41: 0.95 | NJ41: 0.95 | NK41: 0.95 | NL41: 0.95 | NM41: 0.95 | NN41: 0.95 | NO41: 0.95 | NP41: 0.95 | NQ41: 0.95 | NR41: 0.95 | NS41: 0.95 | NT41: 0.95 | NU41: 0.95 | NV41: 0.95 | NW41: 0.95 | NX41: 0.95 | NY41: 0.95 | NZ41: 0.95 | OA41: 0.95 | OB41: 0.95 | OC41: 0.95 | OD41: 0.95 | OE41: 0.95 | OF41: 0.95 | OG41: 0.95 | OH41: 0.95 | OI41: 0.95 | OJ41: 0.95 | OK41: 0.95 | OL41: 0.95 | OM41: 0.95 | ON41: 0.95 | OO41: 0.95 | OP41: 0.95 | OQ41: 0.95 | OR41: 0.95 | OS41: 0.95 | OT41: 0.95 | OU41: 0.95 | OV41: 0.95 | OW41: 0.95 | OX41: 0.95 | OY41: 0.95 | OZ41: 0.95 | PA41: 0.95 | PB41: 0.95 | PC41: 0.95 | PD41: 0.95 | PE41: 0.95 | PF41: 0.95 | PG41: 0.95
B42: Seleção de trecho | D42: 1 | E42: 1 | F42: 1 | G42: 1 | H42: 1 | I42: 1 | J42: 1 | K42: 1 | L42: 1 | M42: 1 | N42: 1 | O42: 1 | P42: 1 | Q42: 1 | R42: 1 | S42: 1 | T42: 1 | U42: 1 | V42: 1 | W42: 1 | X42: 1 | Y42: 1 | Z42: 1 | AA42: 1 | AB42: 1 | AC42: 1 | AD42: 1 | AE42: 1 | AF42: 1 | AG42: 1 | AH42: 1 | AI42: 1 | AJ42: 1 | AK42: 1 | AL42: 1 | AM42: 1 | AN42: 1 | AO42: 1 | AP42: 1 | AQ42: 1 | AR42: 1 | AS42: 1 | AT42: 1 | AU42: 1 | AV42: 1 | AW42: 1 | AX42: 1 | AY42: 1 | AZ42: 1 | BA42: 1 | BB42: 1 | BC42: 1 | BD42: 1 | BE42: 1 | BF42: 1 | BG42: 1 | BH42: 1 | BI42: 1 | BJ42: 1 | BK42: 1 | BL42: 1 | BM42: 1 | BN42: 1 | BO42: 1 | BP42: 1 | BQ42: 1 | BR42: 1 | BS42: 1 | BT42: 1 | BU42: 1 | BV42: 1 | BW42: 1 | BX42: 1 | BY42: 1 | BZ42: 1 | CA42: 1 | CB42: 1 | CC42: 1 | CD42: 1 | CE42: 1 | CF42: 1 | CG42: 1 | CH42: 1 | CI42: 1 | CJ42: 1 | CK42: 1 | CL42: 1 | CM42: 1 | CN42: 1 | CO42: 1 | CP42: 1 | CQ42: 1 | CR42: 1 | CS42: 1 | CT42: 1 | CU42: 1 | CV42: 1 | CW42: 1 | CX42: 1 | CY42: 1 | CZ42: 1 | DA42: 1 | DB42: 1 | DC42: 1 | DD42: 1 | DE42: 1 | DF42: 1 | DG42: 1 | DH42: 1 | DI42: 1 | DJ42: 1 | DK42: 1 | DL42: 1 | DM42: 1 | DN42: 1 | DO42: 1 | DP42: 1 | DQ42: 1 | DR42: 1 | DS42: 1 | DT42: 1 | DU42: 1 | DV42: 1 | DW42: 1 | DX42: 1 | DY42: 1 | DZ42: 1 | EA42: 1 | EB42: 1 | EC42: 1 | ED42: 1 | EE42: 1 | EF42: 1 | EG42: 1 | EH42: 1 | EI42: 1 | EJ42: 1 | EK42: 1 | EL42: 1 | EM42: 1 | EN42: 1 | EO42: 1 | EP42: 1 | EQ42: 1 | ER42: 1 | ES42: 1 | ET42: 1 | EU42: 1 | EV42: 1 | EW42: 1 | EX42: 1 | EY42: 1 | EZ42: 1 | FA42: 1 | FB42: 1 | FC42: 1 | FD42: 1 | FE42: 1 | FF42: 1 | FG42: 1 | FH42: 1 | FI42: 1 | FJ42: 1 | FK42: 1 | FL42: 1 | FM42: 1 | FN42: 1 | FO42: 1 | FP42: 1 | FQ42: 1 | FR42: 1 | FS42: 1 | FT42: 1 | FU42: 1 | FV42: 1 | FW42: 1 | FX42: 1 | FY42: 1 | FZ42: 1 | GA42: 1 | GB42: 1 | GC42: 1 | GD42: 1 | GE42: 1 | GF42: 1 | GG42: 1 | GH42: 1 | GI42: 1 | GJ42: 1 | GK42: 1 | GL42: 1 | GM42: 1 | GN42: 1 | GO42: 1 | GP42: 1 | GQ42: 1 | GR42: 1 | GS42: 1 | GT42: 1 | GU42: 1 | GV42: 1 | GW42: 1 | GX42: 1 | GY42: 1 | GZ42: 1 | HA42: 1 | HB42: 1 | HC42: 1 | HD42: 1 | HE42: 1 | HF42: 1 | HG42: 1 | HH42: 1 | HI42: 1 | HJ42: 1 | HK42: 1 | HL42: 1 | HM42: 1 | HN42: 1 | HO42: 1 | HP42: 1 | HQ42: 1 | HR42: 1 | HS42: 1 | HT42: 1 | HU42: 1 | HV42: 1 | HW42: 1 | HX42: 1 | HY42: 1 | HZ42: 1 | IA42: 1 | IB42: 1 | IC42: 1 | ID42: 1 | IE42: 1 | IF42: 1 | IG42: 1 | IH42: 1 | II42: 1 | IJ42: 1 | IK42: 1 | IL42: 1 | IM42: 1 | IN42: 1 | IO42: 1 | IP42: 1 | IQ42: 1 | IR42: 1 | IS42: 1 | IT42: 1 | IU42: 1 | IV42: 1 | IW42: 1 | IX42: 1 | IY42: 1 | IZ42: 1 | JA42: 1 | JB42: 1 | JC42: 1 | JD42: 1 | JE42: 1 | JF42: 1 | JG42: 1 | JH42: 1 | JI42: 1 | JJ42: 1 | JK42: 1 | JL42: 1 | JM42: 1 | JN42: 1 | JO42: 1 | JP42: 1 | JQ42: 1 | JR42: 1 | JS42: 1 | JT42: 1 | JU42: 1 | JV42: 1 | JW42: 1 | JX42: 1 | JY42: 1 | JZ42: 1 | KA42: 1 | KB42: 1 | KC42: 1 | KD42: 1 | KE42: 1 | KF42: 1 | KG42: 1 | KH42: 1 | KI42: 1 | KJ42: 1 | KK42: 1 | KL42: 1 | KM42: 1 | KN42: 1 | KO42: 1 | KP42: 1 | KQ42: 1 | KR42: 1 | KS42: 1 | KT42: 1 | KU42: 1 | KV42: 1 | KW42: 1 | KX42: 1 | KY42: 1 | KZ42: 1 | LA42: 1 | LB42: 1 | LC42: 1 | LD42: 1 | LE42: 1 | LF42: 1 | LG42: 1 | LH42: 1 | LI42: 1 | LJ42: 1 | LK42: 1 | LL42: 1 | LM42: 1 | LN42: 1 | LO42: 1 | LP42: 1 | LQ42: 1 | LR42: 1 | LS42: 1 | LT42: 1 | LU42: 1 | LV42: 1 | LW42: 1 | LX42: 1 | LY42: 1 | LZ42: 1 | MA42: 1 | MB42: 1 | MC42: 1 | MD42: 1 | ME42: 1 | MF42: 1 | MG42: 1 | MH42: 1 | MI42: 1 | MJ42: 1 | MK42: 1 | ML42: 1 | MM42: 1 | MN42: 1 | MO42: 1 | MP42: 1 | MQ42: 1 | MR42: 1 | MS42: 1 | MT42: 1 | MU42: 1 | MV42: 1 | MW42: 1 | MX42: 1 | MY42: 1 | MZ42: 1 | NA42: 1 | NB42: 1 | NC42: 1 | ND42: 1 | NE42: 1 | NF42: 1 | NG42: 1 | NH42: 1 | NI42: 1 | NJ42: 1 | NK42: 1 | NL42: 1 | NM42: 1 | NN42: 1 | NO42: 1 | NP42: 1 | NQ42: 1 | NR42: 1 | NS42: 1 | NT42: 1 | NU42: 1 | NV42: 1 | NW42: 1 | NX42: 1 | NY42: 1 | NZ42: 1 | OA42: 1 | OB42: 1 | OC42: 1 | OD42: 1 | OE42: 1 | OF42: 1 | OG42: 1 | OH42: 1 | OI42: 1 | OJ42: 1 | OK42: 1 | OL42: 1 | OM42: 1 | ON42: 1 | OO42: 1 | OP42: 1 | OQ42: 1 | OR42: 1 | OS42: 1 | OT42: 1 | OU42: 1 | OV42: 1 | OW42: 1 | OX42: 1 | OY42: 1 | OZ42: 1 | PA42: 1 | PB42: 1 | PC42: 1 | PD42: 1 | PE42: 1 | PF42: 1 | PG42: 1
B43: Prazo Reajuste (meses) | D43: 36 | E43: 36 | F43: 36 | G43: 36 | H43: 36 | I43: 36 | J43: 36 | K43: 36 | L43: 36 | M43: 36 | N43: 36 | O43: 36 | P43: 36 | Q43: 36 | R43: 36 | S43: 36 | T43: 36 | U43: 36 | V43: 36 | W43: 36 | X43: 36 | Y43: 36 | Z43: 36 | AA43: 36 | AB43: 36 | AC43: 36 | AD43: 36 | AE43: 36 | AF43: 36 | AG43: 36 | AH43: 36 | AI43: 36 | AJ43: 36 | AK43: 36 | AL43: 36 | AM43: 36 | AN43: 36 | AO43: 36 | AP43: 36 | AQ43: 36 | AR43: 36 | AS43: 36 | AT43: 36 | AU43: 36 | AV43: 36 | AW43: 36 | AX43: 36 | AY43: 36 | AZ43: 36 | BA43: 36 | BB43: 36 | BC43: 36 | BD43: 36 | BE43: 36 | BF43: 36 | BG43: 36 | BH43: 36 | BI43: 36 | BJ43: 36 | BK43: 36 | BL43: 36 | BM43: 36 | BN43: 36 | BO43: 36 | BP43: 36 | BQ43: 36 | BR43: 36 | BS43: 36 | BT43: 36 | BU43: 36 | BV43: 36 | BW43: 36 | BX43: 36 | BY43: 36 | BZ43: 36 | CA43: 36 | CB43: 36 | CC43: 36 | CD43: 36 | CE43: 36 | CF43: 36 | CG43: 36 | CH43: 36 | CI43: 36 | CJ43: 36 | CK43: 36 | CL43: 36 | CM43: 36 | CN43: 36 | CO43: 36 | CP43: 36 | CQ43: 36 | CR43: 36 | CS43: 36 | CT43: 36 | CU43: 36 | CV43: 36 | CW43: 36 | CX43: 36 | CY43: 36 | CZ43: 36 | DA43: 36 | DB43: 36 | DC43: 36 | DD43: 36 | DE43: 36 | DF43: 36 | DG43: 36 | DH43: 36 | DI43: 36 | DJ43: 36 | DK43: 36 | DL43: 36 | DM43: 36 | DN43: 36 | DO43: 36 | DP43: 36 | DQ43: 36 | DR43: 36 | DS43: 36 | DT43: 36 | DU43: 36 | DV43: 36 | DW43: 36 | DX43: 36 | DY43: 36 | DZ43: 36 | EA43: 36 | EB43: 36 | EC43: 36 | ED43: 36 | EE43: 36 | EF43: 36 | EG43: 36 | EH43: 36 | EI43: 36 | EJ43: 36 | EK43: 36 | EL43: 36 | EM43: 36 | EN43: 36 | EO43: 36 | EP43: 36 | EQ43: 36 | ER43: 36 | ES43: 36 | ET43: 36 | EU43: 36 | EV43: 36 | EW43: 36 | EX43: 36 | EY43: 36 | EZ43: 36 | FA43: 36 | FB43: 36 | FC43: 36 | FD43: 36 | FE43: 36 | FF43: 36 | FG43: 36 | FH43: 36 | FI43: 36 | FJ43: 36 | FK43: 36 | FL43: 36 | FM43: 36 | FN43: 36 | FO43: 36 | FP43: 36 | FQ43: 36 | FR43: 36 | FS43: 36 | FT43: 36 | FU43: 36 | FV43: 36 | FW43: 36 | FX43: 36 | FY43: 36 | FZ43: 36 | GA43: 36 | GB43: 36 | GC43: 36 | GD43: 36 | GE43: 36 | GF43: 36 | GG43: 36 | GH43: 36 | GI43: 36 | GJ43: 36 | GK43: 36 | GL43: 36 | GM43: 36 | GN43: 36 | GO43: 36 | GP43: 36 | GQ43: 36 | GR43: 36 | GS43: 36 | GT43: 36 | GU43: 36 | GV43: 36 | GW43: 36 | GX43: 36 | GY43: 36 | GZ43: 36 | HA43: 36 | HB43: 36 | HC43: 36 | HD43: 36 | HE43: 36 | HF43: 36 | HG43: 36 | HH43: 36 | HI43: 36 | HJ43: 36 | HK43: 36 | HL43: 36 | HM43: 36 | HN43: 36 | HO43: 36 | HP43: 36 | HQ43: 36 | HR43: 36 | HS43: 36 | HT43: 36 | HU43: 36 | HV43: 36 | HW43: 36 | HX43: 36 | HY43: 36 | HZ43: 36 | IA43: 36 | IB43: 36 | IC43: 36 | ID43: 36 | IE43: 36 | IF43: 36 | IG43: 36 | IH43: 36 | II43: 36 | IJ43: 36 | IK43: 36 | IL43: 36 | IM43: 36 | IN43: 36 | IO43: 36 | IP43: 36 | IQ43: 36 | IR43: 36 | IS43: 36 | IT43: 36 | IU43: 36 | IV43: 36 | IW43: 36 | IX43: 36 | IY43: 36 | IZ43: 36 | JA43: 36 | JB43: 36 | JC43: 36 | JD43: 36 | JE43: 36 | JF43: 36 | JG43: 36 | JH43: 36 | JI43: 36 | JJ43: 36 | JK43: 36 | JL43: 36 | JM43: 36 | JN43: 36 | JO43: 36 | JP43: 36 | JQ43: 36 | JR43: 36 | JS43: 36 | JT43: 36 | JU43: 36 | JV43: 36 | JW43: 36 | JX43: 36 | JY43: 36 | JZ43: 36 | KA43: 36 | KB43: 36 | KC43: 36 | KD43: 36 | KE43: 36 | KF43: 36 | KG43: 36 | KH43: 36 | KI43: 36 | KJ43: 36 | KK43: 36 | KL43: 36 | KM43: 36 | KN43: 36 | KO43: 36 | KP43: 36 | KQ43: 36 | KR43: 36 | KS43: 36 | KT43: 36 | KU43: 36 | KV43: 36 | KW43: 36 | KX43: 36 | KY43: 36 | KZ43: 36 | LA43: 36 | LB43: 36 | LC43: 36 | LD43: 36 | LE43: 36 | LF43: 36 | LG43: 36 | LH43: 36 | LI43: 36 | LJ43: 36 | LK43: 36 | LL43: 36 | LM43: 36 | LN43: 36 | LO43: 36 | LP43: 36 | LQ43: 36 | LR43: 36 | LS43: 36 | LT43: 36 | LU43: 36 | LV43: 36 | LW43: 36 | LX43: 36 | LY43: 36 | LZ43: 36 | MA43: 36 | MB43: 36 | MC43: 36 | MD43: 36 | ME43: 36 | MF43: 36 | MG43: 36 | MH43: 36 | MI43: 36 | MJ43: 36 | MK43: 36 | ML43: 36 | MM43: 36 | MN43: 36 | MO43: 36 | MP43: 36 | MQ43: 36 | MR43: 36 | MS43: 36 | MT43: 36 | MU43: 36 | MV43: 36 | MW43: 36 | MX43: 36 | MY43: 36 | MZ43: 36 | NA43: 36 | NB43: 36 | NC43: 36 | ND43: 36 | NE43: 36 | NF43: 36 | NG43: 36 | NH43: 36 | NI43: 36 | NJ43: 36 | NK43: 36 | NL43: 36 | NM43: 36 | NN43: 36 | NO43: 36 | NP43: 36 | NQ43: 36 | NR43: 36 | NS43: 36 | NT43: 36 | NU43: 36 | NV43: 36 | NW43: 36 | NX43: 36 | NY43: 36 | NZ43: 36 | OA43: 36 | OB43: 36 | OC43: 36 | OD43: 36 | OE43: 36 | OF43: 36 | OG43: 36 | OH43: 36 | OI43: 36 | OJ43: 36 | OK43: 36 | OL43: 36 | OM43: 36 | ON43: 36 | OO43: 36 | OP43: 36 | OQ43: 36 | OR43: 36 | OS43: 36 | OT43: 36 | OU43: 36 | OV43: 36 | OW43: 36 | OX43: 36 | OY43: 36 | OZ43: 36 | PA43: 36 | PB43: 36 | PC43: 36 | PD43: 36 | PE43: 36 | PF43: 36 | PG43: 36
B44: Porcentagem Reajuste | D44: 0 | E44: 0 | F44: 0 | G44: 0 | H44: 0 | I44: 0 | J44: 0 | K44: 0 | L44: 0 | M44: 0 | N44: 0 | O44: 0 | P44: 0 | Q44: 0 | R44: 0 | S44: 0 | T44: 0 | U44: 0 | V44: 0 | W44: 0 | X44: 0 | Y44: 0 | Z44: 0 | AA44: 0 | AB44: 0 | AC44: 0 | AD44: 0 | AE44: 0 | AF44: 0 | AG44: 0 | AH44: 0 | AI44: 0 | AJ44: 0 | AK44: 0 | AL44: 0 | AM44: 0 | AN44: 0 | AO44: 0 | AP44: 0 | AQ44: 0 | AR44: 0 | AS44: 0 | AT44: 0 | AU44: 0 | AV44: 0 | AW44: 0 | AX44: 0 | AY44: 0 | AZ44: 0 | BA44: 0 | BB44: 0 | BC44: 0 | BD44: 0 | BE44: 0 | BF44: 0 | BG44: 0 | BH44: 0 | BI44: 0 | BJ44: 0 | BK44: 0 | BL44: 0 | BM44: 0 | BN44: 0 | BO44: 0 | BP44: 0 | BQ44: 0 | BR44: 0 | BS44: 0 | BT44: 0 | BU44: 0 | BV44: 0 | BW44: 0 | BX44: 0 | BY44: 0 | BZ44: 0 | CA44: 0 | CB44: 0 | CC44: 0 | CD44: 0 | CE44: 0 | CF44: 0 | CG44: 0 | CH44: 0 | CI44: 0 | CJ44: 0 | CK44: 0 | CL44: 0 | CM44: 0 | CN44: 0 | CO44: 0 | CP44: 0 | CQ44: 0 | CR44: 0 | CS44: 0 | CT44: 0 | CU44: 0 | CV44: 0 | CW44: 0 | CX44: 0 | CY44: 0 | CZ44: 0 | DA44: 0 | DB44: 0 | DC44: 0 | DD44: 0 | DE44: 0 | DF44: 0 | DG44: 0 | DH44: 0 | DI44: 0 | DJ44: 0 | DK44: 0 | DL44: 0 | DM44: 0 | DN44: 0 | DO44: 0 | DP44: 0 | DQ44: 0 | DR44: 0 | DS44: 0 | DT44: 0 | DU44: 0 | DV44: 0 | DW44: 0 | DX44: 0 | DY44: 0 | DZ44: 0 | EA44: 0 | EB44: 0 | EC44: 0 | ED44: 0 | EE44: 0 | EF44: 0 | EG44: 0 | EH44: 0 | EI44: 0 | EJ44: 0 | EK44: 0 | EL44: 0 | EM44: 0 | EN44: 0 | EO44: 0 | EP44: 0 | EQ44: 0 | ER44: 0 | ES44: 0 | ET44: 0 | EU44: 0 | EV44: 0 | EW44: 0 | EX44: 0 | EY44: 0 | EZ44: 0 | FA44: 0 | FB44: 0 | FC44: 0 | FD44: 0 | FE44: 0 | FF44: 0 | FG44: 0 | FH44: 0 | FI44: 0 | FJ44: 0 | FK44: 0 | FL44: 0 | FM44: 0 | FN44: 0 | FO44: 0 | FP44: 0 | FQ44: 0 | FR44: 0 | FS44: 0 | FT44: 0 | FU44: 0 | FV44: 0 | FW44: 0 | FX44: 0 | FY44: 0 | FZ44: 0 | GA44: 0 | GB44: 0 | GC44: 0 | GD44: 0 | GE44: 0 | GF44: 0 | GG44: 0 | GH44: 0 | GI44: 0 | GJ44: 0 | GK44: 0 | GL44: 0 | GM44: 0 | GN44: 0 | GO44: 0 | GP44: 0 | GQ44: 0 | GR44: 0 | GS44: 0 | GT44: 0 | GU44: 0 | GV44: 0 | GW44: 0 | GX44: 0 | GY44: 0 | GZ44: 0 | HA44: 0 | HB44: 0 | HC44: 0 | HD44: 0 | HE44: 0 | HF44: 0 | HG44: 0 | HH44: 0 | HI44: 0 | HJ44: 0 | HK44: 0 | HL44: 0 | HM44: 0 | HN44: 0 | HO44: 0 | HP44: 0 | HQ44: 0 | HR44: 0 | HS44: 0 | HT44: 0 | HU44: 0 | HV44: 0 | HW44: 0 | HX44: 0 | HY44: 0 | HZ44: 0 | IA44: 0 | IB44: 0 | IC44: 0 | ID44: 0 | IE44: 0 | IF44: 0 | IG44: 0 | IH44: 0 | II44: 0 | IJ44: 0 | IK44: 0 | IL44: 0 | IM44: 0 | IN44: 0 | IO44: 0 | IP44: 0 | IQ44: 0 | IR44: 0 | IS44: 0 | IT44: 0 | IU44: 0 | IV44: 0 | IW44: 0 | IX44: 0 | IY44: 0 | IZ44: 0 | JA44: 0 | JB44: 0 | JC44: 0 | JD44: 0 | JE44: 0 | JF44: 0 | JG44: 0 | JH44: 0 | JI44: 0 | JJ44: 0 | JK44: 0 | JL44: 0 | JM44: 0 | JN44: 0 | JO44: 0 | JP44: 0 | JQ44: 0 | JR44: 0 | JS44: 0 | JT44: 0 | JU44: 0 | JV44: 0 | JW44: 0 | JX44: 0 | JY44: 0 | JZ44: 0 | KA44: 0 | KB44: 0 | KC44: 0 | KD44: 0 | KE44: 0 | KF44: 0 | KG44: 0 | KH44: 0 | KI44: 0 | KJ44: 0 | KK44: 0 | KL44: 0 | KM44: 0 | KN44: 0 | KO44: 0 | KP44: 0 | KQ44: 0 | KR44: 0 | KS44: 0 | KT44: 0 | KU44: 0 | KV44: 0 | KW44: 0 | KX44: 0 | KY44: 0 | KZ44: 0 | LA44: 0 | LB44: 0 | LC44: 0 | LD44: 0 | LE44: 0 | LF44: 0 | LG44: 0 | LH44: 0 | LI44: 0 | LJ44: 0 | LK44: 0 | LL44: 0 | LM44: 0 | LN44: 0 | LO44: 0 | LP44: 0 | LQ44: 0 | LR44: 0 | LS44: 0 | LT44: 0 | LU44: 0 | LV44: 0 | LW44: 0 | LX44: 0 | LY44: 0 | LZ44: 0 | MA44: 0 | MB44: 0 | MC44: 0 | MD44: 0 | ME44: 0 | MF44: 0 | MG44: 0 | MH44: 0 | MI44: 0 | MJ44: 0 | MK44: 0 | ML44: 0 | MM44: 0 | MN44: 0 | MO44: 0 | MP44: 0 | MQ44: 0 | MR44: 0 | MS44: 0 | MT44: 0 | MU44: 0 | MV44: 0 | MW44: 0 | MX44: 0 | MY44: 0 | MZ44: 0 | NA44: 0 | NB44: 0 | NC44: 0 | ND44: 0 | NE44: 0 | NF44: 0 | NG44: 0 | NH44: 0 | NI44: 0 | NJ44: 0 | NK44: 0 | NL44: 0 | NM44: 0 | NN44: 0 | NO44: 0 | NP44: 0 | NQ44: 0 | NR44: 0 | NS44: 0 | NT44: 0 | NU44: 0 | NV44: 0 | NW44: 0 | NX44: 0 | NY44: 0 | NZ44: 0 | OA44: 0 | OB44: 0 | OC44: 0 | OD44: 0 | OE44: 0 | OF44: 0 | OG44: 0 | OH44: 0 | OI44: 0 | OJ44: 0 | OK44: 0 | OL44: 0 | OM44: 0 | ON44: 0 | OO44: 0 | OP44: 0 | OQ44: 0 | OR44: 0 | OS44: 0 | OT44: 0 | OU44: 0 | OV44: 0 | OW44: 0 | OX44: 0 | OY44: 0 | OZ44: 0 | PA44: 0 | PB44: 0 | PC44: 0 | PD44: 0 | PE44: 0 | PF44: 0 | PG44: 0
B46: Receita contraprestação | E46: 0 | F46: 0 | G46: 0 | H46: 0 | I46: 0 | J46: 0 | K46: 0 | L46: 0 | M46: 0 | N46: 0 | O46: 0 | P46: 0 | Q46: 0 | R46: 0 | S46: 0 | T46: 0 | U46: 0 | V46: 0 | W46: 0 | X46: 0 | Y46: 0 | Z46: 0 | AA46: 0 | AB46: 0 | AC46: 0 | AD46: 0 | AE46: 0 | AF46: 0 | AG46: 0 | AH46: 0 | AI46: 0 | AJ46: 0 | AK46: 0 | AL46: 0 | AM46: 0 | AN46: 0 | AO46: 0 | AP46: 0 | AQ46: 0 | AR46: 0 | AS46: 0 | AT46: 0 | AU46: 0 | AV46: 0 | AW46: 0 | AX46: 0 | AY46: 0 | AZ46: 0 | BA46: 0 | BB46: 0 | BC46: 0 | BD46: 0 | BE46: 0 | BF46: 0 | BG46: 0 | BH46: 0 | BI46: 0 | BJ46: 0 | BK46: 0 | BL46: 0 | BM46: 0 | BN46: 0 | BO46: 0 | BP46: 0 | BQ46: 0 | BR46: 0 | BS46: 0 | BT46: 0 | BU46: 0 | BV46: 0 | BW46: 0 | BX46: 0 | BY46: 0 | BZ46: 0 | CA46: 0 | CB46: 0 | CC46: 0 | CD46: 0 | CE46: 0 | CF46: 0 | CG46: 0 | CH46: 0 | CI46: 0 | CJ46: 0 | CK46: 0 | CL46: 0 | CM46: 0 | CN46: 0 | CO46: 0 | CP46: 0 | CQ46: 0 | CR46: 0 | CS46: 0 | CT46: 0 | CU46: 0 | CV46: 0 | CW46: 0 | CX46: 0 | CY46: 0 | CZ46: 0 | DA46: 0 | DB46: 0 | DC46: 0 | DD46: 0 | DE46: 0 | DF46: 0 | DG46: 0 | DH46: 0 | DI46: 0 | DJ46: 0 | DK46: 0 | DL46: 0 | DM46: 0 | DN46: 0 | DO46: 0 | DP46: 0 | DQ46: 0 | DR46: 0 | DS46: 0 | DT46: 0 | DU46: 0 | DV46: 0 | DW46: 0 | DX46: 0 | DY46: 0 | DZ46: 0 | EA46: 0 | EB46: 0 | EC46: 0 | ED46: 0 | EE46: 0 | EF46: 0 | EG46: 0 | EH46: 0 | EI46: 0 | EJ46: 0 | EK46: 0 | EL46: 0 | EM46: 0 | EN46: 0 | EO46: 0 | EP46: 0 | EQ46: 0 | ER46: 0 | ES46: 0 | ET46: 0 | EU46: 0 | EV46: 0 | EW46: 0 | EX46: 0 | EY46: 0 | EZ46: 0 | FA46: 0 | FB46: 0 | FC46: 0 | FD46: 0 | FE46: 0 | FF46: 0 | FG46: 0 | FH46: 0 | FI46: 0 | FJ46: 0 | FK46: 0 | FL46: 0 | FM46: 0 | FN46: 0 | FO46: 0 | FP46: 0 | FQ46: 0 | FR46: 0 | FS46: 0 | FT46: 0 | FU46: 0 | FV46: 0 | FW46: 0 | FX46: 0 | FY46: 0 | FZ46: 0 | GA46: 0 | GB46: 0 | GC46: 0 | GD46: 0 | GE46: 0 | GF46: 0 | GG46: 0 | GH46: 0 | GI46: 0 | GJ46: 0 | GK46: 0 | GL46: 0 | GM46: 0 | GN46: 0 | GO46: 0 | GP46: 0 | GQ46: 0 | GR46: 0 | GS46: 0 | GT46: 0 | GU46: 0 | GV46: 0 | GW46: 0 | GX46: 0 | GY46: 0 | GZ46: 0 | HA46: 0 | HB46: 0 | HC46: 0 | HD46: 0 | HE46: 0 | HF46: 0 | HG46: 0 | HH46: 0 | HI46: 0 | HJ46: 0 | HK46: 0 | HL46: 0 | HM46: 0 | HN46: 0 | HO46: 0 | HP46: 0 | HQ46: 0 | HR46: 0 | HS46: 0 | HT46: 0 | HU46: 0 | HV46: 0 | HW46: 0 | HX46: 0 | HY46: 0 | HZ46: 0 | IA46: 0 | IB46: 0 | IC46: 0 | ID46: 0 | IE46: 0 | IF46: 0 | IG46: 0 | IH46: 0 | II46: 0 | IJ46: 0 | IK46: 0 | IL46: 0 | IM46: 0 | IN46: 0 | IO46: 0 | IP46: 0 | IQ46: 0 | IR46: 0 | IS46: 0 | IT46: 0 | IU46: 0 | IV46: 0 | IW46: 0 | IX46: 0 | IY46: 0 | IZ46: 0 | JA46: 0 | JB46: 0 | JC46: 0 | JD46: 0 | JE46: 0 | JF46: 0 | JG46: 0 | JH46: 0 | JI46: 0 | JJ46: 0 | JK46: 0 | JL46: 0 | JM46: 0 | JN46: 0 | JO46: 0 | JP46: 0 | JQ46: 0 | JR46: 0 | JS46: 0 | JT46: 0 | JU46: 0 | JV46: 0 | JW46: 0 | JX46: 0 | JY46: 0 | JZ46: 0 | KA46: 0 | KB46: 0 | KC46: 0 | KD46: 0 | KE46: 0 | KF46: 0 | KG46: 0 | KH46: 0 | KI46: 0 | KJ46: 0 | KK46: 0 | KL46: 0 | KM46: 0 | KN46: 0 | KO46: 0 | KP46: 0 | KQ46: 0 | KR46: 0 | KS46: 0 | KT46: 0 | KU46: 0 | KV46: 0 | KW46: 0 | KX46: 0 | KY46: 0 | KZ46: 0 | LA46: 0 | LB46: 0 | LC46: 0 | LD46: 0 | LE46: 0 | LF46: 0 | LG46: 0 | LH46: 0 | LI46: 0 | LJ46: 0 | LK46: 0 | LL46: 0 | LM46: 0 | LN46: 0 | LO46: 0 | LP46: 0 | LQ46: 0 | LR46: 0 | LS46: 0 | LT46: 0 | LU46: 0 | LV46: 0 | LW46: 0 | LX46: 0 | LY46: 0 | LZ46: 0 | MA46: 0 | MB46: 0 | MC46: 0 | MD46: 0 | ME46: 0 | MF46: 0 | MG46: 0 | MH46: 0 | MI46: 0 | MJ46: 0 | MK46: 0 | ML46: 0 | MM46: 0 | MN46: 0 | MO46: 0 | MP46: 0 | MQ46: 0 | MR46: 0 | MS46: 0 | MT46: 0 | MU46: 0 | MV46: 0 | MW46: 0 | MX46: 0 | MY46: 0 | MZ46: 0 | NA46: 0 | NB46: 0 | NC46: 0 | ND46: 0 | NE46: 0 | NF46: 0 | NG46: 0 | NH46: 0 | NI46: 0 | NJ46: 0 | NK46: 0 | NL46: 0 | NM46: 0 | NN46: 0 | NO46: 0 | NP46: 0 | NQ46: 0 | NR46: 0 | NS46: 0 | NT46: 0 | NU46: 0 | NV46: 0 | NW46: 0 | NX46: 0 | NY46: 0 | NZ46: 0 | OA46: 0 | OB46: 0 | OC46: 0 | OD46: 0 | OE46: 0 | OF46: 0 | OG46: 0 | OH46: 0 | OI46: 0 | OJ46: 0 | OK46: 0 | OL46: 0 | OM46: 0 | ON46: 0 | OO46: 0 | OP46: 0 | OQ46: 0 | OR46: 0 | OS46: 0 | OT46: 0 | OU46: 0 | OV46: 0 | OW46: 0 | OX46: 0 | OY46: 0 | OZ46: 0 | PA46: 0 | PB46: 0 | PC46: 0 | PD46: 0 | PE46: 0 | PF46: 0 | PG46: 0
B49: Receita acessórias - Alimentação
B51: Trecho 1
B52: Alimentação Base | E52: 91687.38248 | F52: 91687.38248 | G52: 91687.38248 | H52: 91687.38248 | I52: 91687.38248 | J52: 91687.38248 | K52: 91687.38248 | L52: 91687.38248 | M52: 91687.38248 | N52: 91687.38248 | O52: 91687.38248 | P52: 91687.38248 | Q52: 93481.9887 | R52: 93481.9887 | S52: 93481.9887 | T52: 93481.9887 | U52: 93481.9887 | V52: 93481.9887 | W52: 93481.9887 | X52: 93481.9887 | Y52: 93481.9887 | Z52: 93481.9887 | AA52: 93481.9887 | AB52: 93481.9887 | AC52: 95340.26381 | AD52: 95340.26381 | AE52: 95340.26381 | AF52: 95340.26381 | AG52: 95340.26381 | AH52: 95340.26381 | AI52: 95340.26381 | AJ52: 95340.26381 | AK52: 95340.26381 | AL52: 95340.26381 | AM52: 95340.26381 | AN52: 95340.26381 | AO52: 97266.26031 | AP52: 97266.26031 | AQ52: 97266.26031 | AR52: 97266.26031 | AS52: 97266.26031 | AT52: 97266.26031 | AU52: 97266.26031 | AV52: 97266.26031 | AW52: 97266.26031 | AX52: 97266.26031 | AY52: 97266.26031 | AZ52: 97266.26031 | BA52: 99261.55259 | BB52: 99261.55259 | BC52: 99261.55259 | BD52: 99261.55259 | BE52: 99261.55259 | BF52: 99261.55259 | BG52: 99261.55259 | BH52: 99261.55259 | BI52: 99261.55259 | BJ52: 99261.55259 | BK52: 99261.55259 | BL52: 99261.55259 | BM52: 101328.3778 | BN52: 101328.3778 | BO52: 101328.3778 | BP52: 101328.3778 | BQ52: 101328.3778 | BR52: 101328.3778 | BS52: 101328.3778 | BT52: 101328.3778 | BU52: 101328.3778 | BV52: 101328.3778 | BW52: 101328.3778 | BX52: 101328.3778 | BY52: 103373.884 | BZ52: 103373.884 | CA52: 103373.884 | CB52: 103373.884 | CC52: 103373.884 | CD52: 103373.884 | CE52: 103373.884 | CF52: 103373.884 | CG52: 103373.884 | CH52: 103373.884 | CI52: 103373.884 | CJ52: 103373.884 | CK52: 105492.1015 | CL52: 105492.1015 | CM52: 105492.1015 | CN52: 105492.1015 | CO52: 105492.1015 | CP52: 105492.1015 | CQ52: 105492.1015 | CR52: 105492.1015 | CS52: 105492.1015 | CT52: 105492.1015 | CU52: 105492.1015 | CV52: 105492.1015 | CW52: 107686.0068 | CX52: 107686.0068 | CY52: 107686.0068 | CZ52: 107686.0068 | DA52: 107686.0068 | DB52: 107686.0068 | DC52: 107686.0068 | DD52: 107686.0068 | DE52: 107686.0068 | DF52: 107686.0068 | DG52: 107686.0068 | DH52: 107686.0068 | DI52: 109958.7361 | DJ52: 109958.7361 | DK52: 109958.7361 | DL52: 109958.7361 | DM52: 109958.7361 | DN52: 109958.7361 | DO52: 109958.7361 | DP52: 109958.7361 | DQ52: 109958.7361 | DR52: 109958.7361 | DS52: 109958.7361 | DT52: 109958.7361 | DU52: 112313.0924 | DV52: 112313.0924 | DW52: 112313.0924 | DX52: 112313.0924 | DY52: 112313.0924 | DZ52: 112313.0924 | EA52: 112313.0924 | EB52: 112313.0924 | EC52: 112313.0924 | ED52: 112313.0924 | EE52: 112313.0924 | EF52: 112313.0924 | EG52: 114637.5114 | EH52: 114637.5114 | EI52: 114637.5114 | EJ52: 114637.5114 | EK52: 114637.5114 | EL52: 114637.5114 | EM52: 114637.5114 | EN52: 114637.5114 | EO52: 114637.5114 | EP52: 114637.5114 | EQ52: 114637.5114 | ER52: 114637.5114 | ES52: 117044.2901 | ET52: 117044.2901 | EU52: 117044.2901 | EV52: 117044.2901 | EW52: 117044.2901 | EX52: 117044.2901 | EY52: 117044.2901 | EZ52: 117044.2901 | FA52: 117044.2901 | FB52: 117044.2901 | FC52: 117044.2901 | FD52: 117044.2901 | FE52: 119536.8532 | FF52: 119536.8532 | FG52: 119536.8532 | FH52: 119536.8532 | FI52: 119536.8532 | FJ52: 119536.8532 | FK52: 119536.8532 | FL52: 119536.8532 | FM52: 119536.8532 | FN52: 119536.8532 | FO52: 119536.8532 | FP52: 119536.8532 | FQ52: 122118.1065 | FR52: 122118.1065 | FS52: 122118.1065 | FT52: 122118.1065 | FU52: 122118.1065 | FV52: 122118.1065 | FW52: 122118.1065 | FX52: 122118.1065 | FY52: 122118.1065 | FZ52: 122118.1065 | GA52: 122118.1065 | GB52: 122118.1065 | GC52: 124790.8806 | GD52: 124790.8806 | GE52: 124790.8806 | GF52: 124790.8806 | GG52: 124790.8806 | GH52: 124790.8806 | GI52: 124790.8806 | GJ52: 124790.8806 | GK52: 124790.8806 | GL52: 124790.8806 | GM52: 124790.8806 | GN52: 124790.8806 | GO52: 127429.6146 | GP52: 127429.6146 | GQ52: 127429.6146 | GR52: 127429.6146 | GS52: 127429.6146 | GT52: 127429.6146 | GU52: 127429.6146 | GV52: 127429.6146 | GW52: 127429.6146 | GX52: 127429.6146 | GY52: 127429.6146 | GZ52: 127429.6146 | HA52: 130160.837 | HB52: 130160.837 | HC52: 130160.837 | HD52: 130160.837 | HE52: 130160.837 | HF52: 130160.837 | HG52: 130160.837 | HH52: 130160.837 | HI52: 130160.837 | HJ52: 130160.837 | HK52: 130160.837 | HL52: 130160.837 | HM52: 132988.0504 | HN52: 132988.0504 | HO52: 132988.0504 | HP52: 132988.0504 | HQ52: 132988.0504 | HR52: 132988.0504 | HS52: 132988.0504 | HT52: 132988.0504 | HU52: 132988.0504 | HV52: 132988.0504 | HW52: 132988.0504 | HX52: 132988.0504 | HY52: 135914.3569 | HZ52: 135914.3569 | IA52: 135914.3569 | IB52: 135914.3569 | IC52: 135914.3569 | ID52: 135914.3569 | IE52: 135914.3569 | IF52: 135914.3569 | IG52: 135914.3569 | IH52: 135914.3569 | II52: 135914.3569 | IJ52: 135914.3569 | IK52: 138943.0714 | IL52: 138943.0714 | IM52: 138943.0714 | IN52: 138943.0714 | IO52: 138943.0714 | IP52: 138943.0714 | IQ52: 138943.0714 | IR52: 138943.0714 | IS52: 138943.0714 | IT52: 138943.0714 | IU52: 138943.0714 | IV52: 138943.0714 | IW52: 141952.4871 | IX52: 141952.4871 | IY52: 141952.4871 | IZ52: 141952.4871 | JA52: 141952.4871 | JB52: 141952.4871 | JC52: 141952.4871 | JD52: 141952.4871 | JE52: 141952.4871 | JF52: 141952.4871 | JG52: 141952.4871 | JH52: 141952.4871 | JI52: 145065.7207 | JJ52: 145065.7207 | JK52: 145065.7207 | JL52: 145065.7207 | JM52: 145065.7207 | JN52: 145065.7207 | JO52: 145065.7207 | JP52: 145065.7207 | JQ52: 145065.7207 | JR52: 145065.7207 | JS52: 145065.7207 | JT52: 145065.7207 | JU52: 148285.9058 | JV52: 148285.9058 | JW52: 148285.9058 | JX52: 148285.9058 | JY52: 148285.9058 | JZ52: 148285.9058 | KA52: 148285.9058 | KB52: 148285.9058 | KC52: 148285.9058 | KD52: 148285.9058 | KE52: 148285.9058 | KF52: 148285.9058 | KG52: 151616.2435 | KH52: 151616.2435 | KI52: 151616.2435 | KJ52: 151616.2435 | KK52: 151616.2435 | KL52: 151616.2435 | KM52: 151616.2435 | KN52: 151616.2435 | KO52: 151616.2435 | KP52: 151616.2435 | KQ52: 151616.2435 | KR52: 151616.2435 | KS52: 155060.5967 | KT52: 155060.5967 | KU52: 155060.5967 | KV52: 155060.5967 | KW52: 155060.5967 | KX52: 155060.5967 | KY52: 155060.5967 | KZ52: 155060.5967 | LA52: 155060.5967 | LB52: 155060.5967 | LC52: 155060.5967 | LD52: 155060.5967 | LE52: 158509.6059 | LF52: 158509.6059 | LG52: 158509.6059 | LH52: 158509.6059 | LI52: 158509.6059 | LJ52: 158509.6059 | LK52: 158509.6059 | LL52: 158509.6059 | LM52: 158509.6059 | LN52: 158509.6059 | LO52: 158509.6059 | LP52: 158509.6059 | LQ52: 162075.896 | LR52: 162075.896 | LS52: 162075.896 | LT52: 162075.896 | LU52: 162075.896 | LV52: 162075.896 | LW52: 162075.896 | LX52: 162075.896 | LY52: 162075.896 | LZ52: 162075.896 | MA52: 162075.896 | MB52: 162075.896 | MC52: 165763.3212 | MD52: 165763.3212 | ME52: 165763.3212 | MF52: 165763.3212 | MG52: 165763.3212 | MH52: 165763.3212 | MI52: 165763.3212 | MJ52: 165763.3212 | MK52: 165763.3212 | ML52: 165763.3212 | MM52: 165763.3212 | MN52: 165763.3212 | MO52: 169576.0219 | MP52: 169576.0219 | MQ52: 169576.0219 | MR52: 169576.0219 | MS52: 169576.0219 | MT52: 169576.0219 | MU52: 169576.0219 | MV52: 169576.0219 | MW52: 169576.0219 | MX52: 169576.0219 | MY52: 169576.0219 | MZ52: 169576.0219 | NA52: 173518.9565 | NB52: 173518.9565 | NC52: 173518.9565 | ND52: 173518.9565 | NE52: 173518.9565 | NF52: 173518.9565 | NG52: 173518.9565 | NH52: 173518.9565 | NI52: 173518.9565 | NJ52: 173518.9565 | NK52: 173518.9565 | NL52: 173518.9565 | NM52: 177482.5131 | NN52: 177482.5131 | NO52: 177482.5131 | NP52: 177482.5131 | NQ52: 177482.5131 | NR52: 177482.5131 | NS52: 177482.5131 | NT52: 177482.5131 | NU52: 177482.5131 | NV52: 177482.5131 | NW52: 177482.5131 | NX52: 177482.5131 | NY52: 181537.029 | NZ52: 181537.029 | OA52: 181537.029 | OB52: 181537.029 | OC52: 181537.029 | OD52: 181537.029 | OE52: 181537.029 | OF52: 181537.029 | OG52: 181537.029 | OH52: 181537.029 | OI52: 181537.029 | OJ52: 181537.029 | OK52: 185684.6018 | OL52: 185684.6018 | OM52: 185684.6018 | ON52: 185684.6018 | OO52: 185684.6018 | OP52: 185684.6018 | OQ52: 185684.6018 | OR52: 185684.6018 | OS52: 185684.6018 | OT52: 185684.6018 | OU52: 185684.6018 | OV52: 185684.6018 | OW52: 185684.6018 | OX52: 185684.6018 | OY52: 185684.6018 | OZ52: 185684.6018 | PA52: 185684.6018 | PB52: 185684.6018 | PC52: 185684.6018 | PD52: 185684.6018 | PE52: 185684.6018 | PF52: 185684.6018 | PG52: 185684.6018
B55: Cenário | D55: Conservador | E55: 1 | F55: 1 | G55: 1 | H55: 1 | I55: 1 | J55: 1 | K55: 1 | L55: 1 | M55: 1 | N55: 1 | O55: 1 | P55: 1 | Q55: 1 | R55: 1 | S55: 1 | T55: 1 | U55: 1 | V55: 1 | W55: 1 | X55: 1 | Y55: 1 | Z55: 1 | AA55: 1 | AB55: 1 | AC55: 1 | AD55: 1 | AE55: 1 | AF55: 1 | AG55: 1 | AH55: 1 | AI55: 1 | AJ55: 1 | AK55: 1 | AL55: 1 | AM55: 1 | AN55: 1 | AO55: 1 | AP55: 1 | AQ55: 1 | AR55: 1 | AS55: 1 | AT55: 1 | AU55: 1 | AV55: 1 | AW55: 1 | AX55: 1 | AY55: 1 | AZ55: 1 | BA55: 1 | BB55: 1 | BC55: 1 | BD55: 1 | BE55: 1 | BF55: 1 | BG55: 1 | BH55: 1 | BI55: 1 | BJ55: 1 | BK55: 1 | BL55: 1 | BM55: 1 | BN55: 1 | BO55: 1 | BP55: 1 | BQ55: 1 | BR55: 1 | BS55: 1 | BT55: 1 | BU55: 1 | BV55: 1 | BW55: 1 | BX55: 1 | BY55: 1 | BZ55: 1 | CA55: 1 | CB55: 1 | CC55: 1 | CD55: 1 | CE55: 1 | CF55: 1 | CG55: 1 | CH55: 1 | CI55: 1 | CJ55: 1 | CK55: 1 | CL55: 1 | CM55: 1 | CN55: 1 | CO55: 1 | CP55: 1 | CQ55: 1 | CR55: 1 | CS55: 1 | CT55: 1 | CU55: 1 | CV55: 1 | CW55: 1 | CX55: 1 | CY55: 1 | CZ55: 1 | DA55: 1 | DB55: 1 | DC55: 1 | DD55: 1 | DE55: 1 | DF55: 1 | DG55: 1 | DH55: 1 | DI55: 1 | DJ55: 1 | DK55: 1 | DL55: 1 | DM55: 1 | DN55: 1 | DO55: 1 | DP55: 1 | DQ55: 1 | DR55: 1 | DS55: 1 | DT55: 1 | DU55: 1 | DV55: 1 | DW55: 1 | DX55: 1 | DY55: 1 | DZ55: 1 | EA55: 1 | EB55: 1 | EC55: 1 | ED55: 1 | EE55: 1 | EF55: 1 | EG55: 1 | EH55: 1 | EI55: 1 | EJ55: 1 | EK55: 1 | EL55: 1 | EM55: 1 | EN55: 1 | EO55: 1 | EP55: 1 | EQ55: 1 | ER55: 1 | ES55: 1 | ET55: 1 | EU55: 1 | EV55: 1 | EW55: 1 | EX55: 1 | EY55: 1 | EZ55: 1 | FA55: 1 | FB55: 1 | FC55: 1 | FD55: 1 | FE55: 1 | FF55: 1 | FG55: 1 | FH55: 1 | FI55: 1 | FJ55: 1 | FK55: 1 | FL55: 1 | FM55: 1 | FN55: 1 | FO55: 1 | FP55: 1 | FQ55: 1 | FR55: 1 | FS55: 1 | FT55: 1 | FU55: 1 | FV55: 1 | FW55: 1 | FX55: 1 | FY55: 1 | FZ55: 1 | GA55: 1 | GB55: 1 | GC55: 1 | GD55: 1 | GE55: 1 | GF55: 1 | GG55: 1 | GH55: 1 | GI55: 1 | GJ55: 1 | GK55: 1 | GL55: 1 | GM55: 1 | GN55: 1 | GO55: 1 | GP55: 1 | GQ55: 1 | GR55: 1 | GS55: 1 | GT55: 1 | GU55: 1 | GV55: 1 | GW55: 1 | GX55: 1 | GY55: 1 | GZ55: 1 | HA55: 1 | HB55: 1 | HC55: 1 | HD55: 1 | HE55: 1 | HF55: 1 | HG55: 1 | HH55: 1 | HI55: 1 | HJ55: 1 | HK55: 1 | HL55: 1 | HM55: 1 | HN55: 1 | HO55: 1 | HP55: 1 | HQ55: 1 | HR55: 1 | HS55: 1 | HT55: 1 | HU55: 1 | HV55: 1 | HW55: 1 | HX55: 1 | HY55: 1 | HZ55: 1 | IA55: 1 | IB55: 1 | IC55: 1 | ID55: 1 | IE55: 1 | IF55: 1 | IG55: 1 | IH55: 1 | II55: 1 | IJ55: 1 | IK55: 1 | IL55: 1 | IM55: 1 | IN55: 1 | IO55: 1 | IP55: 1 | IQ55: 1 | IR55: 1 | IS55: 1 | IT55: 1 | IU55: 1 | IV55: 1 | IW55: 1 | IX55: 1 | IY55: 1 | IZ55: 1 | JA55: 1 | JB55: 1 | JC55: 1 | JD55: 1 | JE55: 1 | JF55: 1 | JG55: 1 | JH55: 1 | JI55: 1 | JJ55: 1 | JK55: 1 | JL55: 1 | JM55: 1 | JN55: 1 | JO55: 1 | JP55: 1 | JQ55: 1 | JR55: 1 | JS55: 1 | JT55: 1 | JU55: 1 | JV55: 1 | JW55: 1 | JX55: 1 | JY55: 1 | JZ55: 1 | KA55: 1 | KB55: 1 | KC55: 1 | KD55: 1 | KE55: 1 | KF55: 1 | KG55: 1 | KH55: 1 | KI55: 1 | KJ55: 1 | KK55: 1 | KL55: 1 | KM55: 1 | KN55: 1 | KO55: 1 | KP55: 1 | KQ55: 1 | KR55: 1 | KS55: 1 | KT55: 1 | KU55: 1 | KV55: 1 | KW55: 1 | KX55: 1 | KY55: 1 | KZ55: 1 | LA55: 1 | LB55: 1 | LC55: 1 | LD55: 1 | LE55: 1 | LF55: 1 | LG55: 1 | LH55: 1 | LI55: 1 | LJ55: 1 | LK55: 1 | LL55: 1 | LM55: 1 | LN55: 1 | LO55: 1 | LP55: 1 | LQ55: 1 | LR55: 1 | LS55: 1 | LT55: 1 | LU55: 1 | LV55: 1 | LW55: 1 | LX55: 1 | LY55: 1 | LZ55: 1 | MA55: 1 | MB55: 1 | MC55: 1 | MD55: 1 | ME55: 1 | MF55: 1 | MG55: 1 | MH55: 1 | MI55: 1 | MJ55: 1 | MK55: 1 | ML55: 1 | MM55: 1 | MN55: 1 | MO55: 1 | MP55: 1 | MQ55: 1 | MR55: 1 | MS55: 1 | MT55: 1 | MU55: 1 | MV55: 1 | MW55: 1 | MX55: 1 | MY55: 1 | MZ55: 1 | NA55: 1 | NB55: 1 | NC55: 1 | ND55: 1 | NE55: 1 | NF55: 1 | NG55: 1 | NH55: 1 | NI55: 1 | NJ55: 1 | NK55: 1 | NL55: 1 | NM55: 1 | NN55: 1 | NO55: 1 | NP55: 1 | NQ55: 1 | NR55: 1 | NS55: 1 | NT55: 1 | NU55: 1 | NV55: 1 | NW55: 1 | NX55: 1 | NY55: 1 | NZ55: 1 | OA55: 1 | OB55: 1 | OC55: 1 | OD55: 1 | OE55: 1 | OF55: 1 | OG55: 1 | OH55: 1 | OI55: 1 | OJ55: 1 | OK55: 1 | OL55: 1 | OM55: 1 | ON55: 1 | OO55: 1 | OP55: 1 | OQ55: 1 | OR55: 1 | OS55: 1 | OT55: 1 | OU55: 1 | OV55: 1 | OW55: 1 | OX55: 1 | OY55: 1 | OZ55: 1 | PA55: 1 | PB55: 1 | PC55: 1 | PD55: 1 | PE55: 1 | PF55: 1 | PG55: 1
B56: Sensibil. Conservador | D56: -0.057 | E56: -0.057 | F56: -0.057 | G56: -0.057 | H56: -0.057 | I56: -0.057 | J56: -0.057 | K56: -0.057 | L56: -0.057 | M56: -0.057 | N56: -0.057 | O56: -0.057 | P56: -0.057 | Q56: -0.057 | R56: -0.057 | S56: -0.057 | T56: -0.057 | U56: -0.057 | V56: -0.057 | W56: -0.057 | X56: -0.057 | Y56: -0.057 | Z56: -0.057 | AA56: -0.057 | AB56: -0.057 | AC56: -0.057 | AD56: -0.057 | AE56: -0.057 | AF56: -0.057 | AG56: -0.057 | AH56: -0.057 | AI56: -0.057 | AJ56: -0.057 | AK56: -0.057 | AL56: -0.057 | AM56: -0.057 | AN56: -0.057 | AO56: -0.057 | AP56: -0.057 | AQ56: -0.057 | AR56: -0.057 | AS56: -0.057 | AT56: -0.057 | AU56: -0.057 | AV56: -0.057 | AW56: -0.057 | AX56: -0.057 | AY56: -0.057 | AZ56: -0.057 | BA56: -0.057 | BB56: -0.057 | BC56: -0.057 | BD56: -0.057 | BE56: -0.057 | BF56: -0.057 | BG56: -0.057 | BH56: -0.057 | BI56: -0.057 | BJ56: -0.057 | BK56: -0.057 | BL56: -0.057 | BM56: -0.057 | BN56: -0.057 | BO56: -0.057 | BP56: -0.057 | BQ56: -0.057 | BR56: -0.057 | BS56: -0.057 | BT56: -0.057 | BU56: -0.057 | BV56: -0.057 | BW56: -0.057 | BX56: -0.057 | BY56: -0.057 | BZ56: -0.057 | CA56: -0.057 | CB56: -0.057 | CC56: -0.057 | CD56: -0.057 | CE56: -0.057 | CF56: -0.057 | CG56: -0.057 | CH56: -0.057 | CI56: -0.057 | CJ56: -0.057 | CK56: -0.057 | CL56: -0.057 | CM56: -0.057 | CN56: -0.057 | CO56: -0.057 | CP56: -0.057 | CQ56: -0.057 | CR56: -0.057 | CS56: -0.057 | CT56: -0.057 | CU56: -0.057 | CV56: -0.057 | CW56: -0.057 | CX56: -0.057 | CY56: -0.057 | CZ56: -0.057 | DA56: -0.057 | DB56: -0.057 | DC56: -0.057 | DD56: -0.057 | DE56: -0.057 | DF56: -0.057 | DG56: -0.057 | DH56: -0.057 | DI56: -0.057 | DJ56: -0.057 | DK56: -0.057 | DL56: -0.057 | DM56: -0.057 | DN56: -0.057 | DO56: -0.057 | DP56: -0.057 | DQ56: -0.057 | DR56: -0.057 | DS56: -0.057 | DT56: -0.057 | DU56: -0.057 | DV56: -0.057 | DW56: -0.057 | DX56: -0.057 | DY56: -0.057 | DZ56: -0.057 | EA56: -0.057 | EB56: -0.057 | EC56: -0.057 | ED56: -0.057 | EE56: -0.057 | EF56: -0.057 | EG56: -0.057 | EH56: -0.057 | EI56: -0.057 | EJ56: -0.057 | EK56: -0.057 | EL56: -0.057 | EM56: -0.057 | EN56: -0.057 | EO56: -0.057 | EP56: -0.057 | EQ56: -0.057 | ER56: -0.057 | ES56: -0.057 | ET56: -0.057 | EU56: -0.057 | EV56: -0.057 | EW56: -0.057 | EX56: -0.057 | EY56: -0.057 | EZ56: -0.057 | FA56: -0.057 | FB56: -0.057 | FC56: -0.057 | FD56: -0.057 | FE56: -0.057 | FF56: -0.057 | FG56: -0.057 | FH56: -0.057 | FI56: -0.057 | FJ56: -0.057 | FK56: -0.057 | FL56: -0.057 | FM56: -0.057 | FN56: -0.057 | FO56: -0.057 | FP56: -0.057 | FQ56: -0.057 | FR56: -0.057 | FS56: -0.057 | FT56: -0.057 | FU56: -0.057 | FV56: -0.057 | FW56: -0.057 | FX56: -0.057 | FY56: -0.057 | FZ56: -0.057 | GA56: -0.057 | GB56: -0.057 | GC56: -0.057 | GD56: -0.057 | GE56: -0.057 | GF56: -0.057 | GG56: -0.057 | GH56: -0.057 | GI56: -0.057 | GJ56: -0.057 | GK56: -0.057 | GL56: -0.057 | GM56: -0.057 | GN56: -0.057 | GO56: -0.057 | GP56: -0.057 | GQ56: -0.057 | GR56: -0.057 | GS56: -0.057 | GT56: -0.057 | GU56: -0.057 | GV56: -0.057 | GW56: -0.057 | GX56: -0.057 | GY56: -0.057 | GZ56: -0.057 | HA56: -0.057 | HB56: -0.057 | HC56: -0.057 | HD56: -0.057 | HE56: -0.057 | HF56: -0.057 | HG56: -0.057 | HH56: -0.057 | HI56: -0.057 | HJ56: -0.057 | HK56: -0.057 | HL56: -0.057 | HM56: -0.057 | HN56: -0.057 | HO56: -0.057 | HP56: -0.057 | HQ56: -0.057 | HR56: -0.057 | HS56: -0.057 | HT56: -0.057 | HU56: -0.057 | HV56: -0.057 | HW56: -0.057 | HX56: -0.057 | HY56: -0.057 | HZ56: -0.057 | IA56: -0.057 | IB56: -0.057 | IC56: -0.057 | ID56: -0.057 | IE56: -0.057 | IF56: -0.057 | IG56: -0.057 | IH56: -0.057 | II56: -0.057 | IJ56: -0.057 | IK56: -0.057 | IL56: -0.057 | IM56: -0.057 | IN56: -0.057 | IO56: -0.057 | IP56: -0.057 | IQ56: -0.057 | IR56: -0.057 | IS56: -0.057 | IT56: -0.057 | IU56: -0.057 | IV56: -0.057 | IW56: -0.057 | IX56: -0.057 | IY56: -0.057 | IZ56: -0.057 | JA56: -0.057 | JB56: -0.057 | JC56: -0.057 | JD56: -0.057 | JE56: -0.057 | JF56: -0.057 | JG56: -0.057 | JH56: -0.057 | JI56: -0.057 | JJ56: -0.057 | JK56: -0.057 | JL56: -0.057 | JM56: -0.057 | JN56: -0.057 | JO56: -0.057 | JP56: -0.057 | JQ56: -0.057 | JR56: -0.057 | JS56: -0.057 | JT56: -0.057 | JU56: -0.057 | JV56: -0.057 | JW56: -0.057 | JX56: -0.057 | JY56: -0.057 | JZ56: -0.057 | KA56: -0.057 | KB56: -0.057 | KC56: -0.057 | KD56: -0.057 | KE56: -0.057 | KF56: -0.057 | KG56: -0.057 | KH56: -0.057 | KI56: -0.057 | KJ56: -0.057 | KK56: -0.057 | KL56: -0.057 | KM56: -0.057 | KN56: -0.057 | KO56: -0.057 | KP56: -0.057 | KQ56: -0.057 | KR56: -0.057 | KS56: -0.057 | KT56: -0.057 | KU56: -0.057 | KV56: -0.057 | KW56: -0.057 | KX56: -0.057 | KY56: -0.057 | KZ56: -0.057 | LA56: -0.057 | LB56: -0.057 | LC56: -0.057 | LD56: -0.057 | LE56: -0.057 | LF56: -0.057 | LG56: -0.057 | LH56: -0.057 | LI56: -0.057 | LJ56: -0.057 | LK56: -0.057 | LL56: -0.057 | LM56: -0.057 | LN56: -0.057 | LO56: -0.057 | LP56: -0.057 | LQ56: -0.057 | LR56: -0.057 | LS56: -0.057 | LT56: -0.057 | LU56: -0.057 | LV56: -0.057 | LW56: -0.057 | LX56: -0.057 | LY56: -0.057 | LZ56: -0.057 | MA56: -0.057 | MB56: -0.057 | MC56: -0.057 | MD56: -0.057 | ME56: -0.057 | MF56: -0.057 | MG56: -0.057 | MH56: -0.057 | MI56: -0.057 | MJ56: -0.057 | MK56: -0.057 | ML56: -0.057 | MM56: -0.057 | MN56: -0.057 | MO56: -0.057 | MP56: -0.057 | MQ56: -0.057 | MR56: -0.057 | MS56: -0.057 | MT56: -0.057 | MU56: -0.057 | MV56: -0.057 | MW56: -0.057 | MX56: -0.057 | MY56: -0.057 | MZ56: -0.057 | NA56: -0.057 | NB56: -0.057 | NC56: -0.057 | ND56: -0.057 | NE56: -0.057 | NF56: -0.057 | NG56: -0.057 | NH56: -0.057 | NI56: -0.057 | NJ56: -0.057 | NK56: -0.057 | NL56: -0.057 | NM56: -0.057 | NN56: -0.057 | NO56: -0.057 | NP56: -0.057 | NQ56: -0.057 | NR56: -0.057 | NS56: -0.057 | NT56: -0.057 | NU56: -0.057 | NV56: -0.057 | NW56: -0.057 | NX56: -0.057 | NY56: -0.057 | NZ56: -0.057 | OA56: -0.057 | OB56: -0.057 | OC56: -0.057 | OD56: -0.057 | OE56: -0.057 | OF56: -0.057 | OG56: -0.057 | OH56: -0.057 | OI56: -0.057 | OJ56: -0.057 | OK56: -0.057 | OL56: -0.057 | OM56: -0.057 | ON56: -0.057 | OO56: -0.057 | OP56: -0.057 | OQ56: -0.057 | OR56: -0.057 | OS56: -0.057 | OT56: -0.057 | OU56: -0.057 | OV56: -0.057 | OW56: -0.057 | OX56: -0.057 | OY56: -0.057 | OZ56: -0.057 | PA56: -0.057 | PB56: -0.057 | PC56: -0.057 | PD56: -0.057 | PE56: -0.057 | PF56: -0.057 | PG56: -0.057
B57: Sensibil. Agressivo | D57: 0.057 | E57: 0.057 | F57: 0.057 | G57: 0.057 | H57: 0.057 | I57: 0.057 | J57: 0.057 | K57: 0.057 | L57: 0.057 | M57: 0.057 | N57: 0.057 | O57: 0.057 | P57: 0.057 | Q57: 0.057 | R57: 0.057 | S57: 0.057 | T57: 0.057 | U57: 0.057 | V57: 0.057 | W57: 0.057 | X57: 0.057 | Y57: 0.057 | Z57: 0.057 | AA57: 0.057 | AB57: 0.057 | AC57: 0.057 | AD57: 0.057 | AE57: 0.057 | AF57: 0.057 | AG57: 0.057 | AH57: 0.057 | AI57: 0.057 | AJ57: 0.057 | AK57: 0.057 | AL57: 0.057 | AM57: 0.057 | AN57: 0.057 | AO57: 0.057 | AP57: 0.057 | AQ57: 0.057 | AR57: 0.057 | AS57: 0.057 | AT57: 0.057 | AU57: 0.057 | AV57: 0.057 | AW57: 0.057 | AX57: 0.057 | AY57: 0.057 | AZ57: 0.057 | BA57: 0.057 | BB57: 0.057 | BC57: 0.057 | BD57: 0.057 | BE57: 0.057 | BF57: 0.057 | BG57: 0.057 | BH57: 0.057 | BI57: 0.057 | BJ57: 0.057 | BK57: 0.057 | BL57: 0.057 | BM57: 0.057 | BN57: 0.057 | BO57: 0.057 | BP57: 0.057 | BQ57: 0.057 | BR57: 0.057 | BS57: 0.057 | BT57: 0.057 | BU57: 0.057 | BV57: 0.057 | BW57: 0.057 | BX57: 0.057 | BY57: 0.057 | BZ57: 0.057 | CA57: 0.057 | CB57: 0.057 | CC57: 0.057 | CD57: 0.057 | CE57: 0.057 | CF57: 0.057 | CG57: 0.057 | CH57: 0.057 | CI57: 0.057 | CJ57: 0.057 | CK57: 0.057 | CL57: 0.057 | CM57: 0.057 | CN57: 0.057 | CO57: 0.057 | CP57: 0.057 | CQ57: 0.057 | CR57: 0.057 | CS57: 0.057 | CT57: 0.057 | CU57: 0.057 | CV57: 0.057 | CW57: 0.057 | CX57: 0.057 | CY57: 0.057 | CZ57: 0.057 | DA57: 0.057 | DB57: 0.057 | DC57: 0.057 | DD57: 0.057 | DE57: 0.057 | DF57: 0.057 | DG57: 0.057 | DH57: 0.057 | DI57: 0.057 | DJ57: 0.057 | DK57: 0.057 | DL57: 0.057 | DM57: 0.057 | DN57: 0.057 | DO57: 0.057 | DP57: 0.057 | DQ57: 0.057 | DR57: 0.057 | DS57: 0.057 | DT57: 0.057 | DU57: 0.057 | DV57: 0.057 | DW57: 0.057 | DX57: 0.057 | DY57: 0.057 | DZ57: 0.057 | EA57: 0.057 | EB57: 0.057 | EC57: 0.057 | ED57: 0.057 | EE57: 0.057 | EF57: 0.057 | EG57: 0.057 | EH57: 0.057 | EI57: 0.057 | EJ57: 0.057 | EK57: 0.057 | EL57: 0.057 | EM57: 0.057 | EN57: 0.057 | EO57: 0.057 | EP57: 0.057 | EQ57: 0.057 | ER57: 0.057 | ES57: 0.057 | ET57: 0.057 | EU57: 0.057 | EV57: 0.057 | EW57: 0.057 | EX57: 0.057 | EY57: 0.057 | EZ57: 0.057 | FA57: 0.057 | FB57: 0.057 | FC57: 0.057 | FD57: 0.057 | FE57: 0.057 | FF57: 0.057 | FG57: 0.057 | FH57: 0.057 | FI57: 0.057 | FJ57: 0.057 | FK57: 0.057 | FL57: 0.057 | FM57: 0.057 | FN57: 0.057 | FO57: 0.057 | FP57: 0.057 | FQ57: 0.057 | FR57: 0.057 | FS57: 0.057 | FT57: 0.057 | FU57: 0.057 | FV57: 0.057 | FW57: 0.057 | FX57: 0.057 | FY57: 0.057 | FZ57: 0.057 | GA57: 0.057 | GB57: 0.057 | GC57: 0.057 | GD57: 0.057 | GE57: 0.057 | GF57: 0.057 | GG57: 0.057 | GH57: 0.057 | GI57: 0.057 | GJ57: 0.057 | GK57: 0.057 | GL57: 0.057 | GM57: 0.057 | GN57: 0.057 | GO57: 0.057 | GP57: 0.057 | GQ57: 0.057 | GR57: 0.057 | GS57: 0.057 | GT57: 0.057 | GU57: 0.057 | GV57: 0.057 | GW57: 0.057 | GX57: 0.057 | GY57: 0.057 | GZ57: 0.057 | HA57: 0.057 | HB57: 0.057 | HC57: 0.057 | HD57: 0.057 | HE57: 0.057 | HF57: 0.057 | HG57: 0.057 | HH57: 0.057 | HI57: 0.057 | HJ57: 0.057 | HK57: 0.057 | HL57: 0.057 | HM57: 0.057 | HN57: 0.057 | HO57: 0.057 | HP57: 0.057 | HQ57: 0.057 | HR57: 0.057 | HS57: 0.057 | HT57: 0.057 | HU57: 0.057 | HV57: 0.057 | HW57: 0.057 | HX57: 0.057 | HY57: 0.057 | HZ57: 0.057 | IA57: 0.057 | IB57: 0.057 | IC57: 0.057 | ID57: 0.057 | IE57: 0.057 | IF57: 0.057 | IG57: 0.057 | IH57: 0.057 | II57: 0.057 | IJ57: 0.057 | IK57: 0.057 | IL57: 0.057 | IM57: 0.057 | IN57: 0.057 | IO57: 0.057 | IP57: 0.057 | IQ57: 0.057 | IR57: 0.057 | IS57: 0.057 | IT57: 0.057 | IU57: 0.057 | IV57: 0.057 | IW57: 0.057 | IX57: 0.057 | IY57: 0.057 | IZ57: 0.057 | JA57: 0.057 | JB57: 0.057 | JC57: 0.057 | JD57: 0.057 | JE57: 0.057 | JF57: 0.057 | JG57: 0.057 | JH57: 0.057 | JI57: 0.057 | JJ57: 0.057 | JK57: 0.057 | JL57: 0.057 | JM57: 0.057 | JN57: 0.057 | JO57: 0.057 | JP57: 0.057 | JQ57: 0.057 | JR57: 0.057 | JS57: 0.057 | JT57: 0.057 | JU57: 0.057 | JV57: 0.057 | JW57: 0.057 | JX57: 0.057 | JY57: 0.057 | JZ57: 0.057 | KA57: 0.057 | KB57: 0.057 | KC57: 0.057 | KD57: 0.057 | KE57: 0.057 | KF57: 0.057 | KG57: 0.057 | KH57: 0.057 | KI57: 0.057 | KJ57: 0.057 | KK57: 0.057 | KL57: 0.057 | KM57: 0.057 | KN57: 0.057 | KO57: 0.057 | KP57: 0.057 | KQ57: 0.057 | KR57: 0.057 | KS57: 0.057 | KT57: 0.057 | KU57: 0.057 | KV57: 0.057 | KW57: 0.057 | KX57: 0.057 | KY57: 0.057 | KZ57: 0.057 | LA57: 0.057 | LB57: 0.057 | LC57: 0.057 | LD57: 0.057 | LE57: 0.057 | LF57: 0.057 | LG57: 0.057 | LH57: 0.057 | LI57: 0.057 | LJ57: 0.057 | LK57: 0.057 | LL57: 0.057 | LM57: 0.057 | LN57: 0.057 | LO57: 0.057 | LP57: 0.057 | LQ57: 0.057 | LR57: 0.057 | LS57: 0.057 | LT57: 0.057 | LU57: 0.057 | LV57: 0.057 | LW57: 0.057 | LX57: 0.057 | LY57: 0.057 | LZ57: 0.057 | MA57: 0.057 | MB57: 0.057 | MC57: 0.057 | MD57: 0.057 | ME57: 0.057 | MF57: 0.057 | MG57: 0.057 | MH57: 0.057 | MI57: 0.057 | MJ57: 0.057 | MK57: 0.057 | ML57: 0.057 | MM57: 0.057 | MN57: 0.057 | MO57: 0.057 | MP57: 0.057 | MQ57: 0.057 | MR57: 0.057 | MS57: 0.057 | MT57: 0.057 | MU57: 0.057 | MV57: 0.057 | MW57: 0.057 | MX57: 0.057 | MY57: 0.057 | MZ57: 0.057 | NA57: 0.057 | NB57: 0.057 | NC57: 0.057 | ND57: 0.057 | NE57: 0.057 | NF57: 0.057 | NG57: 0.057 | NH57: 0.057 | NI57: 0.057 | NJ57: 0.057 | NK57: 0.057 | NL57: 0.057 | NM57: 0.057 | NN57: 0.057 | NO57: 0.057 | NP57: 0.057 | NQ57: 0.057 | NR57: 0.057 | NS57: 0.057 | NT57: 0.057 | NU57: 0.057 | NV57: 0.057 | NW57: 0.057 | NX57: 0.057 | NY57: 0.057 | NZ57: 0.057 | OA57: 0.057 | OB57: 0.057 | OC57: 0.057 | OD57: 0.057 | OE57: 0.057 | OF57: 0.057 | OG57: 0.057 | OH57: 0.057 | OI57: 0.057 | OJ57: 0.057 | OK57: 0.057 | OL57: 0.057 | OM57: 0.057 | ON57: 0.057 | OO57: 0.057 | OP57: 0.057 | OQ57: 0.057 | OR57: 0.057 | OS57: 0.057 | OT57: 0.057 | OU57: 0.057 | OV57: 0.057 | OW57: 0.057 | OX57: 0.057 | OY57: 0.057 | OZ57: 0.057 | PA57: 0.057 | PB57: 0.057 | PC57: 0.057 | PD57: 0.057 | PE57: 0.057 | PF57: 0.057 | PG57: 0.057
